Workbook

Sheet CAPA
B12: PROPOSTA DE PREÇOS
B13: Desconto ofertado:
B14: BDI serviços da licitante: | D14: 0.2339
B15: BDI materiais da licitante: | D15: 0.15
B16: Observações:
B17: 1. Preencher apenas a coluna em amarelo com os dados da proposta de preços da licitante.

Sheet PO TOTAL
B1: EXECUÇÃO DE SERVIÇOS DE PAVIMENTAÇÃO COM TRATAMENTO SUPERFICIAL DUPLO EM VIAS DE MUNICÍPIOS DIVERSOS INSERIDOS NA ÁREA DE ATUAÇÃO DA CODEVASF, NO ESTADO MARANHÃO
O2: SICRO: | P2: 2025-04-01
O3: SINAPI: | P3: 2025-05-01
O4: Data Base do Orçamento | P4: 2025-07-01
B5: PO TOTAL | O5: QT | P5: 16
O6: R$/m² | P6: =(P60/I10) -> 93.59041429
B7: =B1 -> EXECUÇÃO DE SERVIÇOS DE PAVIMENTAÇÃO COM TRATAMENTO SUPERFICIAL DUPLO EM VIAS DE MUNICÍPIOS DIVERSOS INSERIDOS NA ÁREA DE ATUAÇÃO DA CODEVASF, NO ESTADO MARANHÃO
B8: ITEM | C8: ORIGEM COMPOSIÇÃO | D8: CÓDIGO COMPOSIÇÃO | E8: DISCRIMINAÇÃO DOS SERVIÇOS | I8: BDI % = | J8: =CAPA!D14 -> 0.2339 | K8: BDI DIFERENCIADO % = | L8: =CAPA!D15 -> 0.15 | M8: R$/m² | N8: PROPOSTA DA EMPRESA LICITANTE
I9: Total de m² | J9: Encargos Sociais: | K9: Horista % | L9: Mensalista % | M9: PREÇO UNITÁRIO COM BDI | N9: DESCONTO | O9: PREÇO UNITÁRIO COM BDI APÓS O DESCONTO | P9: PREÇO TOTAL COM BDI APÓS O DESCONTO
I10: =P5*'MODULO MINIMO'!I8 -> 224000 | K10: ='ENC. SOCIAIS'!$E$51 -> 112.73 | L10: ='ENC. SOCIAIS'!$F$51 -> 70.19
I11: UND | J11: QTDE. | K11: BDI | L11: PREÇO UNITÁRIO | AC11: TOTAL
E12: MOBILIZAÇÃO/DESMOBILIZAÇÃO
B13: 1 | C13: Codevasf | D13: Mob | E13: Mobilização | I13: R$/km | J13: =$P$5*'MODULO MINIMO'!J11 -> 0 | K13: =$J$8 -> 0.2339 | L13: =Mob!B66 -> 188.6189183 | M13: ='MODULO MINIMO'!M11 -> 232.73 | N13: =CAPA!$D$13 -> 0 | O13: ='MODULO MINIMO'!O11 -> 232.73 | P13: =TRUNC(O13*J13,2) -> 0 | Q13: =P13/$P$60 -> 0 | AC13: 57163.47
B14: 2 | C14: Codevasf | D14: Mob | E14: Desmobilização | I14: R$/km | J14: =$P$5*'MODULO MINIMO'!J12 -> 0 | K14: =$J$8 -> 0.2339 | L14: =Mob!B66 -> 188.6189183 | M14: ='MODULO MINIMO'!M12 -> 232.73 | N14: =CAPA!$D$13 -> 0 | O14: ='MODULO MINIMO'!O12 -> 232.73 | P14: =TRUNC(O14*J14,2) -> 0 | Q14: =P14/$P$60 -> 0 | AC14: 57163.47
E15: INSTALAÇÃO DE CANTEIRO
B16: 3 | C16: Codevasf | D16: Canteiro | E16: Canteiro de Obras e Almoxarifado | I16: und | J16: =$P$5*'MODULO MINIMO'!J14 -> 16 | K16: =$J$8 -> 0.2339 | L16: =' Canteiro'!F11 -> 20786.16 | M16: ='MODULO MINIMO'!M14 -> 25648.04 | N16: =CAPA!$D$13 -> 0 | O16: ='MODULO MINIMO'!O14 -> 25648.04 | P16: =TRUNC(O16*J16,2) -> 410368.64 | AC16: 190291.53
B17: 4 | C17: SINAPI | D17: 103689 | E17: Fornecimento e instalação de placa de obra com chapa galvanizada e estrutura de madeira. af_03/2022_ps | I17: m² | J17: =$P$5*'MODULO MINIMO'!J15 -> 128 | K17: =$J$8 -> 0.2339 | L17: =VLOOKUP(D17,'COMP Sint. Sinapi'!B11:W9734,22,0) -> 468.31 | M17: ='MODULO MINIMO'!M15 -> 577.84 | N17: =CAPA!$D$13 -> 0 | O17: ='MODULO MINIMO'!O15 -> 577.84 | P17: =TRUNC(O17*J17,2) -> 73963.52
E18: ADMINISTRAÇÃO LOCAL DA OBRA
B19: 5 | C19: Codevasf | D19: Adm Local | E19: Administração Local da Obra | I19: und | J19: =$P$5*'MODULO MINIMO'!J17 -> 16 | K19: =$J$8 -> 0.2339 | L19: ='Adm Local'!J248 -> 119469.4764 | M19: ='MODULO MINIMO'!M17 -> 147413.38 | N19: =CAPA!$D$13 -> 0 | O19: ='MODULO MINIMO'!O17 -> 147413.38 | P19: =TRUNC(O19*J19,2) -> 2358614.08 | Q19: =P19/P60 -> 0.1125064701 | T19: pav | U19: =(P24+P25+P26+P27+P28+P29+P31+P32+P33+P34+P49)/P60 -> 0.5045683183
E20: TERRAPLANAGEM | T20: incc | U20: =(P13+P16+P17+P14+P38+P19+P39+P36+P44+P46+P37)/P60 -> 0.1902317835
B21: 6 | C21: SICRO | D21: 5502114 | E21: =VLOOKUP(D21,'SINTÉTICO SICRO'!$A$4:$D$1048576,2,0) -> Escavação, carga e transporte de material de 1ª categoria - DMT de 1.000 a 1.200 m - caminho de serviço em leito natural - com escavadeira e caminhão basculante de 14 m³ | I21: m³ | J21: =$P$5*'MODULO MINIMO'!J19 -> 72800 | K21: =$J$8 -> 0.2339 | L21: =ROUND(IF(C21="CODEVASF",VLOOKUP(D21,'CPU CODEVASF'!E:I,5,FALSE),VLOOKUP(D21,'SINTÉTICO SICRO'!A:D,4,FALSE)),6) -> 8.22 | M21: ='MODULO MINIMO'!M19 -> 10.14 | N21: =CAPA!$D$13 -> 0 | O21: ='MODULO MINIMO'!O19 -> 10.14 | P21: =TRUNC(O21*J21,2) -> 738192 | T21: dren | U21: =(P41+P42)/P60 -> 0.2613759742 | AC21: 366912
B22: 7 | C22: SICRO | D22: 4413942 | E22: =VLOOKUP(D22,'SINTÉTICO SICRO'!$A$4:$D$1048576,2,0) -> Espalhamento de material em bota-fora | I22: m³ | J22: =$P$5*'MODULO MINIMO'!J20 -> 72800 | K22: =$J$8 -> 0.2339 | L22: =ROUND(IF(C22="CODEVASF",VLOOKUP(D22,'CPU CODEVASF'!E:I,5,FALSE),VLOOKUP(D22,'SINTÉTICO SICRO'!A:D,4,FALSE)),6) -> 2.01 | M22: ='MODULO MINIMO'!M20 -> 2.48 | N22: =CAPA!$D$13 -> 0 | O22: ='MODULO MINIMO'!O20 -> 2.48 | P22: =TRUNC(O22*J22,2) -> 180544 | T22: terrap | U22: =(P21+P22)/P60 -> 0.04382393252 | AC22: 84084 | AH22: 1
E23: PAVIMENTAÇÃO
B24: 8 | C24: SICRO | D24: 4915637 | E24: =VLOOKUP(D24,'SINTÉTICO SICRO'!$A$4:$D$1048576,2,0) -> Capa selante - areia comercial | I24: m² | J24: =$P$5*'MODULO MINIMO'!J22 -> 224000 | K24: =$J$8 -> 0.2339 | L24: =ROUND(IF(C24="CODEVASF",VLOOKUP(D24,'CPU CODEVASF'!E:I,5,FALSE),VLOOKUP(D24,'SINTÉTICO SICRO'!A:D,4,FALSE)),6) -> 0.9 | M24: ='MODULO MINIMO'!M22 -> 1.11 | N24: =CAPA!$D$13 -> 0 | O24: ='MODULO MINIMO'!O22 -> 1.11 | P24: =TRUNC(O24*J24,2) -> 248640 | AC24: 13037300.31
B25: 9 | C25: SICRO | D25: 4011370 | E25: =VLOOKUP(D25,'SINTÉTICO SICRO'!$A$4:$D$1048576,2,0) -> Tratamento superficial duplo com emulsão - brita comercial | I25: m² | J25: =$P$5*'MODULO MINIMO'!J23 -> 224000 | K25: 0.2339 | L25: =ROUND(IF(C25="CODEVASF",VLOOKUP(D25,'CPU CODEVASF'!E:I,5,FALSE),VLOOKUP(D25,'SINTÉTICO SICRO'!A:D,4,FALSE)),6) -> 6.08 | M25: ='MODULO MINIMO'!M23 -> 7.5 | N25: =CAPA!$D$13 -> 0 | O25: ='MODULO MINIMO'!O23 -> 7.5 | P25: =TRUNC(O25*J25,2) -> 1680000 | AC25: 223860
B26: 10 | C26: SICRO | D26: 4011352 | E26: =VLOOKUP(D26,'SINTÉTICO SICRO'!$A$4:$D$1048576,2,0) -> Imprimação com emulsão asfáltica | I26: m² | J26: =$P$5*'MODULO MINIMO'!J24 -> 224000 | K26: 0.2339 | L26: =ROUND(IF(C26="CODEVASF",VLOOKUP(D26,'CPU CODEVASF'!E:I,5,FALSE),VLOOKUP(D26,'SINTÉTICO SICRO'!A:D,4,FALSE)),6) -> 0.42 | M26: ='MODULO MINIMO'!M24 -> 0.51 | N26: =CAPA!$D$13 -> 0 | O26: ='MODULO MINIMO'!O24 -> 0.51 | P26: =TRUNC(O26*J26,2) -> 114240 | AC26: 223860
B27: 11 | C27: SICRO | D27: 4011219 | E27: =VLOOKUP(D27,'SINTÉTICO SICRO'!$A$4:$D$1048576,2,0) -> Base de solo estabilizado granulometricamente sem mistura com material de jazida - 100% Proctor modificado | I27: m³ | J27: =$P$5*'MODULO MINIMO'!J25 -> 33600 | K27: 0.2339 | L27: =ROUND(IF(C27="CODEVASF",VLOOKUP(D27,'CPU CODEVASF'!E:I,5,FALSE),VLOOKUP(D27,'SINTÉTICO SICRO'!A:D,4,FALSE)),6) -> 14.79 | M27: ='MODULO MINIMO'!M25 -> 18.24 | N27: =CAPA!$D$13 -> 0 | O27: ='MODULO MINIMO'!O25 -> 18.24 | P27: 612864 | AC27: 15919722
B28: 12 | C28: SICRO | D28: 4011227 | E28: =VLOOKUP(D28,'SINTÉTICO SICRO'!$A$4:$D$1048576,2,0) -> Sub-base de solo estabilizado granulometricamente sem mistura com material de jazida - 100% Proctor intermediário | I28: m³ | J28: =$P$5*'MODULO MINIMO'!J26 -> 33600 | K28: 0.2339 | L28: =ROUND(IF(C28="CODEVASF",VLOOKUP(D28,'CPU CODEVASF'!E:I,5,FALSE),VLOOKUP(D28,'SINTÉTICO SICRO'!A:D,4,FALSE)),6) -> 13.6 | M28: ='MODULO MINIMO'!M26 -> 16.78 | N28: =CAPA!$D$13 -> 0 | O28: ='MODULO MINIMO'!O26 -> 16.78 | P28: 563808 | AC28: 2045862
B29: 13 | C29: SICRO | D29: 4011209 | E29: =VLOOKUP(D29,'SINTÉTICO SICRO'!$A$4:$D$1048576,2,0) -> Regularização do subleito - 100% Proctor intermediário | I29: m² | J29: =$P$5*'MODULO MINIMO'!J27 -> 224000 | K29: 0.2339 | L29: =ROUND(IF(C29="CODEVASF",VLOOKUP(D29,'CPU CODEVASF'!E:I,5,FALSE),VLOOKUP(D29,'SINTÉTICO SICRO'!A:D,4,FALSE)),6) -> 1.57 | M29: ='MODULO MINIMO'!M27 -> 1.93 | N29: =CAPA!$D$13 -> 0 | O29: ='MODULO MINIMO'!O27 -> 1.93 | P29: 432320 | AC29: 540540
E30: AQUISIÇÃO E TRANSPORTE DO MATERIAL BETUMINOSO
B31: 14 | C31: CODEVASF | D31: CPU-14 | E31: AQUISIÇÃO DE EAI | I31: t | J31: =$P$5*'MODULO MINIMO'!J29 -> 268.8 | K31: =M31/L31-1 -> 0.1499986198 | L31: =ROUND(IF(C31="CODEVASF",VLOOKUP(D31,'CPU CODEVASF'!E:I,5,FALSE),VLOOKUP(D31,'SINTÉTICO SICRO'!A:D,4,FALSE)),6) -> 3094.890671 | M31: ='MODULO MINIMO'!M29 -> 3559.12 | N31: =CAPA!$D$13 -> 0 | O31: ='MODULO MINIMO'!O29 -> 3559.12 | P31: =TRUNC(O31*J31,2) -> 956691.45 | AC31: 3101079.07
B32: 15 | C32: CODEVASF | D32: CPU-18 | E32: TRANSPORTE DE EAI | I32: t | J32: =$P$5*'MODULO MINIMO'!J30 -> 268.8 | K32: 0.1499941949 | L32: =ROUND(IF(C32="CODEVASF",VLOOKUP(D32,'CPU CODEVASF'!E:I,5,FALSE),VLOOKUP(D32,'SINTÉTICO SICRO'!A:D,4,FALSE)),6) -> 1505.242381 | M32: ='MODULO MINIMO'!M30 -> 1731.02 | N32: =CAPA!$D$13 -> 0 | O32: ='MODULO MINIMO'!O30 -> 1731.02 | P32: 465298.17 | AC32: 1243849.15
B33: 16 | C33: CODEVASF | D33: CPU-15 | E33: AQUISIÇÃO DE EMULSÃO ASFÁLTICA RR-2C | I33: t | J33: =$P$5*'MODULO MINIMO'!J31 -> 672 | K33: 0.1499986906 | L33: =ROUND(IF(C33="CODEVASF",VLOOKUP(D33,'CPU CODEVASF'!E:I,5,FALSE),VLOOKUP(D33,'SINTÉTICO SICRO'!A:D,4,FALSE)),6) -> 4036.352422 | M33: ='MODULO MINIMO'!M31 -> 4641.8 | N33: =CAPA!$D$13 -> 0 | O33: ='MODULO MINIMO'!O31 -> 4641.8 | P33: 3119289.6 | AC33: 775269.77
B34: 17 | C34: CODEVASF | D34: CPU-19 | E34: TRANSPORTE RR-2C | I34: t | J34: =$P$5*'MODULO MINIMO'!J32 -> 672 | K34: 0.1499938083 | L34: =ROUND(IF(C34="CODEVASF",VLOOKUP(D34,'CPU CODEVASF'!E:I,5,FALSE),VLOOKUP(D34,'SINTÉTICO SICRO'!A:D,4,FALSE)),6) -> 969.04 | M34: ='MODULO MINIMO'!M32 -> 1114.39 | N34: =CAPA!$D$13 -> 0 | O34: ='MODULO MINIMO'!O32 -> 1114.39 | P34: 748870.08 | AC34: 310962.288
E35: SINALIZAÇÃO
B36: 18 | C36: SICRO | D36: 5213440 | E36: =VLOOKUP(D36,'SINTÉTICO SICRO'!$A$4:$D$1048576,2,0) -> Placa de regulamentação em aço D = 0,60 m - película retrorrefletiva tipo I + SI - fornecimento e implantação | I36: und | J36: =$P$5*'MODULO MINIMO'!J34 -> 96 | K36: =$J$8 -> 0.2339 | L36: =ROUND(IF(C36="CODEVASF",VLOOKUP(D36,'CPU CODEVASF'!E:I,5,FALSE),VLOOKUP(D36,'SINTÉTICO SICRO'!A:D,4,FALSE)),6) -> 282.19 | M36: ='MODULO MINIMO'!M34 -> 348.19 | N36: =CAPA!$D$13 -> 0 | O36: ='MODULO MINIMO'!O34 -> 348.19 | P36: =TRUNC(O36*J36,2) -> 33426.24 | AC36: 9985.95
B37: 19 | C37: SICRO | D37: 5213464 | E37: =VLOOKUP(D37,'SINTÉTICO SICRO'!$A$4:$D$1048576,2,0) -> Placa de advertência em aço, lado de 0,60 m - película retrorrefletiva tipo I + SI - fornecimento e implantação | I37: und | J37: =$P$5*'MODULO MINIMO'!J35 -> 96 | K37: =$J$8 -> 0.2339 | L37: =ROUND(IF(C37="CODEVASF",VLOOKUP(D37,'CPU CODEVASF'!E:I,5,FALSE),VLOOKUP(D37,'SINTÉTICO SICRO'!A:D,4,FALSE)),6) -> 282.23 | M37: ='MODULO MINIMO'!M35 -> 348.24 | N37: =CAPA!$D$13 -> 0 | O37: ='MODULO MINIMO'!O35 -> 348.24 | P37: 33431.04 | T37: 0
B38: 20 | C38: SICRO | D38: 5213863 | E38: =VLOOKUP(D38,'SINTÉTICO SICRO'!$A$4:$D$1048576,2,0) -> Suporte metálico galvanizado para placa de advertência ou regulamentação - lado ou diâmetro de 0,60 m - fornecimento e implantação | I38: und | J38: =$P$5*'MODULO MINIMO'!J36 -> 192 | K38: =$J$8 -> 0.2339 | L38: =ROUND(IF(C38="CODEVASF",VLOOKUP(D38,'CPU CODEVASF'!E:I,5,FALSE),VLOOKUP(D38,'SINTÉTICO SICRO'!A:D,4,FALSE)),6) -> 460.16 | M38: ='MODULO MINIMO'!M36 -> 567.79 | N38: =CAPA!$D$13 -> 0 | O38: ='MODULO MINIMO'!O36 -> 567.79 | P38: 109015.68 | AC38: 13086.06
B39: 21 | C39: SICRO | D39: 5213400 | E39: =VLOOKUP(D39,'SINTÉTICO SICRO'!$A$4:$D$1048576,2,0) -> Pintura de faixa com tinta acrílica - espessura de 0,4 mm | I39: m² | J39: =$P$5*'MODULO MINIMO'!J37 -> 9600 | K39: =$J$8 -> 0.2339 | L39: =ROUND(IF(C39="CODEVASF",VLOOKUP(D39,'CPU CODEVASF'!E:I,5,FALSE),VLOOKUP(D39,'SINTÉTICO SICRO'!A:D,4,FALSE)),6) -> 21.22 | M39: ='MODULO MINIMO'!M37 -> 26.18 | N39: =CAPA!$D$13 -> 0 | O39: ='MODULO MINIMO'!O37 -> 26.18 | P39: 251328
E40: DRENAGEM
B41: 22 | C41: SICRO | D41: 2003373 | E41: =VLOOKUP(D41,'SINTÉTICO SICRO'!$A$4:$D$1048576,2,0) -> Meio-fio de concreto - MFC 03 - areia e brita comerciais - fôrma de madeira | I41: m | J41: =$P$5*'MODULO MINIMO'!J39 -> 64000 | K41: =$J$8 -> 0.2339 | L41: =ROUND(IF(C41="CODEVASF",VLOOKUP(D41,'CPU CODEVASF'!E:I,5,FALSE),VLOOKUP(D41,'SINTÉTICO SICRO'!A:D,4,FALSE)),6) -> 69.16 | M41: ='MODULO MINIMO'!M39 -> 85.33 | N41: =CAPA!$D$13 -> 0 | O41: ='MODULO MINIMO'!O39 -> 85.33 | P41: =TRUNC(O41*J41,2) -> 5461120 | AC41: 4514640
B42: 23 | C42: SICRO | D42: 4915724 | E42: =VLOOKUP(D42,'SINTÉTICO SICRO'!$A$4:$D$1048576,2,0) -> Caiação mecanizada com fixador de cal | I42: m² | J42: =$P$5*'MODULO MINIMO'!J40 -> 7680 | K42: =$J$8 -> 0.2339 | L42: =ROUND(IF(C42="CODEVASF",VLOOKUP(D42,'CPU CODEVASF'!E:I,5,FALSE),VLOOKUP(D42,'SINTÉTICO SICRO'!A:D,4,FALSE)),6) -> 1.95 | M42: ='MODULO MINIMO'!M40 -> 2.4 | N42: =CAPA!$D$13 -> 0 | O42: ='MODULO MINIMO'!O40 -> 2.4 | P42: 18432 | AA42: 4514640
E43: SERVIÇOS COMPLEMENTARES
B44: 24 | C44: Codevasf | D44: CPU-12 | E44: Conserto de quebra no ramal na rua sem pavimento com fornecimento de material hidráulico | I44: m | J44: =$P$5*'MODULO MINIMO'!J42 -> 3200 | K44: =$J$8 -> 0.2339 | L44: =ROUND(IF(C44="CODEVASF",VLOOKUP(D44,'CPU CODEVASF'!E:I,5,FALSE),VLOOKUP(D44,'SINTÉTICO SICRO'!A:D,4,FALSE)),6) -> 15.60155 | M44: ='MODULO MINIMO'!M42 -> 19.25 | N44: =CAPA!$D$13 -> 0 | O44: ='MODULO MINIMO'!O42 -> 19.25 | P44: =TRUNC(O44*J44,2) -> 61600 | AC44: 139854
E45: PROJETO EXECUTIVO
B46: 25 | C46: Codevasf | D46: Composição Própria | E46: Projeto Executivo | I46: m² | J46: =$P$5*'MODULO MINIMO'!J44 -> 224000 | K46: =$J$8 -> 0.2339 | L46: ='Projeto Executivo'!G23/'MODULO MINIMO'!I8 -> 2.380931948 | M46: ='MODULO MINIMO'!M44 -> 2.93 | N46: =CAPA!$D$13 -> 0 | O46: ='MODULO MINIMO'!O44 -> 2.93 | P46: =TRUNC(O46*J46,2) -> 656320 | Q46: =P46/P60 -> 0.03130662496 | AC46: 763671.38
E47: MOMENTO DE TRANSPORTE
B48: 26 | C48: SICRO | D48: 5914359 | E48: =VLOOKUP(D48,'SINTÉTICO SICRO'!$A$4:$D$1048576,2,0) -> Transporte com caminhão basculante de 10 m³ - rodovia em leito natural | I48: tkm | J48: =$P$5*'MODULO MINIMO'!J46 -> 0 | K48: =$J$8 -> 0.2339 | L48: =ROUND(IF(C48="CODEVASF",VLOOKUP(D48,'CPU CODEVASF'!E:I,5,FALSE),VLOOKUP(D48,'SINTÉTICO SICRO'!A:D,4,FALSE)),6) -> 1.21 | M48: ='MODULO MINIMO'!M46 -> 1.49 | N48: =CAPA!$D$13 -> 0 | O48: ='MODULO MINIMO'!O46 -> 1.49 | P48: =TRUNC(O48*J48,2) -> 0
B49: 27 | C49: SICRO | D49: 5914374 | E49: =VLOOKUP(D49,'SINTÉTICO SICRO'!$A$4:$D$1048576,2,0) -> Transporte com caminhão basculante de 10 m³ - rodovia em revestimento primário | I49: tkm | J49: =$P$5*'MODULO MINIMO'!J47 -> 1386336 | K49: =$J$8 -> 0.2339 | L49: =ROUND(IF(C49="CODEVASF",VLOOKUP(D49,'CPU CODEVASF'!E:I,5,FALSE),VLOOKUP(D49,'SINTÉTICO SICRO'!A:D,4,FALSE)),6) -> 0.96 | M49: ='MODULO MINIMO'!M47 -> 1.18 | N49: =CAPA!$D$13 -> 0 | O49: ='MODULO MINIMO'!O47 -> 1.18 | P49: =TRUNC(O49*J49,2) -> 1635876.48
B50: 28 | C50: SICRO | D50: 5914389 | E50: =VLOOKUP(D50,'SINTÉTICO SICRO'!$A$4:$D$1048576,2,0) -> Transporte com caminhão basculante de 10 m³ - rodovia pavimentada | I50: tkm | J50: =$P$5*'MODULO MINIMO'!J48 -> 0 | K50: =$J$8 -> 0.2339 | L50: =ROUND(IF(C50="CODEVASF",VLOOKUP(D50,'CPU CODEVASF'!E:I,5,FALSE),VLOOKUP(D50,'SINTÉTICO SICRO'!A:D,4,FALSE)),6) -> 0.78 | M50: ='MODULO MINIMO'!M48 -> 0.96 | N50: =CAPA!$D$13 -> 0 | O50: ='MODULO MINIMO'!O48 -> 0.96 | P50: 0
B51: 29 | C51: SICRO | D51: ='SINTÉTICO SICRO'!A5864 -> 5906592 | E51: =VLOOKUP(D51,'SINTÉTICO SICRO'!$A$4:$D$1048576,2,0) -> Carga, manobra e descarga de blocos artificiais de concreto com 10 a 12 t para molhe em cavalo mecânico com semirreboque com capacidade de 32 t - carga e descarga com guindaste com pinça | I51: tkm | J51: =$P$5*'MODULO MINIMO'!J49 -> 0 | K51: =$J$8 -> 0.2339 | L51: =ROUND(IF(C51="CODEVASF",VLOOKUP(D51,'CPU CODEVASF'!E:I,5,FALSE),VLOOKUP(D51,'SINTÉTICO SICRO'!A:D,4,FALSE)),6) -> 34.85 | M51: ='MODULO MINIMO'!M49 -> 43 | N51: =CAPA!$D$13 -> 0 | O51: ='MODULO MINIMO'!O49 -> 43 | P51: 0
B52: 30 | C52: SICRO | D52: ='SINTÉTICO SICRO'!A5865 -> 5906591 | E52: =VLOOKUP(D52,'SINTÉTICO SICRO'!$A$4:$D$1048576,2,0) -> Carga, manobra e descarga de blocos artificiais de concreto com 8 a 9 t para molhe em cavalo mecânico com semirreboque com capacidade de 32 t - carga e descarga com guindaste com pinça | I52: tkm | J52: =$P$5*'MODULO MINIMO'!J50 -> 0 | K52: =$J$8 -> 0.2339 | L52: =ROUND(IF(C52="CODEVASF",VLOOKUP(D52,'CPU CODEVASF'!E:I,5,FALSE),VLOOKUP(D52,'SINTÉTICO SICRO'!A:D,4,FALSE)),6) -> 33.05 | M52: ='MODULO MINIMO'!M50 -> 40.78 | N52: =CAPA!$D$13 -> 0 | O52: ='MODULO MINIMO'!O50 -> 40.78 | P52: 0
B53: 31 | C53: SICRO | D53: ='SINTÉTICO SICRO'!A5866 -> 5914653 | E53: =VLOOKUP(D53,'SINTÉTICO SICRO'!$A$4:$D$1048576,2,0) -> Carga, manobra e descarga de blocos de rocha em caminhão basculante de 8 m³ - carga com carregadeira de 1,72 m³ (exclusa) e descarga livre | I53: tkm | J53: =$P$5*'MODULO MINIMO'!J51 -> 0 | K53: 0.2339 | L53: =ROUND(IF(C53="CODEVASF",VLOOKUP(D53,'CPU CODEVASF'!E:I,5,FALSE),VLOOKUP(D53,'SINTÉTICO SICRO'!A:D,4,FALSE)),6) -> 3.42 | M53: ='MODULO MINIMO'!M51 -> 4.21 | N53: =CAPA!$D$13 -> 0 | O53: ='MODULO MINIMO'!O51 -> 4.21 | P53: 0
B54: 32 | C54: SICRO | D54: 5914449 | E54: =VLOOKUP(D54,'SINTÉTICO SICRO'!$A$4:$D$1048576,2,0) -> Transporte com caminhão carroceria de 15 t - rodovia em leito natural | I54: tkm | J54: =$P$5*'MODULO MINIMO'!J52 -> 0 | K54: 0.2339 | L54: =ROUND(IF(C54="CODEVASF",VLOOKUP(D54,'CPU CODEVASF'!E:I,5,FALSE),VLOOKUP(D54,'SINTÉTICO SICRO'!A:D,4,FALSE)),6) -> 1.07 | M54: ='MODULO MINIMO'!M52 -> 1.32 | N54: =CAPA!$D$13 -> 0 | O54: ='MODULO MINIMO'!O52 -> 1.32 | P54: 0
B55: 33 | C55: SICRO | D55: 5914464 | E55: =VLOOKUP(D55,'SINTÉTICO SICRO'!$A$4:$D$1048576,2,0) -> Transporte com caminhão carroceria de 15 t - rodovia em revestimento primário | I55: tkm | J55: =$P$5*'MODULO MINIMO'!J53 -> 0 | K55: 0.2339 | L55: =ROUND(IF(C55="CODEVASF",VLOOKUP(D55,'CPU CODEVASF'!E:I,5,FALSE),VLOOKUP(D55,'SINTÉTICO SICRO'!A:D,4,FALSE)),6) -> 0.86 | M55: ='MODULO MINIMO'!M53 -> 1.06 | N55: =CAPA!$D$13 -> 0 | O55: ='MODULO MINIMO'!O53 -> 1.06 | P55: 0
B56: 34 | C56: SICRO | D56: 5914479 | E56: =VLOOKUP(D56,'SINTÉTICO SICRO'!$A$4:$D$1048576,2,0) -> Transporte com caminhão carroceria de 15 t - rodovia pavimentada | I56: tkm | J56: =$P$5*'MODULO MINIMO'!J54 -> 0 | K56: 0.2339 | L56: =ROUND(IF(C56="CODEVASF",VLOOKUP(D56,'CPU CODEVASF'!E:I,5,FALSE),VLOOKUP(D56,'SINTÉTICO SICRO'!A:D,4,FALSE)),6) -> 0.69 | M56: ='MODULO MINIMO'!M54 -> 0.85 | N56: =CAPA!$D$13 -> 0 | O56: ='MODULO MINIMO'!O54 -> 0.85 | P56: 0
B57: 35 | C57: SICRO | D57: 5914364 | E57: =VLOOKUP(D57,'SINTÉTICO SICRO'!$A$4:$D$1048576,2,0) -> Transporte de cimento ou cal hidratada a granel com caminhão silo de 30 m³ - rodovia em leito natural | I57: tkm | J57: =$P$5*'MODULO MINIMO'!J55 -> 0 | K57: =$J$8 -> 0.2339 | L57: =ROUND(IF(C57="CODEVASF",VLOOKUP(D57,'CPU CODEVASF'!E:I,5,FALSE),VLOOKUP(D57,'SINTÉTICO SICRO'!A:D,4,FALSE)),6) -> 0.9 | M57: ='MODULO MINIMO'!M55 -> 1.11 | N57: =CAPA!$D$13 -> 0 | O57: ='MODULO MINIMO'!O55 -> 1.11 | P57: 0
B58: 36 | C58: SICRO | D58: 5914365 | E58: =VLOOKUP(D58,'SINTÉTICO SICRO'!$A$4:$D$1048576,2,0) -> Transporte de cimento ou cal hidratada a granel com caminhão silo de 30 m³ - rodovia em revestimento primário | I58: tkm | J58: =$P$5*'MODULO MINIMO'!J56 -> 0 | K58: 0.2339 | L58: =ROUND(IF(C58="CODEVASF",VLOOKUP(D58,'CPU CODEVASF'!E:I,5,FALSE),VLOOKUP(D58,'SINTÉTICO SICRO'!A:D,4,FALSE)),6) -> 0.72 | M58: ='MODULO MINIMO'!M56 -> 0.88 | N58: =CAPA!$D$13 -> 0 | O58: ='MODULO MINIMO'!O56 -> 0.88 | P58: 0
B59: 37 | C59: SICRO | D59: 5914366 | E59: =VLOOKUP(D59,'SINTÉTICO SICRO'!$A$4:$D$1048576,2,0) -> Transporte de cimento ou cal hidratada a granel com caminhão silo de 30 m³ - rodovia pavimentada | I59: tkm | J59: =$P$5*'MODULO MINIMO'!J57 -> 0 | K59: 0.2339 | L59: =ROUND(IF(C59="CODEVASF",VLOOKUP(D59,'CPU CODEVASF'!E:I,5,FALSE),VLOOKUP(D59,'SINTÉTICO SICRO'!A:D,4,FALSE)),6) -> 0.62 | M59: ='MODULO MINIMO'!M57 -> 0.76 | N59: =CAPA!$D$13 -> 0 | O59: ='MODULO MINIMO'!O57 -> 0.76 | P59: 0
B60: VALOR TOTAL DO SRP | P60: =SUM(P12:P59)+R60 -> 20964252.8 | R60: =R61-SUM(P12:P59) -> -0.1799999997 | AC60: =SUM(AC20:AC46) -> 43314537.98
R61: =P5*'MODULO MINIMO'!P58 -> 20964252.8

Sheet MODULO MINIMO
B1: EXECUÇÃO DE SERVIÇOS DE PAVIMENTAÇÃO COM TRATAMENTO SUPERFICIAL DUPLO EM VIAS DE MUNICÍPIOS DIVERSOS INSERIDOS NA ÁREA DE ATUAÇÃO DA CODEVASF, NO ESTADO MARANHÃO
O2: SICRO: | P2: 2025-04-01
O3: SINAPI: | P3: 2025-05-01
O4: Data Base do Orçamento | P4: 2025-07-01
B5: =B1 -> EXECUÇÃO DE SERVIÇOS DE PAVIMENTAÇÃO COM TRATAMENTO SUPERFICIAL DUPLO EM VIAS DE MUNICÍPIOS DIVERSOS INSERIDOS NA ÁREA DE ATUAÇÃO DA CODEVASF, NO ESTADO MARANHÃO
B6: ITEM | C6: ORIGEM COMPOSIÇÃO | D6: CÓDIGO COMPOSIÇÃO | E6: DISCRIMINAÇÃO DOS SERVIÇOS | I6: BDI % = | J6: =CAPA!D14 -> 0.2339 | K6: BDI DIFERENCIADO % = | L6: =CAPA!D15 -> 0.15 | M6: R$/m² | N6: PROPOSTA DA EMPRESA LICITANTE
I7: Total de m² | J7: Encargos Sociais: | K7: Horista % | L7: Mensalista % | M7: PREÇO UNITÁRIO COM BDI | N7: DESCONTO | O7: PREÇO UNITÁRIO COM BDI APÓS O DESCONTO | P7: PREÇO TOTAL COM BDI APÓS O DESCONTO
I8: ='Memória de Cálculo'!G1*'Memória de Cálculo'!C1*'Memória de Cálculo'!C2 -> 14000 | K8: ='ENC. SOCIAIS'!$E$51 -> 112.73 | L8: ='ENC. SOCIAIS'!$F$51 -> 70.19
I9: UND | J9: QTDE. | K9: BDI | L9: PREÇO UNITÁRIO | AC9: TOTAL
E10: MOBILIZAÇÃO/DESMOBILIZAÇÃO
B11: 1 | C11: Codevasf | D11: Mob | E11: Mobilização | I11: R$/km | J11: 0 | K11: =$J$6 -> 0.2339 | L11: =Mob!B66 -> 188.6189183 | M11: =TRUNC((L11*(1+K11)),2) -> 232.73 | N11: =CAPA!$D$13 -> 0 | O11: =(M11-M11*N11) -> 232.73 | P11: =TRUNC(O11*J11,2) -> 0 | Q11: =P11/$P$58 -> 0 | AC11: 57163.47
B12: 2 | C12: Codevasf | D12: Mob | E12: Desmobilização | I12: R$/km | J12: 0 | K12: =$J$6 -> 0.2339 | L12: =Mob!B66 -> 188.6189183 | M12: =TRUNC((L12*(1+K12)),2) -> 232.73 | N12: =CAPA!$D$13 -> 0 | O12: =(M12-M12*N12) -> 232.73 | P12: =TRUNC(O12*J12,2) -> 0 | Q12: =P12/$P$58 -> 0 | AC12: 57163.47
E13: INSTALAÇÃO DE CANTEIRO
B14: 3 | C14: Codevasf | D14: Canteiro | E14: Canteiro de Obras e Almoxarifado | I14: und | J14: 1 | K14: =$J$6 -> 0.2339 | L14: =' Canteiro'!F11 -> 20786.16 | M14: =TRUNC((L14*(1+K14)),2) -> 25648.04 | N14: =CAPA!$D$13 -> 0 | O14: 25648.04 | P14: 25648.04 | AC14: 190291.53
B15: 4 | C15: SINAPI | D15: 103689 | E15: Fornecimento e instalação de placa de obra com chapa galvanizada e estrutura de madeira. af_03/2022_ps | I15: m² | J15: =TRUNC('Memória de Cálculo'!H25,2) -> 8 | K15: =$J$6 -> 0.2339 | L15: =VLOOKUP(D15,'COMP Sint. Sinapi'!B11:W9734,22,0) -> 468.31 | M15: =TRUNC((L15*(1+K15)),2) -> 577.84 | N15: =CAPA!$D$13 -> 0 | O15: 577.84 | P15: 4622.72
E16: ADMINISTRAÇÃO LOCAL DA OBRA
B17: 5 | C17: Codevasf | D17: Adm Local | E17: Administração Local da Obra | I17: und | J17: 1 | K17: =$J$6 -> 0.2339 | L17: ='Adm Local'!J248 -> 119469.4764 | M17: =TRUNC((L17*(1+K17)),2) -> 147413.38 | N17: =CAPA!$D$13 -> 0 | O17: 147413.38 | P17: 147413.38 | Q17: =P17/P58 -> 0.1125064701
E18: TERRAPLANAGEM
B19: 6 | C19: SICRO | D19: 5502114 | E19: =VLOOKUP(D19,'SINTÉTICO SICRO'!$A$4:$D$1048576,2,0) -> Escavação, carga e transporte de material de 1ª categoria - DMT de 1.000 a 1.200 m - caminho de serviço em leito natural - com escavadeira e caminhão basculante de 14 m³ | I19: m³ | J19: =TRUNC('Memória de Cálculo'!H37,2) -> 4550 | K19: =$J$6 -> 0.2339 | L19: =ROUND(IF(C19="CODEVASF",VLOOKUP(D19,'CPU CODEVASF'!E:I,5,FALSE),VLOOKUP(D19,'SINTÉTICO SICRO'!A:D,4,FALSE)),6) -> 8.22 | M19: =TRUNC((L19*(1+K19)),2) -> 10.14 | N19: =CAPA!$D$13 -> 0 | O19: 10.14 | P19: 46137 | AC19: 366912
B20: 7 | C20: SICRO | D20: 4413942 | E20: =VLOOKUP(D20,'SINTÉTICO SICRO'!$A$4:$D$1048576,2,0) -> Espalhamento de material em bota-fora | I20: m³ | J20: =TRUNC('Memória de Cálculo'!H44,2) -> 4550 | K20: =$J$6 -> 0.2339 | L20: =ROUND(IF(C20="CODEVASF",VLOOKUP(D20,'CPU CODEVASF'!E:I,5,FALSE),VLOOKUP(D20,'SINTÉTICO SICRO'!A:D,4,FALSE)),6) -> 2.01 | M20: =TRUNC((L20*(1+K20)),2) -> 2.48 | N20: =CAPA!$D$13 -> 0 | O20: 2.48 | P20: 11284 | AC20: 84084 | AH20: 1
E21: PAVIMENTAÇÃO
B22: 8 | C22: SICRO | D22: 4915637 | E22: =VLOOKUP(D22,'SINTÉTICO SICRO'!$A$4:$D$1048576,2,0) -> Capa selante - areia comercial | I22: m² | J22: =TRUNC('Memória de Cálculo'!H51,2) -> 14000 | K22: =$J$6 -> 0.2339 | L22: =ROUND(IF(C22="CODEVASF",VLOOKUP(D22,'CPU CODEVASF'!E:I,5,FALSE),VLOOKUP(D22,'SINTÉTICO SICRO'!A:D,4,FALSE)),6) -> 0.9 | M22: =TRUNC((L22*(1+K22)),2) -> 1.11 | N22: =CAPA!$D$13 -> 0 | O22: 1.11 | P22: 15540 | AC22: 13037300.31
B23: 9 | C23: SICRO | D23: 4011370 | E23: =VLOOKUP(D23,'SINTÉTICO SICRO'!$A$4:$D$1048576,2,0) -> Tratamento superficial duplo com emulsão - brita comercial | I23: m² | J23: =TRUNC('Memória de Cálculo'!H57,2) -> 14000 | K23: 0.2339 | L23: =ROUND(IF(C23="CODEVASF",VLOOKUP(D23,'CPU CODEVASF'!E:I,5,FALSE),VLOOKUP(D23,'SINTÉTICO SICRO'!A:D,4,FALSE)),6) -> 6.08 | M23: =TRUNC((L23*(1+K23)),2) -> 7.5 | N23: =CAPA!$D$13 -> 0 | O23: 7.5 | P23: 105000 | AC23: 223860
B24: 10 | C24: SICRO | D24: 4011352 | E24: =VLOOKUP(D24,'SINTÉTICO SICRO'!$A$4:$D$1048576,2,0) -> Imprimação com emulsão asfáltica | I24: m² | J24: =TRUNC('Memória de Cálculo'!H57,2) -> 14000 | K24: 0.2339 | L24: =ROUND(IF(C24="CODEVASF",VLOOKUP(D24,'CPU CODEVASF'!E:I,5,FALSE),VLOOKUP(D24,'SINTÉTICO SICRO'!A:D,4,FALSE)),6) -> 0.42 | M24: 0.51 | N24: =CAPA!$D$13 -> 0 | O24: 0.51 | P24: 7140 | AC24: 223860
B25: 11 | C25: SICRO | D25: 4011219 | E25: =VLOOKUP(D25,'SINTÉTICO SICRO'!$A$4:$D$1048576,2,0) -> Base de solo estabilizado granulometricamente sem mistura com material de jazida - 100% Proctor modificado | I25: m³ | J25: =TRUNC('Memória de Cálculo'!H68,2) -> 2100 | K25: 0.2339 | L25: =ROUND(IF(C25="CODEVASF",VLOOKUP(D25,'CPU CODEVASF'!E:I,5,FALSE),VLOOKUP(D25,'SINTÉTICO SICRO'!A:D,4,FALSE)),6) -> 14.79 | M25: 18.24 | N25: =CAPA!$D$13 -> 0 | O25: 18.24 | P25: 38304 | AC25: 15919722
B26: 12 | C26: SICRO | D26: 4011227 | E26: =VLOOKUP(D26,'SINTÉTICO SICRO'!$A$4:$D$1048576,2,0) -> Sub-base de solo estabilizado granulometricamente sem mistura com material de jazida - 100% Proctor intermediário | I26: m³ | J26: =TRUNC('Memória de Cálculo'!H74,2) -> 2100 | K26: 0.2339 | L26: =ROUND(IF(C26="CODEVASF",VLOOKUP(D26,'CPU CODEVASF'!E:I,5,FALSE),VLOOKUP(D26,'SINTÉTICO SICRO'!A:D,4,FALSE)),6) -> 13.6 | M26: 16.78 | N26: =CAPA!$D$13 -> 0 | O26: 16.78 | P26: 35238 | AC26: 2045862
B27: 13 | C27: SICRO | D27: 4011209 | E27: =VLOOKUP(D27,'SINTÉTICO SICRO'!$A$4:$D$1048576,2,0) -> Regularização do subleito - 100% Proctor intermediário | I27: m² | J27: =TRUNC('Memória de Cálculo'!H80,2) -> 14000 | K27: 0.2339 | L27: =ROUND(IF(C27="CODEVASF",VLOOKUP(D27,'CPU CODEVASF'!E:I,5,FALSE),VLOOKUP(D27,'SINTÉTICO SICRO'!A:D,4,FALSE)),6) -> 1.57 | M27: 1.93 | N27: =CAPA!$D$13 -> 0 | O27: 1.93 | P27: 27020 | AC27: 540540
E28: AQUISIÇÃO E TRANSPORTE DO MATERIAL BETUMINOSO
B29: 14 | C29: CODEVASF | D29: CPU-14 | E29: AQUISIÇÃO DE EAI | I29: t | J29: =TRUNC(' CONSUMO DE MAT. B TOTAL'!P9,2) -> 16.8 | K29: =$L$6 -> 0.15 | L29: =ROUND(IF(C29="CODEVASF",VLOOKUP(D29,'CPU CODEVASF'!E:I,5,FALSE),VLOOKUP(D29,'SINTÉTICO SICRO'!A:D,4,FALSE)),6) -> 3094.890671 | M29: =TRUNC((L29*(1+K29)),2) -> 3559.12 | N29: =CAPA!$D$13 -> 0 | O29: 3559.12 | P29: 59793.21 | AC29: 3101079.07
B30: 15 | C30: CODEVASF | D30: CPU-18 | E30: TRANSPORTE DE EAI | I30: t | J30: =TRUNC(' CONSUMO DE MAT. B TOTAL'!P9,2) -> 16.8 | K30: =$L$6 -> 0.15 | L30: =ROUND(IF(C30="CODEVASF",VLOOKUP(D30,'CPU CODEVASF'!E:I,5,FALSE),VLOOKUP(D30,'SINTÉTICO SICRO'!A:D,4,FALSE)),6) -> 1505.242381 | M30: 1731.02 | N30: =CAPA!$D$13 -> 0 | O30: 1731.02 | P30: 29081.13 | AC30: 1243849.15
B31: 16 | C31: CODEVASF | D31: CPU-15 | E31: AQUISIÇÃO DE EMULSÃO ASFÁLTICA RR-2C | I31: t | J31: =TRUNC(' CONSUMO DE MAT. B TOTAL'!P11+' CONSUMO DE MAT. B TOTAL'!P13+' CONSUMO DE MAT. B TOTAL'!P15,2) -> 42 | K31: 0.15 | L31: =ROUND(IF(C31="CODEVASF",VLOOKUP(D31,'CPU CODEVASF'!E:I,5,FALSE),VLOOKUP(D31,'SINTÉTICO SICRO'!A:D,4,FALSE)),6) -> 4036.352422 | M31: 4641.8 | N31: =CAPA!$D$13 -> 0 | O31: 4641.8 | P31: 194955.6 | AC31: 775269.77
B32: 17 | C32: CODEVASF | D32: CPU-19 | E32: TRANSPORTE RR-2C | I32: t | J32: =J31 -> 42 | K32: 0.15 | L32: =ROUND(IF(C32="CODEVASF",VLOOKUP(D32,'CPU CODEVASF'!E:I,5,FALSE),VLOOKUP(D32,'SINTÉTICO SICRO'!A:D,4,FALSE)),6) -> 969.04 | M32: 1114.39 | N32: =CAPA!$D$13 -> 0 | O32: 1114.39 | P32: 46804.38 | AC32: 310962.288
E33: SINALIZAÇÃO
B34: 18 | C34: SICRO | D34: 5213440 | E34: =VLOOKUP(D34,'SINTÉTICO SICRO'!$A$4:$D$1048576,2,0) -> Placa de regulamentação em aço D = 0,60 m - película retrorrefletiva tipo I + SI - fornecimento e implantação | I34: und | J34: =TRUNC('Memória de Cálculo'!H87,2) -> 6 | K34: =$J$6 -> 0.2339 | L34: =ROUND(IF(C34="CODEVASF",VLOOKUP(D34,'CPU CODEVASF'!E:I,5,FALSE),VLOOKUP(D34,'SINTÉTICO SICRO'!A:D,4,FALSE)),6) -> 282.19 | M34: =TRUNC((L34*(1+K34)),2) -> 348.19 | N34: =CAPA!$D$13 -> 0 | O34: 348.19 | P34: 2089.14 | AC34: 9985.95
B35: 19 | C35: SICRO | D35: 5213464 | E35: =VLOOKUP(D35,'SINTÉTICO SICRO'!$A$4:$D$1048576,2,0) -> Placa de advertência em aço, lado de 0,60 m - película retrorrefletiva tipo I + SI - fornecimento e implantação | I35: und | J35: =TRUNC('Memória de Cálculo'!H92,2) -> 6 | K35: =$J$6 -> 0.2339 | L35: =ROUND(IF(C35="CODEVASF",VLOOKUP(D35,'CPU CODEVASF'!E:I,5,FALSE),VLOOKUP(D35,'SINTÉTICO SICRO'!A:D,4,FALSE)),6) -> 282.23 | M35: 348.24 | N35: =CAPA!$D$13 -> 0 | O35: 348.24 | P35: 2089.44
B36: 20 | C36: SICRO | D36: 5213863 | E36: =VLOOKUP(D36,'SINTÉTICO SICRO'!$A$4:$D$1048576,2,0) -> Suporte metálico galvanizado para placa de advertência ou regulamentação - lado ou diâmetro de 0,60 m - fornecimento e implantação | I36: und | J36: =TRUNC('Memória de Cálculo'!H98,2) -> 12 | K36: =$J$6 -> 0.2339 | L36: =ROUND(IF(C36="CODEVASF",VLOOKUP(D36,'CPU CODEVASF'!E:I,5,FALSE),VLOOKUP(D36,'SINTÉTICO SICRO'!A:D,4,FALSE)),6) -> 460.16 | M36: 567.79 | N36: =CAPA!$D$13 -> 0 | O36: 567.79 | P36: 6813.48 | AC36: 13086.06
B37: 21 | C37: SICRO | D37: 5213400 | E37: =VLOOKUP(D37,'SINTÉTICO SICRO'!$A$4:$D$1048576,2,0) -> Pintura de faixa com tinta acrílica - espessura de 0,4 mm | I37: m² | J37: =TRUNC('Memória de Cálculo'!H103+'Memória de Cálculo'!H108,2) -> 600 | K37: =$J$6 -> 0.2339 | L37: =ROUND(IF(C37="CODEVASF",VLOOKUP(D37,'CPU CODEVASF'!E:I,5,FALSE),VLOOKUP(D37,'SINTÉTICO SICRO'!A:D,4,FALSE)),6) -> 21.22 | M37: 26.18 | N37: =CAPA!$D$13 -> 0 | O37: 26.18 | P37: 15708
E38: DRENAGEM
B39: 22 | C39: SICRO | D39: 2003373 | E39: =VLOOKUP(D39,'SINTÉTICO SICRO'!$A$4:$D$1048576,2,0) -> Meio-fio de concreto - MFC 03 - areia e brita comerciais - fôrma de madeira | I39: m | J39: =TRUNC('Memória de Cálculo'!H132,2) -> 4000 | K39: =$J$6 -> 0.2339 | L39: =ROUND(IF(C39="CODEVASF",VLOOKUP(D39,'CPU CODEVASF'!E:I,5,FALSE),VLOOKUP(D39,'SINTÉTICO SICRO'!A:D,4,FALSE)),6) -> 69.16 | M39: 85.33 | N39: =CAPA!$D$13 -> 0 | O39: 85.33 | P39: 341320 | AC39: 4514640
B40: 23 | C40: SICRO | D40: 4915724 | E40: =VLOOKUP(D40,'SINTÉTICO SICRO'!$A$4:$D$1048576,2,0) -> Caiação mecanizada com fixador de cal | I40: m² | J40: =TRUNC('Memória de Cálculo'!H137,2) -> 480 | K40: =$J$6 -> 0.2339 | L40: =ROUND(IF(C40="CODEVASF",VLOOKUP(D40,'CPU CODEVASF'!E:I,5,FALSE),VLOOKUP(D40,'SINTÉTICO SICRO'!A:D,4,FALSE)),6) -> 1.95 | M40: 2.4 | N40: =CAPA!$D$13 -> 0 | O40: 2.4 | P40: 1152 | AA40: 4514640
E41: SERVIÇOS COMPLEMENTARES
B42: 24 | C42: Codevasf | D42: CPU-12 | E42: Conserto de quebra no ramal na rua sem pavimento com fornecimento de material hidráulico | I42: m | J42: =TRUNC('Memória de Cálculo'!H144,2) -> 200 | K42: =$J$6 -> 0.2339 | L42: =ROUND(IF(C42="CODEVASF",VLOOKUP(D42,'CPU CODEVASF'!E:I,5,FALSE),VLOOKUP(D42,'SINTÉTICO SICRO'!A:D,4,FALSE)),6) -> 15.60155 | M42: 19.25 | N42: =CAPA!$D$13 -> 0 | O42: 19.25 | P42: 3850 | AC42: 139854
E43: PROJETO EXECUTIVO
B44: 25 | C44: Codevasf | D44: Composição Própria | E44: Projeto Executivo | I44: m² | J44: =TRUNC('Memória de Cálculo'!H151,2) -> 14000 | K44: =$J$6 -> 0.2339 | L44: ='Projeto Executivo'!G23/'MODULO MINIMO'!I8 -> 2.380931948 | M44: 2.93 | N44: =CAPA!$D$13 -> 0 | O44: 2.93 | P44: 41020 | Q44: =P44/P58 -> 0.03130662496 | AC44: 763671.38
E45: MOMENTO DE TRANSPORTE
B46: 26 | C46: SICRO | D46: 5914359 | E46: =VLOOKUP(D46,'SINTÉTICO SICRO'!$A$4:$D$1048576,2,0) -> Transporte com caminhão basculante de 10 m³ - rodovia em leito natural | I46: tkm | J46: =TRUNC(ROUND(SUMIF('MOMENTO DE TRANSPORTE - PRINC'!A:A,'MODULO MINIMO'!D46,'MOMENTO DE TRANSPORTE - PRINC'!K:K)+SUMIF('MOMENTO DE TRANSPORTE - AUX'!A:A,'MODULO MINIMO'!D46,'MOMENTO DE TRANSPORTE - AUX'!K:K),2),2) -> 0 | K46: =$J$6 -> 0.2339 | L46: =ROUND(IF(C46="CODEVASF",VLOOKUP(D46,'CPU CODEVASF'!E:I,5,FALSE),VLOOKUP(D46,'SINTÉTICO SICRO'!A:D,4,FALSE)),6) -> 1.21 | M46: 1.49 | N46: =CAPA!$D$13 -> 0 | O46: 1.49 | P46: 0
B47: 27 | C47: SICRO | D47: 5914374 | E47: =VLOOKUP(D47,'SINTÉTICO SICRO'!$A$4:$D$1048576,2,0) -> Transporte com caminhão basculante de 10 m³ - rodovia em revestimento primário | I47: tkm | J47: =TRUNC(ROUND(SUMIF('MOMENTO DE TRANSPORTE - PRINC'!A:A,'MODULO MINIMO'!D47,'MOMENTO DE TRANSPORTE - PRINC'!K:K)+SUMIF('MOMENTO DE TRANSPORTE - AUX'!A:A,'MODULO MINIMO'!D47,'MOMENTO DE TRANSPORTE - AUX'!K:K),2),2) -> 86646 | K47: =$J$6 -> 0.2339 | L47: =ROUND(IF(C47="CODEVASF",VLOOKUP(D47,'CPU CODEVASF'!E:I,5,FALSE),VLOOKUP(D47,'SINTÉTICO SICRO'!A:D,4,FALSE)),6) -> 0.96 | M47: 1.18 | N47: =CAPA!$D$13 -> 0 | O47: 1.18 | P47: 102242.28
B48: 28 | C48: SICRO | D48: 5914389 | E48: =VLOOKUP(D48,'SINTÉTICO SICRO'!$A$4:$D$1048576,2,0) -> Transporte com caminhão basculante de 10 m³ - rodovia pavimentada | I48: tkm | J48: =TRUNC(ROUND(SUMIF('MOMENTO DE TRANSPORTE - PRINC'!A:A,'MODULO MINIMO'!D48,'MOMENTO DE TRANSPORTE - PRINC'!K:K)+SUMIF('MOMENTO DE TRANSPORTE - AUX'!A:A,'MODULO MINIMO'!D48,'MOMENTO DE TRANSPORTE - AUX'!K:K),2),2) -> 0 | K48: =$J$6 -> 0.2339 | L48: =ROUND(IF(C48="CODEVASF",VLOOKUP(D48,'CPU CODEVASF'!E:I,5,FALSE),VLOOKUP(D48,'SINTÉTICO SICRO'!A:D,4,FALSE)),6) -> 0.78 | M48: 0.96 | N48: =CAPA!$D$13 -> 0 | O48: 0.96 | P48: 0
B49: 29 | C49: SICRO | D49: ='SINTÉTICO SICRO'!A5864 -> 5906592 | E49: =VLOOKUP(D49,'SINTÉTICO SICRO'!$A$4:$D$1048576,2,0) -> Carga, manobra e descarga de blocos artificiais de concreto com 10 a 12 t para molhe em cavalo mecânico com semirreboque com capacidade de 32 t - carga e descarga com guindaste com pinça | I49: tkm | J49: =TRUNC(ROUND(SUMIF('MOMENTO DE TRANSPORTE - PRINC'!A:A,'MODULO MINIMO'!D49,'MOMENTO DE TRANSPORTE - PRINC'!K:K)+SUMIF('MOMENTO DE TRANSPORTE - AUX'!A:A,'MODULO MINIMO'!D49,'MOMENTO DE TRANSPORTE - AUX'!K:K),2),2) -> 0 | K49: =$J$6 -> 0.2339 | L49: =ROUND(IF(C49="CODEVASF",VLOOKUP(D49,'CPU CODEVASF'!E:I,5,FALSE),VLOOKUP(D49,'SINTÉTICO SICRO'!A:D,4,FALSE)),6) -> 34.85 | M49: 43 | N49: =CAPA!$D$13 -> 0 | O49: 43 | P49: 0
B50: 30 | C50: SICRO | D50: ='SINTÉTICO SICRO'!A5865 -> 5906591 | E50: =VLOOKUP(D50,'SINTÉTICO SICRO'!$A$4:$D$1048576,2,0) -> Carga, manobra e descarga de blocos artificiais de concreto com 8 a 9 t para molhe em cavalo mecânico com semirreboque com capacidade de 32 t - carga e descarga com guindaste com pinça | I50: tkm | J50: =TRUNC(ROUND(SUMIF('MOMENTO DE TRANSPORTE - PRINC'!A:A,'MODULO MINIMO'!D50,'MOMENTO DE TRANSPORTE - PRINC'!K:K)+SUMIF('MOMENTO DE TRANSPORTE - AUX'!A:A,'MODULO MINIMO'!D50,'MOMENTO DE TRANSPORTE - AUX'!K:K),2),2) -> 0 | K50: =$J$6 -> 0.2339 | L50: =ROUND(IF(C50="CODEVASF",VLOOKUP(D50,'CPU CODEVASF'!E:I,5,FALSE),VLOOKUP(D50,'SINTÉTICO SICRO'!A:D,4,FALSE)),6) -> 33.05 | M50: 40.78 | N50: =CAPA!$D$13 -> 0 | O50: 40.78 | P50: 0
B51: 31 | C51: SICRO | D51: ='SINTÉTICO SICRO'!A5866 -> 5914653 | E51: =VLOOKUP(D51,'SINTÉTICO SICRO'!$A$4:$D$1048576,2,0) -> Carga, manobra e descarga de blocos de rocha em caminhão basculante de 8 m³ - carga com carregadeira de 1,72 m³ (exclusa) e descarga livre | I51: tkm | J51: =TRUNC(ROUND(SUMIF('MOMENTO DE TRANSPORTE - PRINC'!A:A,'MODULO MINIMO'!D51,'MOMENTO DE TRANSPORTE - PRINC'!K:K)+SUMIF('MOMENTO DE TRANSPORTE - AUX'!A:A,'MODULO MINIMO'!D51,'MOMENTO DE TRANSPORTE - AUX'!K:K),2),2) -> 0 | K51: 0.2339 | L51: =ROUND(IF(C51="CODEVASF",VLOOKUP(D51,'CPU CODEVASF'!E:I,5,FALSE),VLOOKUP(D51,'SINTÉTICO SICRO'!A:D,4,FALSE)),6) -> 3.42 | M51: 4.21 | N51: =CAPA!$D$13 -> 0 | O51: 4.21 | P51: 0
B52: 32 | C52: SICRO | D52: 5914449 | E52: =VLOOKUP(D52,'SINTÉTICO SICRO'!$A$4:$D$1048576,2,0) -> Transporte com caminhão carroceria de 15 t - rodovia em leito natural | I52: tkm | J52: =TRUNC(ROUND(SUMIF('MOMENTO DE TRANSPORTE - PRINC'!A:A,'MODULO MINIMO'!D52,'MOMENTO DE TRANSPORTE - PRINC'!K:K)+SUMIF('MOMENTO DE TRANSPORTE - AUX'!A:A,'MODULO MINIMO'!D52,'MOMENTO DE TRANSPORTE - AUX'!K:K),2),2) -> 0 | K52: 0.2339 | L52: =ROUND(IF(C52="CODEVASF",VLOOKUP(D52,'CPU CODEVASF'!E:I,5,FALSE),VLOOKUP(D52,'SINTÉTICO SICRO'!A:D,4,FALSE)),6) -> 1.07 | M52: 1.32 | N52: =CAPA!$D$13 -> 0 | O52: 1.32 | P52: 0
B53: 33 | C53: SICRO | D53: 5914464 | E53: =VLOOKUP(D53,'SINTÉTICO SICRO'!$A$4:$D$1048576,2,0) -> Transporte com caminhão carroceria de 15 t - rodovia em revestimento primário | I53: tkm | J53: =TRUNC(ROUND(SUMIF('MOMENTO DE TRANSPORTE - PRINC'!A:A,'MODULO MINIMO'!D53,'MOMENTO DE TRANSPORTE - PRINC'!K:K)+SUMIF('MOMENTO DE TRANSPORTE - AUX'!A:A,'MODULO MINIMO'!D53,'MOMENTO DE TRANSPORTE - AUX'!K:K),2),2) -> 0 | K53: 0.2339 | L53: =ROUND(IF(C53="CODEVASF",VLOOKUP(D53,'CPU CODEVASF'!E:I,5,FALSE),VLOOKUP(D53,'SINTÉTICO SICRO'!A:D,4,FALSE)),6) -> 0.86 | M53: 1.06 | N53: =CAPA!$D$13 -> 0 | O53: 1.06 | P53: 0
B54: 34 | C54: SICRO | D54: 5914479 | E54: =VLOOKUP(D54,'SINTÉTICO SICRO'!$A$4:$D$1048576,2,0) -> Transporte com caminhão carroceria de 15 t - rodovia pavimentada | I54: tkm | J54: =TRUNC(ROUND(SUMIF('MOMENTO DE TRANSPORTE - PRINC'!A:A,'MODULO MINIMO'!D54,'MOMENTO DE TRANSPORTE - PRINC'!K:K)+SUMIF('MOMENTO DE TRANSPORTE - AUX'!A:A,'MODULO MINIMO'!D54,'MOMENTO DE TRANSPORTE - AUX'!K:K),2),2) -> 0 | K54: 0.2339 | L54: =ROUND(IF(C54="CODEVASF",VLOOKUP(D54,'CPU CODEVASF'!E:I,5,FALSE),VLOOKUP(D54,'SINTÉTICO SICRO'!A:D,4,FALSE)),6) -> 0.69 | M54: 0.85 | N54: =CAPA!$D$13 -> 0 | O54: 0.85 | P54: 0
B55: 35 | C55: SICRO | D55: 5914364 | E55: =VLOOKUP(D55,'SINTÉTICO SICRO'!$A$4:$D$1048576,2,0) -> Transporte de cimento ou cal hidratada a granel com caminhão silo de 30 m³ - rodovia em leito natural | I55: tkm | J55: =TRUNC(ROUND(SUMIF('MOMENTO DE TRANSPORTE - PRINC'!A:A,'MODULO MINIMO'!D55,'MOMENTO DE TRANSPORTE - PRINC'!K:K)+SUMIF('MOMENTO DE TRANSPORTE - AUX'!A:A,'MODULO MINIMO'!D55,'MOMENTO DE TRANSPORTE - AUX'!K:K),2),2) -> 0 | K55: =$J$6 -> 0.2339 | L55: =ROUND(IF(C55="CODEVASF",VLOOKUP(D55,'CPU CODEVASF'!E:I,5,FALSE),VLOOKUP(D55,'SINTÉTICO SICRO'!A:D,4,FALSE)),6) -> 0.9 | M55: 1.11 | N55: =CAPA!$D$13 -> 0 | O55: 1.11 | P55: 0
B56: 36 | C56: SICRO | D56: 5914365 | E56: =VLOOKUP(D56,'SINTÉTICO SICRO'!$A$4:$D$1048576,2,0) -> Transporte de cimento ou cal hidratada a granel com caminhão silo de 30 m³ - rodovia em revestimento primário | I56: tkm | J56: =TRUNC(ROUND(SUMIF('MOMENTO DE TRANSPORTE - PRINC'!A:A,'MODULO MINIMO'!D56,'MOMENTO DE TRANSPORTE - PRINC'!K:K)+SUMIF('MOMENTO DE TRANSPORTE - AUX'!A:A,'MODULO MINIMO'!D56,'MOMENTO DE TRANSPORTE - AUX'!K:K),2),2) -> 0 | K56: 0.2339 | L56: =ROUND(IF(C56="CODEVASF",VLOOKUP(D56,'CPU CODEVASF'!E:I,5,FALSE),VLOOKUP(D56,'SINTÉTICO SICRO'!A:D,4,FALSE)),6) -> 0.72 | M56: 0.88 | N56: =CAPA!$D$13 -> 0 | O56: 0.88 | P56: 0
B57: 37 | C57: SICRO | D57: 5914366 | E57: =VLOOKUP(D57,'SINTÉTICO SICRO'!$A$4:$D$1048576,2,0) -> Transporte de cimento ou cal hidratada a granel com caminhão silo de 30 m³ - rodovia pavimentada | I57: tkm | J57: =TRUNC(ROUND(SUMIF('MOMENTO DE TRANSPORTE - PRINC'!A:A,'MODULO MINIMO'!D57,'MOMENTO DE TRANSPORTE - PRINC'!K:K)+SUMIF('MOMENTO DE TRANSPORTE - AUX'!A:A,'MODULO MINIMO'!D57,'MOMENTO DE TRANSPORTE - AUX'!K:K),2),2) -> 0 | K57: 0.2339 | L57: =ROUND(IF(C57="CODEVASF",VLOOKUP(D57,'CPU CODEVASF'!E:I,5,FALSE),VLOOKUP(D57,'SINTÉTICO SICRO'!A:D,4,FALSE)),6) -> 0.62 | M57: 0.76 | N57: =CAPA!$D$13 -> 0 | O57: 0.76 | P57: 0
B58: VALOR TOTAL DO MODULO | P58: =SUM(P10:P57) -> 1310265.8 | AC58: =SUM(AC18:AC44) -> 43314537.98

Sheet CRONOGRAMA TOTAL
A2: ='MODULO MINIMO'!B1 -> EXECUÇÃO DE SERVIÇOS DE PAVIMENTAÇÃO COM TRATAMENTO SUPERFICIAL DUPLO EM VIAS DE MUNICÍPIOS DIVERSOS INSERIDOS NA ÁREA DE ATUAÇÃO DA CODEVASF, NO ESTADO MARANHÃO
A3: Cronograma Físico e Financeiro
A4: Item | B4: Descrição | C4: Total Por Etapa | D4: 30 DIAS | E4: 60 DIAS | F4: 90 DIAS | G4: 120 DIAS | H4: 150 DIAS | I4: 180 DIAS | J4: 210 DIAS | K4: 240 DIAS | L4: 270 DIAS | M4: 300 DIAS | N4: 330 DIAS | O4: 360 DIAS
B5: ='MODULO MINIMO'!E10 -> MOBILIZAÇÃO/DESMOBILIZAÇÃO | C5: =SUM(D5:O5) -> 1 | D5: 0.5 | O5: 0.5
C6: =SUM('MODULO MINIMO'!P11:P12) -> 0 | D6: =$C$6*D5 -> 0 | O6: =$C$6*O5 -> 0 | P6: =SUM(D6:O6) -> 0 | Q6: =IF(P6=C6,"OK","") -> OK
B7: ='MODULO MINIMO'!E13 -> INSTALAÇÃO DE CANTEIRO | C7: =SUM(D7:O7) -> 1 | D7: 0.1 | E7: 0.5 | F7: 0.4
C8: =SUM('MODULO MINIMO'!P14:P15) -> 30270.76 | D8: =$C$8*D7 -> 3027.076 | E8: =$C$8*E7 -> 15135.38 | F8: 12108.304 | G8: 0 | H8: 0 | I8: 0 | J8: 0 | K8: 0 | L8: 0 | M8: 0 | N8: 0 | O8: 0 | P8: =SUM(D8:O8) -> 30270.76 | Q8: =IF(P8=C8,"OK","") -> OK
B9: ='MODULO MINIMO'!E16 -> ADMINISTRAÇÃO LOCAL DA OBRA | C9: =SUM(D9:O9) -> 1 | D9: =(D6+D8+D12+D14+D16+D18+D20+D22+D24+D26)/($O$33-$C$10) -> 0.03787847473 | E9: 0.01301573591 | F9: 0.03154981782 | G9: 0.02113722909 | H9: 0.02279264122 | I9: =(I6+I8+I12+I14+I16+I18+I20+I22+I24+I26)/($O$33-$C$10) -> 0.0271888259 | J9: 0.1289444004 | K9: 0.1289444004 | L9: 0.1289444004 | M9: =(M6+M8+M12+M14+M16+M18+M20+M22+M24+M26)/($O$33-$C$10) -> 0.1289444004 | N9: 0.1560475129 | O9: =(O6+O8+O12+O14+O16+O18+O20+O22+O24+O26)/($O$33-$C$10) -> 0.174612161
C10: =SUM('MODULO MINIMO'!P17) -> 147413.38 | D10: =$C$10*D9 -> 5583.793988 | E10: =$C$10*E9 -> 1918.693624 | F10: =$C$10*F9 -> 4650.865283 | G10: 3115.910384 | H10: 3359.940281 | I10: 4007.996725 | J10: 19008.12989 | K10: 19008.12989 | L10: 19008.12989 | M10: 19008.12989 | N10: 23003.49132 | O10: 25740.16884 | P10: =SUM(D10:O10) -> 147413.38 | Q10: =IF(P10=C10,"OK","") -> OK
B11: ='MODULO MINIMO'!E18 -> TERRAPLANAGEM | C11: =SUM(D11:O11) -> 1 | F11: =1/4 -> 0.25 | G11: =1/4 -> 0.25 | H11: =1/4 -> 0.25 | I11: =1/4 -> 0.25
C12: =SUM('MODULO MINIMO'!P19:P20) -> 57421 | D12: =$C$14*D11 -> 0 | E12: =$C$12*E11 -> 0 | F12: 14355.25 | G12: 14355.25 | H12: 14355.25 | I12: 14355.25 | J12: 0 | K12: 0 | L12: 0 | M12: 0 | N12: 0 | O12: 0 | P12: =SUM(D12:O12) -> 57421 | Q12: =IF(P12=C12,"OK","") -> OK
B13: ='MODULO MINIMO'!E21 -> PAVIMENTAÇÃO | C13: =SUM(D13:O13) -> 1 | J13: =1/4 -> 0.25 | K13: =1/4 -> 0.25 | L13: =1/4 -> 0.25 | M13: =1/4 -> 0.25
C14: =SUM('MODULO MINIMO'!P22:P27) -> 228242 | D14: =$C$14*D13 -> 0 | E14: =$C$14*E13 -> 0 | F14: 0 | G14: 0 | H14: 0 | J14: 57060.5 | K14: 57060.5 | L14: 57060.5 | M14: =$C$14*M13 -> 57060.5 | O14: 0 | P14: =SUM(D14:O14) -> 228242 | Q14: =IF(P14=C14,"OK","") -> OK
B15: ='MODULO MINIMO'!E28 -> AQUISIÇÃO E TRANSPORTE DO MATERIAL BETUMINOSO | C15: =SUM(D15:O15) -> 1 | J15: =1/4 -> 0.25 | K15: =1/4 -> 0.25 | L15: =1/4 -> 0.25 | M15: =1/4 -> 0.25
C16: =SUM('MODULO MINIMO'!P29:P32) -> 330634.32 | D16: =$C$16*D15 -> 0 | E16: =$C$16*E15 -> 0 | F16: 0 | G16: 0 | H16: 0 | J16: 82658.58 | K16: 82658.58 | L16: 82658.58 | M16: =$C$16*M15 -> 82658.58 | N16: 0 | O16: 0 | P16: =SUM(D16:O16) -> 330634.32 | Q16: =IF(P16=C16,"OK","") -> OK
B17: ='MODULO MINIMO'!E33 -> SINALIZAÇÃO | C17: =SUM(D17:O17) -> 1 | O17: 1
C18: =SUM('MODULO MINIMO'!P34:P37) -> 26700.06 | D18: =$C$18*D17 -> 0 | E18: =$C$18*E17 -> 0 | F18: 0 | G18: 0 | H18: 0 | I18: 0 | J18: 0 | K18: 0 | L18: 0 | M18: 0 | N18: 0 | O18: 26700.06 | P18: =SUM(D18:O18) -> 26700.06 | Q18: =IF(P18=C18,"OK","") -> OK
B19: ='MODULO MINIMO'!E38 -> DRENAGEM | C19: =SUM(D19:O19) -> 1 | N19: 0.5 | O19: 0.5
C20: =SUM('MODULO MINIMO'!P39:P40) -> 342472 | D20: =$C$20*D19 -> 0 | E20: =$C$20*E19 -> 0 | F20: 0 | G20: 0 | H20: 0 | I20: 0 | J20: 0 | K20: 0 | L20: 0 | M20: 0 | N20: 171236 | O20: 171236 | P20: =SUM(D20:O20) -> 342472 | Q20: =IF(P20=C20,"OK","") -> OK
B21: ='MODULO MINIMO'!E41 -> SERVIÇOS COMPLEMENTARES | C21: =SUM(D21:O21) -> 1 | H21: 0.5 | I21: 0.5
C22: =SUM('MODULO MINIMO'!P42) -> 3850 | D22: =$C$22*D21 -> 0 | E22: =$C$22*E21 -> 0 | F22: 0 | G22: 0 | H22: 1925 | I22: 1925 | J22: 0 | K22: 0 | L22: 0 | M22: 0 | N22: 0 | O22: 0 | P22: =SUM(D22:O22) -> 3850 | Q22: =IF(P22=C22,"OK","") -> OK
B23: ='MODULO MINIMO'!E43 -> PROJETO EXECUTIVO | C23: =SUM(D23:O23) -> 1 | D23: 1
C24: ='MODULO MINIMO'!P44 -> 41020 | D24: =$C$24*D23 -> 41020 | E24: =$C$24*E23 -> 0 | F24: 0 | G24: 0 | H24: 0 | I24: 0 | J24: 0 | K24: 0 | L24: 0 | M24: 0 | N24: 0 | O24: 0 | P24: =SUM(D24:O24) -> 41020 | Q24: =IF(P24=C24,"OK","") -> OK
B25: ='MODULO MINIMO'!E45 -> MOMENTO DE TRANSPORTE | C25: =SUM(D25:O25) -> 1 | F25: 0.1 | G25: 0.1 | H25: 0.1 | I25: 0.15 | J25: 0.1 | K25: 0.1 | L25: 0.1 | M25: 0.1 | N25: 0.1 | O25: 0.05
C26: =SUM('MODULO MINIMO'!P46:P57) -> 102242.28 | D26: =$C$26*D25 -> 0 | E26: =$C$26*E25 -> 0 | F26: 10224.228 | G26: 10224.228 | H26: 10224.228 | I26: 15336.342 | J26: 10224.228 | K26: 10224.228 | L26: 10224.228 | M26: 10224.228 | N26: 10224.228 | O26: 5112.114 | P26: =SUM(D26:O26) -> 102242.28 | Q26: =IF(P26=C26,"OK","") -> OK
A28: Porcentagem | D28: =SUM(D6+D8+D10+D12+D14+D16+D18+D20+D22+D24+D26)/$O$33 -> 0.03787847473 | E28: =SUM(E6+E8+E10+E12+E14+E16+E18+E20+E22+E24+E26)/$O$33 -> 0.01301573591 | F28: 0.03154981782 | G28: 0.02113722909 | H28: 0.02279264122 | I28: =SUM(I6+I8+I10+I12+I14+I16+I18+I20+I22+I24+I26)/$O$33 -> 0.0271888259 | J28: 0.1289444004 | K28: 0.1289444004 | L28: 0.1289444004 | M28: =SUM(M6+M8+M10+M12+M14+M16+M18+M20+M22+M24+M26)/$O$33 -> 0.1289444004 | N28: 0.1560475129 | O28: =SUM(O6+O8+O10+O12+O14+O16+O18+O20+O22+O24+O26)/$O$33 -> 0.174612161
A29: Custo | D29: =$O$33*D28 -> 49630.86999 | E29: =$O$33*E28 -> 17054.07362 | F29: =$O$33*F28 -> 41338.64728 | G29: 27695.38838 | H29: 29864.41828 | I29: 35624.58872 | J29: 168951.4379 | K29: 168951.4379 | L29: 168951.4379 | M29: 168951.4379 | N29: 204463.7193 | O29: 228788.3428
A30: Porcentagem Acumulado | D30: =D28 -> 0.03787847473 | E30: =D30+E28 -> 0.05089421063 | F30: =E30+F28 -> 0.08244402845 | G30: 0.1035812575 | H30: 0.1263738988 | I30: 0.1535627247 | J30: 0.282507125 | K30: 0.4114515254 | L30: 0.5403959257 | M30: 0.6693403261 | N30: 0.825387839 | O30: =N30+O28 -> 1
A31: Custo Acumulado | D31: =D29 -> 49630.86999 | E31: =D31+E29 -> 66684.94361 | F31: 108023.5909 | G31: 135718.9793 | H31: 165583.3976 | I31: 201207.9863 | J31: 370159.4242 | K31: 539110.8621 | L31: 708062.3 | M31: 877013.7378 | N31: 1081477.457 | O31: 1310265.8
D33: Total Geral | N33: R$ | O33: =C6+C8+C10+C12+C14+C16+C18+C20+C22+C24+C26 -> 1310265.8
O36: =O31-O33 -> 0

Sheet Mob
A4: ='MODULO MINIMO'!B1 -> EXECUÇÃO DE SERVIÇOS DE PAVIMENTAÇÃO COM TRATAMENTO SUPERFICIAL DUPLO EM VIAS DE MUNICÍPIOS DIVERSOS INSERIDOS NA ÁREA DE ATUAÇÃO DA CODEVASF, NO ESTADO MARANHÃO
A5: MOBILIZAÇÃO/DESMOBILIZAÇÃO (MOB)
F6: Distância da Capital ao Canteiro: | H6: ='MODULO MINIMO'!J11 -> 0 | I6: Fica a cargo de cada SR colocar a distancia adequada de acordo com o historico de mobilização
F8: Velocidade média de transporte (pavim.): | H8: 60
A11: CODIGO | B11: EQUIPAMENTO | C11: VEÍCULO TRANSPORTADOR | D11: QTDE | E11: K | F11: FU | G11: CUSTO DO TRANSPORTE
G12: (R$/h) | H12: (R$)/km
A13: E9524 | B13: =VLOOKUP(A13,Equipamentos!$A:$K,2,FALSE) -> Motoniveladora - 93 kW | C13: =IFERROR(INDEX('Tabelas 2 e 3 mob'!A:K,MATCH(A13,'Tabelas 2 e 3 mob'!A:A,0),9),"ERRO") -> E9665 | D13: 1 | E13: 2 | F13: 1 | G13: =IF(C13="Veículo(s) da própria frota.",0,INDEX(Equipamentos!B:K,MATCH(C13,Equipamentos!A:A,0),9)) -> 412.7818 | H13: =((D13*E13*F13)/$H$8)*G13 -> 13.75939333 | I13: E9509
A14: E9526 | B14: =VLOOKUP(A14,Equipamentos!$A:$K,2,FALSE) -> Retroescavadeira de pneus - capacidade da caçamba da pá-carregadeira de 0,76 m³ e da retroescavadeira de 0,29 m³ - 58 kW | C14: =IFERROR(INDEX('Tabelas 2 e 3 mob'!A:K,MATCH(A14,'Tabelas 2 e 3 mob'!A:A,0),9),"ERRO") -> E9665 | D14: 1 | E14: 2 | F14: 1 | G14: =IF(C14="Veículo(s) da própria frota.",0,INDEX(Equipamentos!B:K,MATCH(C14,Equipamentos!A:A,0),9)) -> 412.7818 | H14: =((D14*E14*F14)/$H$8)*G14 -> 13.75939333 | I14: E9583
A15: E9577 | B15: =VLOOKUP(A15,Equipamentos!$A:$K,2,FALSE) -> Trator agrícola sobre pneus - 77 kW | C15: =IFERROR(INDEX('Tabelas 2 e 3 mob'!A:K,MATCH(A15,'Tabelas 2 e 3 mob'!A:A,0),9),"ERRO") -> E9665 | D15: 1 | E15: 2 | F15: 0.5 | G15: =IF(C15="Veículo(s) da própria frota.",0,INDEX(Equipamentos!B:K,MATCH(C15,Equipamentos!A:A,0),9)) -> 412.7818 | H15: 6.879696667 | I15: E9762
A16: E9518 | B16: =VLOOKUP(A16,Equipamentos!$A:$K,2,FALSE) -> Grade de 24 discos rebocável de D = 60 cm (24") | C16: =IFERROR(INDEX('Tabelas 2 e 3 mob'!A:K,MATCH(A16,'Tabelas 2 e 3 mob'!A:A,0),9),"ERRO") -> Veículo(s) da própria frota. | D16: 1 | E16: 2 | F16: 0 | G16: =IF(C16="Veículo(s) da própria frota.",0,INDEX(Equipamentos!B:K,MATCH(C16,Equipamentos!A:A,0),9)) -> 0 | H16: 0 | I16: E9558
A17: E9615 | B17: =VLOOKUP(A17,Equipamentos!$A:$K,2,FALSE) -> Usina misturadora de solos com capacidade de 300 t/h - 44 kW | C17: =IFERROR(INDEX('Tabelas 2 e 3 mob'!A:K,MATCH(A17,'Tabelas 2 e 3 mob'!A:A,0),9),"ERRO") -> E9018 | D17: 0 | E17: 2 | F17: 2 | G17: =IF(C17="Veículo(s) da própria frota.",0,INDEX(Equipamentos!B:K,MATCH(C17,Equipamentos!A:A,0),9)) -> 541.9736 | H17: 0 | I17: E9509
A18: E9689 | B18: =VLOOKUP(A18,Equipamentos!$A:$K,2,FALSE) -> Usina de asfalto a quente gravimétrica com capacidade de 100/140 t/h - 260 kW | C18: =IFERROR(INDEX('Tabelas 2 e 3 mob'!A:K,MATCH(A18,'Tabelas 2 e 3 mob'!A:A,0),9),"ERRO") -> E9666 | D18: 0 | E18: 2 | F18: 3 | G18: =IF(C18="Veículo(s) da própria frota.",0,INDEX(Equipamentos!B:K,MATCH(C18,Equipamentos!A:A,0),9)) -> 455.859 | H18: 0 | I18: E9583
A19: E9530 | B19: =VLOOKUP(A19,Equipamentos!$A:$K,2,FALSE) -> Rolo compactador liso vibratório autopropelido por pneus de 11 t - 97 kW | C19: =IFERROR(INDEX('Tabelas 2 e 3 mob'!A:K,MATCH(A19,'Tabelas 2 e 3 mob'!A:A,0),9),"ERRO") -> E9666 | D19: 1 | E19: 2 | F19: 0.5 | G19: =IF(C19="Veículo(s) da própria frota.",0,INDEX(Equipamentos!B:K,MATCH(C19,Equipamentos!A:A,0),9)) -> 455.859 | H19: 7.59765 | I19: E9762
A20: E9558 | B20: =VLOOKUP(A20,Equipamentos!$A:$K,2,FALSE) -> Tanque de estocagem de asfalto com capacidade de 30.000 l | C20: =IFERROR(INDEX('Tabelas 2 e 3 mob'!A:K,MATCH(A20,'Tabelas 2 e 3 mob'!A:A,0),9),"ERRO") -> E9665 | D20: 0 | E20: 2 | F20: 1 | G20: =IF(C20="Veículo(s) da própria frota.",0,INDEX(Equipamentos!B:K,MATCH(C20,Equipamentos!A:A,0),9)) -> 412.7818 | H20: 0 | I20: E9558
A21: E9758 | B21: =VLOOKUP(A21,Equipamentos!$A:$K,2,FALSE) -> Vibroacabadora de asfalto sobre pneus - 97 kW | C21: =IFERROR(INDEX('Tabelas 2 e 3 mob'!A:K,MATCH(A21,'Tabelas 2 e 3 mob'!A:A,0),9),"ERRO") -> E9018 | D21: 0 | E21: 2 | F21: 0.5 | G21: =IF(C21="Veículo(s) da própria frota.",0,INDEX(Equipamentos!B:K,MATCH(C21,Equipamentos!A:A,0),9)) -> 541.9736 | H21: 0 | I21: E9509
A22: E9685 | B22: =VLOOKUP(A22,Equipamentos!$A:$K,2,FALSE) -> Rolo compactador pé de carneiro vibratório autopropelido por pneus de 11,6 t - 82 kW | C22: =IFERROR(INDEX('Tabelas 2 e 3 mob'!A:K,MATCH(A22,'Tabelas 2 e 3 mob'!A:A,0),9),"ERRO") -> E9666 | D22: 1 | E22: 2 | F22: 0.5 | G22: =IF(C22="Veículo(s) da própria frota.",0,INDEX(Equipamentos!B:K,MATCH(C22,Equipamentos!A:A,0),9)) -> 455.859 | H22: 7.59765 | I22: E9558
A23: E9583 | B23: =VLOOKUP(A23,Equipamentos!$A:$K,2,FALSE) -> Distribuidor de agregados rebocável com capacidade de 1,9 m³ | C23: =IFERROR(INDEX('Tabelas 2 e 3 mob'!A:K,MATCH(A23,'Tabelas 2 e 3 mob'!A:A,0),9),"ERRO") -> Veículo(s) da própria frota. | D23: 1 | E23: 2 | F23: 1 | G23: =IF(C23="Veículo(s) da própria frota.",0,INDEX(Equipamentos!B:K,MATCH(C23,Equipamentos!A:A,0),9)) -> 0 | H23: =((D23*E23*F23)/$H$8)*G23 -> 0 | I23: E9571
A24: E9605 | B24: =VLOOKUP(A24,Equipamentos!$A:$K,2,FALSE) -> Caminhão tanque com capacidade de 6.000 l - 136 kW | C24: =IFERROR(INDEX('Tabelas 2 e 3 mob'!A:K,MATCH(A24,'Tabelas 2 e 3 mob'!A:A,0),9),"ERRO") -> E9605 | D24: 1 | E24: 1 | F24: 1 | G24: =IF(C24="Veículo(s) da própria frota.",0,INDEX(Equipamentos!B:K,MATCH(C24,Equipamentos!A:A,0),9)) -> 250.8124 | H24: 4.180206667 | I24: E9514
A25: E9579 | B25: =VLOOKUP(A25,Equipamentos!$A:$K,2,FALSE) -> Caminhão basculante com capacidade de 10 m³ - 210 kW | C25: =IFERROR(INDEX('Tabelas 2 e 3 mob'!A:K,MATCH(A25,'Tabelas 2 e 3 mob'!A:A,0),9),"ERRO") -> E9579 | D25: 3 | E25: 1 | F25: 1 | G25: =IF(C25="Veículo(s) da própria frota.",0,INDEX(Equipamentos!B:K,MATCH(C25,Equipamentos!A:A,0),9)) -> 292.3428 | H25: 14.61714 | I25: E9762
A26: E9509 | B26: =VLOOKUP(A26,Equipamentos!$A:$K,2,FALSE) -> Caminhão tanque distribuidor de asfalto com capacidade de 6.000 l - 7 kW/136 kW | C26: =IFERROR(INDEX('Tabelas 2 e 3 mob'!A:K,MATCH(A26,'Tabelas 2 e 3 mob'!A:A,0),9),"ERRO") -> E9509 | D26: 1 | E26: 1 | F26: 1 | G26: =IF(C26="Veículo(s) da própria frota.",0,INDEX(Equipamentos!B:K,MATCH(C26,Equipamentos!A:A,0),9)) -> 265.145 | H26: 4.419083333 | I26: E9685
A27: E9762 | B27: =VLOOKUP(A27,Equipamentos!$A:$K,2,FALSE) -> Rolo compactador de pneus autopropelido de 27 t - 85 kW | C27: =IFERROR(INDEX('Tabelas 2 e 3 mob'!A:K,MATCH(A27,'Tabelas 2 e 3 mob'!A:A,0),9),"ERRO") -> E9666 | D27: 1 | E27: 2 | F27: 0.5 | G27: =IF(C27="Veículo(s) da própria frota.",0,INDEX(Equipamentos!B:K,MATCH(C27,Equipamentos!A:A,0),9)) -> 455.859 | H27: 7.59765 | I27: E9511
A28: E9681 | B28: =VLOOKUP(A28,Equipamentos!$A:$K,2,FALSE) -> Rolo compactador liso tandem vibratório autopropelido de 10,4 t - 82 kW | C28: =IFERROR(INDEX('Tabelas 2 e 3 mob'!A:K,MATCH(A28,'Tabelas 2 e 3 mob'!A:A,0),9),"ERRO") -> E9666 | D28: 1 | E28: 2 | F28: 0.5 | G28: =IF(C28="Veículo(s) da própria frota.",0,INDEX(Equipamentos!B:K,MATCH(C28,Equipamentos!A:A,0),9)) -> 455.859 | H28: 7.59765 | I28: E9779
A29: E9545 | B29: =VLOOKUP(A29,Equipamentos!$A:$K,2,FALSE) -> Vibroacabadora de asfalto sobre esteiras - 97 kW | C29: =IFERROR(INDEX('Tabelas 2 e 3 mob'!A:K,MATCH(A29,'Tabelas 2 e 3 mob'!A:A,0),9),"ERRO") -> E9018 | D29: 0 | E29: 2 | F29: 0.5 | G29: =IF(C29="Veículo(s) da própria frota.",0,INDEX(Equipamentos!B:K,MATCH(C29,Equipamentos!A:A,0),9)) -> 541.9736 | H29: 0 | I29: E9615
A30: E9571 | B30: =VLOOKUP(A30,Equipamentos!$A:$K,2,FALSE) -> Caminhão tanque com capacidade de 10.000 l - 188 kW | C30: =IFERROR(INDEX('Tabelas 2 e 3 mob'!A:K,MATCH(A30,'Tabelas 2 e 3 mob'!A:A,0),9),"ERRO") -> E9571 | D30: 0 | E30: 1 | F30: 1 | G30: =IF(C30="Veículo(s) da própria frota.",0,INDEX(Equipamentos!B:K,MATCH(C30,Equipamentos!A:A,0),9)) -> 330.4524 | H30: 0 | I30: E9571
A31: E9514 | B31: =VLOOKUP(A31,Equipamentos!$A:$K,2,FALSE) -> Distribuidor de agregados sobre pneus autopropelido - 130 kW | C31: =IFERROR(INDEX('Tabelas 2 e 3 mob'!A:K,MATCH(A31,'Tabelas 2 e 3 mob'!A:A,0),9),"ERRO") -> E9665 | D31: 0 | E31: 2 | F31: 0.5 | G31: =IF(C31="Veículo(s) da própria frota.",0,INDEX(Equipamentos!B:K,MATCH(C31,Equipamentos!A:A,0),9)) -> 412.7818 | H31: 0 | I31: E9514
A32: E9511 | B32: =VLOOKUP(A32,Equipamentos!$A:$K,2,FALSE) -> Carregadeira de pneus com capacidade de 3,40 m³ - 195 kW | C32: =IFERROR(INDEX('Tabelas 2 e 3 mob'!A:K,MATCH(A32,'Tabelas 2 e 3 mob'!A:A,0),9),"ERRO") -> E9665 | D32: 1 | E32: 2 | F32: 1 | G32: =IF(C32="Veículo(s) da própria frota.",0,INDEX(Equipamentos!B:K,MATCH(C32,Equipamentos!A:A,0),9)) -> 412.7818 | H32: 13.75939333 | I32: E9762
A33: E9779 | B33: =VLOOKUP(A33,Equipamentos!$A:$K,2,FALSE) -> Grupo gerador - 113 kVA | C33: =IFERROR(INDEX('Tabelas 2 e 3 mob'!A:K,MATCH(A33,'Tabelas 2 e 3 mob'!A:A,0),9),"ERRO") -> Veículo(s) da própria frota. | D33: 1 | E33: 2 | F33: 0 | G33: =IF(C33="Veículo(s) da própria frota.",0,INDEX(Equipamentos!B:K,MATCH(C33,Equipamentos!A:A,0),9)) -> 0 | H33: 0 | I33: E9685
A34: E9559 | B34: =VLOOKUP(A34,Equipamentos!$A:$K,2,FALSE) -> Aquecedor de fluido térmico - 12 kW | C34: =IFERROR(INDEX('Tabelas 2 e 3 mob'!A:K,MATCH(A34,'Tabelas 2 e 3 mob'!A:A,0),9),"ERRO") -> Veículo(s) da própria frota. | D34: 1 | E34: 2 | F34: 0 | G34: =IF(C34="Veículo(s) da própria frota.",0,INDEX(Equipamentos!B:K,MATCH(C34,Equipamentos!A:A,0),9)) -> 0 | H34: 0 | I34: E9511
A35: E9584 | B35: =VLOOKUP(A35,Equipamentos!$A:$K,2,FALSE) -> Carregadeira de pneus com capacidade de 1,72 m³ - 113 kW | C35: =IFERROR(INDEX('Tabelas 2 e 3 mob'!A:K,MATCH(A35,'Tabelas 2 e 3 mob'!A:A,0),9),"ERRO") -> E9665 | D35: 3 | E35: 2 | F35: 1 | G35: =IF(C35="Veículo(s) da própria frota.",0,INDEX(Equipamentos!B:K,MATCH(C35,Equipamentos!A:A,0),9)) -> 412.7818 | H35: 41.27818 | I35: E9779
A36: E9021 | B36: =VLOOKUP(A36,Equipamentos!$A:$K,2,FALSE) -> Grupo gerador - 456 kVA | C36: =IFERROR(INDEX('Tabelas 2 e 3 mob'!A:K,MATCH(A36,'Tabelas 2 e 3 mob'!A:A,0),9),"ERRO") -> E9508 | D36: 0 | E36: 2 | F36: 1 | G36: =IF(C36="Veículo(s) da própria frota.",0,INDEX(Equipamentos!B:K,MATCH(C36,Equipamentos!A:A,0),9)) -> 183.1405 | H36: 0 | I36: E9615
A37: E9687 | B37: =VLOOKUP(A37,Equipamentos!$A:$K,2,FALSE) -> Caminhão carroceria com capacidade de 5 t - 120 kW | C37: =IFERROR(INDEX('Tabelas 2 e 3 mob'!A:K,MATCH(A37,'Tabelas 2 e 3 mob'!A:A,0),9),"ERRO") -> E9687 | D37: 0 | E37: 1 | F37: 1 | G37: =IF(C37="Veículo(s) da própria frota.",0,INDEX(Equipamentos!B:K,MATCH(C37,Equipamentos!A:A,0),9)) -> 154.4616 | H37: 0 | I37: E9571
A38: E9667 | B38: =VLOOKUP(A38,Equipamentos!$A:$K,2,FALSE) -> Caminhão basculante com capacidade de 14 m³ - 210 kW | C38: =IFERROR(INDEX('Tabelas 2 e 3 mob'!A:K,MATCH(A38,'Tabelas 2 e 3 mob'!A:A,0),9),"ERRO") -> E9667 | D38: 0 | E38: 1 | F38: 1 | G38: =IF(C38="Veículo(s) da própria frota.",0,INDEX(Equipamentos!B:K,MATCH(C38,Equipamentos!A:A,0),9)) -> 311.681 | H38: 0 | I38: E9518
A39: E9644 | B39: =VLOOKUP(A39,Equipamentos!$A:$K,2,FALSE) -> Caminhão demarcador de faixas com sistema de pintura a frio - 28 kW/129 kW | C39: =IFERROR(INDEX('Tabelas 2 e 3 mob'!A:K,MATCH(A39,'Tabelas 2 e 3 mob'!A:A,0),9),"ERRO") -> E9644 | D39: 1 | E39: 1 | F39: 1 | G39: =IF(C39="Veículo(s) da própria frota.",0,INDEX(Equipamentos!B:K,MATCH(C39,Equipamentos!A:A,0),9)) -> 402.9388 | H39: 6.715646667 | I39: E9524
A40: E9592 | B40: =VLOOKUP(A40,Equipamentos!$A:$K,2,FALSE) -> Caminhão carroceria com capacidade de 15 t - 188 kW | C40: =IFERROR(INDEX('Tabelas 2 e 3 mob'!A:K,MATCH(A40,'Tabelas 2 e 3 mob'!A:A,0),9),"ERRO") -> E9592 | D40: 1 | E40: 1 | F40: 1 | G40: =IF(C40="Veículo(s) da própria frota.",0,INDEX(Equipamentos!B:K,MATCH(C40,Equipamentos!A:A,0),9)) -> 269.8329 | H40: 4.497215 | I40: E9762
A41: E9540 | B41: =VLOOKUP(A41,Equipamentos!$A:$K,2,FALSE) -> Trator sobre esteiras com lâmina - 127 kW | C41: =IFERROR(INDEX('Tabelas 2 e 3 mob'!A:K,MATCH(A41,'Tabelas 2 e 3 mob'!A:A,0),9),"ERRO") -> E9018 | D41: 1 | E41: 2 | F41: 0.5 | G41: =IF(C41="Veículo(s) da própria frota.",0,INDEX(Equipamentos!B:K,MATCH(C41,Equipamentos!A:A,0),9)) -> 541.9736 | H41: 9.032893333 | I41: E9685
A42: E9515 | B42: =VLOOKUP(A42,Equipamentos!$A:$K,2,FALSE) -> Escavadeira hidráulica sobre esteiras com caçamba com capacidade de 1,56 m³ - 118 kW | C42: =IFERROR(INDEX('Tabelas 2 e 3 mob'!A:K,MATCH(A42,'Tabelas 2 e 3 mob'!A:A,0),9),"ERRO") -> E9666 | D42: 1 | E42: 2 | F42: 1 | G42: =IF(C42="Veículo(s) da própria frota.",0,INDEX(Equipamentos!B:K,MATCH(C42,Equipamentos!A:A,0),9)) -> 455.859 | H42: 15.1953 | I42: E9577
A43: E9506 | B43: =VLOOKUP(A43,Equipamentos!$A:$K,2,FALSE) -> Caminhão basculante com capacidade de 6 m³ - 136 kW | C43: =IFERROR(INDEX('Tabelas 2 e 3 mob'!A:K,MATCH(A43,'Tabelas 2 e 3 mob'!A:A,0),9),"ERRO") -> E9506 | D43: 0 | E43: 1 | F43: 1 | G43: =IF(C43="Veículo(s) da própria frota.",0,INDEX(Equipamentos!B:K,MATCH(C43,Equipamentos!A:A,0),9)) -> 185.2131 | H43: 0 | I43: E9687
A44: E9256 | B44: =VLOOKUP(A44,Equipamentos!$A:$K,2,FALSE) -> Equipamento para pintura com cal rebocável com dois bicos aplicadores e capacidade de 2.200 l | C44: =IFERROR(INDEX('Tabelas 2 e 3 mob'!A:K,MATCH(A44,'Tabelas 2 e 3 mob'!A:A,0),9),"ERRO") -> Veículo(s) da própria frota. | D44: 1 | E44: 2 | F44: 0 | G44: =IF(C44="Veículo(s) da própria frota.",0,INDEX(Equipamentos!B:K,MATCH(C44,Equipamentos!A:A,0),9)) -> 0 | H44: 0 | I44: E9010
A45: E9156 | B45: =VLOOKUP(A45,Equipamentos!$A:$K,2,FALSE) -> Soprador de ar costal - 2,6 kW | C45: =IFERROR(INDEX('Tabelas 2 e 3 mob'!A:K,MATCH(A45,'Tabelas 2 e 3 mob'!A:A,0),9),"ERRO") -> Veículo(s) da própria frota. | D45: 1 | E45: 2 | F45: 0 | G45: =IF(C45="Veículo(s) da própria frota.",0,INDEX(Equipamentos!B:K,MATCH(C45,Equipamentos!A:A,0),9)) -> 0 | H45: 0 | I45: E9519
A46: E9146 | B46: =VLOOKUP(A46,Equipamentos!$A:$K,2,FALSE) -> Caminhão silo com capacidade de 30 m³ - 368 kW | C46: =IFERROR(INDEX('Tabelas 2 e 3 mob'!A:K,MATCH(A46,'Tabelas 2 e 3 mob'!A:A,0),9),"ERRO") -> E9146 | D46: 1 | E46: 1 | F46: 1 | G46: =IF(C46="Veículo(s) da própria frota.",0,INDEX(Equipamentos!B:K,MATCH(C46,Equipamentos!A:A,0),9)) -> 608.0866 | H46: 10.13477667 | I46: E9071
A47: E9010 | B47: =VLOOKUP(A47,Equipamentos!$A:$K,2,FALSE) -> Balança plataforma digital à bateria, com mesa de 75 x 75 cm e capacidade de 500 kg | C47: =IFERROR(INDEX('Tabelas 2 e 3 mob'!A:K,MATCH(A47,'Tabelas 2 e 3 mob'!A:A,0),9),"ERRO") -> Veículo(s) da própria frota. | D47: 1 | E47: 2 | F47: 0 | G47: =IF(C47="Veículo(s) da própria frota.",0,INDEX(Equipamentos!B:K,MATCH(C47,Equipamentos!A:A,0),9)) -> 0 | H47: 0 | I47: E9064
A48: E9519 | B48: =VLOOKUP(A48,Equipamentos!$A:$K,2,FALSE) -> Betoneira com motor a gasolina com capacidade de 600 l - 10 kW | C48: =IFERROR(INDEX('Tabelas 2 e 3 mob'!A:K,MATCH(A48,'Tabelas 2 e 3 mob'!A:A,0),9),"ERRO") -> Veículo(s) da própria frota. | D48: 1 | E48: 2 | F48: 0 | G48: =IF(C48="Veículo(s) da própria frota.",0,INDEX(Equipamentos!B:K,MATCH(C48,Equipamentos!A:A,0),9)) -> 0 | H48: 0 | I48: E9066
A49: E9071 | B49: =VLOOKUP(A49,Equipamentos!$A:$K,2,FALSE) -> Transportador manual carrinho de mão com capacidade de 80 l | C49: =IFERROR(INDEX('Tabelas 2 e 3 mob'!A:K,MATCH(A49,'Tabelas 2 e 3 mob'!A:A,0),9),"ERRO") -> Veículo(s) da própria frota. | D49: 1 | E49: 2 | F49: 0 | G49: =IF(C49="Veículo(s) da própria frota.",0,INDEX(Equipamentos!B:K,MATCH(C49,Equipamentos!A:A,0),9)) -> 0 | H49: 0 | I49: E9535
A50: E9064 | B50: =VLOOKUP(A50,Equipamentos!$A:$K,2,FALSE) -> Transportador manual gerica com capacidade de 180 l | C50: =IFERROR(INDEX('Tabelas 2 e 3 mob'!A:K,MATCH(A50,'Tabelas 2 e 3 mob'!A:A,0),9),"ERRO") -> Veículo(s) da própria frota. | D50: 1 | E50: 2 | F50: 0 | G50: =IF(C50="Veículo(s) da própria frota.",0,INDEX(Equipamentos!B:K,MATCH(C50,Equipamentos!A:A,0),9)) -> 0 | H50: 0
A51: E9066 | B51: =VLOOKUP(A51,Equipamentos!$A:$K,2,FALSE) -> Grupo gerador - 14 kVA | C51: =IFERROR(INDEX('Tabelas 2 e 3 mob'!A:K,MATCH(A51,'Tabelas 2 e 3 mob'!A:A,0),9),"ERRO") -> Veículo(s) da própria frota. | D51: 1 | E51: 2 | F51: 0 | G51: =IF(C51="Veículo(s) da própria frota.",0,INDEX(Equipamentos!B:K,MATCH(C51,Equipamentos!A:A,0),9)) -> 0 | H51: 0
A52: E9535 | B52: =VLOOKUP(A52,Equipamentos!$A:$K,2,FALSE) -> Serra circular com bancada - D = 30 cm - 4 kW | C52: =IFERROR(INDEX('Tabelas 2 e 3 mob'!A:K,MATCH(A52,'Tabelas 2 e 3 mob'!A:A,0),9),"ERRO") -> Veículo(s) da própria frota. | D52: 1 | E52: 2 | F52: 0 | G52: =IF(C52="Veículo(s) da própria frota.",0,INDEX(Equipamentos!B:K,MATCH(C52,Equipamentos!A:A,0),9)) -> 0 | H52: 0
A53: E9507 | B53: =VLOOKUP(A53,Equipamentos!$A:$K,2,FALSE) -> Plotadora de recorte com computador e programa computacional | C53: =IFERROR(INDEX('Tabelas 2 e 3 mob'!A:K,MATCH(A53,'Tabelas 2 e 3 mob'!A:A,0),9),"ERRO") -> Veículo(s) da própria frota. | D53: 1 | E53: 2 | F53: 0 | G53: =IF(C53="Veículo(s) da própria frota.",0,INDEX(Equipamentos!B:K,MATCH(C53,Equipamentos!A:A,0),9)) -> 0 | H53: 0
A54: E9568 | B54: =VLOOKUP(A54,Equipamentos!$A:$K,2,FALSE) -> Furadeira de impacto de 12,5 mm - 0,80 kW | C54: =IFERROR(INDEX('Tabelas 2 e 3 mob'!A:K,MATCH(A54,'Tabelas 2 e 3 mob'!A:A,0),9),"ERRO") -> Veículo(s) da própria frota. | D54: 1 | E54: 2 | F54: 0 | G54: =IF(C54="Veículo(s) da própria frota.",0,INDEX(Equipamentos!B:K,MATCH(C54,Equipamentos!A:A,0),9)) -> 0 | H54: 0
A55: E9753 | B55: =VLOOKUP(A55,Equipamentos!$A:$K,2,FALSE) -> Grupo gerador - 23 kVA | C55: =IFERROR(INDEX('Tabelas 2 e 3 mob'!A:K,MATCH(A55,'Tabelas 2 e 3 mob'!A:A,0),9),"ERRO") -> Veículo(s) da própria frota. | D55: 1 | E55: 2 | F55: 0 | G55: =IF(C55="Veículo(s) da própria frota.",0,INDEX(Equipamentos!B:K,MATCH(C55,Equipamentos!A:A,0),9)) -> 0 | H55: 0
A56: E9623 | B56: =VLOOKUP(A56,Equipamentos!$A:$K,2,FALSE) -> Máquina de bancada guilhotina - 4,00 kW | C56: =IFERROR(INDEX('Tabelas 2 e 3 mob'!A:K,MATCH(A56,'Tabelas 2 e 3 mob'!A:A,0),9),"ERRO") -> Veículo(s) da própria frota. | D56: 1 | E56: 2 | F56: 0 | G56: =IF(C56="Veículo(s) da própria frota.",0,INDEX(Equipamentos!B:K,MATCH(C56,Equipamentos!A:A,0),9)) -> 0 | H56: 0
A57: E9622 | B57: =VLOOKUP(A57,Equipamentos!$A:$K,2,FALSE) -> Máquina de bancada universal para corte de chapa - 1,50 kW | C57: =IFERROR(INDEX('Tabelas 2 e 3 mob'!A:K,MATCH(A57,'Tabelas 2 e 3 mob'!A:A,0),9),"ERRO") -> Veículo(s) da própria frota. | D57: 1 | E57: 2 | F57: 0 | G57: =IF(C57="Veículo(s) da própria frota.",0,INDEX(Equipamentos!B:K,MATCH(C57,Equipamentos!A:A,0),9)) -> 0 | H57: 0
A58: E9678 | B58: =VLOOKUP(A58,Equipamentos!$A:$K,2,FALSE) -> Fresadora a frio - 455 kW | C58: =IFERROR(INDEX('Tabelas 2 e 3 mob'!A:K,MATCH(A58,'Tabelas 2 e 3 mob'!A:A,0),9),"ERRO") -> E9666 | D58: 0 | E58: 2 | F58: 1 | G58: =IF(C58="Veículo(s) da própria frota.",0,INDEX(Equipamentos!B:K,MATCH(C58,Equipamentos!A:A,0),9)) -> 455.859 | H58: =((D58*E58*F58)/$H$8)*G58 -> 0
G59: TOTAL | H59: =SUM(H13:H58) -> 188.6189183
A64: CUSTO TOTAL MOBILIZAÇÃO E DESMOBILIZAÇÃO
A65: DESCRIÇÃO | B65: VALOR
A66: Custo Transporte (R$/km) | B66: =H59 -> 188.6189183
A67: BDI (%) | B67: =CAPA!D14 -> 0.2339
A68: Custo Transporte (R$/km) com BDI | B68: =TRUNC(B66+(B66*B67),2) -> 232.73
A69: Desconto aplicado | B69: =CAPA!D13 -> 0
A70: Custo Transporte (R$/km) com BDI após o desconto | B70: =TRUNC((B68-B68*B69),2) -> 232.73

Sheet Canteiro
A4: CANTEIRO DE OBRAS
A5: Descrição dos serviços | B5: Tipo de container | C5: Unidade | D5: Quantidade | E5: Preço unitário (R$) | F5: Total (R$)
A6: Escritório e seção técnica (Área = 29,72 m2)
A7: =VLOOKUP(B7,'INSUMOS SINAPI'!A:E,2,0) -> LOCACAO DE CONTAINER 2,30 X 6,00 M, ALT. 2,50 M, PARA ESCRITORIO, SEM DIVISORIAS INTERNAS E SEM SANITARIO (NAO INCLUI MOBILIZACAO/DESMOBILIZACAO) | B7: 10776 | C7: und | D7: 1 | E7: =VLOOKUP(B7,'INSUMOS SINAPI'!A:E,5,0) -> 706.05 | F7: =TRUNC(D7*E7,2) -> 706.05
A8: Banheiro e vestiário (Área = 14,77m²)
A9: =VLOOKUP(B9,'INSUMOS SINAPI'!A:E,2,0) -> LOCACAO DE CONTAINER 2,30 X 4,30 M, ALT. 2,50 M, PARA SANITARIO, COM 3 BACIAS, 4 CHUVEIROS, 1 LAVATORIO E 1 MICTORIO (NAO INCLUI MOBILIZACAO/DESMOBILIZACAO) | B9: 10777 | C9: und | D9: 1 | E9: =VLOOKUP(B9,'INSUMOS SINAPI'!A:E,5,0) -> 1026.13 | F9: =TRUNC(D9*E9,2) -> 1026.13
D10: Subtotal de estruturas | F10: =SUM(F7:F9) -> 1732.18
D11: DURAÇÃO (MESES) | E11: 12 | F11: =F10*E11 -> 20786.16
D12: BDI | F12: =CAPA!D14 -> 0.2339
D13: TOTAL DO CANTEIRO (com BDI) | F13: =TRUNC((F11+(F11*F12)),2) -> 25648.04
D14: DESCONTO | F14: =CAPA!D13 -> 0
D15: TOTAL DO CANTEIRO APÓS O DESCONTO (com BDI) | F15: =TRUNC((F13-F13*F14),2) -> 25648.04

Sheet CPU CODEVASF
A4: ='MODULO MINIMO'!B1 -> EXECUÇÃO DE SERVIÇOS DE PAVIMENTAÇÃO COM TRATAMENTO SUPERFICIAL DUPLO EM VIAS DE MUNICÍPIOS DIVERSOS INSERIDOS NA ÁREA DE ATUAÇÃO DA CODEVASF, NO ESTADO MARANHÃO
F5: BDI %: | G5: =CAPA!D14 -> 0.2339
E6: Encargos Sociais: | G6: Horista | H6: Mensalista
G7: ='ENC. SOCIAIS'!E51/100 -> 1.1273 | H7: ='ENC. SOCIAIS'!F51/100 -> 0.7019
A8: COMPOSIÇÕES DE CUSTO UNITARIO
A9: CPU-12 | B9: CODEVASF | D9: Correção de vazamentos no ramal na rua sem pavimento com fornecimento do material hidráulico | E9: m | F9: COEF. | G9: PRECO UNITÁRIO (R$) | H9: TOTAL (R$)
A11: SICRO | B11: SICRO | C11: P9824 | D11: =VLOOKUP(C11,'Pessoal Sicro'!$A$5:$G$1048576,2,0) -> Servente | E11: H | F11: 0.2 | G11: =VLOOKUP(C11,'Pessoal Sicro'!$A$5:$G$1048576,6,0) -> 21.3406 | H11: =F11*G11 -> 4.26812
A12: SICRO | B12: SICRO | C12: P9807 | D12: =VLOOKUP(C12,'Pessoal Sicro'!$A$5:$G$1048576,2,0) -> Bombeiro hidráulico | E12: H | F12: 0.1 | G12: =VLOOKUP(C12,'Pessoal Sicro'!$A$5:$G$1048576,6,0) -> 31.3343 | H12: =F12*G12 -> 3.13343
A13: INS. SINAPI | B13: SINAPI | C13: 9867 | D13: TUBO PVC, SOLDAVEL, DN 20 MM, AGUA FRIA (NBR-5648) | E13: m | F13: 1 | G13: =IFERROR(VLOOKUP(C13,'INSUMOS SINAPI'!A:E,5,FALSE),VLOOKUP(C13,'COMP Sint. Sinapi'!G:K,5,FALSE)) -> 3.61 | H13: 3.61
A14: INSUMO | B14: ORSE | C14: 10585 | D14: Arco de serra | E14: un | F14: 0.1 | G14: 19.9 | H14: 1.99
A15: INS. SINAPI | B15: SINAPI | C15: 3859 | D15: LUVA SOLDAVEL COM ROSCA, PVC, 20 MM X 1/2", PARA AGUA FRIA PREDIAL | E15: un | F15: 2 | G15: =IFERROR(VLOOKUP(C15,'INSUMOS SINAPI'!A:E,5,FALSE),VLOOKUP(C15,'COMP Sint. Sinapi'!G:K,5,FALSE)) -> 1.3 | H15: 2.6
E16: Sub total: | H16: =SUM(H11:H15) -> 15.60155
F17: BDI | G17: =CAPA!D14 -> 0.2339 | H17: =H16*G17 -> 3.649202545
G18: Total Serviços: | H18: =H16+H17 -> 19.25075254
E19: =A9 -> CPU-12 | F19: PREÇO UNITÁRIO TOTAL: | H19: =H18 -> 19.25075254 | I19: =H16 -> 15.60155
F20: DESCONTO APLICADO: | H20: =CAPA!$D$13 -> 0
D21: PREÇO UNITÁRIO COM BDI APÓS O DESCONTO: | H21: =TRUNC((H19-H19*H20),2) -> 19.25
A23: CPU-14 | B23: CODEVASF | D23: AQUISIÇÃO DE EAI | E23: t | F23: COEF. | G23: PRECO UNITÁRIO (R$) | H23: TOTAL (R$)
D25: EAI | E25: t | F25: 1 | G25: =RESUMO_Transp!$V$17 -> 3094.890671 | H25: =F25*G25 -> 3094.890671
E26: Sub total: | H26: =SUM(H25) -> 3094.890671
F27: BDI | G27: =CAPA!D15 -> 0.15 | H27: =H26*G27 -> 464.2336007
G28: Total Serviços: | H28: =H26+H27 -> 3559.124272
E29: =A23 -> CPU-14 | F29: PREÇO UNITÁRIO TOTAL: | H29: =H28 -> 3559.124272 | I29: =H26 -> 3094.890671
F30: DESCONTO APLICADO: | H30: =CAPA!$D$13 -> 0
D31: PREÇO UNITÁRIO COM BDI APÓS O DESCONTO: | H31: =TRUNC((H29-H29*H30),2) -> 3559.12
A33: CPU-15 | B33: CODEVASF | D33: AQUISIÇÃO DE EMULSÃO ASFÁLTICA RR-2C | E33: t | F33: COEF. | G33: PRECO UNITÁRIO (R$) | H33: TOTAL (R$)
D35: EMULSÃO ASFÁLTICA RR-2C | E35: t | F35: 1 | G35: =RESUMO_Transp!$V$24 -> 4036.352422 | H35: =F35*G35 -> 4036.352422
E36: Sub total: | H36: =SUM(H35) -> 4036.352422
F37: BDI | G37: =CAPA!D15 -> 0.15 | H37: =H36*G37 -> 605.4528633
G38: Total Serviços: | H38: =TRUNC(H36+H37,2) -> 4641.8
E39: =A33 -> CPU-15 | F39: PREÇO UNITÁRIO TOTAL: | H39: =H38 -> 4641.8 | I39: =H36 -> 4036.352422
F40: DESCONTO APLICADO: | H40: =CAPA!$D$13 -> 0
D41: PREÇO UNITÁRIO COM BDI APÓS O DESCONTO: | H41: =TRUNC((H39-H39*H40),2) -> 4641.8
A43: CPU-18 | B43: CODEVASF | D43: TRANSPORTE DE EAI | E43: t | F43: COEF. | G43: PRECO UNITÁRIO (R$) | H43: TOTAL (R$)
D45: TRANSPORTE DE EAI | E45: t | F45: 1 | G45: =RESUMO_Transp!$U$17 -> 1505.242381 | H45: =F45*G45 -> 1505.242381
E46: Sub total: | H46: =SUM(H45) -> 1505.242381
F47: BDI | G47: =CAPA!D15 -> 0.15 | H47: =H46*G47 -> 225.7863571
G48: Total Serviços: | H48: =TRUNC(H46+H47,2) -> 1731.02
E49: =A43 -> CPU-18 | F49: PREÇO UNITÁRIO TOTAL: | H49: =H48 -> 1731.02 | I49: =H46 -> 1505.242381
F50: DESCONTO APLICADO: | H50: =CAPA!$D$13 -> 0
D51: PREÇO UNITÁRIO COM BDI APÓS O DESCONTO: | H51: =TRUNC((H49-H49*H50),2) -> 1731.02
A53: CPU-19 | B53: CODEVASF | D53: TRANSPORTE DE EMULSÃO ASFÁLTICA RR-2C | E53: t | F53: COEF. | G53: PRECO UNITÁRIO (R$) | H53: TOTAL (R$)
D55: TRANSPORTE DE EMULSÃO ASFÁLTICA RR-2C | E55: t | F55: 1 | G55: =RESUMO_Transp!$U$24 -> 969.04 | H55: =F55*G55 -> 969.04
E56: Sub total: | H56: =SUM(H55) -> 969.04
F57: BDI | G57: =CAPA!D15 -> 0.15 | H57: =H56*G57 -> 145.356
G58: Total Serviços: | H58: =H56+H57 -> 1114.396
E59: =A53 -> CPU-19 | F59: PREÇO UNITÁRIO TOTAL: | H59: =H58 -> 1114.396 | I59: =H56 -> 969.04
F60: DESCONTO APLICADO: | H60: =CAPA!$D$13 -> 0
D61: PREÇO UNITÁRIO COM BDI APÓS O DESCONTO: | H61: =TRUNC((H59-H59*H60),2) -> 1114.39
A63: CPU-20 | B63: CODEVASF | D63: CONTROLE TECNOLÓGICO - PROJETO | E63: m² | F63: COEF. | G63: PRECO UNITÁRIO (R$) | H63: TOTAL (R$)
A65: Insumo | B65: SICRO | C65: P9858 | D65: Laboratorista | E65: mês | F65: =0.15/14000 -> 1.071428571e-05 | G65: ='Pessoal Sicro'!F47 -> 7399.543 | H65: =F65*G65 -> 0.07928081786
A66: Composição | B66: SICRO | C66: P9833 | D66: Auxiliar de Laboratório | E66: mês | F66: =0.15/14000 -> 1.071428571e-05 | G66: ='Pessoal Sicro'!F29 -> 5646.9455 | H66: 0.0605029875
A67: Composição | B67: SICRO | C67: *B8957 | D67: Laboratório de Solos | E67: mês | F67: 1.071428571e-05 | G67: ='Tabelas 1 e 2'!G21 -> 3520.5 | H67: =F67*G67 -> 0.03771964286
A68: Composição | B68: SICRO | C68: *B8955 | D68: Laboratório de Asfalto | E68: mês | F68: 1.071428571e-05 | G68: ='Tabelas 1 e 2'!G19 -> 5952.38 | H68: =F68*G68 -> 0.0637755
B69: *Relatório de Custos Gerais do DNIT, página 1 | E69: Sub total: | H69: =SUM(H65:H68) -> 0.2412789482
F70: BDI | G70: =CAPA!D14 -> 0.2339 | H70: =H69*G70 -> 0.05643514599
E71: CPU-20 | F71: PREÇO UNITÁRIO TOTAL: | H71: =TRUNC(H70+H69,2) -> 0.29 | I71: =H69 -> 0.2412789482
F72: DESCONTO APLICADO: | H72: =CAPA!$D$13 -> 0
D73: PREÇO UNITÁRIO COM BDI APÓS O DESCONTO: | H73: =TRUNC((H71-H71*H72),2) -> 0.29

Sheet DEMAIS COMPOSIÇÕES DE CUSTO
E1: Composições Analíticas com Preço Unitário | G1: Bancos | I1: B.D.I. | K1: Encargos Sociais
E2: Pavimentação 2025 - TSD | G2: SINAPI - 05/2025 - Maranhão SICRO3 - 04/2025 - Maranhão | I2: =CAPA!D14 -> 0.2339 | K2: Não Desonerado: embutido nos preços unitário dos insumos de mão de obra, de acordo com as bases.
C3: Composições Analíticas com Preço Unitário
C4: Composições Principais
C5: 1 | D5: Código | E5: Banco | F5: Descrição | G5: Tipo | I5: Und | J5: Quant. | K5: Valor Unit | L5: Total
C6: Composição | D6: 103689 | E6: SINAPI | F6: FORNECIMENTO E INSTALAÇÃO DE PLACA DE OBRA COM CHAPA GALVANIZADA E ESTRUTURA DE MADEIRA. AF_03/2022_PS | G6: PAVI - PAVIMENTAÇÃO | I6: m² | J6: 1 | K6: 468.31 | L6: 468.31
C7: Composição Auxiliar | D7: 88262 | E7: SINAPI | F7: CARPINTEIRO DE FORMAS COM ENCARGOS COMPLEMENTARES | G7: SEDI - SERVIÇOS DIVERSOS | I7: H | J7: 0.3729 | K7: 28.47 | L7: 10.61
C8: Composição Auxiliar | D8: 88316 | E8: SINAPI | F8: SERVENTE COM ENCARGOS COMPLEMENTARES | G8: SEDI - SERVIÇOS DIVERSOS | I8: H | J8: 1.1186 | K8: 23.32 | L8: 26.08
C9: Composição Auxiliar | D9: 102234 | E9: SINAPI | F9: PINTURA IMUNIZANTE PARA MADEIRA, 2 DEMÃOS. AF_01/2021 | G9: PINT - PINTURAS | I9: m² | J9: 0.5 | K9: 24.61 | L9: 12.3
C10: Insumo | D10: 00004509 | E10: SINAPI | F10: SARRAFO *2,5 X 10* CM EM PINUS, MISTA OU EQUIVALENTE DA REGIAO - BRUTA | G10: Material | I10: M | J10: 3.2083 | K10: 5.81 | L10: 18.64
C11: Insumo | D11: 00005065 | E11: SINAPI | F11: PREGO DE ACO POLIDO COM CABECA 10 X 10 (7/8 X 17) | G11: Material | I11: KG | J11: 0.0113 | K11: 37.44 | L11: 0.42
C12: Insumo | D12: 00004813 | E12: SINAPI | F12: PLACA DE OBRA (PARA CONSTRUCAO CIVIL) EM CHAPA GALVANIZADA *N. 22*, ADESIVADA, DE *2,4 X 1,2* M (SEM POSTES PARA FIXACAO) | G12: Material | I12: M² | J12: 1 | K12: 400 | L12: 400
C13: Insumo | D13: 00005069 | E13: SINAPI | F13: PREGO DE ACO POLIDO COM CABECA 17 X 27 (2 1/2 X 11) | G13: Material | I13: KG | J13: 0.0132 | K13: 20.06 | L13: 0.26
G14: MO sem LS => | H14: 29.31 | I14: LS => | J14: 0 | K14: MO com LS => | L14: 29.31
G15: Valor do BDI => | H15: =TRUNC(CAPA!$D$14*L6,2) -> 109.53 | J15: Valor com BDI => | L15: =TRUNC(L6+H15,2) -> 577.84
I16: Desconto aplicado: | L16: =L15*CAPA!$D$13 -> 0
I17: Valor unitário com BDI após o desconto: | L17: =(L15-L16) -> 577.84
C21: 2 | D21: Código | E21: Banco | F21: Descrição | G21: Tipo | I21: Und | J21: Quant. | K21: Valor Unit | L21: Total
C22: Composição | D22: 5502114 | E22: SICRO3 | F22: Escavação, carga e transporte de material de 1ª categoria - DMT de 1.000 a 1.200 m - caminho de serviço em leito natural - com escavadeira e caminhão basculante de 14 m³ | I22: m³ | J22: 1 | K22: 8.22 | L22: 8.22
C23: A | D23: Código | E23: Banco | F23: Equipamentos | G23: Quantidade | H23: Utilização | J23: Custo Horário | L23: Custo Horário Total
H24: Operativa | I24: Improdutiva | J24: Operativa | K24: Improdutiva
C25: Insumo | D25: E9667 | E25: SICRO3 | F25: Caminhão basculante com capacidade de 14 m³ - 210 kW | G25: 5 | H25: 0.96 | I25: 0.04 | J25: 311.681 | K25: 91.6646 | L25: 1514.4017
C26: Insumo | D26: E9515 | E26: SICRO3 | F26: Escavadeira hidráulica sobre esteiras com caçamba com capacidade de 1,56 m³ - 118 kW | G26: 1 | H26: 1 | I26: 0 | J26: 307.8856 | K26: 139.5115 | L26: 307.8856
H27: Custo horário total de equipamentos | L27: 1822.2873
C28: B | D28: Código | E28: Banco | F28: Mão de Obra | G28: Quantidade | H28: Custo Horário | L28: Custo Horário Total
C29: Insumo | D29: P9824 | E29: SICRO3 | F29: Servente | G29: 1 | K29: 21.3406 | L29: 21.3406
H30: Adicional de Mão de obra (%) | L30: 0
H31: Custo horário total de mão de obra | L31: 21.3406
H32: Custo horário total de execução | L32: 1843.6279
H33: Produção de equipe | L33: 230.19
H34: Custo unitário de execução | L34: 8.0092
H35: Custo do FIC | L35: 0.2133
H36: Custo do FIT | L36: 0
G37: MO sem LS => | H37: 0 | I37: LS => | J37: 0.09 | K37: MO com LS => | L37: 0.092708632
G38: Valor do BDI => | H38: =TRUNC(CAPA!$D$14*L22,2) -> 1.92 | J38: Valor com BDI => | L38: =TRUNC(L22+H38,2) -> 10.14
I39: Desconto aplicado: | L39: =L38*CAPA!$D$13 -> 0
I40: Valor unitário com BDI após o desconto: | L40: =(L38-L39) -> 10.14
C47: 3 | D47: Código | E47: Banco | F47: Descrição | G47: Tipo | I47: Und | J47: Quant. | K47: Valor Unit | L47: Total
C48: Composição | D48: 4413942 | E48: SICRO3 | F48: Espalhamento de material em bota-fora | I48: m³ | J48: 1 | K48: 2.01 | L48: 2.01
C49: A | D49: Código | E49: Banco | F49: Equipamentos | G49: Quantidade | H49: Utilização | J49: Custo Horário | L49: Custo Horário Total
H50: Operativa | I50: Improdutiva | J50: Operativa | K50: Improdutiva
C51: Insumo | D51: E9540 | E51: SICRO3 | F51: Trator sobre esteiras com lâmina - 127 kW | G51: 1 | H51: 1 | I51: 0 | J51: 324.5285 | K51: 130.4257 | L51: 324.5285
H52: Custo horário total de equipamentos | L52: 324.5285
C53: B | D53: Código | E53: Banco | F53: Mão de Obra | G53: Quantidade | H53: Custo Horário | L53: Custo Horário Total
C54: Insumo | D54: P9824 | E54: SICRO3 | F54: Servente | G54: 1 | K54: 21.3406 | L54: 21.3406
H55: Adicional de Mão de obra (%) | L55: 0
H56: Custo horário total de mão de obra | L56: 21.3406
H57: Custo horário total de execução | L57: 345.8691
H58: Produção de equipe | L58: 176.81
H59: 23 | L59: 1.9562
H60: Custo do FIC | L60: 0.0521
H61: Custo do FIT | L61: 0
G62: MO sem LS => | H62: 0 | I62: LS => | J62: 0.12 | K62: MO com LS => | L62: 0.1206979243
G63: Valor do BDI => | H63: =TRUNC(CAPA!$D$14*L48,2) -> 0.47 | J63: Valor com BDI => | L63: =TRUNC(L48+H63,2) -> 2.48
I64: Desconto aplicado: | L64: =L63*CAPA!$D$13 -> 0
I65: Valor unitário com BDI após o desconto: | L65: =(L63-L64) -> 2.48
C69: 4 | D69: Código | E69: Banco | F69: Descrição | G69: Tipo | I69: Und | J69: Quant. | K69: Valor Unit | L69: Total
C70: Composição | D70: 4915637 | E70: SICRO3 | F70: Capa selante - areia comercial | I70: m² | J70: 1 | K70: 0.9 | L70: 0.9
C71: A | D71: Código | E71: Banco | F71: Equipamentos | G71: Quantidade | H71: Utilização | J71: Custo Horário | L71: Custo Horário Total
H72: Operativa | I72: Improdutiva | J72: Operativa | K72: Improdutiva
C73: Insumo | D73: E9509 | E73: SICRO3 | F73: Caminhão tanque distribuidor de asfalto com capacidade de 6.000 l - 7 kW/136 kW | G73: 1 | H73: 1 | I73: 0 | J73: 265.145 | K73: 74.9692 | L73: 265.145
C74: Insumo | D74: E9762 | E74: SICRO3 | F74: Rolo compactador de pneus autopropelido de 27 t - 85 kW | G74: 1 | H74: 0.78 | I74: 0.22 | J74: 257.8857 | K74: 124.9429 | L74: 228.6383
C75: Insumo | D75: E9583 | E75: SICRO3 | F75: Distribuidor de agregados rebocável com capacidade de 1,9 m³ | G75: 1 | H75: 0.26 | I75: 0.74 | J75: 15.818 | K75: 10.1858 | L75: 11.6502
C76: Insumo | D76: E9558 | E76: SICRO3 | F76: Tanque de estocagem de asfalto com capacidade de 30.000 l | G76: 2 | H76: 1 | I76: 0 | J76: 61.4744 | K76: 41.9915 | L76: 122.9488
H77: Custo horário total de equipamentos | L77: 628.3823
C78: B | D78: Código | E78: Banco | F78: Mão de Obra | G78: Quantidade | H78: Custo Horário | L78: Custo Horário Total
C79: Insumo | D79: P9824 | E79: SICRO3 | F79: Servente | G79: 8 | K79: 21,3406 | L79: 170,7248
H80: Adicional de Mão de obra (%) | L80: 0
H81: Custo horário total de mão de obra | L81: 170.7248
H82: Custo horário total de execução | L82: 799.1071
H83: Produção de equipe | L83: 1350
H84: Custo unitário de execução | L84: 0.5919
H85: Custo do FIC | L85: 0.0026
H86: Custo do FIT | L86: 0
C87: C | D87: Código | E87: Banco | F87: MATERIAL | G87: Quantidade | H87: Unidade | I87: Preço Unitário | L87: Custo Horário
C88: Insumo | D88: M0028 | E88: SICRO3 | F88: Areia média | G88: 0.0029 | H88: m³ | I88: 97,3514 | L88: 0,2823
C89: Insumo | D89: M2097 | E89: SICRO3 | F89: Emulsão asfáltica - RR-2C | G89: 0.0005 | H89: t | I89: 0,0000 | L89: 0,0000
H90: Custo unitário total de material | L90: 0.2823
C91: E | D91: Tempo Fixo | E91: Banco | F91: Descrição | G91: Carga | H91: Quantidade | I91: Unidade | J91: Preço Unitário | L91: Custo Horário
C92: Composição | D92: 5914642 | E92: SICRO3 | F92: Carga, manobra e descarga de agregados ou solos em caminhão basculante de 6 m³ - carga com carregadeira de 1,72 m³ (exclusa) e descarga em distribuidor rebocável | G92: M0028 | H92: 0.00435 | I92: t | J92: 5.57 | L92: 0.0242
H93: Custo Total dos Tempos Fixos | L93: 0.0242
C94: F | D94: Momento de Transporte | E94: Banco | F94: Descrição | G94: Quantidade | H94: Distância Média de Transporte (DMT) | L94: Custo Horário
H95: LN | I95: RP | J95: P | K95: FE
C96: Insumo | D96: M0028 | E96: SICRO3 | F96: Areia média | G96: 0.00435 | H96: 5914314 0,00 1,27 0,0000 | I96: 5914329 0,00 1,02 0,0000 | J96: 5914344 0,00 0,83 0,0000 | K96: -- | L96: 0
H97: Custo total de transporte | L97: 0
G98: MO sem LS => | H98: 0 | I98: LS => | J98: 0.13 | K98: MO com LS => | L98: 0.1264628148
G99: Valor do BDI => | H99: =TRUNC(CAPA!$D$14*L70,2) -> 0.21 | J99: Valor com BDI => | L99: =TRUNC(L70+H99,2) -> 1.11
I100: Desconto aplicado: | L100: =L99*CAPA!$D$13 -> 0
I101: Valor unitário com BDI após o desconto: | L101: =(L99-L100) -> 1.11
C104: 5 | D104: Código | E104: Banco | F104: Descrição | G104: Tipo | I104: Und | J104: Quant. | K104: Valor Unit | L104: Total
C105: Composição | D105: 4011370 | E105: SICRO3 | F105: Tratamento superficial duplo com emulsão - brita comercial | I105: m² | J105: 1 | K105: 6.08 | L105: 6.08
C106: A | D106: Código | E106: Banco | F106: Equipamentos | G106: Quantidade | H106: Utilização | J106: Custo Horário | L106: Custo Horário Total
H107: Operativa | I107: Improdutiva | J107: Operativa | K107: Improdutiva
C108: Insumo | D108: E9762 | E108: SICRO3 | F108: Rolo compactador de pneus autopropelido de 27 t - 85 kW | G108: 1 | H108: 0.31 | I108: 0.69 | J108: 257.8857 | K108: 124.9429 | L108: 166.1552
C109: Insumo | D109: E9558 | E109: SICRO3 | F109: Tanque de estocagem de asfalto com capacidade de 30.000 l | G109: 2 | H109: 1 | I109: 0 | J109: 61.4744 | K109: 41.9915 | L109: 122.9488
C110: Insumo | D110: E9509 | E110: SICRO3 | F110: Caminhão tanque distribuidor de asfalto com capacidade de 6.000 l - 7 kW/136 kW | G110: 1 | H110: 1 | I110: 0 | J110: 265.145 | K110: 74.9692 | L110: 265.145
C111: Insumo | D111: E9583 | E111: SICRO3 | F111: Distribuidor de agregados rebocável com capacidade de 1,9 m³ | G111: 1 | H111: 0.28 | I111: 0.72 | J111: 15.818 | K111: 10.1858 | L111: 11.7628
H112: Custo horário total de equipamentos | L112: 566.0118
C113: B | D113: Código | E113: Banco | F113: Mão de Obra | G113: Quantidade | H113: Custo Horário | L113: Custo Horário Total
C114: Insumo | D114: P9824 | E114: SICRO3 | F114: Servente | G114: 8 | K114: 21,3406 | L114: 170,7248
H115: Adicional de Mão de obra (%) | L115: 0
H116: Custo horário total de mão de obra | L116: 170.7248
H117: Custo horário total de execução | L117: 736.7366
H118: Produção de equipe | L118: 361.93
H119: Custo unitário de execução | L119: 2.0356
H120: Custo do FIC | L120: 0.009
H121: Custo do FIT | L121: 0
C122: C | D122: Código | E122: Banco | F122: MATERIAL | G122: Quantidade | H122: Unidade | I122: Preço Unitário | L122: Custo Horário
C123: Insumo | D123: M0191 | E123: SICRO3 | F123: Brita 1 | G123: 0.015 | H123: m³ | I123: 164.0601 | L123: 2.4609
C124: Insumo | D124: M0005 | E124: SICRO3 | F124: Brita 0 | G124: 0.00733 | H124: m³ | I124: 180.3717 | L124: 1.3221
C125: Insumo | D125: M2097 | E125: SICRO3 | F125: Emulsão asfáltica - RR-2C | G125: 0.00373 | H125: t | I125: 0 | L125: 0
H126: Custo unitário total de material | L126: 3.783
C127: E | D127: Tempo Fixo | E127: Banco | F127: Descrição | G127: Carga | H127: Quantidade | I127: Unidade | J127: Preço Unitário | L127: Custo Horário
C128: Composição | D128: 5914648 | E128: SICRO3 | F128: Carga, manobra e descarga de agregados ou solos em caminhão basculante de 10 m³ - carga com carregadeira de 3,40 m³ (exclusa) e descarga em distribuidor rebocável | G128: M0005 | H128: 0.011 | I128: t | J128: 7.51 | L128: 0.0826
C129: Composição | D129: 5914648 | E129: SICRO3 | F129: Carga, manobra e descarga de agregados ou solos em caminhão basculante de 10 m³ - carga com carregadeira de 3,40 m³ (exclusa) e descarga em distribuidor rebocável | G129: M0191 | H129: 0.0225 | I129: t | J129: 7.51 | L129: 0.169
H130: Custo Total dos Tempos Fixos | L130: 0.2516
C131: F | D131: Momento de Transporte | E131: Banco | F131: Descrição | G131: Quantidade | H131: Distância Média de Transporte (DMT) | L131: Custo Horário
H132: LN | I132: RP | J132: P | K132: FE
C133: Insumo | D133: M0005 | E133: SICRO3 | F133: Brita 0 | G133: 0.011 | H133: 5914359 0,00 1,21 0,0000 | I133: 5914374 0,00 0,96 0,0000 | J133: 5914389 0,00 0,78 0,0000 | K133: -- | L133: 0
C134: Insumo | D134: M0191 | E134: SICRO3 | F134: Brita 1 | G134: 0.0225 | H134: 5914359 0,00 1,21 0,0000 | I134: 5914374 0,00 0,96 0,0000 | J134: 5914389 0,00 0,78 0,0000 | K134: -- | L134: 0
H135: Custo total de transporte | L135: 0
G136: MO sem LS => | H136: 0 | I136: LS => | J136: 0.47 | K136: MO com LS => | L136: 0.4717066836
G137: Valor do BDI => | H137: =TRUNC(CAPA!$D$14*L105,2) -> 1.42 | J137: Valor com BDI => | L137: =TRUNC(L105+H137,2) -> 7.5
I138: Desconto aplicado: | L138: =L137*CAPA!$D$13 -> 0
I139: Valor unitário com BDI após o desconto: | L139: =(L137-L138) -> 7.5
C146: 6 | D146: Código | E146: Banco | F146: Descrição | G146: Tipo | I146: Und | J146: Quant. | K146: Valor Unit | L146: Total
C147: Composição | D147: 4011352 | E147: SICRO3 | F147: Imprimação com emulsão asfáltica | I147: m² | J147: 1 | K147: 0.42 | L147: 0.42
C148: A | D148: Código | E148: Banco | F148: Equipamentos | G148: Quantidade | H148: Utilização | J148: Custo Horário | L148: Custo Horário Total
H149: Operativa | I149: Improdutiva | J149: Operativa | K149: Improdutiva
C150: Insumo | D150: E9558 | E150: SICRO3 | F150: Tanque de estocagem de asfalto com capacidade de 30.000 l | G150: 2 | H150: 1 | I150: 0 | J150: 61.4744 | K150: 41.9915 | L150: 122.9488
C151: Insumo | D151: E9509 | E151: SICRO3 | F151: Caminhão tanque distribuidor de asfalto com capacidade de 6.000 l - 7 kW/136 kW | G151: 1 | H151: 1 | I151: 0 | J151: 265.145 | K151: 74.9692 | L151: 265.145
H152: Custo horário total de equipamentos | L152: 388.0938
C153: B | D153: Código | E153: Banco | F153: Mão de Obra | G153: Quantidade | H153: Custo Horário | L153: Custo Horário Total
C154: Insumo | D154: P9824 | E154: SICRO3 | F154: Servente | G154: 2 | K154: 21,3406 | L154: 42,6812
H155: Adicional de Mão de obra (%) | L155: 0
H156: Custo horário total de mão de obra | L156: 42.6812
H157: Custo horário total de execução | L157: 430.775
H158: Produção de equipe | L158: 1038.46
H159: Custo unitário de execução | L159: 0.4148
H160: Custo do FIC | L160: 0.0018
H161: Custo do FIT | L161: 0
C162: C | D162: Código | E162: Banco | F162: MATERIAL | G162: Quantidade | H162: Unidade | I162: Preço Unitário | L162: Custo Horário
C163: Insumo | D163: M2092 | E163: SICRO3 | F163: Emulsão asfáltica para imprimação | G163: 0.0013 | H163: t | I163: 0,0000 | L163: 0,0000
H164: Custo unitário total de material | L164: 0
G165: MO sem LS => | H165: 0 | I165: LS => | J165: 0.04 | K165: MO com LS => | L165: 0.0411004757
G166: Valor do BDI => | H166: =TRUNC(CAPA!$D$14*L147,2) -> 0.09 | J166: Valor com BDI => | L166: =TRUNC(L147+H166,2) -> 0.51
I167: Desconto aplicado: | L167: =L166*CAPA!$D$13 -> 0
I168: Valor unitário com BDI após o desconto: | L168: =(L166-L167) -> 0.51
C172: 7 | D172: Código | E172: Banco | F172: Descrição | G172: Tipo | I172: Und | J172: Quant. | K172: Valor Unit | L172: Total
C173: Composição | D173: 4011353 | E173: SICRO3 | F173: Pintura de ligação | I173: m² | J173: 1 | K173: 0.29 | L173: 0.29
C174: A | D174: Código | E174: Banco | F174: Equipamentos | G174: Quantidade | H174: Utilização | J174: Custo Horário | L174: Custo Horário Total
H175: Operativa | I175: Improdutiva | J175: Operativa | K175: Improdutiva
C176: Insumo | D176: E9558 | E176: SICRO3 | F176: Tanque de estocagem de asfalto com capacidade de 30.000 l | G176: 2 | H176: 1 | I176: 0 | J176: 61.4744 | K176: 41.9915 | L176: 122.9488
C177: Insumo | D177: E9509 | E177: SICRO3 | F177: Caminhão tanque distribuidor de asfalto com capacidade de 6.000 l - 7 kW/136 kW | G177: 1 | H177: 1 | I177: 0 | J177: 265.145 | K177: 74.9692 | L177: 265.145
H178: Custo horário total de equipamentos | L178: 388.0938
C179: B | D179: Código | E179: Banco | F179: Mão de Obra | G179: Quantidade | H179: Custo Horário | L179: Custo Horário Total
C180: Insumo | D180: P9824 | E180: SICRO3 | F180: Servente | G180: 2 | K180: 21,3406 | L180: 42,6812
H181: Adicional de Mão de obra (%) | L181: 0
H182: Custo horário total de mão de obra | L182: 42.6812
H183: Custo horário total de execução | L183: 430.775
H184: Produção de equipe | L184: 1500
H185: Custo unitário de execução | L185: 0.2872
H186: Custo do FIC | L186: 0.0013
H187: Custo do FIT | L187: 0
C188: C | D188: Código | E188: Banco | F188: MATERIAL | G188: Quantidade | H188: Unidade | I188: Preço Unitário | L188: Custo Horário
C189: Insumo | D189: M1946 | E189: SICRO3 | F189: Emulsão asfáltica - RR-1C | G189: 0.00045 | H189: t | I189: 0,0000 | L189: 0,0000
H190: Custo unitário total de material | L190: 0
G191: MO sem LS => | H191: 0 | I191: LS => | J191: 0.03 | K191: MO com LS => | L191: 0.02845413333
G192: Valor do BDI => | H192: =TRUNC(CAPA!$D$14*L173,2) -> 0.06 | J192: Valor com BDI => | L192: =TRUNC(L173+H192,2) -> 0.35
I193: Desconto aplicado: | L193: =L192*CAPA!D190 -> 0
I194: Valor unitário com BDI após o desconto: | L194: =(L192-L193) -> 0.35
C198: 8 | D198: Código | E198: Banco | F198: Descrição | G198: Tipo | I198: Und | J198: Quant. | K198: Valor Unit | L198: Total
C199: Composição | D199: 4011219 | E199: SICRO3 | F199: Base de solo estabilizado granulometricamente sem mistura com material de jazida - 100% Proctor modificado | I199: m³ | J199: 1 | K199: 14.79 | L199: 14.79
C200: A | D200: Código | E200: Banco | F200: Equipamentos | G200: Quantidade | H200: Utilização | J200: Custo Horário | L200: Custo Horário Total
H201: Operativa | I201: Improdutiva | J201: Operativa | K201: Improdutiva
C202: Insumo | D202: E9685 | E202: SICRO3 | F202: Rolo compactador pé de carneiro vibratório autopropelido por pneus de 11,6 t - 82 kW | G202: 1 | H202: 1 | I202: 0 | J202: 225.3601 | K202: 100.3767 | L202: 225.3601
C203: Insumo | D203: E9762 | E203: SICRO3 | F203: Rolo compactador de pneus autopropelido de 27 t - 85 kW | G203: 1 | H203: 0.96 | I203: 0.04 | J203: 257.8857 | K203: 124.9429 | L203: 252.568
C204: Insumo | D204: E9518 | E204: SICRO3 | F204: Grade de 24 discos rebocável de D = 60 cm (24") | G204: 1 | H204: 0.34 | I204: 0.66 | J204: 5.0871 | K204: 3.5426 | L204: 4.0677
C205: Insumo | D205: E9524 | E205: SICRO3 | F205: Motoniveladora - 93 kW | G205: 1 | H205: 0.5 | I205: 0.5 | J205: 282.1718 | K205: 121.5518 | L205: 201.8618
C206: Insumo | D206: E9571 | E206: SICRO3 | F206: Caminhão tanque com capacidade de 10.000 l - 188 kW | G206: 1 | H206: 0.62 | I206: 0.38 | J206: 330.4524 | K206: 84.0285 | L206: 236.8113
C207: Insumo | D207: E9577 | E207: SICRO3 | F207: Trator agrícola sobre pneus - 77 kW | G207: 1 | H207: 0.34 | I207: 0.66 | J207: 155.6701 | K207: 58.2583 | L207: 91.3783
H208: Custo horário total de equipamentos | L208: 1012.0472
C209: B | D209: Código | E209: Banco | F209: Mão de Obra | G209: Quantidade | H209: Custo Horário | L209: Custo Horário Total
C210: Insumo | D210: P9824 | E210: SICRO3 | F210: Servente | G210: 1 | K210: 21,3406 | L210: 21,3406
H211: Adicional de Mão de obra (%) | L211: 0
H212: Custo horário total de mão de obra | L212: 21.3406
H213: Custo horário total de execução | L213: 1033.3878
H214: Produção de equipe | L214: 112.13
H215: Custo unitário de execução | L215: 9.216
H216: Custo do FIC | L216: 0.2454
H217: Custo do FIT | L217: 0
C218: D | D218: Código | E218: Banco | F218: ATIVIDADES AUXILIARES | G218: Quantidade | H218: Unidade | I218: Preço Unitário | L218: Custo Horário
C219: Composição | D219: 4016096 | E219: SICRO3 | F219: Escavação e carga de material de jazida com escavadeira hidráulica de 1,56 m³ | G219: 1.10027 | H219: m³ | I219: 1,4700 | L219: 1,6174
H220: Custo total de atividades auxiliares | L220: 1.6174
C221: E | D221: Tempo Fixo | E221: Banco | F221: Descrição | G221: Carga | H221: Quantidade | I221: Unidade | J221: Preço Unitário | L221: Custo Horário
C222: Composição | D222: 5914354 | E222: SICRO3 | F222: Carga, manobra e descarga de agregados ou solos em caminhão basculante de 10 m³ - carga com escavadeira de 1,56 m³ (exclusa) e descarga livre | G222: 4016096 | H222: 2.06301 | I222: t | J222: 1.8 | L222: 3.7134
H223: Custo Total dos Tempos Fixos | L223: 3.7134
C224: F | D224: Momento de Transporte | E224: Banco | F224: Descrição | G224: Quantidade | H224: Distância Média de Transporte (DMT) | L224: Custo Horário
H225: LN | I225: RP | J225: P | K225: FE
C226: Composição | D226: 4016096 | E226: SICRO3 | F226: Escavação e carga de material de jazida com escavadeira hidráulica de 1,56 m³ | G226: 2.06301 | H226: 5914359 0,00 1,21 0,0000 | I226: 5914374 0,00 0,96 0,0000 | J226: 5914389 0,00 0,78 0,0000 | K226: -- | L226: 0
... 808 more rows

Sheet Adm Local
A1: parcela fixa da administração local (mão de obra)
A2: Código | B2: Discriminação | C2: Unidade | D2: Quantidade | F2: Custo Unitário (R$) | H2: Custo Total (R$)
B3: Mão de Obra
B4: Gerência Técnica
B5: Geral
A6: P9955 | B6: =VLOOKUP(A6,'Pessoal Sicro'!$A$6:$F$106,2,FALSE) -> Engenheiro chefe | C6: mês | D6: 0.25 | F6: =VLOOKUP(A6,'Pessoal Sicro'!$A$6:$G$106,6,0) -> 31577.9207 | H6: =F6*D6 -> 7894.480175
A7: P9840 | B7: =VLOOKUP(A7,'Pessoal Sicro'!$A$6:$F$106,2,FALSE) -> Encarregado geral | C7: mês | D7: 0.25 | F7: =VLOOKUP(A7,'Pessoal Sicro'!$A$6:$G$106,6,0) -> 11656.0318 | H7: =F7*D7 -> 2914.00795
A8: P9897 | B8: =VLOOKUP(A8,'Pessoal Sicro'!$A$6:$F$106,2,FALSE) -> Técnico de meio ambiente | C8: mês | D8: 0 | F8: =VLOOKUP(A8,'Pessoal Sicro'!$A$6:$G$106,6,0) -> 7881.727 | H8: =F8*D8 -> 0
A9: P9948 | B9: =VLOOKUP(A9,'Pessoal Sicro'!$A$6:$F$106,2,FALSE) -> Motorista de veículo leve - mensalista | C9: mês | D9: 0 | F9: =VLOOKUP(A9,'Pessoal Sicro'!$A$6:$G$106,6,0) -> 5614.879 | H9: =F9*D9 -> 0
A10: P9878 | B10: =VLOOKUP(A10,'Pessoal Sicro'!$A$6:$F$106,2,FALSE) -> Secretária | C10: mês | D10: 0 | F10: =VLOOKUP(A10,'Pessoal Sicro'!$A$6:$G$106,6,0) -> 6718.4541 | H10: =F10*D10 -> 0
F11: Subtotal do Item 1.1 | H11: =SUM(H6:I10) -> 10808.48812
B12: Auxiliar
A13: P9946 | B13: =VLOOKUP(A13,'Pessoal Sicro'!$A$6:$F$106,2,FALSE) -> Engenheiro auxiliar | C13: mês | D13: 0.5 | F13: =VLOOKUP(A13,'Pessoal Sicro'!$A$6:$G$106,6,0) -> 23592.8645 | H13: =D13*F13 -> 11796.43225
A14: P9903 | B14: =VLOOKUP(A14,'Pessoal Sicro'!$A$6:$F$106,2,FALSE) -> Auxiliar técnico | C14: mês | D14: 0 | F14: =VLOOKUP(A14,'Pessoal Sicro'!$A$6:$G$106,6,0) -> 4684.6961 | H14: =D14*F14 -> 0
F15: Subtotal do Item 1.2 | H15: =SUM(H13:I14) -> 11796.43225
B16: Gerência Administrativa
B17: Geral
A18: P9883 | B18: =VLOOKUP(A18,'Pessoal Sicro'!$A$6:$F$106,2,FALSE) -> Chefe do setor administrativo | C18: mês | D18: 0.5 | F18: =VLOOKUP(A18,'Pessoal Sicro'!$A$6:$G$106,6,0) -> 7575.8406 | H18: =F18*D18 -> 3787.9203
A19: P9809 | B19: =VLOOKUP(A19,'Pessoal Sicro'!$A$6:$F$106,2,FALSE) -> Encarregado administrativo | C19: mês | D19: 0 | F19: =VLOOKUP(A19,'Pessoal Sicro'!$A$6:$G$106,6,0) -> 7575.7263 | H19: =F19*D19 -> 0
A20: P9896 | B20: =VLOOKUP(A20,'Pessoal Sicro'!$A$6:$F$106,2,FALSE) -> Porteiro | C20: mês | D20: 0 | F20: =VLOOKUP(A20,'Pessoal Sicro'!$A$6:$G$106,6,0) -> 4026.1953 | H20: =F20*D20 -> 0
A21: P9827 | B21: =VLOOKUP(A21,'Pessoal Sicro'!$A$6:$F$106,2,FALSE) -> Vigia | C21: mês | D21: 0 | F21: =VLOOKUP(A21,'Pessoal Sicro'!$A$6:$G$106,6,0) -> 4725.5765 | H21: =F21*D21 -> 0
A22: P9948 | B22: =VLOOKUP(A22,'Pessoal Sicro'!$A$6:$F$106,2,FALSE) -> Motorista de veículo leve - mensalista | C22: mês | D22: 0 | F22: =VLOOKUP(A22,'Pessoal Sicro'!$A$6:$G$106,6,0) -> 5614.879 | H22: =F22*D22 -> 0
F23: Subtotal do Item 1.3 | H23: =SUM(H18:I22) -> 3787.9203
B24: Auxiliar
A25: P9806 | B25: =VLOOKUP(A25,'Pessoal Sicro'!$A$6:$F$106,2,FALSE) -> Auxiliar administrativo | C25: mês | D25: 1 | F25: =VLOOKUP(A25,'Pessoal Sicro'!$A$6:$G$106,6,0) -> 5069.9099 | H25: =F25*D25 -> 5069.9099
A26: P9842 | B26: =VLOOKUP(A26,'Pessoal Sicro'!$A$6:$F$106,2,FALSE) -> Faxineiro | C26: mês | D26: 0 | F26: =VLOOKUP(A26,'Pessoal Sicro'!$A$6:$G$106,6,0) -> 4033.4643 | H26: =F26*D26 -> 0
F27: Subtotal do Item 1.4 | H27: =SUM(H25:I26) -> 5069.9099
H28: Total da Mão de Obra da Parcela Fixa | I28: =H27+H23+H15+H11 -> 31462.75058
A30: parcela fixa da administração local (veículos)
A31: Código | B31: Discriminação | C31: Unidade | D31: Quantidade | E31: Utilização Produtiva | F31: Utilização Improdutiva | G31: Custo Horário Produtivo (R$) | H31: Custo Horário Improdutivo (R$) | I31: Custo Total (R$)
A32: 2 | B32: Veículos
B33: Gerência Técnica
A34: 2.1 | B34: Geral
A35: E9093 | B35: =VLOOKUP(A35,Equipamentos!$A:$K,2,FALSE) -> Veículo leve - 53 kW (sem motorista) | C35: mês | D35: 1 | E35: 44 | F35: 176 | G35: =VLOOKUP(A35,Equipamentos!$A:$K,10,FALSE) -> 36.806 | H35: =VLOOKUP(A35,Equipamentos!$A:$K,11,FALSE) -> 6.6541 | I35: =((E35*G35)+(F35*H35))*D35 -> 2790.5856
A36: E9560 | B36: =VLOOKUP(A36,Equipamentos!$A:$K,2,FALSE) -> Ônibus com capacidade para 80 passageiros - 175 kW | C36: mês | D36: 0 | E36: 44 | F36: 176 | G36: =VLOOKUP(A36,Equipamentos!$A:$K,10,FALSE) -> 351.8554 | H36: =VLOOKUP(A36,Equipamentos!$A:$K,11,FALSE) -> 101.2075 | I36: =((E36*G36)+(F36*H36))*D36 -> 0
H37: Subtotal do Item 2 | I37: =SUM(I35:I36) -> 2790.5856
A38: 2.2 | B38: Auxiliar
A39: E9093 | B39: =VLOOKUP(A39,Equipamentos!$A:$K,2,FALSE) -> Veículo leve - 53 kW (sem motorista) | C39: mês | D39: 0 | E39: 44 | F39: 176 | G39: =VLOOKUP(A39,Equipamentos!$A:$K,10,FALSE) -> 36.806 | H39: =VLOOKUP(A39,Equipamentos!$A:$K,11,FALSE) -> 6.6541 | I39: =((E39*G39)+(F39*H39))*D39 -> 0
H40: Subtotal do Item 2 | I40: =SUM(I39) -> 0
A41: 2.3 | B41: Gerência Administrativa
A42: E9093 | B42: =VLOOKUP(A42,Equipamentos!$A:$K,2,FALSE) -> Veículo leve - 53 kW (sem motorista) | C42: mês | D42: 0 | E42: 44 | F42: 176 | G42: =VLOOKUP(A42,Equipamentos!$A:$K,10,FALSE) -> 36.806 | H42: =VLOOKUP(A42,Equipamentos!$A:$K,11,FALSE) -> 6.6541 | I42: =((E42*G42)+(F42*H42))*D42 -> 0
H43: Subtotal do Item 2 | I43: =I42 -> 0
H44: Total dos Veículos da Parcela Fixa | I44: =I43+I40+I37 -> 2790.5856
A46: Composição de custo da equipe de produção de terraplenagem
A47: Código | B47: Discriminação | C47: Unidade | D47: Quantidade | F47: Custo Unitário (R$) | H47: Custo Total (R$)
B48: Equipe de Produção de Terraplenagem
A49: 3.1 | B49: Mão de Obra
A50: P9884 | B50: =VLOOKUP(A50,'Pessoal Sicro'!$A$6:$F$106,2,FALSE) -> Encarregado de terraplenagem | C50: mês | D50: 1 | F50: =VLOOKUP(A50,'Pessoal Sicro'!$A$6:$G$106,6,0) -> 8270.9705 | H50: =F50*D50 -> 8270.9705
F51: Subtotal do Item 3.1 | H51: =SUM(H50:H50) -> 8270.9705
A52: Código | B52: Discriminação | C52: Unidade | D52: Quantidade | E52: Utilização Produtiva | F52: Utilização Improdutiva | G52: Custo Horário Produtivo (R$) | H52: Custo Horário Improdutivo (R$) | I52: Custo Total (R$)
A53: 3.2 | B53: Veículos
B54: Veículo Leve 53 kw | C54: mês | D54: 1 | E54: 44 | F54: 176 | G54: =G35 -> 36.806 | H54: =H35 -> 6.6541 | I54: =((E54*G54)+(F54*H54))*D54 -> 2790.5856
H55: Subtotal do Item 3.2 | I55: =SUM(I54:I54) -> 2790.5856
H56: Total da Equipe de Produção de Terraplenagem | I56: =I55+H51 -> 11061.5561
A58: Composição de custo da equipe de produção de pavimentação
A59: Código | B59: Discriminação | C59: Unidade | D59: Quantidade | F59: Custo Unitário (R$) | H59: Custo Total (R$)
B60: Equipe de Produção de Pavimentação
A61: 3.1 | B61: Mão de Obra
A62: P9893 | B62: =VLOOKUP(A62,'Pessoal Sicro'!$A$6:$F$106,2,FALSE) -> Encarregado de pavimentação | C62: mês | D62: 1 | F62: =VLOOKUP(A62,'Pessoal Sicro'!$A$6:$G$106,6,0) -> 8270.9705 | H62: =F62*D62 -> 8270.9705
F63: Subtotal do Item 3.1 | H63: =SUM(H62:H62) -> 8270.9705
A64: Código | B64: Discriminação | C64: Unidade | D64: Quantidade | E64: Utilização Produtiva | F64: Utilização Improdutiva | G64: Custo Horário Produtivo (R$) | H64: Custo Horário Improdutivo (R$) | I64: Custo Total (R$)
A65: 3.2 | B65: Veículos
B66: Veículo Leve 53 kw | C66: mês | D66: 1 | E66: 44 | F66: 176 | G66: =$G$35 -> 36.806 | H66: =$H$35 -> 6.6541 | I66: =((E66*G66)+(F66*H66))*D66 -> 2790.5856
H67: Subtotal do Item 3.2 | I67: =SUM(I66:I66) -> 2790.5856
H68: Total da Equipe de Produção de Pavimentação | I68: =I67+H63 -> 11061.5561
A70: Composição de custo da equipe de produção de drenagem
A71: Código | B71: Discriminação | C71: Unidade | D71: Quantidade | F71: Custo Unitário (R$) | H71: Custo Total (R$)
B72: Equipe de Produção de Pavimentação
A73: 3.1 | B73: Mão de Obra
A74: P9811 | B74: =VLOOKUP(A74,'Pessoal Sicro'!$A$6:$F$106,2,FALSE) -> Encarregado especializado | C74: mês | D74: 0.5 | F74: =VLOOKUP(A74,'Pessoal Sicro'!$A$6:$G$106,6,0) -> 8270.9705 | H74: =F74*D74 -> 4135.48525
F75: Subtotal do Item 3.1 | H75: =SUM(H74:H74) -> 4135.48525
A76: Código | B76: Discriminação | C76: Unidade | D76: Quantidade | E76: Utilização Produtiva | F76: Utilização Improdutiva | G76: Custo Horário Produtivo (R$) | H76: Custo Horário Improdutivo (R$) | I76: Custo Total (R$)
A77: 3.2 | B77: Veículos
B78: Veículo Leve 53 kw | C78: mês | D78: 0.5 | E78: 44 | F78: 176 | G78: =$G$35 -> 36.806 | H78: =$H$35 -> 6.6541 | I78: =((E78*G78)+(F78*H78))*D78 -> 1395.2928
H79: Subtotal do Item 3.2 | I79: =SUM(I78:I78) -> 1395.2928
H80: Total da Equipe de Produção de Pavimentação | I80: =I79+H75 -> 5530.77805
A82: Composição de custo da equipe de produção de sinalização
A83: Código | B83: Discriminação | C83: Unidade | D83: Quantidade | F83: Custo Unitário (R$) | H83: Custo Total (R$)
B84: Equipe de Produção de Pavimentação
A85: 3.1 | B85: Mão de Obra
A86: P9811 | B86: =VLOOKUP(A86,'Pessoal Sicro'!$A$6:$F$106,2,FALSE) -> Encarregado especializado | C86: mês | D86: 0.5 | F86: =VLOOKUP(A86,'Pessoal Sicro'!$A$6:$G$106,6,0) -> 8270.9705 | H86: =F86*D86 -> 4135.48525
F87: Subtotal do Item 3.1 | H87: =SUM(H86:H86) -> 4135.48525
A88: Código | B88: Discriminação | C88: Unidade | D88: Quantidade | E88: Utilização Produtiva | F88: Utilização Improdutiva | G88: Custo Horário Produtivo (R$) | H88: Custo Horário Improdutivo (R$) | I88: Custo Total (R$)
A89: 3.2 | B89: Veículos
B90: Veículo Leve 53 kw | C90: mês | D90: 0.5 | E90: 44 | F90: 176 | G90: =$G$35 -> 36.806 | H90: =$H$35 -> 6.6541 | I90: =((E90*G90)+(F90*H90))*D90 -> 1395.2928
H91: Subtotal do Item 3.2 | I91: =SUM(I90:I90) -> 1395.2928
H92: Total da Equipe de Produção de Pavimentação | I92: =I91+H87 -> 5530.77805
A94: Composição de custo da equipe topografia
A95: Código | B95: Discriminação | C95: Unidade | D95: Quantidade | F95: Custo Unitário (R$) | H95: Custo Total (R$)
B96: Equipe de Topografia
A97: 3.1 | B97: Mão de Obra
A98: P9949 | B98: Topógrafo | C98: mês | D98: 1 | F98: =VLOOKUP(A98,'Pessoal Sicro'!$A$6:$G$106,6,0) -> 8757.2734 | H98: =F98*D98 -> 8757.2734
A99: P9950 | B99: Auxiliar de topografia | C99: mês | D99: 1 | F99: =VLOOKUP(A99,'Pessoal Sicro'!$A$6:$G$106,6,0) -> 5667.1287 | H99: =F99*D99 -> 5667.1287
F100: Subtotal do Item 3.1 | H100: =SUM(H98:I99) -> 14424.4021
A101: Código | B101: Discriminação | C101: Unidade | D101: Quantidade | E101: Utilização Produtiva | F101: Utilização Improdutiva | G101: Custo Horário Produtivo (R$) | H101: Custo Horário Improdutivo (R$) | I101: Custo Total (R$)
A102: 3.2 | B102: Veículos
B103: Veículo Leve 53 kw | C103: mês | D103: 1 | E103: 44 | F103: 176 | G103: =G35 -> 36.806 | H103: =H35 -> 6.6541 | I103: =((E103*G103)+(F103*H103))*D103 -> 2790.5856
H104: Subtotal do Item 3.2 | I104: =SUM(I103:I103) -> 2790.5856
H105: Total da Equipe de Produção de Topografia | I105: =I104+H100 -> 17214.9877
A107: Composição de custo do setor de medicina e segurança do trabalho
A108: Código | B108: Discriminação | C108: Unidade | D108: Quantidade | F108: Custo Unitário (R$) | H108: Custo Total (R$)
A109: 4 | B109: Setor de Medicina e Segurança do Trabalho
A110: P9876 | B110: =VLOOKUP(A110,'Pessoal Sicro'!$A$6:$F$106,2,FALSE) -> Técnico de segurança do trabalho | C110: mês | D110: 1 | F110: =VLOOKUP(A110,'Pessoal Sicro'!$A$6:$G$106,6,0) -> 7298.4723 | H110: =F110*D110 -> 7298.4723
A111: P9864 | B111: =VLOOKUP(A111,'Pessoal Sicro'!$A$6:$F$106,2,FALSE) -> Engenheiro de segurança do trabalho | C111: mês | D111: 0 | F111: =VLOOKUP(A111,'Pessoal Sicro'!$A$6:$G$106,6,0) -> 24420.804 | H111: =F111*D111 -> 0
A112: P9851 | B112: =VLOOKUP(A112,'Pessoal Sicro'!$A$6:$F$106,2,FALSE) -> Médico do trabalho | C112: mês | D112: 0 | F112: =VLOOKUP(A112,'Pessoal Sicro'!$A$6:$G$106,6,0) -> 18575.8219 | H112: =F112*D112 -> 0
A113: P9951 | B113: =VLOOKUP(A113,'Pessoal Sicro'!$A$6:$F$106,2,FALSE) -> Médico de câmara hiperbárica | C113: mês | D113: 0 | F113: =VLOOKUP(A113,'Pessoal Sicro'!$A$6:$G$106,6,0) -> 21148.057 | H113: =F113*D113 -> 0
F114: Subtotal do Item 4 | H114: =SUM(H110:I113) -> 7298.4723
A116: Parcela Variável - Composição de custo da equipe de frente de serviço
A117: Código | B117: Discriminação | C117: Unidade | D117: Quantidade | F117: Custo Unitário (R$) | H117: Custo Total (R$)
A118: 5 | B118: Equipe de Frente de Serviço | C118: equipexmês
A119: P9875 | B119: =VLOOKUP(A119,'Pessoal Sicro'!$A$6:$F$106,2,FALSE) -> Encarregado de turma | C119: mês | D119: 1 | F119: =VLOOKUP(A119,'Pessoal Sicro'!$A$6:$G$106,6,0) -> 5828.315 | H119: =F119*D119 -> 5828.315
A120: P9804 | B120: =VLOOKUP(A120,'Pessoal Sicro'!$A$6:$F$106,2,FALSE) -> Apontador | C120: mês | D120: 0.5 | F120: =VLOOKUP(A120,'Pessoal Sicro'!$A$6:$G$106,6,0) -> 5108.5086 | H120: =F120*D120 -> 2554.2543
F121: Subtotal do Item 5 | H121: =SUM(H119:I120) -> 8382.5693
A123: Parcela Variável - Composição de custo da equipe de frente de serviço (Terraplenagem) - Somente Compactação
A124: Código | B124: Discriminação | C124: Unidade | D124: Quantidade | F124: Produção Horária (und/h) | H124: Efs
A125: 5.1 | B125: Equipe de Frente de Serviço | C125: equipexmês
C126: mês | H126: =(D126)/(F126*182.49) -> 
C127: mês | H127: =(D127)/(F127*182.49) -> 
C128: mês | H128: =(D128)/(F128*182.49) -> 
F129: Total de Equipes para Terraplenagem | H129: =SUM(H128:I128) -> 
A131: Parcela Variável - Composição de custo da acompanhamento das frentes de serviço de pavimentação
A132: Código | B132: Discriminação | C132: Unidade | D132: Quantidade | F132: Produção Horária (und/h) | H132: Efs
A133: 5.2 | B133: Equipe de Frente de Serviço | C133: equipe x mês
A134: 4915637 | B134: Capa selante - areia comercial | C134: m² | D134: ='MODULO MINIMO'!J22 -> 14000 | F134: 1350 | H134: =(D134)/(F134*182.49) -> 0.05682706105
A135: 4011370 | B135: Tratamento superficial duplo com emulsão - brita comercial | C135: m² | D135: ='MODULO MINIMO'!J23 -> 14000 | F135: 361.93 | H135: 0.2119651104
A136: 4011352 | B136: Imprimação com emulsão asfáltica | C136: m² | D136: ='MODULO MINIMO'!J24 -> 14000 | F136: 1038.46 | H136: 0.07387528881
A137: 4011219 | B137: Base de solo estabilizado granulometricamente sem mistura com material de jazida - 100% Proctor modificado | C137: m³ | D137: ='MODULO MINIMO'!J25 -> 2100 | F137: 112.13 | H137: 0.1026262362
A138: 4011227 | B138: Sub-base de solo estabilizado granulometricamente sem mistura com material de jazida - 100% Proctor intermediário | C138: m³ | D138: ='MODULO MINIMO'!J26 -> 2100 | F138: 134.56 | H138: 0.08551932121
A139: 4011209 | B139: Regularização do subleito - 100% Proctor intermediário | C139: m² | D139: ='MODULO MINIMO'!J27 -> 14000 | F139: 672.8 | H139: 0.1140257616
F140: Total de Equipes para Pavimentação | H140: =SUM(H134:I139) -> 0.6448387793
A142: Parcela Variável - Composição de custo da acompanhamento das frentes de serviço de drenagem
A143: Código | B143: Discriminação | C143: Unidade | D143: Quantidade | F143: Efsdu | H143: Efs
A144: 5.3 | B144: Frentes de Serviço para Drenagem | C144: equipe x mês
A145: ='MODULO MINIMO'!D39 -> 2003373 | B145: Meio-fio de concreto - MFC 03 - areia e brita comerciais - fôrma de madeira | C145: m | D145: ='MODULO MINIMO'!J39 -> 4000 | F145: 0.00021 | H145: =D145*F145 -> 0.84
F146: Total de Equipes para Drenagem | H146: =H145 -> 0.84
A148: Parcela Variável - Composição de custo da acompanhamento das frentes de serviço de sinalização
A149: Código | B149: Discriminação | C149: Unidade | D149: Quantidade | F149: Produção Horária (und/h) | H149: Efs
A150: 5.4 | B150: Frentes de Serviço para Sinalização | C150: equipe x mês
A151: 5213440 | B151: =VLOOKUP(A151,'SINTÉTICO SICRO'!A4:D6492,2,TRUE) -> Barreira de sinalização tipo III de direcionamento ou bloqueio - utilização de 150 ciclos - fornecimento, 01 implantação e 01 retirada diária | C151: ='MODULO MINIMO'!I34 -> und | D151: ='MODULO MINIMO'!J34 -> 6 | F151: 3 | H151: =0.2*((D151)/(F151*182.49)) -> 0.002191900926
A152: 5213464 | B152: =VLOOKUP(A152,'SINTÉTICO SICRO'!$A$4:$D$6373,2,0) -> Placa de advertência em aço, lado de 0,60 m - película retrorrefletiva tipo I + SI - fornecimento e implantação | C152: ='MODULO MINIMO'!I35 -> und | D152: ='MODULO MINIMO'!J35 -> 6 | F152: 4.1 | H152: =0.2*((D152)/(F152*182.49)) -> 0.001603829946
A153: 5213863 | B153: =VLOOKUP(A153,'SINTÉTICO SICRO'!$A$4:$D$6373,2,0) -> Suporte metálico galvanizado para placa de advertência ou regulamentação - lado ou diâmetro de 0,60 m - fornecimento e implantação | C153: ='MODULO MINIMO'!I36 -> und | D153: ='MODULO MINIMO'!J36 -> 12 | F153: 4.1 | H153: =0.2*((D153)/(F153*182.49)) -> 0.003207659892
A154: 5213400 | B154: =VLOOKUP(A154,'SINTÉTICO SICRO'!$A$4:$D$6373,2,0) -> Pintura de faixa com tinta acrílica - espessura de 0,4 mm | C154: ='MODULO MINIMO'!I37 -> m² | D154: ='MODULO MINIMO'!J37 -> 600 | F154: 177.07 | H154: 0.003713617653
F155: Total de Equipes para Sinalização | H155: =SUM(H151:I154) -> 0.01071700842 | J155: =H155+H146 -> 0.8507170084
A157: 3. PARCELA VARIÁVEL - EQUIPE DE CONTROLE TECNOLÓGICO
A158: LABORATÓRIO DE SOLOS
A159: Item | B159: Discriminação | F159: Unidade | G159: Quantidade | H159: Custo Unitário (R$) | I159: Custo Total (R$)
B160: Laboratório de Solos (equipe x mês)
B161: Mão de Obra
A162: P9858 | B162: =VLOOKUP(A162,'Pessoal Sicro'!$A$6:$F$106,2,FALSE) -> Laboratorista | F162: func./mês | G162: 1 | H162: =VLOOKUP(A162,'Pessoal Sicro'!$A$6:$G$106,6,0) -> 7399.543 | I162: =TRUNC(G162*H162,2) -> 7399.54
A163: P9833 | B163: =VLOOKUP(A163,'Pessoal Sicro'!$A$6:$F$106,2,FALSE) -> Auxiliar de laboratório | F163: func./mês | G163: 1 | H163: =VLOOKUP(A163,'Pessoal Sicro'!$A$6:$G$106,6,0) -> 5646.9455 | I163: =TRUNC(G163*H163,2) -> 5646.94
H164: Subtotal do Item | I164: =SUM(I162:I163) -> 13046.48
A165: Item | B165: Discriminação | C165: Und | D165: Quant | E165: Utilização Produtiva | F165: Utilização Improdutiva | G165: Horário Produtivo (R$) | H165: Horário Improdutivo (R$) | I165: Total (R$)
B166: Equipe de Controle Tecnológico
B167: Veículos
A168: E9125 | B168: Van furgão a diesel - 93 kW | C168: veic./mês | D168: 0.5 | E168: 44 | F168: 176 | G168: =VLOOKUP(A168,Equipamentos!$A$4:$K$533,10,0) -> 86.9558 | H168: =VLOOKUP(A168,Equipamentos!$A$4:$K$533,11,0) -> 47.8666 | I168: =D168*((E168*G168)+(F168*H168)) -> 6125.2884
H169: Subtotal do Item | I169: =SUM(I168:I168) -> 6125.2884
H170: Total da Equipe do Laboratório de Solos | I170: =I164+I169 -> 19171.7684
A172: 3. PARCELA VARIÁVEL - EQUIPE DE CONTROLE TECNOLÓGICO
A173: LABORATÓRIO DE ASFALTOS
A174: Item | B174: Discriminação | F174: Unidade | G174: Quantidade | H174: Custo Unitário (R$) | I174: Custo Total (R$)
B175: Laboratório de Solos (equipe x mês)
B176: Mão de Obra
A177: P9858 | B177: Laboratorista | F177: func./mês | G177: 0.5 | H177: =VLOOKUP(A177,'Pessoal Sicro'!$A$6:$G$106,6,0) -> 7399.543 | I177: =TRUNC(G177*H177,2) -> 3699.77
A178: P9833 | B178: Auxiliar de laboratório | F178: func./mês | G178: 0.5 | H178: =VLOOKUP(A178,'Pessoal Sicro'!$A$6:$G$106,6,0) -> 5646.9455 | I178: =TRUNC(G178*H178,2) -> 2823.47
H179: Subtotal do Item | I179: =SUM(I177:I178) -> 6523.24
A180: Item | B180: Discriminação | C180: Und | D180: Quant | E180: Utilização Produtiva | F180: Utilização Improdutiva | G180: Horário Produtivo (R$) | H180: Horário Improdutivo (R$) | I180: Total (R$)
B181: Equipe de Controle Tecnológico
B182: Veículos
A183: E9125 | B183: =VLOOKUP(A183,Equipamentos!$A:$K,2,FALSE) -> Veículo tipo van furgão com capacidade de 1,38 t - 100 kW | C183: veic./mês | D183: 0.25 | E183: 44 | F183: 176 | G183: =VLOOKUP(A183,Equipamentos!$A$4:$K$533,10,0) -> 86.9558 | H183: =VLOOKUP(A183,Equipamentos!$A$4:$K$533,11,0) -> 47.8666 | I183: =D183*((E183*G183)+(F183*H183)) -> 3062.6442
H184: Subtotal do Item | I184: =SUM(I183:I183) -> 3062.6442
H185: Total da Equipe do Laboratório de Asfaltos | I185: =I179+I184 -> 9585.8842
A187: Equipes de laboratório de solos para pavimentação
A188: Item | B188: Discriminação | F188: Und | G188: Quant | H188: QE | I188: Els
A189: 4011221 | B189: =VLOOKUP(A189,'SINTÉTICO SICRO'!A:D,2,0) -> Base estabilizada granulometricamente com mistura de solos na pista com material de jazida - 100% Proctor modificado | F189: =VLOOKUP(A189,'SINTÉTICO SICRO'!A:D,3,0) -> m³ | G189: ='MODULO MINIMO'!J25 -> 2100 | H189: 21900 | I189: =G189/H189 -> 0.09589041096
A190: 4011227 | B190: =VLOOKUP(A190,'SINTÉTICO SICRO'!A:D,2,0) -> Sub-base de solo estabilizado granulometricamente sem mistura com material de jazida - 100% Proctor intermediário | F190: =VLOOKUP(A190,'SINTÉTICO SICRO'!A:D,3,0) -> m³ | G190: ='MODULO MINIMO'!J26 -> 2100 | H190: 21900 | I190: =G190/H190 -> 0.09589041096
H191: Total de equipes de Laboratório de Solos para Pavimentação | I191: =SUM(I189:I190) -> 0.1917808219
A193: Equipes de laboratório de Asfalto
A194: Item | B194: Discriminação | F194: Und | G194: Quant | H194: QE | I194: Ela
A195: ='MODULO MINIMO'!D23 -> 4011370 | B195: =VLOOKUP(A195,'SINTÉTICO SICRO'!A:D,2,0) -> Tratamento superficial duplo com emulsão - brita comercial | F195: =VLOOKUP(A195,'SINTÉTICO SICRO'!A:D,3,0) -> m² | G195: ='MODULO MINIMO'!J23 -> 14000 | H195: 1610000 | I195: =G195/H195 -> 0.008695652174
A196: ='MODULO MINIMO'!D24 -> 4011352 | B196: =VLOOKUP(A196,'SINTÉTICO SICRO'!A:D,2,0) -> Imprimação com emulsão asfáltica | F196: =VLOOKUP(A196,'SINTÉTICO SICRO'!A:D,3,0) -> m² | G196: ='MODULO MINIMO'!J24 -> 14000 | H196: 3610000 | I196: =G196/H196 -> 0.003878116343
H197: Total de equipes de Laboratório de Asfaltos | I197: =SUM(I195:I196) -> 0.01257376852
A199: manutenção do canteiro de obras e acampamentos
A200: Código | B200: Discriminação | C200: Unidade | D200: Quantidade | F200: Custo Unitário (R$) | H200: Custo Total (R$)
B201: Manutenção do Canteiro de Obras e Acampamentos
A202: 6.1 | B202: Mão de Obra
A203: P9952 | B203: Pedreiro | C203: mês | D203: 0 | F203: =VLOOKUP(A203,'Pessoal Sicro'!$A$6:$G$106,6,0) -> 5108.1604 | H203: =F203*D203 -> 0
A204: P9954 | B204: Servente | C204: mês | D204: 0 | F204: =VLOOKUP(A204,'Pessoal Sicro'!$A$6:$G$106,6,0) -> 3953.259 | H204: =F204*D204 -> 0
A205: P9953 | B205: Eletricista | C205: mês | D205: 0 | F205: =VLOOKUP(A205,'Pessoal Sicro'!$A$6:$G$106,6,0) -> 5593.9461 | H205: =F205*D205 -> 0
F206: Subtotal do Item 6.1 | H206: =SUM(H203:I205) -> 0
A208: Código | B208: Discriminação | C208: Unidade | D208: Quantidade | F208: Custo Produtivo (R$) | H208: Custo Total (R$)
A209: 6.2 | B209: Equipamentos
B210: Caminhão guindauto de 6 toneladas | C210: h/mês | D210: 0 | H210: =F210*D210 -> 0
B211: Caminhão tanque de 8.000 litros | C211: h/mês | D211: 0 | H211: =F211*D211 -> 0
A212: E9524 | B212: Motoniveladora | C212: h/mês | D212: 0 | F212: =VLOOKUP(A212,Equipamentos!$A:$K,10,FALSE) -> 282.1718 | H212: =F212*D212 -> 0
F213: Subtotal do Item 6.2 | H213: =SUM(H210:I212) -> 0
G214: Total da Manutenção do Canteiro de Obras e Acampamentos | H214: =H213+H206 -> 0
A218: Resumo das parcelas de administração local
A219: Código | B219: Discriminação | C219: Unidade | D219: Quantidade | F219: Custo Unitário (R$) | H219: Custo Total (R$)
B220: Parcela Fixa
B221: Mão de Obra | C221: mês | D221: 4 | F221: =H11+H15+H23+H27 -> 31462.75058 | H221: =F221*D221 -> 125851.0023
... 31 more rows

Sheet SINTÉTICO SICRO (hidden)
A1: CGCIT | B1: SISTEMA DE CUSTOS REFERENCIAIS DE OBRAS - SICRO | D1: DNIT
B2: Maranhão - Abril/2025
A3: Código | B3: Descrição do Serviço | C3: Unidade | D3: Custo Unitário (R$)
A4: 307731 | B4: Aparelho de apoio de neoprene fretado para estruturas moldadas no local - fornecimento e instalação | C4: dm³ | D4: 144.67
A5: 307732 | B5: Aparelho de apoio de neoprene fretado para estruturas pré-moldadas - fornecimento e instalação | C5: dm³ | D5: 119.32
A6: 308308 | B6: Aparelho de apoio metálico elastomérico fixo com capacidade de 1.500 kN - fornecimento e instalação | C6: un | D6: 5439.44
A7: 308313 | B7: Aparelho de apoio metálico elastomérico fixo com capacidade de 10.000 kN - fornecimento e instalação | C7: un | D7: 33653.53
A8: 308309 | B8: Aparelho de apoio metálico elastomérico fixo com capacidade de 2.500 kN - fornecimento e instalação | C8: un | D8: 8981.91
A9: 308310 | B9: Aparelho de apoio metálico elastomérico fixo com capacidade de 4.000 kN - fornecimento e instalação | C9: un | D9: 12215.66
A10: 308311 | B10: Aparelho de apoio metálico elastomérico fixo com capacidade de 5.500 kN - fornecimento e instalação | C10: un | D10: 17236.75
A11: 308312 | B11: Aparelho de apoio metálico elastomérico fixo com capacidade de 7.500 kN - fornecimento e instalação | C11: un | D11: 24032.69
A12: 308307 | B12: Aparelho de apoio metálico elastomérico fixo com capacidade de 700 kN - fornecimento e instalação | C12: un | D12: 3302.89
A13: 308322 | B13: Aparelho de apoio metálico elastomérico multidirecional com capacidade de 1.500 kN - fornecimento e instalação | C13: un | D13: 4960
A14: 308327 | B14: Aparelho de apoio metálico elastomérico multidirecional com capacidade de 10.000 kN - fornecimento e instalação | C14: un | D14: 29987.78
A15: 308323 | B15: Aparelho de apoio metálico elastomérico multidirecional com capacidade de 2.500 kN - fornecimento e instalação | C15: un | D15: 7693.57
A16: 308324 | B16: Aparelho de apoio metálico elastomérico multidirecional com capacidade de 4.000 kN - fornecimento e instalação | C16: un | D16: 11378.13
A17: 308325 | B17: Aparelho de apoio metálico elastomérico multidirecional com capacidade de 5.500 kN - fornecimento e instalação | C17: un | D17: 16043.05
A18: 308326 | B18: Aparelho de apoio metálico elastomérico multidirecional com capacidade de 7.500 kN - fornecimento e instalação | C18: un | D18: 22241.75
A19: 308321 | B19: Aparelho de apoio metálico elastomérico multidirecional com capacidade de 700 kN - fornecimento e instalação | C19: un | D19: 4674.85
A20: 308315 | B20: Aparelho de apoio metálico elastomérico unidirecional com capacidade de 1.500 kN - fornecimento e instalação | C20: un | D20: 6400.69
A21: 308320 | B21: Aparelho de apoio metálico elastomérico unidirecional com capacidade de 10.000 kN - fornecimento e instalação | C21: un | D21: 45421.25
A22: 308316 | B22: Aparelho de apoio metálico elastomérico unidirecional com capacidade de 2.500 kN - fornecimento e instalação | C22: un | D22: 9189.56
A23: 308317 | B23: Aparelho de apoio metálico elastomérico unidirecional com capacidade de 4.000 kN - fornecimento e instalação | C23: un | D23: 17730.75
A24: 308318 | B24: Aparelho de apoio metálico elastomérico unidirecional com capacidade de 5.500 kN - fornecimento e instalação | C24: un | D24: 23328.73
A25: 308319 | B25: Aparelho de apoio metálico elastomérico unidirecional com capacidade de 7.500 kN - fornecimento e instalação | C25: un | D25: 25784.43
A26: 308314 | B26: Aparelho de apoio metálico elastomérico unidirecional com capacidade de 700 kN - fornecimento e instalação | C26: un | D26: 4699.34
A27: 308250 | B27: Aparelho de apoio metálico esférico fixo com capacidade de 1.000 kN - fornecimento e instalação | C27: un | D27: 7404.4
A28: 308251 | B28: Aparelho de apoio metálico esférico fixo com capacidade de 1.500 kN - fornecimento e instalação | C28: un | D28: 11522.12
A29: 308268 | B29: Aparelho de apoio metálico esférico fixo com capacidade de 10.000 kN - fornecimento e instalação | C29: un | D29: 75527.52
A30: 308252 | B30: Aparelho de apoio metálico esférico fixo com capacidade de 2.000 kN - fornecimento e instalação | C30: un | D30: 13371.22
A31: 308253 | B31: Aparelho de apoio metálico esférico fixo com capacidade de 2.500 kN - fornecimento e instalação | C31: un | D31: 16196.23
A32: 308254 | B32: Aparelho de apoio metálico esférico fixo com capacidade de 3.000 kN - fornecimento e instalação | C32: un | D32: 19063.91
A33: 308255 | B33: Aparelho de apoio metálico esférico fixo com capacidade de 3.500 kN - fornecimento e instalação | C33: un | D33: 22328.15
A34: 308256 | B34: Aparelho de apoio metálico esférico fixo com capacidade de 4.000 kN - fornecimento e instalação | C34: un | D34: 29978.21
A35: 308257 | B35: Aparelho de apoio metálico esférico fixo com capacidade de 4.500 kN - fornecimento e instalação | C35: un | D35: 32350.6
A36: 308258 | B36: Aparelho de apoio metálico esférico fixo com capacidade de 5.000 kN - fornecimento e instalação | C36: un | D36: 36124.74
A37: 308259 | B37: Aparelho de apoio metálico esférico fixo com capacidade de 5.500 kN - fornecimento e instalação | C37: un | D37: 38184.64
A38: 308260 | B38: Aparelho de apoio metálico esférico fixo com capacidade de 6.000 kN - fornecimento e instalação | C38: un | D38: 42973.94
A39: 308261 | B39: Aparelho de apoio metálico esférico fixo com capacidade de 6.500 kN - fornecimento e instalação | C39: un | D39: 46400.88
A40: 308262 | B40: Aparelho de apoio metálico esférico fixo com capacidade de 7.000 kN - fornecimento e instalação | C40: un | D40: 54990.04
A41: 308263 | B41: Aparelho de apoio metálico esférico fixo com capacidade de 7.500 kN - fornecimento e instalação | C41: un | D41: 55045.13
A42: 308264 | B42: Aparelho de apoio metálico esférico fixo com capacidade de 8.000 kN - fornecimento e instalação | C42: un | D42: 57441.7
A43: 308265 | B43: Aparelho de apoio metálico esférico fixo com capacidade de 8.500 kN - fornecimento e instalação | C43: un | D43: 58998.32
A44: 308266 | B44: Aparelho de apoio metálico esférico fixo com capacidade de 9.000 kN - fornecimento e instalação | C44: un | D44: 67797.01
A45: 308267 | B45: Aparelho de apoio metálico esférico fixo com capacidade de 9.500 kN - fornecimento e instalação | C45: un | D45: 71921.32
A46: 308288 | B46: Aparelho de apoio metálico esférico multidirecional com capacidade de 1.000 kN - fornecimento e instalação | C46: un | D46: 8316.6
A47: 308289 | B47: Aparelho de apoio metálico esférico multidirecional com capacidade de 1.500 kN - fornecimento e instalação | C47: un | D47: 11521.46
A48: 308306 | B48: Aparelho de apoio metálico esférico multidirecional com capacidade de 10.000 kN - fornecimento e instalação | C48: un | D48: 74486.44
A49: 308290 | B49: Aparelho de apoio metálico esférico multidirecional com capacidade de 2.000 kN - fornecimento e instalação | C49: un | D49: 15094.65
A50: 308291 | B50: Aparelho de apoio metálico esférico multidirecional com capacidade de 2.500 kN - fornecimento e instalação | C50: un | D50: 18052.14
A51: 308292 | B51: Aparelho de apoio metálico esférico multidirecional com capacidade de 3.000 kN - fornecimento e instalação | C51: un | D51: 20843.08
A52: 308293 | B52: Aparelho de apoio metálico esférico multidirecional com capacidade de 3.500 kN - fornecimento e instalação | C52: un | D52: 23566.01
A53: 308294 | B53: Aparelho de apoio metálico esférico multidirecional com capacidade de 4.000 kN - fornecimento e instalação | C53: un | D53: 26714.16
A54: 308295 | B54: Aparelho de apoio metálico esférico multidirecional com capacidade de 4.500 kN - fornecimento e instalação | C54: un | D54: 30827.5
A55: 308296 | B55: Aparelho de apoio metálico esférico multidirecional com capacidade de 5.000 kN - fornecimento e instalação | C55: un | D55: 34324.97
A56: 308297 | B56: Aparelho de apoio metálico esférico multidirecional com capacidade de 5.500 kN - fornecimento e instalação | C56: un | D56: 37162.67
A57: 308298 | B57: Aparelho de apoio metálico esférico multidirecional com capacidade de 6.000 kN - fornecimento e instalação | C57: un | D57: 43054.53
A58: 308299 | B58: Aparelho de apoio metálico esférico multidirecional com capacidade de 6.500 kN - fornecimento e instalação | C58: un | D58: 46497.98
A59: 308300 | B59: Aparelho de apoio metálico esférico multidirecional com capacidade de 7.000 kN - fornecimento e instalação | C59: un | D59: 50030.47
A60: 308301 | B60: Aparelho de apoio metálico esférico multidirecional com capacidade de 7.500 kN - fornecimento e instalação | C60: un | D60: 53959.06
A61: 308302 | B61: Aparelho de apoio metálico esférico multidirecional com capacidade de 8.000 kN - fornecimento e instalação | C61: un | D61: 58051.93
A62: 308303 | B62: Aparelho de apoio metálico esférico multidirecional com capacidade de 8.500 kN - fornecimento e instalação | C62: un | D62: 63299.66
A63: 308304 | B63: Aparelho de apoio metálico esférico multidirecional com capacidade de 9.000 kN - fornecimento e instalação | C63: un | D63: 66877.65
A64: 308305 | B64: Aparelho de apoio metálico esférico multidirecional com capacidade de 9.500 kN - fornecimento e instalação | C64: un | D64: 70948.44
A65: 308269 | B65: Aparelho de apoio metálico esférico unidirecional com capacidade de 1.000 kN - fornecimento e instalação | C65: un | D65: 11068.65
A66: 308270 | B66: Aparelho de apoio metálico esférico unidirecional com capacidade de 1.500 kN - fornecimento e instalação | C66: un | D66: 14983.79
A67: 308287 | B67: Aparelho de apoio metálico esférico unidirecional com capacidade de 10.000 kN - fornecimento e instalação | C67: un | D67: 82204.69
A68: 308271 | B68: Aparelho de apoio metálico esférico unidirecional com capacidade de 2.000 kN - fornecimento e instalação | C68: un | D68: 18262.42
A69: 308272 | B69: Aparelho de apoio metálico esférico unidirecional com capacidade de 2.500 kN - fornecimento e instalação | C69: un | D69: 21677.79
A70: 308273 | B70: Aparelho de apoio metálico esférico unidirecional com capacidade de 3.000 kN - fornecimento e instalação | C70: un | D70: 24786.51
A71: 308274 | B71: Aparelho de apoio metálico esférico unidirecional com capacidade de 3.500 kN - fornecimento e instalação | C71: un | D71: 28732.63
A72: 308275 | B72: Aparelho de apoio metálico esférico unidirecional com capacidade de 4.000 kN - fornecimento e instalação | C72: un | D72: 32131.67
A73: 308276 | B73: Aparelho de apoio metálico esférico unidirecional com capacidade de 4.500 kN - fornecimento e instalação | C73: un | D73: 36857.74
A74: 308277 | B74: Aparelho de apoio metálico esférico unidirecional com capacidade de 5.000 kN - fornecimento e instalação | C74: un | D74: 41619.11
A75: 308278 | B75: Aparelho de apoio metálico esférico unidirecional com capacidade de 5.500 kN - fornecimento e instalação | C75: un | D75: 44111.35
A76: 308279 | B76: Aparelho de apoio metálico esférico unidirecional com capacidade de 6.000 kN - fornecimento e instalação | C76: un | D76: 49326.86
A77: 308280 | B77: Aparelho de apoio metálico esférico unidirecional com capacidade de 6.500 kN - fornecimento e instalação | C77: un | D77: 52820.66
A78: 308281 | B78: Aparelho de apoio metálico esférico unidirecional com capacidade de 7.000 kN - fornecimento e instalação | C78: un | D78: 56740.81
A79: 308282 | B79: Aparelho de apoio metálico esférico unidirecional com capacidade de 7.500 kN - fornecimento e instalação | C79: un | D79: 60879.54
A80: 308283 | B80: Aparelho de apoio metálico esférico unidirecional com capacidade de 8.000 kN - fornecimento e instalação | C80: un | D80: 64721.27
A81: 308284 | B81: Aparelho de apoio metálico esférico unidirecional com capacidade de 8.500 kN - fornecimento e instalação | C81: un | D81: 69722.1
A82: 308285 | B82: Aparelho de apoio metálico esférico unidirecional com capacidade de 9.000 kN - fornecimento e instalação | C82: un | D82: 73815.39
A83: 308286 | B83: Aparelho de apoio metálico esférico unidirecional com capacidade de 9.500 kN - fornecimento e instalação | C83: un | D83: 78059.56
A84: 307733 | B84: Junta de dilatação em elastômero e perfil VV - L = 20 mm e H = 40 mm - fornecimento e instalação | C84: m | D84: 271.1
A85: 307734 | B85: Junta de dilatação em elastômero e perfil VV - L = 25 mm e H = 50 mm - fornecimento e instalação | C85: m | D85: 319.83
A86: 307735 | B86: Junta de dilatação em elastômero e perfil VV - L = 35 mm e H = 60 mm - fornecimento e instalação | C86: m | D86: 419.5
A87: 307736 | B87: Junta de dilatação em elastômero e perfil VV - L = 40 mm e H = 70 mm - fornecimento e instalação | C87: m | D87: 559.46
A88: 307737 | B88: Junta de dilatação em elastômero e perfil VV - L = 50 mm e H = 80 mm - fornecimento e instalação | C88: m | D88: 589.68
A89: 307730 | B89: Junta de dilatação em perfil extrudado de borracha vulcanizada | C89: m | D89: 0
A90: 307084 | B90: Lábios poliméricos em junta de pavimento de concreto - L = 20 mm e H = 30 mm - confecção e assentamento | C90: m | D90: 35.32
A91: 407818 | B91: Armação em aço CA-25 - fornecimento, preparo e colocação | C91: kg | D91: 11.86
A92: 407819 | B92: Armação em aço CA-50 - fornecimento, preparo e colocação | C92: kg | D92: 12.18
A93: 407820 | B93: Armação em aço CA-60 - fornecimento, preparo e colocação | C93: kg | D93: 13.46
A94: 407740 | B94: Chumbador tipo espera em aço CA-25 para fixação de estrutura metálica em concreto - fornecimento e instalação | C94: kg | D94: 14.86
A95: 408037 | B95: Luva de emenda com rosca cônica para aço CA-50 - D = 12,5 mm - fornecimento e instalação | C95: un | D95: 19.93
A96: 408038 | B96: Luva de emenda com rosca cônica para aço CA-50 - D = 16 mm - fornecimento e instalação | C96: un | D96: 30.74
A97: 408039 | B97: Luva de emenda com rosca cônica para aço CA-50 - D = 20 mm - fornecimento e instalação | C97: un | D97: 42.4
A98: 408041 | B98: Luva de emenda com rosca cônica para aço CA-50 - D = 25 mm - fornecimento e instalação | C98: un | D98: 54.37
A99: 408042 | B99: Luva de emenda com rosca cônica para aço CA-50 - D = 32 mm - fornecimento e instalação | C99: un | D99: 78.64
A100: 408031 | B100: Luva de emenda prensada para aço CA-50 - D = 12,5 mm - fornecimento e instalação | C100: un | D100: 21.85
A101: 408032 | B101: Luva de emenda prensada para aço CA-50 - D = 16 mm - fornecimento e instalação | C101: un | D101: 29.76
A102: 408033 | B102: Luva de emenda prensada para aço CA-50 - D = 20 mm - fornecimento e instalação | C102: un | D102: 40.69
A103: 408035 | B103: Luva de emenda prensada para aço CA-50 - D = 25 mm - fornecimento e instalação | C103: un | D103: 69.28
A104: 408036 | B104: Luva de emenda prensada para aço CA-50 - D = 32 mm - fornecimento e instalação | C104: un | D104: 154.12
A105: 408067 | B105: Tela de aço eletrossoldada - fornecimento, preparo e colocação | C105: kg | D105: 10.9
A106: 407743 | B106: Treliça nervurada três barras longitudinais interligadas por duas diagonais sinusoidal - fornecimento e instalação | C106: kg | D106: 11.54
A107: 607137 | B107: Arco metálico galvanizado tipo MP 152S - arco alto - vão = 10,08 m e altura = 6,12 m - aterro rodoviário mínimo = 0,90 m e máximo = 5,00 m - areia e brita comerciais | C107: m | D107: 55592.11
A108: 606785 | B108: Arco metálico galvanizado tipo MP 152S - arco alto - vão = 10,08 m e altura = 6,12 m - aterro rodoviário mínimo = 0,90 m e máximo = 5,00 m - areia extraída e brita produzida | C108: m | D108: 54952.82
A109: 607139 | B109: Arco metálico galvanizado tipo MP 152S - arco alto - vão = 10,31 m e altura = 6,17 m - aterro rodoviário mínimo = 0,90 m e máximo = 4,90 m - areia e brita comerciais | C109: m | D109: 56354.82
A110: 606787 | B110: Arco metálico galvanizado tipo MP 152S - arco alto - vão = 10,31 m e altura = 6,17 m - aterro rodoviário mínimo = 0,90 m e máximo = 4,90 m - areia extraída e brita produzida | C110: m | D110: 55393.39
A111: 607140 | B111: Arco metálico galvanizado tipo MP 152S - arco alto - vão = 10,36 m e altura = 5,38 m - aterro rodoviário mínimo = 1,20 m e máximo = 3,60 m - areia e brita comerciais | C111: m | D111: 51403.85
A112: 606788 | B112: Arco metálico galvanizado tipo MP 152S - arco alto - vão = 10,36 m e altura = 5,38 m - aterro rodoviário mínimo = 1,20 m e máximo = 3,60 m - areia extraída e brita produzida | C112: m | D112: 51149.42
A113: 607141 | B113: Arco metálico galvanizado tipo MP 152S - arco alto - vão = 10,54 m e altura = 6,05 m - aterro rodoviário mínimo = 1,20 m e máximo = 4,20 m - areia e brita comerciais | C113: m | D113: 57383.24
A114: 606789 | B114: Arco metálico galvanizado tipo MP 152S - arco alto - vão = 10,54 m e altura = 6,05 m - aterro rodoviário mínimo = 1,20 m e máximo = 4,20 m - areia extraída e brita produzida | C114: m | D114: 56718.84
A115: 607144 | B115: Arco metálico galvanizado tipo MP 152S - arco alto - vão = 10,57 m e altura = 5,41 m - aterro rodoviário mínimo = 1,20 m e máximo = 4,10 m - areia e brita comerciais | C115: m | D115: 66444.88
A116: 606792 | B116: Arco metálico galvanizado tipo MP 152S - arco alto - vão = 10,57 m e altura = 5,41 m - aterro rodoviário mínimo = 1,20 m e máximo = 4,10 m - areia extraída e brita produzida | C116: m | D116: 65838.03
A117: 607142 | B117: Arco metálico galvanizado tipo MP 152S - arco alto - vão = 10,74 m e altura = 6,48 m - aterro rodoviário mínimo = 1,20 m e máximo = 4,70 m - areia e brita comerciais | C117: m | D117: 60229.31
A118: 606790 | B118: Arco metálico galvanizado tipo MP 152S - arco alto - vão = 10,74 m e altura = 6,48 m - aterro rodoviário mínimo = 1,20 m e máximo = 4,70 m - areia extraída e brita produzida | C118: m | D118: 59514.68
A119: 607145 | B119: Arco metálico galvanizado tipo MP 152S - arco alto - vão = 10,77 m e altura = 6,10 m - aterro rodoviário mínimo = 1,20 m e máximo = 4,70 m - areia e brita comerciais | C119: m | D119: 73453.45
A120: 606793 | B120: Arco metálico galvanizado tipo MP 152S - arco alto - vão = 10,77 m e altura = 6,10 m - aterro rodoviário mínimo = 1,20 m e máximo = 4,70 m - areia extraída e brita produzida | C120: m | D120: 72774.74
A121: 607146 | B121: Arco metálico galvanizado tipo MP 152S - arco alto - vão = 10,97 m e altura = 6,53 m - aterro rodoviário mínimo = 1,20 m e máximo = 4,70 m - areia e brita comerciais | C121: m | D121: 76653.45
A122: 606794 | B122: Arco metálico galvanizado tipo MP 152S - arco alto - vão = 10,97 m e altura = 6,53 m - aterro rodoviário mínimo = 1,20 m e máximo = 4,70 m - areia extraída e brita produzida | C122: m | D122: 75916.8
A123: 607143 | B123: Arco metálico galvanizado tipo MP 152S - arco alto - vão = 11,35 m e altura = 7,12 m - aterro rodoviário mínimo = 1,20 m e máximo = 4,70 m - areia e brita comerciais | C123: m | D123: 65088.45
A124: 606791 | B124: Arco metálico galvanizado tipo MP 152S - arco alto - vão = 11,35 m e altura = 7,12 m - aterro rodoviário mínimo = 1,20 m e máximo = 4,70 m - areia extraída e brita produzida | C124: m | D124: 64265.71
A125: 607147 | B125: Arco metálico galvanizado tipo MP 152S - arco alto - vão = 11,58 m e altura = 7,16 m - aterro rodoviário mínimo = 1,20 m e máximo = 6,40 m - areia e brita comerciais | C125: m | D125: 82739.22
A126: 606795 | B126: Arco metálico galvanizado tipo MP 152S - arco alto - vão = 11,58 m e altura = 7,16 m - aterro rodoviário mínimo = 1,20 m e máximo = 6,40 m - areia extraída e brita produzida | C126: m | D126: 81890.38
A127: 607112 | B127: Arco metálico galvanizado tipo MP 152S - arco alto - vão = 6,12 m e altura = 2,77 m - aterro rodoviário mínimo = 0,75 m e máximo = 5,40 m - areia e brita comerciais | C127: m | D127: 27032.9
A128: 606760 | B128: Arco metálico galvanizado tipo MP 152S - arco alto - vão = 6,12 m e altura = 2,77 m - aterro rodoviário mínimo = 0,75 m e máximo = 5,40 m - areia extraída e brita produzida | C128: m | D128: 26810.39
A129: 607113 | B129: Arco metálico galvanizado tipo MP 152S - arco alto - vão = 6,30 m e altura = 3,68 m - aterro rodoviário mínimo = 0,75 m e máximo = 7,50 m - areia e brita comerciais | C129: m | D129: 31793.91
A130: 606761 | B130: Arco metálico galvanizado tipo MP 152S - arco alto - vão = 6,30 m e altura = 3,68 m - aterro rodoviário mínimo = 0,75 m e máximo = 7,50 m - areia extraída e brita produzida | C130: m | D130: 31538.14
A131: 606762 | B131: Arco metálico galvanizado tipo MP 152S - arco alto - vão = 6,55 m e altura = 3,56 m - aterro rodoviário mínimo = 0,75 m e máximo = 4,9 m - areia extraída e brita produzida | C131: m | D131: 31893.14
A132: 607114 | B132: Arco metálico galvanizado tipo MP 152S - arco alto - vão = 6,55 m e altura = 3,56 m - aterro rodoviário mínimo = 0,75 m e máximo = 4,90 m - areia e brita comerciais | C132: m | D132: 32153.74
A133: 607116 | B133: Arco metálico galvanizado tipo MP 152S - arco alto - vão = 6,78 m e altura = 3,61 m - aterro rodoviário mínimo = 0,75 m e máximo = 4,80 m - areia e brita comerciais | C133: m | D133: 33305.1
A134: 606764 | B134: Arco metálico galvanizado tipo MP 152S - arco alto - vão = 6,78 m e altura = 3,61 m - aterro rodoviário mínimo = 0,75 m e máximo = 4,80 m - areia extraída e brita produzida | C134: m | D134: 33033.52
A135: 607115 | B135: Arco metálico galvanizado tipo MP 152S - arco alto - vão = 6,96 m e altura = 4,42 m - aterro rodoviário mínimo = 0,75 m e máximo = 8,10 m - areia e brita comerciais | C135: m | D135: 37830.76
A136: 606763 | B136: Arco metálico galvanizado tipo MP 152S - arco alto - vão = 6,96 m e altura = 4,42 m - aterro rodoviário mínimo = 0,75 m e máximo = 8,10 m - areia extraída e brita produzida | C136: m | D136: 37504.04
A137: 607117 | B137: Arco metálico galvanizado tipo MP 152S - arco alto - vão = 6,99 m e altura = 4,27 m - aterro rodoviário mínimo = 0,75 m e máximo = 5,70 m - areia e brita comerciais | C137: m | D137: 37825.27
A138: 606765 | B138: Arco metálico galvanizado tipo MP 152S - arco alto - vão = 6,99 m e altura = 4,27 m - aterro rodoviário mínimo = 0,75 m e máximo = 5,70 m - areia extraída e brita produzida | C138: m | D138: 37507.52
A139: 607118 | B139: Arco metálico galvanizado tipo MP 152S - arco alto - vão = 7,01 m e altura = 3,63 m - aterro rodoviário mínimo = 0,75 m e máximo = 4,60 m - areia e brita comerciais | C139: m | D139: 33892.05
A140: 606766 | B140: Arco metálico galvanizado tipo MP 152S - arco alto - vão = 7,01 m e altura = 3,63 m - aterro rodoviário mínimo = 0,75 m e máximo = 4,60 m - areia extraída e brita produzida | C140: m | D140: 33611.68
A141: 607120 | B141: Arco metálico galvanizado tipo MP 152S - arco alto - vão = 7,24 m e altura = 3,68 m - aterro rodoviário mínimo = 0,90 m e máximo = 4,4 m - areia e brita comerciais | C141: m | D141: 34521.15
A142: 606768 | B142: Arco metálico galvanizado tipo MP 152S - arco alto - vão = 7,24 m e altura = 3,68 m - aterro rodoviário mínimo = 0,90 m e máximo = 4,40 m - areia extraída e brita produzida | C142: m | D142: 34225.91
A143: 607119 | B143: Arco metálico galvanizado tipo MP 152S - arco alto - vão = 7,42 m e altura = 4,52 m - aterro rodoviário mínimo = 0,90 m e máximo = 6,40 m - areia e brita comerciais | C143: m | D143: 39707.24
A144: 606767 | B144: Arco metálico galvanizado tipo MP 152S - arco alto - vão = 7,42 m e altura = 4,52 m - aterro rodoviário mínimo = 0,90 m e máximo = 6,40 m - areia extraída e brita produzida | C144: m | D144: 39347.19
A145: 607121 | B145: Arco metálico galvanizado tipo MP 152S - arco alto - vão = 7,47 m e altura = 4,19 m - aterro rodoviário mínimo = 0,90 m e máximo = 4,30 m - areia e brita comerciais | C145: m | D145: 37389.95
A146: 606769 | B146: Arco metálico galvanizado tipo MP 152S - arco alto - vão = 7,47 m e altura = 4,19 m - aterro rodoviário mínimo = 0,90 m e máximo = 4,30 m - areia extraída e brita produzida | C146: m | D146: 37053.35
A147: 607123 | B147: Arco metálico galvanizado tipo MP 152S - arco alto - vão = 7,67 m e altura = 3,99 m - aterro rodoviário mínimo = 0,90 m e máximo = 4,10 m - areia e brita comerciais | C147: m | D147: 36899.76
A148: 606771 | B148: Arco metálico galvanizado tipo MP 152S - arco alto - vão = 7,67 m e altura = 3,99 m - aterro rodoviário mínimo = 0,90 m e máximo = 4,10 m - areia extraída e brita produzida | C148: m | D148: 36564.41
A149: 607122 | B149: Arco metálico galvanizado tipo MP 152S - arco alto - vão = 7,85 m e altura = 4,60 m - aterro rodoviário mínimo = 0,90 m e máximo = 6,00 m - areia e brita comerciais | C149: m | D149: 40957.62
A150: 606770 | B150: Arco metálico galvanizado tipo MP 152S - arco alto - vão = 7,85 m e altura = 4,60 m - aterro rodoviário mínimo = 0,90 m e máximo = 6,00 m - areia extraída e brita produzida | C150: m | D150: 40570.87
A151: 607125 | B151: Arco metálico galvanizado tipo MP 152S - arco alto - vão = 7,90 m e altura = 4,04 m - aterro rodoviário mínimo = 0,90 m e máximo = 4,00 m - areia e brita comerciais | C151: m | D151: 38161.74
A152: 606773 | B152: Arco metálico galvanizado tipo MP 152S - arco alto - vão = 7,90 m e altura = 4,04 m - aterro rodoviário mínimo = 0,90 m e máximo = 4,00 m - areia extraída e brita produzida | C152: m | D152: 37808.9
A153: 607124 | B153: Arco metálico galvanizado tipo MP 152S - arco alto - vão = 8,08 m e altura = 4,65 m - aterro rodoviário mínimo = 0,90 m e máximo = 5,80 m - areia e brita comerciais | C153: m | D153: 41579.33
A154: 606772 | B154: Arco metálico galvanizado tipo MP 152S - arco alto - vão = 8,08 m e altura = 4,65 m - aterro rodoviário mínimo = 0,90 m e máximo = 5,80 m - areia extraída e brita produzida | C154: m | D154: 41180.2
A155: 607126 | B155: Arco metálico galvanizado tipo MP 152S - arco alto - vão = 8,31 m e altura = 4,70 m - aterro rodoviário mínimo = 0,90 m e máximo = 5,60 m - areia e brita comerciais | C155: m | D155: 42745.16
A156: 606774 | B156: Arco metálico galvanizado tipo MP 152S - arco alto - vão = 8,31 m e altura = 4,70 m - aterro rodoviário mínimo = 0,90 m e máximo = 5,60 m - areia extraída e brita produzida | C156: m | D156: 42326.8
A157: 607127 | B157: Arco metálico galvanizado tipo MP 152S - arco alto - vão = 8,36 m e altura = 4,11 m - aterro rodoviário mínimo = 0,90 m e máximo = 3,70 m - areia e brita comerciais | C157: m | D157: 39346.6
A158: 606775 | B158: Arco metálico galvanizado tipo MP 152S - arco alto - vão = 8,36 m e altura = 4,11 m - aterro rodoviário mínimo = 0,90 m e máximo = 3,70 m - areia extraída e brita produzida | C158: m | D158: 38972.55
A159: 607129 | B159: Arco metálico galvanizado tipo MP 152S - arco alto - vão = 8,59 m e altura = 4,39 m - aterro rodoviário mínimo = 0,90 m e máximo = 3,60 m - areia e brita comerciais | C159: m | D159: 41189.03
A160: 606777 | B160: Arco metálico galvanizado tipo MP 152S - arco alto - vão = 8,59 m e altura = 4,39 m - aterro rodoviário mínimo = 0,90 m e máximo = 3,60 m - areia extraída e brita produzida | C160: m | D160: 40779.39
A161: 607128 | B161: Arco metálico galvanizado tipo MP 152S - arco alto - vão = 8,97 m e altura = 5,00 m - aterro rodoviário mínimo = 0,90 m e máximo = 5,80 m - areia e brita comerciais | C161: m | D161: 45334.09
A162: 606776 | B162: Arco metálico galvanizado tipo MP 152S - arco alto - vão = 8,97 m e altura = 5,00 m - aterro rodoviário mínimo = 0,90 m e máximo = 5,80 m - areia extraída e brita produzida | C162: m | D162: 44855.46
A163: 607130 | B163: Arco metálico galvanizado tipo MP 152S - arco alto - vão = 9,17 m e altura = 5,49 m - aterro rodoviário mínimo = 0,90 m e máximo = 5,60 m - areia e brita comerciais | C163: m | D163: 48332.35
A164: 606778 | B164: Arco metálico galvanizado tipo MP 152S - arco alto - vão = 9,17 m e altura = 5,49 m - aterro rodoviário mínimo = 0,90 m e máximo = 5,60 m - areia extraída e brita produzida | C164: m | D164: 47806.26
A165: 607131 | B165: Arco metálico galvanizado tipo MP 152S - arco alto - vão = 9,22 m e altura = 4,70 m - aterro rodoviário mínimo = 0,90 m e máximo = 4,10 m - areia e brita comerciais | C165: m | D165: 45344.39
A166: 606779 | B166: Arco metálico galvanizado tipo MP 152S - arco alto - vão = 9,22 m e altura = 4,70 m - aterro rodoviário mínimo = 0,90 m e máximo = 4,10 m - areia extraída e brita produzida | C166: m | D166: 44878.96
A167: 607133 | B167: Arco metálico galvanizado tipo MP 152S - arco alto - vão = 9,45 m e altura = 4,75 m - aterro rodoviário mínimo = 0,90 m e máximo = 4,00 m - areia e brita comerciais | C167: m | D167: 46036.5
A168: 606781 | B168: Arco metálico galvanizado tipo MP 152S - arco alto - vão = 9,45 m e altura = 4,75 m - aterro rodoviário mínimo = 0,90 m e máximo = 4,00 m - areia extraída e brita produzida | C168: m | D168: 45557.09
A169: 607132 | B169: Arco metálico galvanizado tipo MP 152S - arco alto - vão = 9,63 m e altura = 5,59 m - aterro rodoviário mínimo = 0,90 m e máximo = 5,30 m - areia e brita comerciais | C169: m | D169: 50222.3
A170: 606780 | B170: Arco metálico galvanizado tipo MP 152S - arco alto - vão = 9,63 m e altura = 5,59 m - aterro rodoviário mínimo = 0,90 m e máximo = 5,30 m - areia extraída e brita produzida | C170: m | D170: 49659.32
A171: 607134 | B171: Arco metálico galvanizado tipo MP 152S - arco alto - vão = 9,65 m e altura = 5,41 m - aterro rodoviário mínimo = 0,90 m e máximo = 4,70 m - areia e brita comerciais | C171: m | D171: 49732.32
A172: 606782 | B172: Arco metálico galvanizado tipo MP 152S - arco alto - vão = 9,65 m e altura = 5,41 m - aterro rodoviário mínimo = 0,90 m e máximo = 4,70 m - areia extraída e brita produzida | C172: m | D172: 49182.21
A173: 607136 | B173: Arco metálico galvanizado tipo MP 152S - arco alto - vão = 9,68 m e altura = 5,23 m - aterro rodoviário mínimo = 0,90 m e máximo = 3,90 m - areia e brita comerciais | C173: m | D173: 49055.59
A174: 606784 | B174: Arco metálico galvanizado tipo MP 152S - arco alto - vão = 9,68 m e altura = 5,23 m - aterro rodoviário mínimo = 0,90 m e máximo = 3,90 m - areia extraída e brita produzida | C174: m | D174: 48523.06
A175: 607135 | B175: Arco metálico galvanizado tipo MP 152S - arco alto - vão = 9,86 m e altura = 6,07 m - aterro rodoviário mínimo = 0,90 m e máximo = 5,20 m - areia e brita comerciais | C175: m | D175: 54783.15
A176: 606783 | B176: Arco metálico galvanizado tipo MP 152S - arco alto - vão = 9,86 m e altura = 6,07 m - aterro rodoviário mínimo = 0,90 m e máximo = 5,20 m - areia extraída e brita produzida | C176: m | D176: 54165.81
A177: 607138 | B177: Arco metálico galvanizado tipo MP 152S - arco alto - vão = 9,91 m e altura = 5,28 m - aterro rodoviário mínimo = 0,90 m e máximo = 3,80 m - areia e brita comerciais | C177: m | D177: 49930.1
A178: 606786 | B178: Arco metálico galvanizado tipo MP 152S - arco alto - vão = 9,91 m e altura = 5,28 m - aterro rodoviário mínimo = 0,90 m e máximo = 3,80 m - areia extraída e brita produzida | C178: m | D178: 49362.8
A179: 606842 | B179: Arco metálico galvanizado tipo MP 152S - ovoide - vão = 7,21 m e altura = 7,82 m - aterro rodoviário mínimo = 0,75 m e máximo = 6,70 m - areia e brita comerciais | C179: m | D179: 61579.16
A180: 606832 | B180: Arco metálico galvanizado tipo MP 152S - ovoide - vão = 7,21 m e altura = 7,82 m - aterro rodoviário mínimo = 0,75 m e máximo = 6,70 m - areia extraída e brita produzida | C180: m | D180: 61176.9
A181: 606843 | B181: Arco metálico galvanizado tipo MP 152S - ovoide - vão = 7,31 m e altura = 7,87 m - aterro rodoviário mínimo = 0,90 m e máximo = 6,80 m - areia e brita comerciais | C181: m | D181: 63991.07
A182: 606833 | B182: Arco metálico galvanizado tipo MP 152S - ovoide - vão = 7,31 m e altura = 7,87 m - aterro rodoviário mínimo = 0,90 m e máximo = 6,80 m - areia extraída e brita produzida | C182: m | D182: 63571.59
A183: 606845 | B183: Arco metálico galvanizado tipo MP 152S - ovoide - vão = 7,57 m e altura = 8,44 m - aterro rodoviário mínimo = 0,90 m e máximo = 5,60 m - areia e brita comerciais | C183: m | D183: 66342.47
A184: 606835 | B184: Arco metálico galvanizado tipo MP 152S - ovoide - vão = 7,57 m e altura = 8,44 m - aterro rodoviário mínimo = 0,90 m e máximo = 5,60 m - areia extraída e brita produzida | C184: m | D184: 65921.68
A185: 606844 | B185: Arco metálico galvanizado tipo MP 152S - ovoide - vão = 7,77 m e altura = 7,90 m - aterro rodoviário mínimo = 0,90 m e máximo = 6,80 m - areia e brita comerciais | C185: m | D185: 64973.18
A186: 606834 | B186: Arco metálico galvanizado tipo MP 152S - ovoide - vão = 7,77 m e altura = 7,90 m - aterro rodoviário mínimo = 0,90 m e máximo = 6,80 m - areia extraída e brita produzida | C186: m | D186: 64540.66
A187: 606847 | B187: Arco metálico galvanizado tipo MP 152S - ovoide - vão = 8,13 m e altura = 8,01 m - aterro rodoviário mínimo = 0,90 m e máximo = 3,50 m - areia e brita comerciais | C187: m | D187: 69381.87
A188: 606837 | B188: Arco metálico galvanizado tipo MP 152S - ovoide - vão = 8,13 m e altura = 8,01 m - aterro rodoviário mínimo = 0,90 m e máximo = 3,50 m - areia extraída e brita produzida | C188: m | D188: 68913.78
A189: 606846 | B189: Arco metálico galvanizado tipo MP 152S - ovoide - vão = 8,36 m e altura = 8,23 m - aterro rodoviário mínimo = 0,90 m e máximo = 4,30 m - areia e brita comerciais | C189: m | D189: 71087.94
A190: 606836 | B190: Arco metálico galvanizado tipo MP 152S - ovoide - vão = 8,36 m e altura = 8,23 m - aterro rodoviário mínimo = 0,90 m e máximo = 4,30 m - areia extraída e brita produzida | C190: m | D190: 70613.56
A191: 606848 | B191: Arco metálico galvanizado tipo MP 152S - ovoide - vão = 8,56 m e altura = 8,48 m - aterro rodoviário mínimo = 0,90 m e máximo = 5,30 m - areia e brita comerciais | C191: m | D191: 74052.37
A192: 606838 | B192: Arco metálico galvanizado tipo MP 152S - ovoide - vão = 8,56 m e altura = 8,48 m - aterro rodoviário mínimo = 0,90 m e máximo = 5,30 m - areia extraída e brita produzida | C192: m | D192: 73560.79
A193: 606849 | B193: Arco metálico galvanizado tipo MP 152S - ovoide - vão = 8,71 m e altura = 9,32 m - aterro rodoviário mínimo = 0,90 m e máximo = 6,00 m - areia e brita comerciais | C193: m | D193: 75777.98
A194: 606839 | B194: Arco metálico galvanizado tipo MP 152S - ovoide - vão = 8,71 m e altura = 9,32 m - aterro rodoviário mínimo = 0,90 m e máximo = 6,00 m - areia extraída e brita produzida | C194: m | D194: 75294.79
A195: 606850 | B195: Arco metálico galvanizado tipo MP 152S - ovoide - vão = 9,15 m e altura = 9,04 m - aterro rodoviário mínimo = 0,90 m e máximo = 4,70 m - areia e brita comerciais | C195: m | D195: 76427.95
A196: 606840 | B196: Arco metálico galvanizado tipo MP 152S - ovoide - vão = 9,15 m e altura = 9,04 m - aterro rodoviário mínimo = 0,90 m e máximo = 4,70 m - areia extraída e brita produzida | C196: m | D196: 75904.35
A197: 606851 | B197: Arco metálico galvanizado tipo MP 152S - ovoide - vão = 9,15 m e altura = 9,50 m - aterro rodoviário mínimo = 0,90 m e máximo = 5,70 m - areia e brita comerciais | C197: m | D197: 78642.62
A198: 606841 | B198: Arco metálico galvanizado tipo MP 152S - ovoide - vão = 9,15 m e altura = 9,50 m - aterro rodoviário mínimo = 0,90 m e máximo = 5,70 m - areia extraída e brita produzida | C198: m | D198: 78137.14
A199: 605604 | B199: Argamassa de solo-cimento com 10% de cimento e material de jazida - preparo e injeção em tunnel liner | C199: m³ | D199: 326
A200: 605695 | B200: Bueiro metálico com chapas múltiplas MP 100 com revestimento em epóxi - D = 0,60 m - brita comercial | C200: m | D200: 1473.27
... 6292 more rows

Sheet Pessoal Sicro (hidden)
A1: CGCIT | B1: SISTEMA DE CUSTOS REFERENCIAIS DE OBRAS - SICRO | G1: DNIT | H1: CGCIT
A3: Maranhão - Abril/2025
A4: Sem desoneração
A5: Código | B5: Descrição | C5: Unidade | D5: Salário (R$) | E5: Encargos Totais | F5: Custo (R$) | G5: Periculosidade/ Insalubridade | H5: Código
A6: P9801 | B6: Ajudante | C6: h | F6: 21.7228 | G6: 0 | H6: P9801
A7: P9802 | B7: Ajudante especializado | C7: h | F7: 25.3245 | G7: 0 | H7: P9802
A8: P9803 | B8: Almoxarife | C8: mês | F8: 6228.5397 | G8: 0 | H8: P9803
A9: P9804 | B9: Apontador | C9: mês | F9: 5108.5086 | G9: 0 | H9: P9804
A10: P9805 | B10: Armador | C10: h | F10: 30.785 | G10: 0 | H10: P9805
A11: P9806 | B11: Auxiliar administrativo | C11: mês | F11: 5069.9099 | G11: 0 | H11: P9806
A12: P9807 | B12: Bombeiro hidráulico | C12: h | F12: 31.3343 | G12: 0 | H12: P9807
A13: P9808 | B13: Carpinteiro | C13: h | F13: 27.9922 | G13: 0 | H13: P9808
A14: P9809 | B14: Encarregado administrativo | C14: mês | F14: 7575.7263 | G14: 0 | H14: P9809
A15: P9810 | B15: Eletricista | C15: h | F15: 30.3606 | G15: 0 | H15: P9810
A16: P9811 | B16: Encarregado especializado | C16: mês | F16: 8270.9705 | G16: 0 | H16: P9811
A17: P9812 | B17: Engenheiro | C17: mês | F17: 25169.5344 | G17: 0 | H17: P9812
A18: P9814 | B18: Operacional | C18: mês | F18: 4222.9112 | G18: 0 | H18: P9814
A19: P9815 | B19: Jardineiro | C19: h | F19: 28.795 | G19: 0 | H19: P9815
A20: P9819 | B20: Engenheiro supervisor | C20: mês | F20: 25169.5344 | G20: 0 | H20: P9819
A21: P9821 | B21: Pedreiro | C21: h | F21: 27.6343 | G21: 0 | H21: P9821
A22: P9822 | B22: Pintor | C22: h | F22: 30.7634 | G22: 0 | H22: P9822
A23: P9823 | B23: Serralheiro | C23: h | F23: 28.7245 | G23: 0 | H23: P9823
A24: P9824 | B24: Servente | C24: h | F24: 21.3406 | G24: 0 | H24: P9824
A25: P9825 | B25: Soldador | C25: h | F25: 35.2942 | G25: 0 | H25: P9825
A26: P9826 | B26: Chefe setor de finanças | C26: mês | F26: 26212.9097 | G26: 0 | H26: P9826
A27: P9827 | B27: Vigia | C27: mês | F27: 4725.5765 | G27: 0.3 | H27: P9827
A28: P9830 | B28: Montador | C28: h | F28: 31.6184 | G28: 0 | H28: P9830
A29: P9833 | B29: Auxiliar de laboratório | C29: mês | F29: 5646.9455 | G29: 0 | H29: P9833
A30: P9837 | B30: Oceanógrafo | C30: mês | F30: 12409.2716 | G30: 0 | H30: P9837
A31: P9840 | B31: Encarregado geral | C31: mês | F31: 11656.0318 | G31: 0 | H31: P9840
A32: P9842 | B32: Faxineiro | C32: mês | F32: 4033.4643 | G32: 0 | H32: P9842
A33: P9843 | B33: Operador de equipamento leve | C33: h | F33: 27.5159 | G33: 0 | H33: P9843
A34: P9845 | B34: Operador de equipamento pesado | C34: h | F34: 33.2943 | G34: 0 | H34: P9845
A35: P9846 | B35: Operador de equipamento especial | C35: h | F35: 43.1549 | G35: 0 | H35: P9846
A36: P9847 | B36: Perfurador de tubulão | C36: h | F36: 21.7025 | G36: 0 | H36: P9847
A37: P9848 | B37: Desenhista | C37: mês | F37: 7930.9573 | G37: 0 | H37: P9848
A38: P9849 | B38: Condutor maquinista fluvial | C38: mês | F38: 5793.809 | G38: 0 | H38: P9849
A39: P9850 | B39: Copeiro | C39: mês | F39: 4284.9434 | G39: 0 | H39: P9850
A40: P9851 | B40: Médico do trabalho | C40: mês | F40: 18575.8219 | G40: 0 | H40: P9851
A41: P9852 | B41: Blaster | C41: h | F41: 40.9803 | G41: 0.3 | H41: P9852
A42: P9853 | B42: Pré-marcador | C42: h | F42: 21.5855 | G42: 0 | H42: P9853
A43: P9854 | B43: Recepcionista | C43: mês | F43: 4153.6593 | G43: 0 | H43: P9854
A44: P9855 | B44: Marinheiro de máquinas | C44: mês | F44: 5392.5519 | G44: 0 | H44: P9855
A45: P9856 | B45: Marinheiro de convés | C45: h | F45: 29.1508 | G45: 0 | H45: P9856
A46: P9857 | B46: Marinheiro de convés - mensalista | C46: mês | F46: 5362.8194 | G46: 0 | H46: P9857
A47: P9858 | B47: Laboratorista | C47: mês | F47: 7399.543 | G47: 0 | H47: P9858
A48: P9859 | B48: Trabalhador de via | C48: h | F48: 21.3643 | G48: 0 | H48: P9859
A49: P9861 | B49: Selecionador de material pétreo | C49: h | F49: 21.6317 | G49: 0 | H49: P9861
A50: P9864 | B50: Engenheiro de segurança do trabalho | C50: mês | F50: 24420.804 | G50: 0 | H50: P9864
A51: P9866 | B51: Motorista de caminhão | C51: h | F51: 29.9105 | G51: 0 | H51: P9866
A52: P9867 | B52: Técnico especializado - mensalista | C52: mês | F52: 7095.1766 | G52: 0 | H52: P9867
A53: P9869 | B53: Encarregado de obras de artes especiais | C53: mês | F53: 8270.9705 | G53: 0 | H53: P9869
A54: P9870 | B54: Motorista de veículo leve | C54: h | F54: 30.4162 | G54: 0 | H54: P9870
A55: P9871 | B55: Motorista de veículo especial | C55: h | F55: 35.0256 | G55: 0 | H55: P9871
A56: P9875 | B56: Encarregado de turma | C56: mês | F56: 5828.315 | G56: 0 | H56: P9875
A57: P9876 | B57: Técnico de segurança do trabalho | C57: mês | F57: 7298.4723 | G57: 0 | H57: P9876
A58: P9878 | B58: Secretária | C58: mês | F58: 6718.4541 | G58: 0 | H58: P9878
A59: P9880 | B59: Piloto fluvial | C59: mês | F59: 7681.1978 | G59: 0 | H59: P9880
A60: P9882 | B60: Técnico especializado | C60: h | F60: 38.3928 | G60: 0 | H60: P9882
A61: P9883 | B61: Chefe do setor administrativo | C61: mês | F61: 7575.8406 | G61: 0 | H61: P9883
A62: P9884 | B62: Encarregado de terraplenagem | C62: mês | F62: 8270.9705 | G62: 0 | H62: P9884
A63: P9885 | B63: Frentista de túnel | C63: h | F63: 22.0907 | G63: 0 | H63: P9885
A64: P9889 | B64: Técnico da qualidade | C64: mês | F64: 7897.1986 | G64: 0 | H64: P9889
A65: P9892 | B65: Auxiliar de blaster | C65: h | F65: 35.9167 | G65: 0.3 | H65: P9892
A66: P9893 | B66: Encarregado de pavimentação | C66: mês | F66: 8270.9705 | G66: 0 | H66: P9893
A67: P9896 | B67: Porteiro | C67: mês | F67: 4026.1953 | G67: 0 | H67: P9896
A68: P9897 | B68: Técnico de meio ambiente | C68: mês | F68: 7881.727 | G68: 0 | H68: P9897
A69: P9900 | B69: Comprador | C69: mês | F69: 7397.8048 | G69: 0 | H69: P9900
A70: P9901 | B70: Encarregado de superestrutura ferroviária | C70: mês | F70: 8270.9705 | G70: 0 | H70: P9901
A71: P9903 | B71: Auxiliar técnico | C71: mês | F71: 4684.6961 | G71: 0 | H71: P9903
A72: P9907 | B72: Comandante de longo curso | C72: mês | F72: 20406.5748 | G72: 0 | H72: P9907
A73: P9908 | B73: Imediato | C73: mês | F73: 16496.0338 | G73: 0 | H73: P9908
A74: P9909 | B74: Oficial de náutica | C74: mês | F74: 6710.0394 | G74: 0 | H74: P9909
A75: P9910 | B75: Oficial de máquinas | C75: mês | F75: 6537.6874 | G75: 0 | H75: P9910
A76: P9913 | B76: Draguista | C76: mês | F76: 6517.2139 | G76: 0 | H76: P9913
A77: P9915 | B77: Maquinista | C77: h | F77: 34.2553 | G77: 0 | H77: P9915
A78: P9916 | B78: Encarregado de conservação rodoviária | C78: mês | F78: 8270.9705 | G78: 0 | H78: P9916
A79: P9920 | B79: Mestre fluvial | C79: mês | F79: 8583.8884 | G79: 0 | H79: P9920
A80: P9921 | B80: Mergulhador raso autônomo de emergência | C80: h | F80: 38.9431 | G80: 0.2587 | H80: P9921
A81: P9922 | B81: Mergulhador raso dependente de emergência | C81: h | F81: 40.5121 | G81: 0.3 | H81: P9922
A82: P9924 | B82: Mergulhador raso dependente | C82: h | F82: 52.6832 | G82: 0.3 | H82: P9924
A83: P9925 | B83: Mergulhador raso autônomo | C83: h | F83: 48.9012 | G83: 0.2587 | H83: P9925
A84: P9926 | B84: Mergulhador raso auxiliar de superfície | C84: h | F84: 36.8397 | G84: 0.2587 | H84: P9926
A85: P9927 | B85: Frentista de túnel com periculosidade | C85: h | F85: 26.5408 | G85: 0.3 | H85: P9927
A86: P9930 | B86: Eletricista com periculosidade | C86: h | F86: 37.2762 | G86: 0.3 | H86: P9930
A87: P9931 | B87: Operador de equipamento de mergulho | C87: h | F87: 58.7273 | G87: 0.1425 | H87: P9931
A88: P9932 | B88: Operador de equipamento pesado com periculosidade | C88: h | F88: 41.2443 | G88: 0.3 | H88: P9932
A89: P9933 | B89: Supervisor de mergulho raso | C89: mês | F89: 10832.5565 | G89: 0.1425 | H89: P9933
A90: P9934 | B90: Motorista de veículo especial com periculosidade | C90: h | F90: 43.5266 | G90: 0.3 | H90: P9934
A91: P9938 | B91: Operador de equipamento leve com periculosidade | C91: h | F91: 33.7279 | G91: 0.3 | H91: P9938
A92: P9939 | B92: Operador de equipamento leve com insalubridade | C92: h | F92: 35.339 | G92: 0.2596 | H92: P9939
A93: P9942 | B93: Marinheiro de convés com periculosidade | C93: h | F93: 35.9468 | G93: 0.3 | H93: P9942
A94: P9944 | B94: Operador de equipamento especial com periculosidade | C94: h | F94: 54.0892 | G94: 0.3 | H94: P9944
A95: P9946 | B95: Engenheiro auxiliar | C95: mês | F95: 23592.8645 | G95: 0 | H95: P9946
A96: P9947 | B96: Técnico florestal | C96: mês | F96: 7881.727 | G96: 0 | H96: P9947
A97: P9948 | B97: Motorista de veículo leve - mensalista | C97: mês | F97: 5614.879 | G97: 0 | H97: P9948
A98: P9949 | B98: Topógrafo | C98: mês | F98: 8757.2734 | G98: 0 | H98: P9949
A99: P9950 | B99: Auxiliar de topografia | C99: mês | F99: 5667.1287 | G99: 0 | H99: P9950
A100: P9951 | B100: Médico de câmara hiperbárica | C100: mês | F100: 21148.057 | G100: 0.0583 | H100: P9951
A101: P9952 | B101: Pedreiro - mensalista | C101: mês | F101: 5108.1604 | G101: 0 | H101: P9952
A102: P9953 | B102: Eletricista - mensalista | C102: mês | F102: 5593.9461 | G102: 0 | H102: P9953
A103: P9954 | B103: Servente - mensalista | C103: mês | F103: 3953.259 | G103: 0 | H103: P9954
A104: P9955 | B104: Engenheiro chefe | C104: mês | F104: 31577.9207 | G104: 0 | H104: P9955
A105: P9956 | B105: Motorista de caminhão com periculosidade | C105: h | F105: 36.8769 | G105: 0.3 | H105: P9956
A106: P9972 | B106: Técnico de batimetria | C106: mês | F106: 6696.4841 | G106: 0 | H106: P9972

Sheet Projeto Executivo
A1: COMPOSIÇAO PREÇO PROJETO EXECUTIVO
A3: DISCRIMINAÇAO | F3: Pr. Unit. | G3: Pr. Total
A5: A· EOUIPE TECNICA | G5: =G6+G9 -> 19551.3601
B6: A. 1 - Pessoal de Nível Superior | C6: Unidade | D6: Quantitativo | E6: SICRO e Rel.Custos Gerais | G6: =G7+G8 -> 16963.4039
B7: Engenheiro | C7: mês | D7: 0.5 | E7: P9812 | F7: =VLOOKUP(E7,'Pessoal Sicro'!A:G,6,0) -> 25169.5344 | G7: =F7*D7 -> 12584.7672
B8: Topógrafo | C8: mês | D8: 0.5 | E8: P9949 | F8: =VLOOKUP(E8,'Pessoal Sicro'!A:G,6,0) -> 8757.2734 | G8: =F8*D8 -> 4378.6367
B9: A.2 - Pessoal de Nível Técnico e Aux. | G9: =G10+G11 -> 2587.9562
B10: Auxiliar de topógrafo | C10: mês | D10: 0.25 | E10: P9950 | F10: =VLOOKUP(E10,'Pessoal Sicro'!A:G,6,0) -> 5667.1287 | G10: =F10*D10 -> 1416.782175
B11: Auxiliar Técnico/Assistente de Engenharia | C11: mês | D11: 0.25 | E11: P9903 | F11: =VLOOKUP(E11,'Pessoal Sicro'!A:G,6,0) -> 4684.6961 | G11: =F11*D11 -> 1171.174025
A12: B - ENCARGOS SOCIAIS | G12: =G13 -> 0
B13: =CONCATENATE("Taxas ",'ENC. SOCIAIS'!E51,"%") -> Taxas 112,73% | C13: JÁ INCLUSAS EM "A"
A14: C - DESPESAS GERAIS | G14: =G15+G17+G16 -> 5421.834303
B15: C.1 - MATERIAIS DE CONSUMO | C15: Estimativa % como referência de equipe técnica com encargos sociais | D15: 0.03 | F15: =G5+G13 -> 19551.3601 | G15: =F15*D15 -> 586.540803
B16: C.2 - VEÍCULOS (Veículo leve picape 4 x 4 com capacidade de 1,10 t - 147 kW) | C16: h | D16: 40 | E16: E9684 | F16: =VLOOKUP(E16,Equipamentos!A:K,10,0) -> 110.1583 | G16: =F16*D16 -> 4406.332
B17: C.3 - Estação total eletrônica com alcance máximo de 3.000 m | C17: h | D17: 55 | E17: E9553 | F17: =VLOOKUP(E17,Equipamentos!A:K,10,0) -> 7.7993 | G17: =F17*D17 -> 428.9615
A18: D - ENSAIOS | G18: =SUM(G19:G22) -> 8359.852875
B19: Laboratorista | C19: mês | D19: 0.5 | E19: P9858 | F19: =VLOOKUP(E19,'Pessoal Sicro'!A:G,6,0) -> 7399.543 | G19: =F19*D19 -> 3699.7715
B20: Auxiliar de Laboratório | C20: mês | D20: 0.25 | E20: P9833 | F20: =VLOOKUP(E20,'Pessoal Sicro'!A:G,6,0) -> 5646.9455 | G20: =F20*D20 -> 1411.736375
B21: Laboratório de solos | C21: mês | D21: 0.5 | E21: B8957 | F21: =VLOOKUP(E21,'Tabelas 1 e 2'!C15:G24,5,0) -> 3520.5 | G21: =F21*D21 -> 1760.25
B22: Laboratório de asfalto | C22: mês | D22: 0.25 | E22: B8955 | F22: =VLOOKUP(E22,'Tabelas 1 e 2'!C16:G25,5,0) -> 5952.38 | G22: =F22*D22 -> 1488.095
A23: I - SOMA (A+B+C+D) | G23: =G5+G12+G14+G18 -> 33333.04728
A24: II - CUSTOS ADMINISTRATIVOS | D24: ='MODULO MINIMO'!J6 -> 0.2339 | G24: =D24*G23 -> 7796.599758
A25: TOTAL | G25: =G23+G24 -> 41129.64704
F26: Por m²: | G26: =TRUNC(G25/('MODULO MINIMO'!I8),2) -> 2.93
E28: Desconto aplicado: | G28: =CAPA!D13 -> 0
E29: Valor m² após desconto | G29: =TRUNC(G26-G26*G28,2) -> 2.93
E30: Valor total com BDI após o desconto: | G30: =G29*'MODULO MINIMO'!J44 -> 41020

Sheet CONSUMO DE MAT. B TOTAL
B3: CONSUMO DO MATERIAL BETUMINOSO TOTAL
B5: TRECHO | D5: QUANTIDADES | M5: MAT. BETUMINOSO
B6: Inicio (km) | C6: Fim (km) | D6: Extensão (m) | E6: Largura (m) | F6: Espess. (m) | G6: Área (m2) | H6: Volume (m3) | I6: Densidade (t/m3) | J6: Massa (t) | K6: Unid | L6: Quant. | M6: Tipo | N6: Consumo Taxa de Aplicação | O6: Unid. | P6: Quant.
B7: IMPRIMAÇÃO
F9: 1 | G9: ='Memória de Cálculo'!H63 -> 14000 | H9: =G9*F9 -> 14000 | M9: CM-30 | N9: 1,2 l/m2 | O9: t | P9: =ROUND((G9*1.2)/1000,2) -> 16.8
B10: CAPA SELANTE
F11: 1 | G11: ='Memória de Cálculo'!H51 -> 14000 | H11: =G11*F11 -> 14000 | M11: RR-2C | N11: 0,5 l/m2 | O11: t | P11: =ROUND((G11*0.5)/1000,2) -> 7
B12: TRATAMENTO SUPERFICIAL DUPLO - 1ª CAMADA
F13: 1 | G13: ='Memória de Cálculo'!H57 -> 14000 | H13: =G13*F13 -> 14000 | M13: RR-2C | N13: 1,5 l/m² | O13: t | P13: =ROUND((G13*1.5)/1000,2) -> 21
B14: TRATAMENTO SUPERFICIAL DUPLO - 2ª CAMADA
F15: 1 | G15: ='Memória de Cálculo'!H57 -> 14000 | H15: =G15*F15 -> 14000 | M15: RR-2C | N15: 1,0 l/m² | O15: t | P15: =ROUND((G15*1)/1000,2) -> 14
H17: =G17*F17 -> 0

Sheet BDI
A2: OBRA:
A3: LOCAL:
A4: DATA BASE:
A5: DETALHAMENTO DO BDI - SEM DESONERAÇÃO
A6: ='MODULO MINIMO'!B1 -> EXECUÇÃO DE SERVIÇOS DE PAVIMENTAÇÃO COM TRATAMENTO SUPERFICIAL DUPLO EM VIAS DE MUNICÍPIOS DIVERSOS INSERIDOS NA ÁREA DE ATUAÇÃO DA CODEVASF, NO ESTADO MARANHÃO
A7: Descrição dos serviços | B7: Preço de Venda (%) | C7: Custo Direto (%)
A8: ADMINISTRAÇÃO CENTRAL | C8: 0.06
A9: CUSTOS FINANCEIROS | B9: 0.0102
A10: RISCOS | B10: 0.0025
A11: SEGUROS E GARANTIAS CONTRATUAIS | B11: 0.005
A12: LUCRO OPERACIONAL | C12: 0.07
A13: PIS | B13: 0.0065
A14: COFINS | B14: 0.03
A15: ISSQN | B15: 0.03
A16: Contribuição Previdenciaria | B16: 0
B17: BDI | C17: =ROUND((1+(C8+C12))/(1-(B9+B10+B11+B13+B14+B15+B16))-1,4) -> 0.2339
A18: Observação: O percentual de ISSQN aqui utilizado consiste apenas em um referencial médio.
B19: O valor real do ISSQN a ser adotado deve ser aquele proveniente das alíquotas dos municípios situados na área de
B20: influência das obras.
A55: DETALHAMENTO DO BDI DIFERENCIADO - SEM DESONERAÇÃO
A56: ='MODULO MINIMO'!B1 -> EXECUÇÃO DE SERVIÇOS DE PAVIMENTAÇÃO COM TRATAMENTO SUPERFICIAL DUPLO EM VIAS DE MUNICÍPIOS DIVERSOS INSERIDOS NA ÁREA DE ATUAÇÃO DA CODEVASF, NO ESTADO MARANHÃO
A58: DESCRIÇÃO DOS SERVIÇOS | B58: PREÇO DE VENDA (%) | C58: CUSTO DIRETO (%)
A59: ADMINISTRAÇÃO CENTRAL | C59: 0.0377
A60: DESPESA FINANCEIRAS | B60: 0.0102
A61: SEGUROS E GARANTIAS CONTRATUAIS | B61: 0.0025
A62: RISCOS | B62: 0.005
A63: LUCRO OPERACIONAL | C63: 0.05
A64: PIS | B64: 0.0065
A65: COFINS | B65: 0.03
A66: ISSQN | B66: 0
A67: Contribuição Previdenciaria | B67: 0
B68: BDI | C68: =ROUND((1+(C59+C63))/(1-(B60+B61+B62+B64+B65+B66+B67))-1,4) -> 0.15
A69: Fonte da composição, valores de referência e fórmula do BDI: Instrução Normativa N° 62/DNIT SEDE

Sheet ENC. SOCIAIS
A6: NOME DA CONCORRENTE:
A7: EDITAL:
A8: FOLHA:
A9: ='MODULO MINIMO'!B1 -> EXECUÇÃO DE SERVIÇOS DE PAVIMENTAÇÃO COM TRATAMENTO SUPERFICIAL DUPLO EM VIAS DE MUNICÍPIOS DIVERSOS INSERIDOS NA ÁREA DE ATUAÇÃO DA CODEVASF, NO ESTADO MARANHÃO
A11: DETALHAMENTO DOS ENCARGOS SOCIAIS (%)
A12: VIGÊNCIA A PARTIR DE 12/2022 | C12: COM DESONERAÇÃO | E12: SEM DESONERAÇÃO
C14: HORISTA | D14: MENSALISTA | E14: HORISTA | F14: MENSALISTA
A16: GRUPO A
A17: A1 | B17: INSS | C17: 0 | D17: 0 | E17: 20 | F17: 20
A18: A2 | B18: SESI | C18: 1.5 | D18: 1.5 | E18: 1.5 | F18: 1.5
A19: A3 | B19: SENAI | C19: 1 | D19: 1 | E19: 1 | F19: 1
A20: A4 | B20: INCRA | C20: 0.2 | D20: 0.2 | E20: 0.2 | F20: 0.2
A21: A5 | B21: SEBRAE | C21: 0.6 | D21: 0.6 | E21: 0.6 | F21: 0.6
A22: A6 | B22: Salário Educação | C22: 2.5 | D22: 2.5 | E22: 2.5 | F22: 2.5
A23: A7 | B23: Seguro Contra Acidentes de Trabalho | C23: 3 | D23: 3 | E23: 3 | F23: 3
A24: A8 | B24: FGTS | C24: 8 | D24: 8 | E24: 8 | F24: 8
A25: A9 | B25: SECONCI | C25: 1 | D25: 1 | E25: 0 | F25: 0
A26: A | B26: Total | C26: =SUM(C17:C25) -> 17.8 | D26: =SUM(D17:D25) -> 17.8 | E26: =SUM(E17:E25) -> 36.8 | F26: =SUM(F17:F25) -> 36.8
A27: GRUPO B
A28: B1 | B28: Repouso Semanal Remunerado | C28: 17.88 | D28: - | E28: 17.88 | F28: -
A29: B2 | B29: Feriados | C29: 3.94 | D29: - | E29: 3.95 | F29: -
A30: B3 | B30: Auxílio-enfermidade | C30: 0.91 | D30: 0.69 | E30: 0.86 | F30: 0.65
A31: B4 | B31: 13° salário | C31: 10.98 | D31: 8.33 | E31: 10.97 | F31: 8.33
A32: B5 | B32: Licença-paternidade | C32: 0.07 | D32: 0.06 | E32: 0.07 | F32: 0.05
A33: B6 | B33: Faltas Justificadas | C33: 0.73 | D33: 0.56 | E33: 0.73 | F33: 0.56
A34: B7 | B34: Dias de chuva | C34: 1.45 | D34: - | E34: 1.56 | F34: -
A35: B8 | B35: Auxílio Acidente de Trabalho | C35: 0.11 | D35: 0.09 | E35: 0.1 | F35: 0.07
A36: B9 | B36: Férias Gozadas | C36: 11.35 | D36: 8.62 | E36: 11.16 | F36: 8.48
A37: B10 | B37: Salário Maternidade | C37: 0.03 | D37: 0.03 | E37: 0.03 | F37: 0.03
A38: B | B38: Total | C38: =SUM(C28:C37) -> 47.45 | D38: =SUM(D28:D37) -> 18.38 | E38: =SUM(E28:E37) -> 47.31 | F38: =SUM(F28:F37) -> 18.17
A39: GRUPO C
A40: C1 | B40: Aviso Prévio Indenizado | C40: 6.76 | D40: 5.14 | E40: 4.55 | F40: 3.46
A41: C2 | B41: Aviso Prévio Trabalhado | C41: 0.16 | D41: 0.12 | E41: 0.11 | F41: 0.08
A42: C3 | B42: Férias Indenizadas | C42: 2.28 | D42: 1.73 | E42: 3.17 | F42: 2.41
A43: C4 | B43: Depósito Rescisão Sem Justa Causa | C43: 3.81 | D43: 2.89 | E43: 2.6 | F43: 1.98
A44: C5 | B44: Indenização Adicional | C44: 0.57 | D44: 0.43 | E44: 0.38 | F44: 0.29
A45: C | B45: Total | C45: =SUM(C40:C44) -> 13.58 | D45: =SUM(D40:D44) -> 10.31 | E45: =SUM(E40:E44) -> 10.81 | F45: =SUM(F40:F44) -> 8.22
A46: GRUPO D
A47: D1 | B47: Reincidência de A sobre B | C47: 8.45 | D47: 3.27 | E47: 17.41 | F47: 6.69
A48: D2 | B48: Reincidência de Grupo A sobre Aviso Prévio Trabalhado e Reincidência do FGTS sobre Aviso Prévio Indenizado | C48: 0.57 | D48: 0.43 | E48: 0.4 | F48: 0.31
A49: D | B49: Total | C49: =SUM(C47:C48) -> 9.02 | D49: =SUM(D47:D48) -> 3.7 | E49: =SUM(E47:E48) -> 17.81 | F49: =SUM(F47:F48) -> 7
A51: T O T A L (%) | C51: =C26+C38+C45+C49 -> 87.85 | D51: =D26+D38+D45+D49 -> 50.19 | E51: =E26+E38+E45+E49 -> 112.73 | F51: =F26+F38+F45+F49 -> 70.19
H56: Fonte: Sinapi Cálculos e Parâmetros 5ª Edição - Atualizada em Agosto 2023

Sheet Transporte EAI
C2: MEMÓRIA DE CÁLCULO
C7: REAJUSTE | F7: TIPOLOGIA DO MATERIAL | I7: EMULSÃO ASFÁLTICA PARA SERVIÇO DE IMPRIMAÇÃO | M7: IMPOSTOS | N7: COFINS | O7: 0.0065 | P7: 0.0065
G8: ÍNDICE DE PAVIMENTAÇÃO DNIT | H8: 2014-07-01 | I8: ÍNDICE INICIAL | J8: 270.237 | N8: PIS | O8: 0.03 | P8: 0.03 | T8: LEGENDA | AC8: As empresas tributadas pelo Lucro Presumido pagam 0,65% de PIS e 3% de COFINS
H9: 2025-05-01 | I9: ÍNDICE FINAL | J9: 587.552 | N9: ICMS | O9: 0.23 | P9: 0.23 | Q9: =1-(O9/1) -> 0.77 | R9: =1-(P9/1) -> 0.77 | S9: =1-(Q9/1) -> 0.23 | T9: ENTRADA DE DADOS | AC9: As empresas tributadas pelo Lucro Real pagam 1,65% de PIS e 7,60% de COFINS
G10: Data ANP | H10: 2025-05-01
C11: DATA-BASE | D11: PRODUTOS | E11: LOCALIDADES | J11: CUSTO ANP (R$/Kg) | L11: CUSTO ANP | M11: IMPOSTOS DO PRODUTO | N11: CUSTO DO PRODUTO COM IMPOSTOS | O11: DMT's | P11: DMT'S FLUVIAL | Q11: CUSTO DO TRANSPORTE RODOVIA PAVIMENTADA | R11: CUSTO DO TRANSPORTE FLUVIAL | S11: CUSTO DO TRANSPORTE TOTAL | T11: ICMS | U11: ATUALIZAÇÃO DO CUSTO DE TRANSPORTE | V11: CUSTO DO TRANSPORTE RODOVIA PAVIMENTADA COM IMPOSTOS E ATUALIZAÇÃO MONETÁRIA | W11: PEDÁGIO | Y11: TOTAL TRANSPORTE | Z11: AQUISIÇÃO DO PRODUTO | AA11: TOTAL GERAL ( TRANSP + AQUISIÇÃO) | AC11: 1 | AD11: 2 | AE11: 3
C12: =H9 -> 2025-05-01 | E12: REFINARIAS | F12: ENDEREÇO | G12: ESTADO | H12: CIDADE | I12: DESTINO | J12: ESTADO | K12: REGIÃO | L12: R$/t | M12: R$/t | N12: R$/t | O12: KM | P12: KM | Q12: R$/t | R12: R$/t | S12: R$/t | T12: R$/t | U12: R$/t | V12: R$/t | W12: CUSTO | X12: R$/t | Y12: R$/t | Z12: R$/t | AA12: R$/t | AC12: TOTAL GERAL ( TRANSP + AQUISIÇÃO) | AD12: TOTAL TRANSPORTE | AE12: AQUISIÇÃO DO PRODUTO
B13: =AA13 -> 5075.255228 | C13: 1 | D13: =I7 -> EMULSÃO ASFÁLTICA PARA SERVIÇO DE IMPRIMAÇÃO | E13: 'CENTRO OESTE ASFALTOS LTDA. | F13: SETOR DE INFLAMÁVEIS, S/N TRECHO 02 - LOTE 1.100 - GUARÁ - CEP:71225-000 | G13: Distrito Federal | H13: BRASÍLIA - DF | I13: São Luís - MA | J13: =VLOOKUP(G13,OFFSET('ANP ESTADO'!$A$1,MATCH($I$7,'ANP ESTADO'!B:B,0)+MATCH($H$10,OFFSET('ANP ESTADO'!$A$1,MATCH($I$7,'ANP ESTADO'!B:B,0),0,100000,1),0),2,100000,2),2,FALSE) -> - | K13: =VLOOKUP($H$10,OFFSET('ANP REGIÃO'!$A$9,MATCH('Transporte EAI'!$I$7,'ANP REGIÃO'!A:A,0),1,10000,10000),MATCH('Transporte EAI'!AH13,'ANP REGIÃO'!$B$8:$G$8,0),FALSE) -> 2.586745228 | L13: =IF(AND(J13="-",K13="-"),"",IF(AND(J13<>0,K13="-"),J13*1000,IF(AND(J13="-",K13<>0),K13*1000,IF(AND(J13<>0,K13<>0),J13*1000,"")))) -> 2586.745228 | M13: =ROUND(((L13/(1-$O$7-$O$8-$O$9))-L13),2) -> 939.83 | N13: =L13+M13 -> 3526.575228 | O13: 2039 | Q13: =ROUND((26.939+0.253*O13),2) -> 542.81 | S13: =ROUND((26.939+0.253*Q13),2) -> 164.27 | T13: =TRUNC(Q13*($O$9/(1-$O$9)),2) -> 162.13 | U13: =TRUNC(IF($J$8="","",(($J$9-$J$8)/$J$8)*(Q13+T13)),2) -> 827.74 | V13: =Q13+T13+U13 -> 1532.68 | W13: 140 | X13: =EVEN((' CONSUMO DE MAT. B TOTAL'!$P$13+' CONSUMO DE MAT. B TOTAL'!P15)*2/28)*W13/(' CONSUMO DE MAT. B TOTAL'!$P$13+' CONSUMO DE MAT. B TOTAL'!P15) -> 16 | Y13: =IF(AND(Q13="",T13=""),"",V13+X13) -> 1548.68 | Z13: =IF(OR(L13="",M13=""),"",L13+M13) -> 3526.575228 | AA13: =IF(OR(Y13="",Z13=""),"",Y13+Z13) -> 5075.255228 | AC13: =AA13 -> 5075.255228 | AD13: =Y13 -> 1548.68 | AE13: =Z13 -> 3526.575228 | AH13: =IF(OR(G13=$D$58,G13=$D$59,G13=$D$61,G13=$D$67,G13=$D$51,G13=$D$47,G13=$D$43,G13=$D$56,G13=$D$46),"NORDESTE",IF(OR(G13=$D$42,G13=$D$44,G13=$D$45,G13=$D$55,G13=$D$63,G13=$D$64,G13=$D$68),"NORTE",IF(OR(G13=$D$48,G13=$D$50,G13=$D$52,G13=$D$53),"CENTRO-OESTE",IF(OR(G13=$D$66,G13=$D$60,G13=$D$54,G13=$D$49),"SUDESTE",IF(OR(G13=$D$65,G13=$D$57,G13=$D$62),"SUL",""))))) -> CENTRO-OESTE
B14: =AA14 -> 4600.133052 | C14: 2 | E14: STRATURA ASFALTOS S/A | F14: AVENIDA PRESIDENTE WILSON, 08 - JUNDIAÍ - CEP:75115-100 | G14: Goiás | H14: ANÁPOLIS - GO | I14: São Luís - MA | J14: =VLOOKUP(G14,OFFSET('ANP ESTADO'!$A$1,MATCH($I$7,'ANP ESTADO'!B:B,0)+MATCH($H$10,OFFSET('ANP ESTADO'!$A$1,MATCH($I$7,'ANP ESTADO'!B:B,0),0,100000,1),0),2,100000,2),2,FALSE) -> 2.270100671 | K14: =VLOOKUP($H$10,OFFSET('ANP REGIÃO'!$A$9,MATCH('Transporte EAI'!$I$7,'ANP REGIÃO'!A:A,0),1,10000,10000),MATCH('Transporte EAI'!AH14,'ANP REGIÃO'!$B$8:$G$8,0),FALSE) -> 2.586745228 | L14: =IF(AND(J14="-",K14="-"),"",IF(AND(J14<>0,K14="-"),J14*1000,IF(AND(J14="-",K14<>0),K14*1000,IF(AND(J14<>0,K14<>0),J14*1000,"")))) -> 2270.100671 | M14: =ROUND(((L14/(1-$O$7-$O$8-$O$9))-L14),2) -> 824.79 | N14: =L14+M14 -> 3094.890671 | O14: 1978 | Q14: =ROUND((26.939+0.253*O14),2) -> 527.37 | S14: 160.36 | T14: =TRUNC(Q14*($O$9/(1-$O$9)),2) -> 157.52 | U14: =TRUNC(IF($J$8="","",(($J$9-$J$8)/$J$8)*(Q14+T14)),2) -> 804.2 | V14: =Q14+T14+U14 -> 1489.09 | W14: 169.6 | X14: =EVEN((' CONSUMO DE MAT. B TOTAL'!$P$13+' CONSUMO DE MAT. B TOTAL'!P17)*2/28)*W14/(' CONSUMO DE MAT. B TOTAL'!$P$13+' CONSUMO DE MAT. B TOTAL'!P17) -> 16.15238095 | Y14: 1505.242381 | Z14: 3094.890671 | AA14: =IF(OR(Y14="",Z14=""),"",Y14+Z14) -> 4600.133052 | AC14: =AA14 -> 4600.133052 | AD14: =Y14 -> 1505.242381 | AE14: 3094.890671 | AH14: =IF(OR(G14=$D$58,G14=$D$59,G14=$D$61,G14=$D$67,G14=$D$51,G14=$D$47,G14=$D$43,G14=$D$56,G14=$D$46),"NORDESTE",IF(OR(G14=$D$42,G14=$D$44,G14=$D$45,G14=$D$55,G14=$D$63,G14=$D$64,G14=$D$68),"NORTE",IF(OR(G14=$D$48,G14=$D$50,G14=$D$52,G14=$D$53),"CENTRO-OESTE",IF(OR(G14=$D$66,G14=$D$60,G14=$D$54,G14=$D$49),"SUDESTE",IF(OR(G14=$D$65,G14=$D$57,G14=$D$62),"SUL",""))))) -> CENTRO-OESTE
B15: 4635.881624 | C15: 3 | E15: DISTRIBUIDORA BRASILEIRA DE ASFALTO SA - DISBRAL | F15: VIA PRIMARIA 8, S/N QD-18, MODS. 24/47 - DAIAG - CEP:74980-970 | G15: Goiás | H15: APARECIDA DE GOIANIA - GO | I15: São Luís - MA | J15: =VLOOKUP(G15,OFFSET('ANP ESTADO'!$A$1,MATCH($I$7,'ANP ESTADO'!B:B,0)+MATCH($H$10,OFFSET('ANP ESTADO'!$A$1,MATCH($I$7,'ANP ESTADO'!B:B,0),0,100000,1),0),2,100000,2),2,FALSE) -> 2.270100671 | K15: =VLOOKUP($H$10,OFFSET('ANP REGIÃO'!$A$9,MATCH('Transporte EAI'!$I$7,'ANP REGIÃO'!A:A,0),1,10000,10000),MATCH('Transporte EAI'!AH15,'ANP REGIÃO'!$B$8:$G$8,0),FALSE) -> 2.586745228 | L15: 2270.100671 | M15: 824.79 | N15: 3094.890671 | O15: 2028 | Q15: 540.02 | S15: 163.56 | T15: 161.3 | U15: 823.49 | V15: 1524.81 | W15: 169.9 | X15: =EVEN((' CONSUMO DE MAT. B TOTAL'!$P$13+' CONSUMO DE MAT. B TOTAL'!P18)*2/28)*W15/(' CONSUMO DE MAT. B TOTAL'!$P$13+' CONSUMO DE MAT. B TOTAL'!P18) -> 16.18095238 | Y15: 1540.990952 | Z15: 3094.890671 | AA15: 4635.881624 | AC15: 4635.881624 | AD15: 1540.990952 | AE15: 3094.890671 | AH15: CENTRO-OESTE
A16: 2403 | B16: 4620.181624 | C16: 4 | E16: INDÚSTRIA NACIONAL DE ASFALTOS LTDA. | F16: VIA PRIMEIRA E SEGUNDA 3, S/N.º LOTES 01 A 10 - DISTRITO AGROINDUSTRIAL - CEP:75370-000 | G16: Goiás | H16: GOIANIRA - GO | I16: São Luís - MA | J16: =VLOOKUP(G16,OFFSET('ANP ESTADO'!$A$1,MATCH($I$7,'ANP ESTADO'!B:B,0)+MATCH($H$10,OFFSET('ANP ESTADO'!$A$1,MATCH($I$7,'ANP ESTADO'!B:B,0),0,100000,1),0),2,100000,2),2,FALSE) -> 2.270100671 | K16: =VLOOKUP($H$10,OFFSET('ANP REGIÃO'!$A$9,MATCH('Transporte EAI'!$I$7,'ANP REGIÃO'!A:A,0),1,10000,10000),MATCH('Transporte EAI'!AH16,'ANP REGIÃO'!$B$8:$G$8,0),FALSE) -> 2.586745228 | L16: 2270.100671 | M16: 824.79 | N16: 3094.890671 | O16: 2006 | Q16: 534.46 | S16: 162.16 | T16: 159.64 | U16: 815.01 | V16: 1509.11 | W16: 169.9 | X16: =EVEN((' CONSUMO DE MAT. B TOTAL'!$P$13+' CONSUMO DE MAT. B TOTAL'!P19)*2/28)*W16/(' CONSUMO DE MAT. B TOTAL'!$P$13+' CONSUMO DE MAT. B TOTAL'!P19) -> 16.18095238 | Y16: 1525.290952 | Z16: 3094.890671 | AA16: 4620.181624 | AC16: 4620.181624 | AD16: 1525.290952 | AE16: 3094.890671 | AH16: CENTRO-OESTE
B17: 4775.202972 | C17: 5 | E17: STRATURA ASFALTOS S/A | F17: RUA VICTOR RODRIGUES RESENDE, 333 - DISTRITO IND. DE UBERLÂNDIA - CEP:38405-440 | G17: Minas Gerais | H17: UBERLANDIA - MG | I17: São Luís - MA | J17: =VLOOKUP(G17,OFFSET('ANP ESTADO'!$A$1,MATCH($I$7,'ANP ESTADO'!B:B,0)+MATCH($H$10,OFFSET('ANP ESTADO'!$A$1,MATCH($I$7,'ANP ESTADO'!B:B,0),0,100000,1),0),2,100000,2),2,FALSE) -> 2.202845353 | K17: =VLOOKUP($H$10,OFFSET('ANP REGIÃO'!$A$9,MATCH('Transporte EAI'!$I$7,'ANP REGIÃO'!A:A,0),1,10000,10000),MATCH('Transporte EAI'!AH17,'ANP REGIÃO'!$B$8:$G$8,0),FALSE) -> 2.380082902 | L17: 2202.845353 | M17: 800.35 | N17: 3003.195353 | O17: 2344 | Q17: 619.97 | S17: 183.79 | T17: 185.18 | U17: 945.41 | V17: 1750.56 | W17: 225.2 | X17: =EVEN((' CONSUMO DE MAT. B TOTAL'!$P$13+' CONSUMO DE MAT. B TOTAL'!P20)*2/28)*W17/(' CONSUMO DE MAT. B TOTAL'!$P$13+' CONSUMO DE MAT. B TOTAL'!P20) -> 21.44761905 | Y17: 1772.007619 | Z17: 3003.195353 | AA17: 4775.202972 | AC17: 4775.202972 | AD17: 1772.007619 | AE17: 3003.195353 | AH17: SUDESTE
B18: 4775.202972 | C18: 6 | E18: BETUNEL INDÚSTRIA E COMÉRCIO LTDA. | F18: RUA VICTOR RODRIGUES DE REZENDE, 185 - DISTRITO INDUSTRIAL - CEP:38402-334 | G18: Minas Gerais | H18: UBERLANDIA - MG | I18: São Luís - MA | J18: =VLOOKUP(G18,OFFSET('ANP ESTADO'!$A$1,MATCH($I$7,'ANP ESTADO'!B:B,0)+MATCH($H$10,OFFSET('ANP ESTADO'!$A$1,MATCH($I$7,'ANP ESTADO'!B:B,0),0,100000,1),0),2,100000,2),2,FALSE) -> 2.202845353 | K18: =VLOOKUP($H$10,OFFSET('ANP REGIÃO'!$A$9,MATCH('Transporte EAI'!$I$7,'ANP REGIÃO'!A:A,0),1,10000,10000),MATCH('Transporte EAI'!AH18,'ANP REGIÃO'!$B$8:$G$8,0),FALSE) -> 2.380082902 | L18: 2202.845353 | M18: 800.35 | N18: 3003.195353 | O18: 2344 | Q18: 619.97 | S18: 183.79 | T18: 185.18 | U18: 945.41 | V18: 1750.56 | W18: 225.2 | X18: =EVEN((' CONSUMO DE MAT. B TOTAL'!$P$13+' CONSUMO DE MAT. B TOTAL'!P21)*2/28)*W18/(' CONSUMO DE MAT. B TOTAL'!$P$13+' CONSUMO DE MAT. B TOTAL'!P21) -> 21.44761905 | Y18: 1772.007619 | Z18: 3003.195353 | AA18: 4775.202972 | AC18: 4775.202972 | AD18: 1772.007619 | AE18: 3003.195353 | AH18: SUDESTE
B19: 5432.931919 | C19: 7 | E19: ARAPETRO DISTRIBUIDORA DE PETRÓLEO LTDA. | F19: RUA 04, S/N° LOTES 17 A 20. - DISTRITO INDUSTRIAL 1/8 - CEP:78600-000 | G19: Mato grosso | H19: BARRA DO GARCAS - MT | I19: São Luís - MA | J19: =VLOOKUP(G19,OFFSET('ANP ESTADO'!$A$1,MATCH($I$7,'ANP ESTADO'!B:B,0)+MATCH($H$10,OFFSET('ANP ESTADO'!$A$1,MATCH($I$7,'ANP ESTADO'!B:B,0),0,100000,1),0),2,100000,2),2,FALSE) -> 2.771006204 | K19: =VLOOKUP($H$10,OFFSET('ANP REGIÃO'!$A$9,MATCH('Transporte EAI'!$I$7,'ANP REGIÃO'!A:A,0),1,10000,10000),MATCH('Transporte EAI'!AH19,'ANP REGIÃO'!$B$8:$G$8,0),FALSE) -> 2.586745228 | L19: =IF(AND(J19="-",K19="-"),"",IF(AND(J19<>0,K19="-"),J19*1000,IF(AND(J19="-",K19<>0),K19*1000,IF(AND(J19<>0,K19<>0),J19*1000,"")))) -> 2771.006204 | M19: =ROUND(((L19/(1-$O$7-$O$8-$O$9))-L19),2) -> 1006.78 | N19: 3777.786204 | O19: 2205 | Q19: 584.8 | S19: 174.89 | T19: 174.68 | U19: 891.78 | V19: 1651.26 | W19: 40.8 | X19: =EVEN((' CONSUMO DE MAT. B TOTAL'!$P$13+' CONSUMO DE MAT. B TOTAL'!P22)*2/28)*W19/(' CONSUMO DE MAT. B TOTAL'!$P$13+' CONSUMO DE MAT. B TOTAL'!P22) -> 3.885714286 | Y19: 1655.145714 | Z19: 3777.786204 | AA19: 5432.931919 | AH19: CENTRO-OESTE
B20: 4996.617257 | C20: 8 | E20: DISTRIBUIDORA BRASILEIRA DE ASFALTO SA - DISBRAL | F20: SÃO JUDAS TADEU, 288 - DISTRITO INDUSTRIAL - CEP:32450-000 | G20: Minas Gerais | H20: SARZEDO - MG | I20: São Luís - MA | J20: =VLOOKUP(G20,OFFSET('ANP ESTADO'!$A$1,MATCH($I$7,'ANP ESTADO'!B:B,0)+MATCH($H$10,OFFSET('ANP ESTADO'!$A$1,MATCH($I$7,'ANP ESTADO'!B:B,0),0,100000,1),0),2,100000,2),2,FALSE) -> 2.202845353 | K20: =VLOOKUP($H$10,OFFSET('ANP REGIÃO'!$A$9,MATCH('Transporte EAI'!$I$7,'ANP REGIÃO'!A:A,0),1,10000,10000),MATCH('Transporte EAI'!AH20,'ANP REGIÃO'!$B$8:$G$8,0),FALSE) -> 2.380082902 | L20: 2202.845353 | M20: 800.35 | N20: 3003.195353 | O20: 2670 | Q20: 702.45 | S20: 204.66 | T20: 209.82 | U20: 1071.19 | V20: 1983.46 | W20: 104.6 | X20: =EVEN((' CONSUMO DE MAT. B TOTAL'!$P$13+' CONSUMO DE MAT. B TOTAL'!P23)*2/28)*W20/(' CONSUMO DE MAT. B TOTAL'!$P$13+' CONSUMO DE MAT. B TOTAL'!P23) -> 9.961904762 | Y20: 1993.421905 | Z20: 3003.195353 | AA20: 4996.617257 | AH20: SUDESTE
B21: 5039.992641 | C21: 9 | E21: 'INDÚSTRIA NACIONAL DE ASFALTOS LTDA. | F21: INDÚSTRIA NACIONAL DE ASFALTOS LTDA - CEP:77053-080 | G21: Tocantins | H21: PALMAS - TO | I21: São Luís - MA | J21: =VLOOKUP(G21,OFFSET('ANP ESTADO'!$A$1,MATCH($I$7,'ANP ESTADO'!B:B,0)+MATCH($H$10,OFFSET('ANP ESTADO'!$A$1,MATCH($I$7,'ANP ESTADO'!B:B,0),0,100000,1),0),2,100000,2),2,FALSE) -> - | K21: =VLOOKUP($H$10,OFFSET('ANP REGIÃO'!$A$9,MATCH('Transporte EAI'!$I$7,'ANP REGIÃO'!A:A,0),1,10000,10000),MATCH('Transporte EAI'!AH21,'ANP REGIÃO'!$B$8:$G$8,0),FALSE) -> 2.986042641 | L21: 2986.042641 | M21: 1084.91 | N21: 4070.952641 | O21: 1250 | Q21: 343.19 | S21: 113.77 | T21: 102.51 | U21: 523.34 | V21: 969.04 | W21: 0 | X21: =EVEN((' CONSUMO DE MAT. B TOTAL'!$P$13+' CONSUMO DE MAT. B TOTAL'!P24)*2/28)*W21/(' CONSUMO DE MAT. B TOTAL'!$P$13+' CONSUMO DE MAT. B TOTAL'!P24) -> 0 | Y21: 969.04 | Z21: 4070.952641 | AA21: 5039.992641 | AH21: NORTE
B22: 5729.754311 | C22: 10 | E22: 'NTA - NOVAS TÉCNICAS DE ASFALTOS S/A | F22: RUA SOFIA ATAURI FADIN, 150 SALA A - B. SANTA TEREZINHA - CEP:13140-000 | G22: São Paulo | H22: PAULINIA - SP | I22: São Luís - MA | J22: =VLOOKUP(G22,OFFSET('ANP ESTADO'!$A$1,MATCH($I$7,'ANP ESTADO'!B:B,0)+MATCH($H$10,OFFSET('ANP ESTADO'!$A$1,MATCH($I$7,'ANP ESTADO'!B:B,0),0,100000,1),0),2,100000,2),2,FALSE) -> 2.644417644 | K22: =VLOOKUP($H$10,OFFSET('ANP REGIÃO'!$A$9,MATCH('Transporte EAI'!$I$7,'ANP REGIÃO'!A:A,0),1,10000,10000),MATCH('Transporte EAI'!AH22,'ANP REGIÃO'!$B$8:$G$8,0),FALSE) -> 2.380082902 | L22: 2644.417644 | M22: =ROUND(((L22/(1-$O$7-$O$8-$O$9))-L22),2) -> 960.79 | N22: 3605.207644 | O22: 2810 | Q22: 737.87 | S22: 213.62 | T22: 220.4 | U22: 1125.21 | V22: 2083.48 | W22: 431.2 | X22: =EVEN((' CONSUMO DE MAT. B TOTAL'!$P$13+' CONSUMO DE MAT. B TOTAL'!P25)*2/28)*W22/(' CONSUMO DE MAT. B TOTAL'!$P$13+' CONSUMO DE MAT. B TOTAL'!P25) -> 41.06666667 | Y22: 2124.546667 | Z22: 3605.207644 | AA22: 5729.754311 | AC22: 5729.754311 | AD22: 2124.546667 | AE22: 3605.207644 | AH22: SUDESTE
B23: 5869.54812 | C23: 11 | E23: COMPANHIA BRASILEIRA DE ASFALTOS DA AMAZÔNIA - IMPORTAÇÃO E EXPORTAÇÃO | F23: Avenida Doutor Olindo Dártora 2451, Galpão 02, Morro Grande - CEP:07726-555 | G23: São Paulo | H23: CAIEIRAS - SP | I23: São Luís - MA | J23: =VLOOKUP(G23,OFFSET('ANP ESTADO'!$A$1,MATCH($I$7,'ANP ESTADO'!B:B,0)+MATCH($H$10,OFFSET('ANP ESTADO'!$A$1,MATCH($I$7,'ANP ESTADO'!B:B,0),0,100000,1),0),2,100000,2),2,FALSE) -> 2.644417644 | K23: =VLOOKUP($H$10,OFFSET('ANP REGIÃO'!$A$9,MATCH('Transporte EAI'!$I$7,'ANP REGIÃO'!A:A,0),1,10000,10000),MATCH('Transporte EAI'!AH23,'ANP REGIÃO'!$B$8:$G$8,0),FALSE) -> 2.380082902 | L23: 2644.417644 | M23: =ROUND(((L23/(1-$O$7-$O$8-$O$9))-L23),2) -> 960.79 | N23: 3605.207644 | O23: 2998 | Q23: 785.43 | S23: 225.65 | T23: 234.6 | U23: 1197.72 | V23: 2217.75 | W23: 489.2 | X23: =EVEN((' CONSUMO DE MAT. B TOTAL'!$P$13+' CONSUMO DE MAT. B TOTAL'!P26)*2/28)*W23/(' CONSUMO DE MAT. B TOTAL'!$P$13+' CONSUMO DE MAT. B TOTAL'!P26) -> 46.59047619 | Y23: 2264.340476 | Z23: 3605.207644 | AA23: 5869.54812 | AH23: SUDESTE
B24: 5706.84999 | C24: 12 | E24: BETUNEL INDÚSTRIA E COMÉRCIO LTDA. | F24: R 16 , 82, Vila Nova Campo Grande - CEP:79.103-834 | G24: Mato Grosso do Sul | H24: CAMPO GRANDE - MS | I24: São Luís - MA | J24: =VLOOKUP(G24,OFFSET('ANP ESTADO'!$A$1,MATCH($I$7,'ANP ESTADO'!B:B,0)+MATCH($H$10,OFFSET('ANP ESTADO'!$A$1,MATCH($I$7,'ANP ESTADO'!B:B,0),0,100000,1),0),2,100000,2),2,FALSE) -> - | K24: =VLOOKUP($H$10,OFFSET('ANP REGIÃO'!$A$9,MATCH('Transporte EAI'!$I$7,'ANP REGIÃO'!A:A,0),1,10000,10000),MATCH('Transporte EAI'!AH24,'ANP REGIÃO'!$B$8:$G$8,0),FALSE) -> 2.586745228 | L24: 2586.745228 | M24: =ROUND(((L24/(1-$O$7-$O$8-$O$9))-L24),2) -> 939.83 | N24: 3526.575228 | O24: 2921 | Q24: 765.95 | S24: 220.72 | T24: 228.79 | U24: 1168.03 | V24: 2162.77 | W24: 183.8 | X24: =EVEN((' CONSUMO DE MAT. B TOTAL'!$P$13+' CONSUMO DE MAT. B TOTAL'!P27)*2/28)*W24/(' CONSUMO DE MAT. B TOTAL'!$P$13+' CONSUMO DE MAT. B TOTAL'!P27) -> 17.5047619 | Y24: 2180.274762 | Z24: 3526.575228 | AA24: 5706.84999 | AH24: CENTRO-OESTE
B25: 5805.506681 | C25: 13 | E25: CENTRO OESTE ASFALTOS LTDA. | F25: RUA N, S/N.º LOTES 39/43 E LOTES 129/133 - DISTRITO INDUSTRIAL - CEP:78098-400 | G25: Mato Grosso | H25: CUIABA - MT | I25: São Luís - MA | J25: =VLOOKUP(G25,OFFSET('ANP ESTADO'!$A$1,MATCH($I$7,'ANP ESTADO'!B:B,0)+MATCH($H$10,OFFSET('ANP ESTADO'!$A$1,MATCH($I$7,'ANP ESTADO'!B:B,0),0,100000,1),0),2,100000,2),2,FALSE) -> 2.771006204 | K25: =VLOOKUP($H$10,OFFSET('ANP REGIÃO'!$A$9,MATCH('Transporte EAI'!$I$7,'ANP REGIÃO'!A:A,0),1,10000,10000),MATCH('Transporte EAI'!AH25,'ANP REGIÃO'!$B$8:$G$8,0),FALSE) -> 2.586745228 | L25: 2771.006204 | M25: 1006.78 | N25: 3777.786204 | O25: 2725 | Q25: 716.36 | S25: 208.18 | T25: 213.97 | U25: 1092.4 | V25: 2022.73 | W25: 52.4 | X25: =EVEN((' CONSUMO DE MAT. B TOTAL'!$P$13+' CONSUMO DE MAT. B TOTAL'!P28)*2/28)*W25/(' CONSUMO DE MAT. B TOTAL'!$P$13+' CONSUMO DE MAT. B TOTAL'!P28) -> 4.99047619 | Y25: 2027.720476 | Z25: 3777.786204 | AA25: 5805.506681 | AH25: CENTRO-OESTE
B26: 5805.506681 | C26: 14 | E26: BETUNEL INDÚSTRIA E COMÉRCIO LTDA. | F26: RUA N ESQUINA COM RUA X, S/N QD. IND. 7 L 01/08 - DIST. IND. - CEP:78015-285 | G26: Mato Grosso | H26: CUIABA - MT | I26: São Luís - MA | J26: =VLOOKUP(G26,OFFSET('ANP ESTADO'!$A$1,MATCH($I$7,'ANP ESTADO'!B:B,0)+MATCH($H$10,OFFSET('ANP ESTADO'!$A$1,MATCH($I$7,'ANP ESTADO'!B:B,0),0,100000,1),0),2,100000,2),2,FALSE) -> 2.771006204 | K26: =VLOOKUP($H$10,OFFSET('ANP REGIÃO'!$A$9,MATCH('Transporte EAI'!$I$7,'ANP REGIÃO'!A:A,0),1,10000,10000),MATCH('Transporte EAI'!AH26,'ANP REGIÃO'!$B$8:$G$8,0),FALSE) -> 2.586745228 | L26: 2771.006204 | M26: 1006.78 | N26: 3777.786204 | O26: 2725 | Q26: 716.36 | S26: 208.18 | T26: 213.97 | U26: 1092.4 | V26: 2022.73 | W26: 52.4 | X26: =EVEN((' CONSUMO DE MAT. B TOTAL'!$P$13+' CONSUMO DE MAT. B TOTAL'!P29)*2/28)*W26/(' CONSUMO DE MAT. B TOTAL'!$P$13+' CONSUMO DE MAT. B TOTAL'!P29) -> 4.99047619 | Y26: 2027.720476 | Z26: 3777.786204 | AA26: 5805.506681 | AH26: CENTRO-OESTE
B27: 5806.246681 | C27: 15 | E27: EMAM - EMULSÕES E TRANSPORTES LTDA. | F27: RODOVIA DOS IMIGRANTES, S/Nº KM 8,6 - - CEP:60035-351 | G27: Mato Grosso | H27: VARZEA GRANDE - MT | I27: São Luís - MA | J27: =VLOOKUP(G27,OFFSET('ANP ESTADO'!$A$1,MATCH($I$7,'ANP ESTADO'!B:B,0)+MATCH($H$10,OFFSET('ANP ESTADO'!$A$1,MATCH($I$7,'ANP ESTADO'!B:B,0),0,100000,1),0),2,100000,2),2,FALSE) -> 2.771006204 | K27: =VLOOKUP($H$10,OFFSET('ANP REGIÃO'!$A$9,MATCH('Transporte EAI'!$I$7,'ANP REGIÃO'!A:A,0),1,10000,10000),MATCH('Transporte EAI'!AH27,'ANP REGIÃO'!$B$8:$G$8,0),FALSE) -> 2.586745228 | L27: 2771.006204 | M27: 1006.78 | N27: 3777.786204 | O27: 2726 | Q27: 716.62 | S27: 208.24 | T27: 214.05 | U27: 1092.8 | V27: 2023.47 | W27: 52.4 | X27: =EVEN((' CONSUMO DE MAT. B TOTAL'!$P$13+' CONSUMO DE MAT. B TOTAL'!P30)*2/28)*W27/(' CONSUMO DE MAT. B TOTAL'!$P$13+' CONSUMO DE MAT. B TOTAL'!P30) -> 4.99047619 | Y27: 2028.460476 | Z27: 3777.786204 | AA27: 5806.246681 | AC27: 5806.246681 | AD27: 2028.460476 | AE27: 3777.786204 | AH27: CENTRO-OESTE
B28: 5865.824787 | C28: 16 | E28: VIAPOL LTDA. | F28: VITO ARDITO, 6401 KM 118,5 - JARDIM CAMPO GRANDE - CEP:12282-535 | G28: São Paulo | H28: CACAPAVA - SP | I28: São Luís - MA | J28: =VLOOKUP(G28,OFFSET('ANP ESTADO'!$A$1,MATCH($I$7,'ANP ESTADO'!B:B,0)+MATCH($H$10,OFFSET('ANP ESTADO'!$A$1,MATCH($I$7,'ANP ESTADO'!B:B,0),0,100000,1),0),2,100000,2),2,FALSE) -> 2.644417644 | K28: =VLOOKUP($H$10,OFFSET('ANP REGIÃO'!$A$9,MATCH('Transporte EAI'!$I$7,'ANP REGIÃO'!A:A,0),1,10000,10000),MATCH('Transporte EAI'!AH28,'ANP REGIÃO'!$B$8:$G$8,0),FALSE) -> 2.380082902 | L28: 2644.417644 | M28: 960.79 | N28: 3605.207644 | O28: 2989 | Q28: 783.16 | S28: 225.08 | T28: 233.93 | U28: 1194.27 | V28: 2211.36 | W28: 517.2 | X28: =EVEN((' CONSUMO DE MAT. B TOTAL'!$P$13+' CONSUMO DE MAT. B TOTAL'!P31)*2/28)*W28/(' CONSUMO DE MAT. B TOTAL'!$P$13+' CONSUMO DE MAT. B TOTAL'!P31) -> 49.25714286 | Y28: 2260.617143 | Z28: 3605.207644 | AA28: 5865.824787 | AC28: 5865.824787 | AD28: 2260.617143 | AE28: 3605.207644 | AH28: SUDESTE
B29: 5551.001949 | C29: 17 | E29: STRATURA ASFALTOS S/A | F29: RUA LUIS DE CAMÕES, 26 - CAMPOS ELÍSEOS - CEP:25225-030 | G29: Rio de Janeiro | H29: DUQUE DE CAXIAS - RJ | I29: São Luís - MA | J29: =VLOOKUP(G29,OFFSET('ANP ESTADO'!$A$1,MATCH($I$7,'ANP ESTADO'!B:B,0)+MATCH($H$10,OFFSET('ANP ESTADO'!$A$1,MATCH($I$7,'ANP ESTADO'!B:B,0),0,100000,1),0),2,100000,2),2,FALSE) -> - | K29: =VLOOKUP($H$10,OFFSET('ANP REGIÃO'!$A$9,MATCH('Transporte EAI'!$I$7,'ANP REGIÃO'!A:A,0),1,10000,10000),MATCH('Transporte EAI'!AH29,'ANP REGIÃO'!$B$8:$G$8,0),FALSE) -> 2.380082902 | L29: 2380.082902 | M29: 864.75 | N29: 3244.832902 | O29: 3073 | Q29: 804.41 | S29: 230.45 | T29: 240.27 | U29: 1226.67 | V29: 2271.35 | W29: 365.6 | X29: =EVEN((' CONSUMO DE MAT. B TOTAL'!$P$13+' CONSUMO DE MAT. B TOTAL'!P32)*2/28)*W29/(' CONSUMO DE MAT. B TOTAL'!$P$13+' CONSUMO DE MAT. B TOTAL'!P32) -> 34.81904762 | Y29: 2306.169048 | Z29: 3244.832902 | AA29: 5551.001949 | AC29: 5551.001949 | AD29: 2306.169048 | AE29: 3244.832902 | AH29: SUDESTE
B30: 5561.721949 | C30: 18 | E30: PROBITEC - PRODUTOS BETUMINOSOS E TECNOLOGIA DE APLICAÇÃO LTDA. | F30: AVENIDA CANAL DA PAVUNA, 620 - PAVUNA - CEP:21535-630 | G30: Rio de Janeiro | H30: RIO DE JANEIRO - RJ | I30: São Luís - MA | J30: =VLOOKUP(G30,OFFSET('ANP ESTADO'!$A$1,MATCH($I$7,'ANP ESTADO'!B:B,0)+MATCH($H$10,OFFSET('ANP ESTADO'!$A$1,MATCH($I$7,'ANP ESTADO'!B:B,0),0,100000,1),0),2,100000,2),2,FALSE) -> - | K30: =VLOOKUP($H$10,OFFSET('ANP REGIÃO'!$A$9,MATCH('Transporte EAI'!$I$7,'ANP REGIÃO'!A:A,0),1,10000,10000),MATCH('Transporte EAI'!AH30,'ANP REGIÃO'!$B$8:$G$8,0),FALSE) -> 2.380082902 | L30: 2380.082902 | M30: 864.75 | N30: 3244.832902 | O30: 3088 | Q30: 808.2 | S30: 231.41 | T30: 241.41 | U30: 1232.46 | V30: 2282.07 | W30: 365.6 | X30: =EVEN((' CONSUMO DE MAT. B TOTAL'!$P$13+' CONSUMO DE MAT. B TOTAL'!P33)*2/28)*W30/(' CONSUMO DE MAT. B TOTAL'!$P$13+' CONSUMO DE MAT. B TOTAL'!P33) -> 34.81904762 | Y30: 2316.889048 | Z30: 3244.832902 | AA30: 5561.721949 | AC30: 5561.721949 | AD30: 2316.889048 | AE30: 3244.832902 | AH30: SUDESTE
B31: 5925.263187 | C31: 19 | E31: CASA DO ASFALTO DISTRIBUIDORA, INDÚSTRIA E COMÉRCIO DE ASFALTO LTDA. | F31: BR 376, PARQUE INDUSTRIAL, S/N LOTE 6/7/7-A-3-1 - GL.PATR.MARIALVA - CEP:86990-000 | G31: Paraná | H31: MARIALVA - PR | I31: São Luís - MA | J31: =VLOOKUP(G31,OFFSET('ANP ESTADO'!$A$1,MATCH($I$7,'ANP ESTADO'!B:B,0)+MATCH($H$10,OFFSET('ANP ESTADO'!$A$1,MATCH($I$7,'ANP ESTADO'!B:B,0),0,100000,1),0),2,100000,2),2,FALSE) -> 2.700638902 | K31: =VLOOKUP($H$10,OFFSET('ANP REGIÃO'!$A$9,MATCH('Transporte EAI'!$I$7,'ANP REGIÃO'!A:A,0),1,10000,10000),MATCH('Transporte EAI'!AH31,'ANP REGIÃO'!$B$8:$G$8,0),FALSE) -> 2.70024386 | L31: 2700.638902 | M31: 981.21 | N31: 3681.848902 | O31: 2980 | Q31: 780.88 | S31: 224.5 | T31: 233.24 | U31: 1190.78 | V31: 2204.9 | W31: 404.4 | X31: =EVEN((' CONSUMO DE MAT. B TOTAL'!$P$13+' CONSUMO DE MAT. B TOTAL'!P34)*2/28)*W31/(' CONSUMO DE MAT. B TOTAL'!$P$13+' CONSUMO DE MAT. B TOTAL'!P34) -> 38.51428571 | Y31: 2243.414286 | Z31: 3681.848902 | AA31: 5925.263187 | AC31: 5925.263187 | AD31: 2243.414286 | AE31: 3681.848902 | AH31: SUL
B32: 6033.147949 | C32: 20 | E32: PETROBRAS DISTRIBUIDORA S.A. | F32: RUA MAQUINISTA ELEODORO JACINTO, 100 - OFICINAS - CEP:84045-170 | G32: Paraná | H32: PONTA GROSSA - PR | I32: São Luís - MA | J32: =VLOOKUP(G32,OFFSET('ANP ESTADO'!$A$1,MATCH($I$7,'ANP ESTADO'!B:B,0)+MATCH($H$10,OFFSET('ANP ESTADO'!$A$1,MATCH($I$7,'ANP ESTADO'!B:B,0),0,100000,1),0),2,100000,2),2,FALSE) -> 2.700638902 | K32: =VLOOKUP($H$10,OFFSET('ANP REGIÃO'!$A$9,MATCH('Transporte EAI'!$I$7,'ANP REGIÃO'!A:A,0),1,10000,10000),MATCH('Transporte EAI'!AH32,'ANP REGIÃO'!$B$8:$G$8,0),FALSE) -> 2.70024386 | L32: 2700.638902 | M32: 981.21 | N32: 3681.848902 | O32: 3125 | Q32: 817.56 | S32: 233.78 | T32: 244.2 | U32: 1246.72 | V32: 2308.48 | W32: 449.6 | X32: =EVEN((' CONSUMO DE MAT. B TOTAL'!$P$13+' CONSUMO DE MAT. B TOTAL'!P35)*2/28)*W32/(' CONSUMO DE MAT. B TOTAL'!$P$13+' CONSUMO DE MAT. B TOTAL'!P35) -> 42.81904762 | Y32: 2351.299048 | Z32: 3681.848902 | AA32: 6033.147949 | AC32: 6033.147949 | AD32: 2351.299048 | AE32: 3681.848902 | AH32: SUL
D42: Acre
D43: Alagoas
D44: Amapá
D45: Amazonas
D46: Bahia
D47: Ceará
D48: Distrito Federal
D49: Espírito Santo
D50: Goiás
D51: Maranhão
D52: Mato Grosso
D53: Mato Grosso do Sul
D54: Minas Gerais
D55: Pará
D56: Paraíba
D57: Paraná
D58: Pernambuco
D59: Piauí
D60: Rio de Janeiro
D61: Rio Grande do Norte
D62: Rio Grande do Sul
D63: Rondônia
D64: Roraima
D65: Santa Catarina
D66: São Paulo
D67: Sergipe
D68: Tocantins
D72: ASFALTOS DILUÍDOS CM-30
D73: ASFALTOS DILUÍDOS CM-70
D74: ASFALTOS DILUÍDOS CR-250
D75: ASFALTOS DILUÍDOS CR-70
D76: CAP MODIFICADO POR BORRACHA DE PNEU AB22
D77: CAP MODIFICADO POR BORRACHA DE PNEU AB8
D78: CAP MODIFICADO POR POLÍMERO 55-75-E
D79: CAP MODIFICADO POR POLÍMERO 60-85-E
D80: CAP MODIFICADO POR POLÍMERO 65-90-E
D81: CIMENTOS ASFÁLTICOS CAP-150-200
D82: CIMENTOS ASFÁLTICOS CAP-30-45
D83: CIMENTOS ASFÁLTICOS CAP-50-70
D84: CIMENTOS ASFÁLTICOS CAP-85-100
D85: EMULSÃO ASFÁLTICA CATIÔNICA DE RUPTURA CONTROLADA PARA SERVIÇO DE LAMA ASFÁLTICA
D86: EMULSÃO ASFÁLTICA DE RUPTURA LENTA CATIÔNICA PARA SERVIÇO DE LAMA ASFÁLTICA
D87: EMULSÃO ASFÁLTICA DE RUPTURA LENTA DE CARGA NEUTRA PARA SERVIÇO DE LAMA ASFÁLTICA
D88: EMULSÃO ASFÁLTICA PARA SERVIÇO DE IMPRIMAÇÃO
D89: EMULSÕES ASF. MOD. POR POLÍMEROS RC1C-E
D90: EMULSÕES ASF. MOD. POR POLÍMEROS RL1C-E
D91: EMULSÕES ASF. MOD. POR POLÍMEROS RM1C-E
D92: EMULSÕES ASF. MOD. POR POLÍMEROS RR1C-E
D93: EMULSÕES ASF. MOD. POR POLÍMEROS RR2C-E
D94: EMULSÕES ASFÁLTICAS RL-1C
D95: EMULSÕES ASFÁLTICAS RM-1C
D96: EMULSÕES ASFÁLTICAS RM-2C
D97: EMULSÕES ASFÁLTICAS RR-1C
D98: EMULSÕES ASFÁLTICAS RR-2C

Sheet Transporte RR-2C
C2: MEMÓRIA DE CÁLCULO
C7: REAJUSTE | F7: TIPOLOGIA DO MATERIAL | I7: EMULSÕES ASFÁLTICAS RR-2C | M7: IMPOSTOS | N7: COFINS | O7: 0.0065 | P7: 0.0065
G8: ÍNDICE DE PAVIMENTAÇÃO DNIT | H8: 2014-07-01 | I8: ÍNDICE INICIAL | J8: 270.237 | N8: PIS | O8: 0.03 | P8: 0.03 | T8: LEGENDA | AC8: As empresas tributadas pelo Lucro Presumido pagam 0,65% de PIS e 3% de COFINS
H9: 2025-05-01 | I9: ÍNDICE FINAL | J9: 587.552 | N9: ICMS | O9: 0.23 | P9: 0.23 | Q9: =1-(O9/1) -> 0.77 | R9: =1-(P9/1) -> 0.77 | S9: =1-(Q9/1) -> 0.23 | T9: ENTRADA DE DADOS | AC9: As empresas tributadas pelo Lucro Real pagam 1,65% de PIS e 7,60% de COFINS
G10: Data ANP | H10: 2025-05-01
C11: DATA-BASE | D11: PRODUTOS | E11: LOCALIDADES | J11: CUSTO ANP (R$/Kg) | L11: CUSTO ANP | M11: IMPOSTOS DO PRODUTO | N11: CUSTO DO PRODUTO COM IMPOSTOS | O11: DMT's | P11: DMT'S FLUVIAL | Q11: CUSTO DO TRANSPORTE RODOVIA PAVIMENTADA | R11: CUSTO DO TRANSPORTE FLUVIAL | S11: CUSTO DO TRANSPORTE TOTAL | T11: ICMS | U11: ATUALIZAÇÃO DO CUSTO DE TRANSPORTE | V11: CUSTO DO TRANSPORTE RODOVIA PAVIMENTADA COM IMPOSTOS E ATUALIZAÇÃO MONETÁRIA | W11: PEDÁGIO | Y11: TOTAL TRANSPORTE | Z11: AQUISIÇÃO DO PRODUTO | AA11: TOTAL GERAL ( TRANSP + AQUISIÇÃO) | AC11: 1 | AD11: 2 | AE11: 3
C12: =H9 -> 2025-05-01 | E12: REFINARIAS | F12: ENDEREÇO | G12: ESTADO | H12: CIDADE | I12: DESTINO | J12: ESTADO | K12: REGIÃO | L12: R$/t | M12: R$/t | N12: R$/t | O12: KM | P12: KM | Q12: R$/t | R12: R$/t | S12: R$/t | T12: R$/t | U12: R$/t | V12: R$/t | W12: CUSTO | X12: R$/t | Y12: R$/t | Z12: R$/t | AA12: R$/t | AC12: TOTAL GERAL ( TRANSP + AQUISIÇÃO) | AD12: TOTAL TRANSPORTE | AE12: AQUISIÇÃO DO PRODUTO
B13: =AA13 -> 5744.546749 | C13: 1 | D13: =I7 -> EMULSÕES ASFÁLTICAS RR-2C | E13: 'CENTRO OESTE ASFALTOS LTDA. | F13: SETOR DE INFLAMÁVEIS, S/N TRECHO 02 - LOTE 1.100 - GUARÁ - CEP:71225-000 | G13: Distrito Federal | H13: BRASÍLIA - DF | I13: São Luís - MA | J13: =VLOOKUP(G13,OFFSET('ANP ESTADO'!$A$1,MATCH($I$7,'ANP ESTADO'!B:B,0)+MATCH($H$10,OFFSET('ANP ESTADO'!$A$1,MATCH($I$7,'ANP ESTADO'!B:B,0),0,100000,1),0),2,100000,2),2,FALSE) -> 3.077666749 | K13: =VLOOKUP($H$10,OFFSET('ANP REGIÃO'!$A$9,MATCH('Transporte RR-2C'!$I$7,'ANP REGIÃO'!A:A,0),1,10000,10000),MATCH('Transporte RR-2C'!AH13,'ANP REGIÃO'!$B$8:$G$8,0),FALSE) -> 3.261745309 | L13: =IF(AND(J13="-",K13="-"),"",IF(AND(J13<>0,K13="-"),J13*1000,IF(AND(J13="-",K13<>0),K13*1000,IF(AND(J13<>0,K13<>0),J13*1000,"")))) -> 3077.666749 | M13: =ROUND(((L13/(1-$O$7-$O$8-$O$9))-L13),2) -> 1118.2 | N13: =L13+M13 -> 4195.866749 | O13: 2039 | Q13: =ROUND((26.939+0.253*O13),2) -> 542.81 | S13: =ROUND((26.939+0.253*Q13),2) -> 164.27 | T13: =TRUNC(Q13*($O$9/(1-$O$9)),2) -> 162.13 | U13: =TRUNC(IF($J$8="","",(($J$9-$J$8)/$J$8)*(Q13+T13)),2) -> 827.74 | V13: =Q13+T13+U13 -> 1532.68 | W13: 140 | X13: =EVEN((' CONSUMO DE MAT. B TOTAL'!$P$13+' CONSUMO DE MAT. B TOTAL'!P15)*2/28)*W13/(' CONSUMO DE MAT. B TOTAL'!$P$13+' CONSUMO DE MAT. B TOTAL'!P15) -> 16 | Y13: =IF(AND(Q13="",T13=""),"",V13+X13) -> 1548.68 | Z13: =IF(OR(L13="",M13=""),"",L13+M13) -> 4195.866749 | AA13: =IF(OR(Y13="",Z13=""),"",Y13+Z13) -> 5744.546749 | AC13: =AA13 -> 5744.546749 | AD13: =Y13 -> 1548.68 | AE13: =Z13 -> 4195.866749 | AH13: =IF(OR(G13=$D$58,G13=$D$59,G13=$D$61,G13=$D$67,G13=$D$51,G13=$D$47,G13=$D$43,G13=$D$56,G13=$D$46),"NORDESTE",IF(OR(G13=$D$42,G13=$D$44,G13=$D$45,G13=$D$55,G13=$D$63,G13=$D$64,G13=$D$68),"NORTE",IF(OR(G13=$D$48,G13=$D$50,G13=$D$52,G13=$D$53),"CENTRO-OESTE",IF(OR(G13=$D$66,G13=$D$60,G13=$D$54,G13=$D$49),"SUDESTE",IF(OR(G13=$D$65,G13=$D$57,G13=$D$62),"SUL",""))))) -> CENTRO-OESTE
B14: =AA14 -> 5625.695533 | C14: 2 | E14: STRATURA ASFALTOS S/A | F14: AVENIDA PRESIDENTE WILSON, 08 - JUNDIAÍ - CEP:75115-100 | G14: Goiás | H14: ANÁPOLIS - GO | I14: São Luís - MA | J14: =VLOOKUP(G14,OFFSET('ANP ESTADO'!$A$1,MATCH($I$7,'ANP ESTADO'!B:B,0)+MATCH($H$10,OFFSET('ANP ESTADO'!$A$1,MATCH($I$7,'ANP ESTADO'!B:B,0),0,100000,1),0),2,100000,2),2,FALSE) -> 3.022353152 | K14: =VLOOKUP($H$10,OFFSET('ANP REGIÃO'!$A$9,MATCH('Transporte RR-2C'!$I$7,'ANP REGIÃO'!A:A,0),1,10000,10000),MATCH('Transporte RR-2C'!AH14,'ANP REGIÃO'!$B$8:$G$8,0),FALSE) -> 3.261745309 | L14: =IF(AND(J14="-",K14="-"),"",IF(AND(J14<>0,K14="-"),J14*1000,IF(AND(J14="-",K14<>0),K14*1000,IF(AND(J14<>0,K14<>0),J14*1000,"")))) -> 3022.353152 | M14: =ROUND(((L14/(1-$O$7-$O$8-$O$9))-L14),2) -> 1098.1 | N14: =L14+M14 -> 4120.453152 | O14: 1978 | Q14: =ROUND((26.939+0.253*O14),2) -> 527.37 | S14: 160.36 | T14: =TRUNC(Q14*($O$9/(1-$O$9)),2) -> 157.52 | U14: =TRUNC(IF($J$8="","",(($J$9-$J$8)/$J$8)*(Q14+T14)),2) -> 804.2 | V14: =Q14+T14+U14 -> 1489.09 | W14: 169.6 | X14: =EVEN((' CONSUMO DE MAT. B TOTAL'!$P$13+' CONSUMO DE MAT. B TOTAL'!P17)*2/28)*W14/(' CONSUMO DE MAT. B TOTAL'!$P$13+' CONSUMO DE MAT. B TOTAL'!P17) -> 16.15238095 | Y14: 1505.242381 | Z14: 4120.453152 | AA14: =IF(OR(Y14="",Z14=""),"",Y14+Z14) -> 5625.695533 | AC14: =AA14 -> 5625.695533 | AD14: =Y14 -> 1505.242381 | AE14: 4120.453152 | AH14: =IF(OR(G14=$D$58,G14=$D$59,G14=$D$61,G14=$D$67,G14=$D$51,G14=$D$47,G14=$D$43,G14=$D$56,G14=$D$46),"NORDESTE",IF(OR(G14=$D$42,G14=$D$44,G14=$D$45,G14=$D$55,G14=$D$63,G14=$D$64,G14=$D$68),"NORTE",IF(OR(G14=$D$48,G14=$D$50,G14=$D$52,G14=$D$53),"CENTRO-OESTE",IF(OR(G14=$D$66,G14=$D$60,G14=$D$54,G14=$D$49),"SUDESTE",IF(OR(G14=$D$65,G14=$D$57,G14=$D$62),"SUL",""))))) -> CENTRO-OESTE
B15: 5661.444105 | C15: 3 | E15: DISTRIBUIDORA BRASILEIRA DE ASFALTO SA - DISBRAL | F15: VIA PRIMARIA 8, S/N QD-18, MODS. 24/47 - DAIAG - CEP:74980-970 | G15: Goiás | H15: APARECIDA DE GOIANIA - GO | I15: São Luís - MA | J15: =VLOOKUP(G15,OFFSET('ANP ESTADO'!$A$1,MATCH($I$7,'ANP ESTADO'!B:B,0)+MATCH($H$10,OFFSET('ANP ESTADO'!$A$1,MATCH($I$7,'ANP ESTADO'!B:B,0),0,100000,1),0),2,100000,2),2,FALSE) -> 3.022353152 | K15: =VLOOKUP($H$10,OFFSET('ANP REGIÃO'!$A$9,MATCH('Transporte RR-2C'!$I$7,'ANP REGIÃO'!A:A,0),1,10000,10000),MATCH('Transporte RR-2C'!AH15,'ANP REGIÃO'!$B$8:$G$8,0),FALSE) -> 3.261745309 | L15: 3022.353152 | M15: 1098.1 | N15: 4120.453152 | O15: 2028 | Q15: 540.02 | S15: 163.56 | T15: 161.3 | U15: 823.49 | V15: 1524.81 | W15: 169.9 | X15: =EVEN((' CONSUMO DE MAT. B TOTAL'!$P$13+' CONSUMO DE MAT. B TOTAL'!P18)*2/28)*W15/(' CONSUMO DE MAT. B TOTAL'!$P$13+' CONSUMO DE MAT. B TOTAL'!P18) -> 16.18095238 | Y15: 1540.990952 | Z15: 4120.453152 | AA15: 5661.444105 | AC15: 5661.444105 | AD15: 1540.990952 | AE15: 4120.453152 | AH15: CENTRO-OESTE
A16: 2403 | B16: 5645.744105 | C16: 4 | E16: INDÚSTRIA NACIONAL DE ASFALTOS LTDA. | F16: VIA PRIMEIRA E SEGUNDA 3, S/N.º LOTES 01 A 10 - DISTRITO AGROINDUSTRIAL - CEP:75370-000 | G16: Goiás | H16: GOIANIRA - GO | I16: São Luís - MA | J16: =VLOOKUP(G16,OFFSET('ANP ESTADO'!$A$1,MATCH($I$7,'ANP ESTADO'!B:B,0)+MATCH($H$10,OFFSET('ANP ESTADO'!$A$1,MATCH($I$7,'ANP ESTADO'!B:B,0),0,100000,1),0),2,100000,2),2,FALSE) -> 3.022353152 | K16: =VLOOKUP($H$10,OFFSET('ANP REGIÃO'!$A$9,MATCH('Transporte RR-2C'!$I$7,'ANP REGIÃO'!A:A,0),1,10000,10000),MATCH('Transporte RR-2C'!AH16,'ANP REGIÃO'!$B$8:$G$8,0),FALSE) -> 3.261745309 | L16: 3022.353152 | M16: 1098.1 | N16: 4120.453152 | O16: 2006 | Q16: 534.46 | S16: 162.16 | T16: 159.64 | U16: 815.01 | V16: 1509.11 | W16: 169.9 | X16: =EVEN((' CONSUMO DE MAT. B TOTAL'!$P$13+' CONSUMO DE MAT. B TOTAL'!P19)*2/28)*W16/(' CONSUMO DE MAT. B TOTAL'!$P$13+' CONSUMO DE MAT. B TOTAL'!P19) -> 16.18095238 | Y16: 1525.290952 | Z16: 4120.453152 | AA16: 5645.744105 | AC16: 5645.744105 | AD16: 1525.290952 | AE16: 4120.453152 | AH16: CENTRO-OESTE
B17: 6096.016781 | C17: 5 | E17: STRATURA ASFALTOS S/A | F17: RUA VICTOR RODRIGUES RESENDE, 333 - DISTRITO IND. DE UBERLÂNDIA - CEP:38405-440 | G17: Minas Gerais | H17: UBERLANDIA - MG | I17: São Luís - MA | J17: =VLOOKUP(G17,OFFSET('ANP ESTADO'!$A$1,MATCH($I$7,'ANP ESTADO'!B:B,0)+MATCH($H$10,OFFSET('ANP ESTADO'!$A$1,MATCH($I$7,'ANP ESTADO'!B:B,0),0,100000,1),0),2,100000,2),2,FALSE) -> 3.171659162 | K17: =VLOOKUP($H$10,OFFSET('ANP REGIÃO'!$A$9,MATCH('Transporte RR-2C'!$I$7,'ANP REGIÃO'!A:A,0),1,10000,10000),MATCH('Transporte RR-2C'!AH17,'ANP REGIÃO'!$B$8:$G$8,0),FALSE) -> 3.044994528 | L17: 3171.659162 | M17: 1152.35 | N17: 4324.009162 | O17: 2344 | Q17: 619.97 | S17: 183.79 | T17: 185.18 | U17: 945.41 | V17: 1750.56 | W17: 225.2 | X17: =EVEN((' CONSUMO DE MAT. B TOTAL'!$P$13+' CONSUMO DE MAT. B TOTAL'!P20)*2/28)*W17/(' CONSUMO DE MAT. B TOTAL'!$P$13+' CONSUMO DE MAT. B TOTAL'!P20) -> 21.44761905 | Y17: 1772.007619 | Z17: 4324.009162 | AA17: 6096.016781 | AC17: 6096.016781 | AD17: 1772.007619 | AE17: 4324.009162 | AH17: SUDESTE
B18: 6096.016781 | C18: 6 | E18: BETUNEL INDÚSTRIA E COMÉRCIO LTDA. | F18: RUA VICTOR RODRIGUES DE REZENDE, 185 - DISTRITO INDUSTRIAL - CEP:38402-334 | G18: Minas Gerais | H18: UBERLANDIA - MG | I18: São Luís - MA | J18: =VLOOKUP(G18,OFFSET('ANP ESTADO'!$A$1,MATCH($I$7,'ANP ESTADO'!B:B,0)+MATCH($H$10,OFFSET('ANP ESTADO'!$A$1,MATCH($I$7,'ANP ESTADO'!B:B,0),0,100000,1),0),2,100000,2),2,FALSE) -> 3.171659162 | K18: =VLOOKUP($H$10,OFFSET('ANP REGIÃO'!$A$9,MATCH('Transporte RR-2C'!$I$7,'ANP REGIÃO'!A:A,0),1,10000,10000),MATCH('Transporte RR-2C'!AH18,'ANP REGIÃO'!$B$8:$G$8,0),FALSE) -> 3.044994528 | L18: 3171.659162 | M18: 1152.35 | N18: 4324.009162 | O18: 2344 | Q18: 619.97 | S18: 183.79 | T18: 185.18 | U18: 945.41 | V18: 1750.56 | W18: 225.2 | X18: =EVEN((' CONSUMO DE MAT. B TOTAL'!$P$13+' CONSUMO DE MAT. B TOTAL'!P21)*2/28)*W18/(' CONSUMO DE MAT. B TOTAL'!$P$13+' CONSUMO DE MAT. B TOTAL'!P21) -> 21.44761905 | Y18: 1772.007619 | Z18: 4324.009162 | AA18: 6096.016781 | AC18: 6096.016781 | AD18: 1772.007619 | AE18: 4324.009162 | AH18: SUDESTE
B19: 6644.378184 | C19: 7 | E19: ARAPETRO DISTRIBUIDORA DE PETRÓLEO LTDA. | F19: RUA 04, S/N° LOTES 17 A 20. - DISTRITO INDUSTRIAL 1/8 - CEP:78600-000 | G19: Mato grosso | H19: BARRA DO GARCAS - MT | I19: São Luís - MA | J19: =VLOOKUP(G19,OFFSET('ANP ESTADO'!$A$1,MATCH($I$7,'ANP ESTADO'!B:B,0)+MATCH($H$10,OFFSET('ANP ESTADO'!$A$1,MATCH($I$7,'ANP ESTADO'!B:B,0),0,100000,1),0),2,100000,2),2,FALSE) -> 3.65960247 | K19: =VLOOKUP($H$10,OFFSET('ANP REGIÃO'!$A$9,MATCH('Transporte RR-2C'!$I$7,'ANP REGIÃO'!A:A,0),1,10000,10000),MATCH('Transporte RR-2C'!AH19,'ANP REGIÃO'!$B$8:$G$8,0),FALSE) -> 3.261745309 | L19: =IF(AND(J19="-",K19="-"),"",IF(AND(J19<>0,K19="-"),J19*1000,IF(AND(J19="-",K19<>0),K19*1000,IF(AND(J19<>0,K19<>0),J19*1000,"")))) -> 3659.60247 | M19: =ROUND(((L19/(1-$O$7-$O$8-$O$9))-L19),2) -> 1329.63 | N19: 4989.23247 | O19: 2205 | Q19: 584.8 | S19: 174.89 | T19: 174.68 | U19: 891.78 | V19: 1651.26 | W19: 40.8 | X19: =EVEN((' CONSUMO DE MAT. B TOTAL'!$P$13+' CONSUMO DE MAT. B TOTAL'!P22)*2/28)*W19/(' CONSUMO DE MAT. B TOTAL'!$P$13+' CONSUMO DE MAT. B TOTAL'!P22) -> 3.885714286 | Y19: 1655.145714 | Z19: 4989.23247 | AA19: 6644.378184 | AH19: CENTRO-OESTE
B20: 6317.431066 | C20: 8 | E20: DISTRIBUIDORA BRASILEIRA DE ASFALTO SA - DISBRAL | F20: SÃO JUDAS TADEU, 288 - DISTRITO INDUSTRIAL - CEP:32450-000 | G20: Minas Gerais | H20: SARZEDO - MG | I20: São Luís - MA | J20: =VLOOKUP(G20,OFFSET('ANP ESTADO'!$A$1,MATCH($I$7,'ANP ESTADO'!B:B,0)+MATCH($H$10,OFFSET('ANP ESTADO'!$A$1,MATCH($I$7,'ANP ESTADO'!B:B,0),0,100000,1),0),2,100000,2),2,FALSE) -> 3.171659162 | K20: =VLOOKUP($H$10,OFFSET('ANP REGIÃO'!$A$9,MATCH('Transporte RR-2C'!$I$7,'ANP REGIÃO'!A:A,0),1,10000,10000),MATCH('Transporte RR-2C'!AH20,'ANP REGIÃO'!$B$8:$G$8,0),FALSE) -> 3.044994528 | L20: 3171.659162 | M20: 1152.35 | N20: 4324.009162 | O20: 2670 | Q20: 702.45 | S20: 204.66 | T20: 209.82 | U20: 1071.19 | V20: 1983.46 | W20: 104.6 | X20: =EVEN((' CONSUMO DE MAT. B TOTAL'!$P$13+' CONSUMO DE MAT. B TOTAL'!P23)*2/28)*W20/(' CONSUMO DE MAT. B TOTAL'!$P$13+' CONSUMO DE MAT. B TOTAL'!P23) -> 9.961904762 | Y20: 1993.421905 | Z20: 4324.009162 | AA20: 6317.431066 | AH20: SUDESTE
B21: 5005.392422 | C21: 9 | E21: 'INDÚSTRIA NACIONAL DE ASFALTOS LTDA. | F21: INDÚSTRIA NACIONAL DE ASFALTOS LTDA - CEP:77053-080 | G21: Tocantins | H21: PALMAS - TO | I21: São Luís - MA | J21: =VLOOKUP(G21,OFFSET('ANP ESTADO'!$A$1,MATCH($I$7,'ANP ESTADO'!B:B,0)+MATCH($H$10,OFFSET('ANP ESTADO'!$A$1,MATCH($I$7,'ANP ESTADO'!B:B,0),0,100000,1),0),2,100000,2),2,FALSE) -> 2.960662422 | K21: =VLOOKUP($H$10,OFFSET('ANP REGIÃO'!$A$9,MATCH('Transporte RR-2C'!$I$7,'ANP REGIÃO'!A:A,0),1,10000,10000),MATCH('Transporte RR-2C'!AH21,'ANP REGIÃO'!$B$8:$G$8,0),FALSE) -> 3.283919195 | L21: 2960.662422 | M21: 1075.69 | N21: 4036.352422 | O21: 1250 | Q21: 343.19 | S21: 113.77 | T21: 102.51 | U21: =TRUNC(IF($J$8="","",(($J$9-$J$8)/$J$8)*(Q21+T21)),2) -> 523.34 | V21: 969.04 | W21: 0 | X21: =EVEN((' CONSUMO DE MAT. B TOTAL'!$P$13+' CONSUMO DE MAT. B TOTAL'!P24)*2/28)*W21/(' CONSUMO DE MAT. B TOTAL'!$P$13+' CONSUMO DE MAT. B TOTAL'!P24) -> 0 | Y21: 969.04 | Z21: 4036.352422 | AA21: 5005.392422 | AH21: NORTE
B22: 6167.217973 | C22: 10 | E22: 'NTA - NOVAS TÉCNICAS DE ASFALTOS S/A | F22: RUA SOFIA ATAURI FADIN, 150 SALA A - B. SANTA TEREZINHA - CEP:13140-000 | G22: São Paulo | H22: PAULINIA - SP | I22: São Luís - MA | J22: =VLOOKUP(G22,OFFSET('ANP ESTADO'!$A$1,MATCH($I$7,'ANP ESTADO'!B:B,0)+MATCH($H$10,OFFSET('ANP ESTADO'!$A$1,MATCH($I$7,'ANP ESTADO'!B:B,0),0,100000,1),0),2,100000,2),2,FALSE) -> 2.965301306 | K22: =VLOOKUP($H$10,OFFSET('ANP REGIÃO'!$A$9,MATCH('Transporte RR-2C'!$I$7,'ANP REGIÃO'!A:A,0),1,10000,10000),MATCH('Transporte RR-2C'!AH22,'ANP REGIÃO'!$B$8:$G$8,0),FALSE) -> 3.044994528 | L22: 2965.301306 | M22: =ROUND(((L22/(1-$O$7-$O$8-$O$9))-L22),2) -> 1077.37 | N22: 4042.671306 | O22: 2810 | Q22: 737.87 | S22: 213.62 | T22: 220.4 | U22: 1125.21 | V22: 2083.48 | W22: 431.2 | X22: =EVEN((' CONSUMO DE MAT. B TOTAL'!$P$13+' CONSUMO DE MAT. B TOTAL'!P25)*2/28)*W22/(' CONSUMO DE MAT. B TOTAL'!$P$13+' CONSUMO DE MAT. B TOTAL'!P25) -> 41.06666667 | Y22: 2124.546667 | Z22: 4042.671306 | AA22: 6167.217973 | AC22: 6167.217973 | AD22: 2124.546667 | AE22: 4042.671306 | AH22: SUDESTE
B23: 6307.011783 | C23: 11 | E23: COMPANHIA BRASILEIRA DE ASFALTOS DA AMAZÔNIA - IMPORTAÇÃO E EXPORTAÇÃO | F23: Avenida Doutor Olindo Dártora 2451, Galpão 02, Morro Grande - CEP:07726-555 | G23: São Paulo | H23: CAIEIRAS - SP | I23: São Luís - MA | J23: =VLOOKUP(G23,OFFSET('ANP ESTADO'!$A$1,MATCH($I$7,'ANP ESTADO'!B:B,0)+MATCH($H$10,OFFSET('ANP ESTADO'!$A$1,MATCH($I$7,'ANP ESTADO'!B:B,0),0,100000,1),0),2,100000,2),2,FALSE) -> 2.965301306 | K23: =VLOOKUP($H$10,OFFSET('ANP REGIÃO'!$A$9,MATCH('Transporte RR-2C'!$I$7,'ANP REGIÃO'!A:A,0),1,10000,10000),MATCH('Transporte RR-2C'!AH23,'ANP REGIÃO'!$B$8:$G$8,0),FALSE) -> 3.044994528 | L23: 2965.301306 | M23: =ROUND(((L23/(1-$O$7-$O$8-$O$9))-L23),2) -> 1077.37 | N23: 4042.671306 | O23: 2998 | Q23: 785.43 | S23: 225.65 | T23: 234.6 | U23: 1197.72 | V23: 2217.75 | W23: 489.2 | X23: =EVEN((' CONSUMO DE MAT. B TOTAL'!$P$13+' CONSUMO DE MAT. B TOTAL'!P26)*2/28)*W23/(' CONSUMO DE MAT. B TOTAL'!$P$13+' CONSUMO DE MAT. B TOTAL'!P26) -> 46.59047619 | Y23: 2264.340476 | Z23: 4042.671306 | AA23: 6307.011783 | AH23: SUDESTE
B24: 6399.566764 | C24: 12 | E24: BETUNEL INDÚSTRIA E COMÉRCIO LTDA. | F24: R 16 , 82, Vila Nova Campo Grande - CEP:79.103-834 | G24: Mato Grosso do Sul | H24: CAMPO GRANDE - MS | I24: São Luís - MA | J24: =VLOOKUP(G24,OFFSET('ANP ESTADO'!$A$1,MATCH($I$7,'ANP ESTADO'!B:B,0)+MATCH($H$10,OFFSET('ANP ESTADO'!$A$1,MATCH($I$7,'ANP ESTADO'!B:B,0),0,100000,1),0),2,100000,2),2,FALSE) -> 3.094852002 | K24: =VLOOKUP($H$10,OFFSET('ANP REGIÃO'!$A$9,MATCH('Transporte RR-2C'!$I$7,'ANP REGIÃO'!A:A,0),1,10000,10000),MATCH('Transporte RR-2C'!AH24,'ANP REGIÃO'!$B$8:$G$8,0),FALSE) -> 3.261745309 | L24: 3094.852002 | M24: =ROUND(((L24/(1-$O$7-$O$8-$O$9))-L24),2) -> 1124.44 | N24: 4219.292002 | O24: 2921 | Q24: 765.95 | S24: 220.72 | T24: 228.79 | U24: 1168.03 | V24: 2162.77 | W24: 183.8 | X24: =EVEN((' CONSUMO DE MAT. B TOTAL'!$P$13+' CONSUMO DE MAT. B TOTAL'!P27)*2/28)*W24/(' CONSUMO DE MAT. B TOTAL'!$P$13+' CONSUMO DE MAT. B TOTAL'!P27) -> 17.5047619 | Y24: 2180.274762 | Z24: 4219.292002 | AA24: 6399.566764 | AH24: CENTRO-OESTE
B25: 7016.952946 | C25: 13 | E25: CENTRO OESTE ASFALTOS LTDA. | F25: RUA N, S/N.º LOTES 39/43 E LOTES 129/133 - DISTRITO INDUSTRIAL - CEP:78098-400 | G25: Mato Grosso | H25: CUIABA - MT | I25: São Luís - MA | J25: =VLOOKUP(G25,OFFSET('ANP ESTADO'!$A$1,MATCH($I$7,'ANP ESTADO'!B:B,0)+MATCH($H$10,OFFSET('ANP ESTADO'!$A$1,MATCH($I$7,'ANP ESTADO'!B:B,0),0,100000,1),0),2,100000,2),2,FALSE) -> 3.65960247 | K25: =VLOOKUP($H$10,OFFSET('ANP REGIÃO'!$A$9,MATCH('Transporte RR-2C'!$I$7,'ANP REGIÃO'!A:A,0),1,10000,10000),MATCH('Transporte RR-2C'!AH25,'ANP REGIÃO'!$B$8:$G$8,0),FALSE) -> 3.261745309 | L25: 3659.60247 | M25: 1329.63 | N25: 4989.23247 | O25: 2725 | Q25: 716.36 | S25: 208.18 | T25: 213.97 | U25: 1092.4 | V25: 2022.73 | W25: 52.4 | X25: =EVEN((' CONSUMO DE MAT. B TOTAL'!$P$13+' CONSUMO DE MAT. B TOTAL'!P28)*2/28)*W25/(' CONSUMO DE MAT. B TOTAL'!$P$13+' CONSUMO DE MAT. B TOTAL'!P28) -> 4.99047619 | Y25: 2027.720476 | Z25: 4989.23247 | AA25: 7016.952946 | AH25: CENTRO-OESTE
B26: 7016.952946 | C26: 14 | E26: BETUNEL INDÚSTRIA E COMÉRCIO LTDA. | F26: RUA N ESQUINA COM RUA X, S/N QD. IND. 7 L 01/08 - DIST. IND. - CEP:78015-285 | G26: Mato Grosso | H26: CUIABA - MT | I26: São Luís - MA | J26: =VLOOKUP(G26,OFFSET('ANP ESTADO'!$A$1,MATCH($I$7,'ANP ESTADO'!B:B,0)+MATCH($H$10,OFFSET('ANP ESTADO'!$A$1,MATCH($I$7,'ANP ESTADO'!B:B,0),0,100000,1),0),2,100000,2),2,FALSE) -> 3.65960247 | K26: =VLOOKUP($H$10,OFFSET('ANP REGIÃO'!$A$9,MATCH('Transporte RR-2C'!$I$7,'ANP REGIÃO'!A:A,0),1,10000,10000),MATCH('Transporte RR-2C'!AH26,'ANP REGIÃO'!$B$8:$G$8,0),FALSE) -> 3.261745309 | L26: 3659.60247 | M26: 1329.63 | N26: 4989.23247 | O26: 2725 | Q26: 716.36 | S26: 208.18 | T26: 213.97 | U26: 1092.4 | V26: 2022.73 | W26: 52.4 | X26: =EVEN((' CONSUMO DE MAT. B TOTAL'!$P$13+' CONSUMO DE MAT. B TOTAL'!P29)*2/28)*W26/(' CONSUMO DE MAT. B TOTAL'!$P$13+' CONSUMO DE MAT. B TOTAL'!P29) -> 4.99047619 | Y26: 2027.720476 | Z26: 4989.23247 | AA26: 7016.952946 | AH26: CENTRO-OESTE
B27: 7017.692946 | C27: 15 | E27: EMAM - EMULSÕES E TRANSPORTES LTDA. | F27: RODOVIA DOS IMIGRANTES, S/Nº KM 8,6 - - CEP:60035-351 | G27: Mato Grosso | H27: VARZEA GRANDE - MT | I27: São Luís - MA | J27: =VLOOKUP(G27,OFFSET('ANP ESTADO'!$A$1,MATCH($I$7,'ANP ESTADO'!B:B,0)+MATCH($H$10,OFFSET('ANP ESTADO'!$A$1,MATCH($I$7,'ANP ESTADO'!B:B,0),0,100000,1),0),2,100000,2),2,FALSE) -> 3.65960247 | K27: =VLOOKUP($H$10,OFFSET('ANP REGIÃO'!$A$9,MATCH('Transporte RR-2C'!$I$7,'ANP REGIÃO'!A:A,0),1,10000,10000),MATCH('Transporte RR-2C'!AH27,'ANP REGIÃO'!$B$8:$G$8,0),FALSE) -> 3.261745309 | L27: 3659.60247 | M27: =ROUND(((L27/(1-$O$7-$O$8-$O$9))-L27),2) -> 1329.63 | N27: 4989.23247 | O27: 2726 | Q27: 716.62 | S27: 208.24 | T27: 214.05 | U27: 1092.8 | V27: 2023.47 | W27: 52.4 | X27: =EVEN((' CONSUMO DE MAT. B TOTAL'!$P$13+' CONSUMO DE MAT. B TOTAL'!P30)*2/28)*W27/(' CONSUMO DE MAT. B TOTAL'!$P$13+' CONSUMO DE MAT. B TOTAL'!P30) -> 4.99047619 | Y27: 2028.460476 | Z27: 4989.23247 | AA27: 7017.692946 | AC27: 7017.692946 | AD27: 2028.460476 | AE27: 4989.23247 | AH27: CENTRO-OESTE
B28: 6303.288449 | C28: 16 | E28: VIAPOL LTDA. | F28: VITO ARDITO, 6401 KM 118,5 - JARDIM CAMPO GRANDE - CEP:12282-535 | G28: São Paulo | H28: CACAPAVA - SP | I28: São Luís - MA | J28: =VLOOKUP(G28,OFFSET('ANP ESTADO'!$A$1,MATCH($I$7,'ANP ESTADO'!B:B,0)+MATCH($H$10,OFFSET('ANP ESTADO'!$A$1,MATCH($I$7,'ANP ESTADO'!B:B,0),0,100000,1),0),2,100000,2),2,FALSE) -> 2.965301306 | K28: =VLOOKUP($H$10,OFFSET('ANP REGIÃO'!$A$9,MATCH('Transporte RR-2C'!$I$7,'ANP REGIÃO'!A:A,0),1,10000,10000),MATCH('Transporte RR-2C'!AH28,'ANP REGIÃO'!$B$8:$G$8,0),FALSE) -> 3.044994528 | L28: 2965.301306 | M28: 1077.37 | N28: 4042.671306 | O28: 2989 | Q28: 783.16 | S28: 225.08 | T28: 233.93 | U28: 1194.27 | V28: 2211.36 | W28: 517.2 | X28: =EVEN((' CONSUMO DE MAT. B TOTAL'!$P$13+' CONSUMO DE MAT. B TOTAL'!P31)*2/28)*W28/(' CONSUMO DE MAT. B TOTAL'!$P$13+' CONSUMO DE MAT. B TOTAL'!P31) -> 49.25714286 | Y28: 2260.617143 | Z28: 4042.671306 | AA28: 6303.288449 | AC28: 6303.288449 | AD28: 2260.617143 | AE28: 4042.671306 | AH28: SUDESTE
B29: 6457.493576 | C29: 17 | E29: STRATURA ASFALTOS S/A | F29: RUA LUIS DE CAMÕES, 26 - CAMPOS ELÍSEOS - CEP:25225-030 | G29: Rio de Janeiro | H29: DUQUE DE CAXIAS - RJ | I29: São Luís - MA | J29: =VLOOKUP(G29,OFFSET('ANP ESTADO'!$A$1,MATCH($I$7,'ANP ESTADO'!B:B,0)+MATCH($H$10,OFFSET('ANP ESTADO'!$A$1,MATCH($I$7,'ANP ESTADO'!B:B,0),0,100000,1),0),2,100000,2),2,FALSE) -> - | K29: =VLOOKUP($H$10,OFFSET('ANP REGIÃO'!$A$9,MATCH('Transporte RR-2C'!$I$7,'ANP REGIÃO'!A:A,0),1,10000,10000),MATCH('Transporte RR-2C'!AH29,'ANP REGIÃO'!$B$8:$G$8,0),FALSE) -> 3.044994528 | L29: 3044.994528 | M29: 1106.33 | N29: 4151.324528 | O29: 3073 | Q29: 804.41 | S29: 230.45 | T29: 240.27 | U29: 1226.67 | V29: 2271.35 | W29: 365.6 | X29: =EVEN((' CONSUMO DE MAT. B TOTAL'!$P$13+' CONSUMO DE MAT. B TOTAL'!P32)*2/28)*W29/(' CONSUMO DE MAT. B TOTAL'!$P$13+' CONSUMO DE MAT. B TOTAL'!P32) -> 34.81904762 | Y29: 2306.169048 | Z29: 4151.324528 | AA29: 6457.493576 | AC29: 6457.493576 | AD29: 2306.169048 | AE29: 4151.324528 | AH29: SUDESTE
B30: 6468.213576 | C30: 18 | E30: PROBITEC - PRODUTOS BETUMINOSOS E TECNOLOGIA DE APLICAÇÃO LTDA. | F30: AVENIDA CANAL DA PAVUNA, 620 - PAVUNA - CEP:21535-630 | G30: Rio de Janeiro | H30: RIO DE JANEIRO - RJ | I30: São Luís - MA | J30: =VLOOKUP(G30,OFFSET('ANP ESTADO'!$A$1,MATCH($I$7,'ANP ESTADO'!B:B,0)+MATCH($H$10,OFFSET('ANP ESTADO'!$A$1,MATCH($I$7,'ANP ESTADO'!B:B,0),0,100000,1),0),2,100000,2),2,FALSE) -> - | K30: =VLOOKUP($H$10,OFFSET('ANP REGIÃO'!$A$9,MATCH('Transporte RR-2C'!$I$7,'ANP REGIÃO'!A:A,0),1,10000,10000),MATCH('Transporte RR-2C'!AH30,'ANP REGIÃO'!$B$8:$G$8,0),FALSE) -> 3.044994528 | L30: 3044.994528 | M30: 1106.33 | N30: 4151.324528 | O30: 3088 | Q30: 808.2 | S30: 231.41 | T30: 241.41 | U30: 1232.46 | V30: 2282.07 | W30: 365.6 | X30: =EVEN((' CONSUMO DE MAT. B TOTAL'!$P$13+' CONSUMO DE MAT. B TOTAL'!P33)*2/28)*W30/(' CONSUMO DE MAT. B TOTAL'!$P$13+' CONSUMO DE MAT. B TOTAL'!P33) -> 34.81904762 | Y30: 2316.889048 | Z30: 4151.324528 | AA30: 6468.213576 | AC30: 6468.213576 | AD30: 2316.889048 | AE30: 4151.324528 | AH30: SUDESTE
B31: 6277.598032 | C31: 19 | E31: CASA DO ASFALTO DISTRIBUIDORA, INDÚSTRIA E COMÉRCIO DE ASFALTO LTDA. | F31: BR 376, PARQUE INDUSTRIAL, S/N LOTE 6/7/7-A-3-1 - GL.PATR.MARIALVA - CEP:86990-000 | G31: Paraná | H31: MARIALVA - PR | I31: São Luís - MA | J31: =VLOOKUP(G31,OFFSET('ANP ESTADO'!$A$1,MATCH($I$7,'ANP ESTADO'!B:B,0)+MATCH($H$10,OFFSET('ANP ESTADO'!$A$1,MATCH($I$7,'ANP ESTADO'!B:B,0),0,100000,1),0),2,100000,2),2,FALSE) -> 2.959073747 | K31: =VLOOKUP($H$10,OFFSET('ANP REGIÃO'!$A$9,MATCH('Transporte RR-2C'!$I$7,'ANP REGIÃO'!A:A,0),1,10000,10000),MATCH('Transporte RR-2C'!AH31,'ANP REGIÃO'!$B$8:$G$8,0),FALSE) -> 2.991794973 | L31: 2959.073747 | M31: 1075.11 | N31: 4034.183747 | O31: 2980 | Q31: 780.88 | S31: 224.5 | T31: 233.24 | U31: 1190.78 | V31: 2204.9 | W31: 404.4 | X31: =EVEN((' CONSUMO DE MAT. B TOTAL'!$P$13+' CONSUMO DE MAT. B TOTAL'!P34)*2/28)*W31/(' CONSUMO DE MAT. B TOTAL'!$P$13+' CONSUMO DE MAT. B TOTAL'!P34) -> 38.51428571 | Y31: 2243.414286 | Z31: 4034.183747 | AA31: 6277.598032 | AC31: 6277.598032 | AD31: 2243.414286 | AE31: 4034.183747 | AH31: SUL
B32: 6385.482794 | C32: 20 | E32: PETROBRAS DISTRIBUIDORA S.A. | F32: RUA MAQUINISTA ELEODORO JACINTO, 100 - OFICINAS - CEP:84045-170 | G32: Paraná | H32: PONTA GROSSA - PR | I32: São Luís - MA | J32: =VLOOKUP(G32,OFFSET('ANP ESTADO'!$A$1,MATCH($I$7,'ANP ESTADO'!B:B,0)+MATCH($H$10,OFFSET('ANP ESTADO'!$A$1,MATCH($I$7,'ANP ESTADO'!B:B,0),0,100000,1),0),2,100000,2),2,FALSE) -> 2.959073747 | K32: =VLOOKUP($H$10,OFFSET('ANP REGIÃO'!$A$9,MATCH('Transporte RR-2C'!$I$7,'ANP REGIÃO'!A:A,0),1,10000,10000),MATCH('Transporte RR-2C'!AH32,'ANP REGIÃO'!$B$8:$G$8,0),FALSE) -> 2.991794973 | L32: 2959.073747 | M32: 1075.11 | N32: 4034.183747 | O32: 3125 | Q32: 817.56 | S32: 233.78 | T32: 244.2 | U32: 1246.72 | V32: 2308.48 | W32: 449.6 | X32: =EVEN((' CONSUMO DE MAT. B TOTAL'!$P$13+' CONSUMO DE MAT. B TOTAL'!P35)*2/28)*W32/(' CONSUMO DE MAT. B TOTAL'!$P$13+' CONSUMO DE MAT. B TOTAL'!P35) -> 42.81904762 | Y32: 2351.299048 | Z32: 4034.183747 | AA32: 6385.482794 | AC32: 6385.482794 | AD32: 2351.299048 | AE32: 4034.183747 | AH32: SUL
D42: Acre
D43: Alagoas
D44: Amapá
D45: Amazonas
D46: Bahia
D47: Ceará
D48: Distrito Federal
D49: Espírito Santo
D50: Goiás
D51: Maranhão
D52: Mato Grosso
D53: Mato Grosso do Sul
D54: Minas Gerais
D55: Pará
D56: Paraíba
D57: Paraná
D58: Pernambuco
D59: Piauí
D60: Rio de Janeiro
D61: Rio Grande do Norte
D62: Rio Grande do Sul
D63: Rondônia
D64: Roraima
D65: Santa Catarina
D66: São Paulo
D67: Sergipe
D68: Tocantins
D72: ASFALTOS DILUÍDOS CM-30
D73: ASFALTOS DILUÍDOS CM-70
D74: ASFALTOS DILUÍDOS CR-250
D75: ASFALTOS DILUÍDOS CR-70
D76: CAP MODIFICADO POR BORRACHA DE PNEU AB22
D77: CAP MODIFICADO POR BORRACHA DE PNEU AB8
D78: CAP MODIFICADO POR POLÍMERO 55-75-E
D79: CAP MODIFICADO POR POLÍMERO 60-85-E
D80: CAP MODIFICADO POR POLÍMERO 65-90-E
D81: CIMENTOS ASFÁLTICOS CAP-150-200
D82: CIMENTOS ASFÁLTICOS CAP-30-45
D83: CIMENTOS ASFÁLTICOS CAP-50-70
D84: CIMENTOS ASFÁLTICOS CAP-85-100
D85: EMULSÃO ASFÁLTICA CATIÔNICA DE RUPTURA CONTROLADA PARA SERVIÇO DE LAMA ASFÁLTICA
D86: EMULSÃO ASFÁLTICA DE RUPTURA LENTA CATIÔNICA PARA SERVIÇO DE LAMA ASFÁLTICA
D87: EMULSÃO ASFÁLTICA DE RUPTURA LENTA DE CARGA NEUTRA PARA SERVIÇO DE LAMA ASFÁLTICA
D88: EMULSÃO ASFÁLTICA PARA SERVIÇO DE IMPRIMAÇÃO
D89: EMULSÕES ASF. MOD. POR POLÍMEROS RC1C-E
D90: EMULSÕES ASF. MOD. POR POLÍMEROS RL1C-E
D91: EMULSÕES ASF. MOD. POR POLÍMEROS RM1C-E
D92: EMULSÕES ASF. MOD. POR POLÍMEROS RR1C-E
D93: EMULSÕES ASF. MOD. POR POLÍMEROS RR2C-E
D94: EMULSÕES ASFÁLTICAS RL-1C
D95: EMULSÕES ASFÁLTICAS RM-1C
D96: EMULSÕES ASFÁLTICAS RM-2C
D97: EMULSÕES ASFÁLTICAS RR-1C
D98: EMULSÕES ASFÁLTICAS RR-2C

Sheet RESUMO_Transp
B11: ÍNDICE DE PAVIMENTAÇÃO DNIT | E11: TIPOLOGIA DO MATERIAL | G11: LIGANTE BETUMINOSO | K11: IMPOSTOS | L11: COFINS | M11: ='Transporte RR-2C'!O7 -> 0.0065 | N11: ='Transporte RR-2C'!P7 -> 0.0065
C12: DATA INICIAL | F12: 2014-07-01 | G12: ÍNDICE INICIAL | H12: ='Transporte RR-2C'!J8 -> 270.237 | L12: PIS | M12: ='Transporte RR-2C'!O8 -> 0.03 | N12: ='Transporte RR-2C'!P8 -> 0.03 | P12: LEGENDA
C13: DATA FINAL | F13: 2025-05-01 | G13: ÍNDICE FINAL | H13: ='Transporte RR-2C'!J9 -> 587.552 | L13: ICMS | M13: ='Transporte RR-2C'!O9 -> 0.23 | N13: ='Transporte RR-2C'!P9 -> 0.23 | P13: ENTRADA DE DADOS
B15: DATA-BASE | C15: PRODUTOS | D15: LOCALIDADES | H15: CUSTO ANP (R$/Kg) | J15: CUSTO ANP | K15: IMPOSTOS DO PRODUTO | L15: CUSTO DO PRODUTO COM IMPOSTOS | M15: DMT's | N15: DMT's | O15: CUSTO DO TRANSPORTE TOTAL | P15: ICMS | Q15: ATUALIZAÇÃO DO CUSTO DE TRANSPORTE | R15: CUSTO DO TRANSPORTE RODOVIA PAVIMENTADA COM IMPOSTOS E ATUALIZAÇÃO MONETÁRIA | S15: PEDÁGIO | U15: TOTAL TRANSPORTE | V15: TOTAL PRODUTO | W15: TOTAL GERAL
B16: =F13 -> 2025-05-01 | D16: REFINARIAS | E16: ENDEREÇO | F16: ORIGEM REFINARIAS / DISTRIBUIDORAS | G16: DESTINO | H16: ESTADO | I16: REGIÃO | J16: R$/t | K16: R$/t | L16: R$/t | M16: KM | N16: KM | O16: R$/t | P16: R$/t | Q16: R$/t | R16: R$/t | S16: CUSTO POR EIXO | T16: R$/t | U16: R$/t | V16: R$/t | W16: R$/t
B17: 1 | C17: EAI | D17: Refinaria Abreu e Lima | E17: Rodovia PE 60, Km 10 - Ipojuca - PE CEP:55590-000 | F17: =VLOOKUP($W17,'Transporte EAI'!$B:$AA,7,FALSE) -> ANÁPOLIS - GO | G17: =VLOOKUP($W17,'Transporte EAI'!$B:$AA,8,FALSE) -> São Luís - MA | H17: =VLOOKUP($W17,'Transporte EAI'!$B:$AA,9,FALSE) -> 2.270100671 | I17: =VLOOKUP($W17,'Transporte EAI'!$B:$AA,10,FALSE) -> 2.586745228 | J17: =VLOOKUP($W17,'Transporte EAI'!$B:$AA,11,FALSE) -> 2270.100671 | K17: =VLOOKUP($W17,'Transporte EAI'!$B:$AA,12,FALSE) -> 824.79 | L17: =VLOOKUP($W17,'Transporte EAI'!$B:$AA,13,FALSE) -> 3094.890671 | M17: =VLOOKUP($W17,'Transporte EAI'!$B:$AA,14,FALSE) -> 1978 | N17: =VLOOKUP($W17,'Transporte EAI'!$B:$AA,15,FALSE) -> 0 | O17: =VLOOKUP($W17,'Transporte EAI'!$B:$AA,18,FALSE) -> 160.36 | P17: =VLOOKUP($W17,'Transporte EAI'!$B:$AA,19,FALSE) -> 157.52 | Q17: =VLOOKUP($W17,'Transporte EAI'!$B:$AA,20,FALSE) -> 804.2 | R17: =VLOOKUP($W17,'Transporte EAI'!$B:$AA,21,FALSE) -> 1489.09 | S17: =VLOOKUP($W17,'Transporte EAI'!$B:$AA,22,FALSE) -> 169.6 | T17: =VLOOKUP($W17,'Transporte EAI'!$B:$AA,23,FALSE) -> 16.15238095 | U17: =VLOOKUP($W17,'Transporte EAI'!$B:$AA,24,FALSE) -> 1505.242381 | V17: =VLOOKUP($W17,'Transporte EAI'!$B:$AA,25,FALSE) -> 3094.890671 | W17: =SMALL('Transporte EAI'!$AA$13:$AA$32,1) -> 4600.133052
B18: 2 | D18: Refinaria Potiguar Clara Camarão | E18: Rodovia RN 221, KM 25 - Guamaré - RN CEP:59598-000 | F18: =VLOOKUP($W18,'Transporte EAI'!$B:$AA,7,FALSE) -> GOIANIRA - GO | G18: =VLOOKUP($W18,'Transporte EAI'!$B:$AA,8,FALSE) -> São Luís - MA | H18: =VLOOKUP($W18,'Transporte EAI'!$B:$AA,9,FALSE) -> 2.270100671 | I18: =VLOOKUP($W18,'Transporte EAI'!$B:$AA,10,FALSE) -> 2.586745228 | J18: =VLOOKUP($W18,'Transporte EAI'!$B:$AA,11,FALSE) -> 2270.100671 | K18: =VLOOKUP($W18,'Transporte EAI'!$B:$AA,12,FALSE) -> 824.79 | L18: =VLOOKUP($W18,'Transporte EAI'!$B:$AA,13,FALSE) -> 3094.890671 | M18: =VLOOKUP($W18,'Transporte EAI'!$B:$AA,14,FALSE) -> 2006 | N18: =VLOOKUP($W18,'Transporte EAI'!$B:$AA,15,FALSE) -> 0 | O18: =VLOOKUP($W18,'Transporte EAI'!$B:$AA,18,FALSE) -> 162.16 | P18: =VLOOKUP($W18,'Transporte EAI'!$B:$AA,19,FALSE) -> 159.64 | Q18: =VLOOKUP($W18,'Transporte EAI'!$B:$AA,20,FALSE) -> 815.01 | R18: =VLOOKUP($W18,'Transporte EAI'!$B:$AA,21,FALSE) -> 1509.11 | S18: =VLOOKUP($W18,'Transporte EAI'!$B:$AA,22,FALSE) -> 169.9 | T18: =VLOOKUP($W18,'Transporte EAI'!$B:$AA,23,FALSE) -> 16.18095238 | U18: =VLOOKUP($W18,'Transporte EAI'!$B:$AA,24,FALSE) -> 1525.290952 | V18: =VLOOKUP($W18,'Transporte EAI'!$B:$AA,25,FALSE) -> 3094.890671 | W18: =SMALL('Transporte EAI'!$AA$13:$AA$32,2) -> 4620.181624
B19: 3 | D19: Complexo Petroquímico do Rio de Janeiro (Comperj) | E19: Rodovia Estadual RJ-116 - Km 5,2 - Acesso A-1, s/n, Complemento Sambaetiba - Zona Urbana do 4º Distrito de Itaboraí - RJ CEP:24841-203 | F19: =VLOOKUP($W19,'Transporte EAI'!$B:$AA,7,FALSE) -> APARECIDA DE GOIANIA - GO | G19: =VLOOKUP($W19,'Transporte EAI'!$B:$AA,8,FALSE) -> São Luís - MA | H19: =VLOOKUP($W19,'Transporte EAI'!$B:$AA,9,FALSE) -> 2.270100671 | I19: =VLOOKUP($W19,'Transporte EAI'!$B:$AA,10,FALSE) -> 2.586745228 | J19: =VLOOKUP($W19,'Transporte EAI'!$B:$AA,11,FALSE) -> 2270.100671 | K19: =VLOOKUP($W19,'Transporte EAI'!$B:$AA,12,FALSE) -> 824.79 | L19: =VLOOKUP($W19,'Transporte EAI'!$B:$AA,13,FALSE) -> 3094.890671 | M19: =VLOOKUP($W19,'Transporte EAI'!$B:$AA,14,FALSE) -> 2028 | N19: =VLOOKUP($W19,'Transporte EAI'!$B:$AA,15,FALSE) -> 0 | O19: =VLOOKUP($W19,'Transporte EAI'!$B:$AA,18,FALSE) -> 163.56 | P19: =VLOOKUP($W19,'Transporte EAI'!$B:$AA,19,FALSE) -> 161.3 | Q19: =VLOOKUP($W19,'Transporte EAI'!$B:$AA,20,FALSE) -> 823.49 | R19: =VLOOKUP($W19,'Transporte EAI'!$B:$AA,21,FALSE) -> 1524.81 | S19: =VLOOKUP($W19,'Transporte EAI'!$B:$AA,22,FALSE) -> 169.9 | T19: =VLOOKUP($W19,'Transporte EAI'!$B:$AA,23,FALSE) -> 16.18095238 | U19: =VLOOKUP($W19,'Transporte EAI'!$B:$AA,24,FALSE) -> 1540.990952 | V19: =VLOOKUP($W19,'Transporte EAI'!$B:$AA,25,FALSE) -> 3094.890671 | W19: =SMALL('Transporte EAI'!$AA$13:$AA$32,3) -> 4635.881624
B20: 4 | F20: =VLOOKUP($W20,'Transporte EAI'!$B:$AA,7,FALSE) -> UBERLANDIA - MG | G20: =VLOOKUP($W20,'Transporte EAI'!$B:$AA,8,FALSE) -> São Luís - MA | H20: =VLOOKUP($W20,'Transporte EAI'!$B:$AA,9,FALSE) -> 2.202845353 | I20: =VLOOKUP($W20,'Transporte EAI'!$B:$AA,10,FALSE) -> 2.380082902 | J20: =VLOOKUP($W20,'Transporte EAI'!$B:$AA,11,FALSE) -> 2202.845353 | K20: =VLOOKUP($W20,'Transporte EAI'!$B:$AA,12,FALSE) -> 800.35 | L20: =VLOOKUP($W20,'Transporte EAI'!$B:$AA,13,FALSE) -> 3003.195353 | M20: =VLOOKUP($W20,'Transporte EAI'!$B:$AA,14,FALSE) -> 2344 | N20: =VLOOKUP($W20,'Transporte EAI'!$B:$AA,15,FALSE) -> 0 | O20: =VLOOKUP($W20,'Transporte EAI'!$B:$AA,18,FALSE) -> 183.79 | P20: =VLOOKUP($W20,'Transporte EAI'!$B:$AA,19,FALSE) -> 185.18 | Q20: =VLOOKUP($W20,'Transporte EAI'!$B:$AA,20,FALSE) -> 945.41 | R20: =VLOOKUP($W20,'Transporte EAI'!$B:$AA,21,FALSE) -> 1750.56 | S20: =VLOOKUP($W20,'Transporte EAI'!$B:$AA,22,FALSE) -> 225.2 | T20: =VLOOKUP($W20,'Transporte EAI'!$B:$AA,23,FALSE) -> 21.44761905 | U20: =VLOOKUP($W20,'Transporte EAI'!$B:$AA,24,FALSE) -> 1772.007619 | V20: =VLOOKUP($W20,'Transporte EAI'!$B:$AA,25,FALSE) -> 3003.195353 | W20: =SMALL('Transporte EAI'!$AA$13:$AA$32,4) -> 4775.202972
B21: 5 | F21: =VLOOKUP($W21,'Transporte EAI'!$B:$AA,7,FALSE) -> UBERLANDIA - MG | G21: =VLOOKUP($W21,'Transporte EAI'!$B:$AA,8,FALSE) -> São Luís - MA | H21: =VLOOKUP($W21,'Transporte EAI'!$B:$AA,9,FALSE) -> 2.202845353 | I21: =VLOOKUP($W21,'Transporte EAI'!$B:$AA,10,FALSE) -> 2.380082902 | J21: =VLOOKUP($W21,'Transporte EAI'!$B:$AA,11,FALSE) -> 2202.845353 | K21: =VLOOKUP($W21,'Transporte EAI'!$B:$AA,12,FALSE) -> 800.35 | L21: =VLOOKUP($W21,'Transporte EAI'!$B:$AA,13,FALSE) -> 3003.195353 | M21: =VLOOKUP($W21,'Transporte EAI'!$B:$AA,14,FALSE) -> 2344 | N21: =VLOOKUP($W21,'Transporte EAI'!$B:$AA,15,FALSE) -> 0 | O21: =VLOOKUP($W21,'Transporte EAI'!$B:$AA,18,FALSE) -> 183.79 | P21: =VLOOKUP($W21,'Transporte EAI'!$B:$AA,19,FALSE) -> 185.18 | Q21: =VLOOKUP($W21,'Transporte EAI'!$B:$AA,20,FALSE) -> 945.41 | R21: =VLOOKUP($W21,'Transporte EAI'!$B:$AA,21,FALSE) -> 1750.56 | S21: =VLOOKUP($W21,'Transporte EAI'!$B:$AA,22,FALSE) -> 225.2 | T21: =VLOOKUP($W21,'Transporte EAI'!$B:$AA,23,FALSE) -> 21.44761905 | U21: =VLOOKUP($W21,'Transporte EAI'!$B:$AA,24,FALSE) -> 1772.007619 | V21: =VLOOKUP($W21,'Transporte EAI'!$B:$AA,25,FALSE) -> 3003.195353 | W21: =SMALL('Transporte EAI'!$AA$13:$AA$32,5) -> 4775.202972
B22: 6 | F22: =VLOOKUP($W22,'Transporte EAI'!$B:$AA,7,FALSE) -> SARZEDO - MG | G22: =VLOOKUP($W22,'Transporte EAI'!$B:$AA,8,FALSE) -> São Luís - MA | H22: =VLOOKUP($W22,'Transporte EAI'!$B:$AA,9,FALSE) -> 2.202845353 | I22: =VLOOKUP($W22,'Transporte EAI'!$B:$AA,10,FALSE) -> 2.380082902 | J22: =VLOOKUP($W22,'Transporte EAI'!$B:$AA,11,FALSE) -> 2202.845353 | K22: =VLOOKUP($W22,'Transporte EAI'!$B:$AA,12,FALSE) -> 800.35 | L22: =VLOOKUP($W22,'Transporte EAI'!$B:$AA,13,FALSE) -> 3003.195353 | M22: =VLOOKUP($W22,'Transporte EAI'!$B:$AA,14,FALSE) -> 2670 | N22: =VLOOKUP($W22,'Transporte EAI'!$B:$AA,15,FALSE) -> 0 | O22: =VLOOKUP($W22,'Transporte EAI'!$B:$AA,18,FALSE) -> 204.66 | P22: =VLOOKUP($W22,'Transporte EAI'!$B:$AA,19,FALSE) -> 209.82 | Q22: =VLOOKUP($W22,'Transporte EAI'!$B:$AA,20,FALSE) -> 1071.19 | R22: =VLOOKUP($W22,'Transporte EAI'!$B:$AA,21,FALSE) -> 1983.46 | S22: =VLOOKUP($W22,'Transporte EAI'!$B:$AA,22,FALSE) -> 104.6 | T22: =VLOOKUP($W22,'Transporte EAI'!$B:$AA,23,FALSE) -> 9.961904762 | U22: =VLOOKUP($W22,'Transporte EAI'!$B:$AA,24,FALSE) -> 1993.421905 | V22: =VLOOKUP($W22,'Transporte EAI'!$B:$AA,25,FALSE) -> 3003.195353 | W22: =SMALL('Transporte EAI'!$AA$13:$AA$32,6) -> 4996.617257
B24: 1 | C24: RR2-C | D24: Refinaria Abreu e Lima | E24: Rodovia PE 60, Km 10 - Ipojuca - PE CEP:55590-000 | F24: =VLOOKUP($W24,'Transporte RR-2C'!$B:$AA,7,FALSE) -> PALMAS - TO | G24: =VLOOKUP($W24,'Transporte RR-2C'!$B:$AA,8,FALSE) -> São Luís - MA | H24: =VLOOKUP($W24,'Transporte RR-2C'!$B:$AA,9,FALSE) -> 2.960662422 | I24: =VLOOKUP($W24,'Transporte RR-2C'!$B:$AA,10,FALSE) -> 3.283919195 | J24: =VLOOKUP($W24,'Transporte RR-2C'!$B:$AA,11,FALSE) -> 2960.662422 | K24: =VLOOKUP($W24,'Transporte RR-2C'!$B:$AA,12,FALSE) -> 1075.69 | L24: =VLOOKUP($W24,'Transporte RR-2C'!$B:$AA,13,FALSE) -> 4036.352422 | M24: =VLOOKUP($W24,'Transporte RR-2C'!$B:$AA,14,FALSE) -> 1250 | N24: =VLOOKUP($W24,'Transporte RR-2C'!$B:$AA,15,FALSE) -> 0 | O24: =VLOOKUP($W24,'Transporte RR-2C'!$B:$AA,18,FALSE) -> 113.77 | P24: =VLOOKUP($W24,'Transporte RR-2C'!$B:$AA,19,FALSE) -> 102.51 | Q24: =VLOOKUP($W24,'Transporte RR-2C'!$B:$AA,20,FALSE) -> 523.34 | R24: =VLOOKUP($W24,'Transporte RR-2C'!$B:$AA,21,FALSE) -> 969.04 | S24: =VLOOKUP($W24,'Transporte RR-2C'!$B:$AA,22,FALSE) -> 0 | T24: =VLOOKUP($W24,'Transporte RR-2C'!$B:$AA,23,FALSE) -> 0 | U24: =VLOOKUP($W24,'Transporte RR-2C'!$B:$AA,24,FALSE) -> 969.04 | V24: =VLOOKUP($W24,'Transporte RR-2C'!$B:$AA,25,FALSE) -> 4036.352422 | W24: =SMALL('Transporte RR-2C'!$AA$13:$AA$32,1) -> 5005.392422
B25: 2 | D25: Refinaria Potiguar Clara Camarão | E25: Rodovia RN 221, KM 25 - Guamaré - RN CEP:59598-000 | F25: =VLOOKUP($W25,'Transporte RR-2C'!$B:$AA,7,FALSE) -> ANÁPOLIS - GO | G25: =VLOOKUP($W25,'Transporte RR-2C'!$B:$AA,8,FALSE) -> São Luís - MA | H25: =VLOOKUP($W25,'Transporte RR-2C'!$B:$AA,9,FALSE) -> 3.022353152 | I25: =VLOOKUP($W25,'Transporte RR-2C'!$B:$AA,10,FALSE) -> 3.261745309 | J25: =VLOOKUP($W25,'Transporte RR-2C'!$B:$AA,11,FALSE) -> 3022.353152 | K25: =VLOOKUP($W25,'Transporte RR-2C'!$B:$AA,12,FALSE) -> 1098.1 | L25: =VLOOKUP($W25,'Transporte RR-2C'!$B:$AA,13,FALSE) -> 4120.453152 | M25: =VLOOKUP($W25,'Transporte RR-2C'!$B:$AA,14,FALSE) -> 1978 | N25: =VLOOKUP($W25,'Transporte RR-2C'!$B:$AA,15,FALSE) -> 0 | O25: =VLOOKUP($W25,'Transporte RR-2C'!$B:$AA,18,FALSE) -> 160.36 | P25: =VLOOKUP($W25,'Transporte RR-2C'!$B:$AA,19,FALSE) -> 157.52 | Q25: =VLOOKUP($W25,'Transporte RR-2C'!$B:$AA,20,FALSE) -> 804.2 | R25: =VLOOKUP($W25,'Transporte RR-2C'!$B:$AA,21,FALSE) -> 1489.09 | S25: =VLOOKUP($W25,'Transporte RR-2C'!$B:$AA,22,FALSE) -> 169.6 | T25: =VLOOKUP($W25,'Transporte RR-2C'!$B:$AA,23,FALSE) -> 16.15238095 | U25: =VLOOKUP($W25,'Transporte RR-2C'!$B:$AA,24,FALSE) -> 1505.242381 | V25: =VLOOKUP($W25,'Transporte RR-2C'!$B:$AA,25,FALSE) -> 4120.453152 | W25: =SMALL('Transporte RR-2C'!$AA$13:$AA$32,2) -> 5625.695533
B26: 3 | D26: Complexo Petroquímico do Rio de Janeiro (Comperj) | E26: Rodovia Estadual RJ-116 - Km 5,2 - Acesso A-1, s/n, Complemento Sambaetiba - Zona Urbana do 4º Distrito de Itaboraí - RJ CEP:24841-203 | F26: =VLOOKUP($W26,'Transporte RR-2C'!$B:$AA,7,FALSE) -> GOIANIRA - GO | G26: =VLOOKUP($W26,'Transporte RR-2C'!$B:$AA,8,FALSE) -> São Luís - MA | H26: =VLOOKUP($W26,'Transporte RR-2C'!$B:$AA,9,FALSE) -> 3.022353152 | I26: =VLOOKUP($W26,'Transporte RR-2C'!$B:$AA,10,FALSE) -> 3.261745309 | J26: =VLOOKUP($W26,'Transporte RR-2C'!$B:$AA,11,FALSE) -> 3022.353152 | K26: =VLOOKUP($W26,'Transporte RR-2C'!$B:$AA,12,FALSE) -> 1098.1 | L26: =VLOOKUP($W26,'Transporte RR-2C'!$B:$AA,13,FALSE) -> 4120.453152 | M26: =VLOOKUP($W26,'Transporte RR-2C'!$B:$AA,14,FALSE) -> 2006 | N26: =VLOOKUP($W26,'Transporte RR-2C'!$B:$AA,15,FALSE) -> 0 | O26: =VLOOKUP($W26,'Transporte RR-2C'!$B:$AA,18,FALSE) -> 162.16 | P26: =VLOOKUP($W26,'Transporte RR-2C'!$B:$AA,19,FALSE) -> 159.64 | Q26: =VLOOKUP($W26,'Transporte RR-2C'!$B:$AA,20,FALSE) -> 815.01 | R26: =VLOOKUP($W26,'Transporte RR-2C'!$B:$AA,21,FALSE) -> 1509.11 | S26: =VLOOKUP($W26,'Transporte RR-2C'!$B:$AA,22,FALSE) -> 169.9 | T26: =VLOOKUP($W26,'Transporte RR-2C'!$B:$AA,23,FALSE) -> 16.18095238 | U26: =VLOOKUP($W26,'Transporte RR-2C'!$B:$AA,24,FALSE) -> 1525.290952 | V26: =VLOOKUP($W26,'Transporte RR-2C'!$B:$AA,25,FALSE) -> 4120.453152 | W26: =SMALL('Transporte RR-2C'!$AA$13:$AA$32,3) -> 5645.744105
B27: 4 | D27: Refinaria Abreu e Lima | E27: Rodovia PE 60, Km 10 - Ipojuca - PE CEP:55590-000 | F27: =VLOOKUP($W27,'Transporte RR-2C'!$B:$AA,7,FALSE) -> APARECIDA DE GOIANIA - GO | G27: =VLOOKUP($W27,'Transporte RR-2C'!$B:$AA,8,FALSE) -> São Luís - MA | H27: =VLOOKUP($W27,'Transporte RR-2C'!$B:$AA,9,FALSE) -> 3.022353152 | I27: =VLOOKUP($W27,'Transporte RR-2C'!$B:$AA,10,FALSE) -> 3.261745309 | J27: =VLOOKUP($W27,'Transporte RR-2C'!$B:$AA,11,FALSE) -> 3022.353152 | K27: =VLOOKUP($W27,'Transporte RR-2C'!$B:$AA,12,FALSE) -> 1098.1 | L27: =VLOOKUP($W27,'Transporte RR-2C'!$B:$AA,13,FALSE) -> 4120.453152 | M27: =VLOOKUP($W27,'Transporte RR-2C'!$B:$AA,14,FALSE) -> 2028 | N27: =VLOOKUP($W27,'Transporte RR-2C'!$B:$AA,15,FALSE) -> 0 | O27: =VLOOKUP($W27,'Transporte RR-2C'!$B:$AA,18,FALSE) -> 163.56 | P27: =VLOOKUP($W27,'Transporte RR-2C'!$B:$AA,19,FALSE) -> 161.3 | Q27: =VLOOKUP($W27,'Transporte RR-2C'!$B:$AA,20,FALSE) -> 823.49 | R27: =VLOOKUP($W27,'Transporte RR-2C'!$B:$AA,21,FALSE) -> 1524.81 | S27: =VLOOKUP($W27,'Transporte RR-2C'!$B:$AA,22,FALSE) -> 169.9 | T27: =VLOOKUP($W27,'Transporte RR-2C'!$B:$AA,23,FALSE) -> 16.18095238 | U27: =VLOOKUP($W27,'Transporte RR-2C'!$B:$AA,24,FALSE) -> 1540.990952 | V27: =VLOOKUP($W27,'Transporte RR-2C'!$B:$AA,25,FALSE) -> 4120.453152 | W27: =SMALL('Transporte RR-2C'!$AA$13:$AA$32,4) -> 5661.444105
B28: 5 | D28: Refinaria Potiguar Clara Camarão | E28: Rodovia RN 221, KM 25 - Guamaré - RN CEP:59598-000 | F28: =VLOOKUP($W28,'Transporte RR-2C'!$B:$AA,7,FALSE) -> BRASÍLIA - DF | G28: =VLOOKUP($W28,'Transporte RR-2C'!$B:$AA,8,FALSE) -> São Luís - MA | H28: =VLOOKUP($W28,'Transporte RR-2C'!$B:$AA,9,FALSE) -> 3.077666749 | I28: =VLOOKUP($W28,'Transporte RR-2C'!$B:$AA,10,FALSE) -> 3.261745309 | J28: =VLOOKUP($W28,'Transporte RR-2C'!$B:$AA,11,FALSE) -> 3077.666749 | K28: =VLOOKUP($W28,'Transporte RR-2C'!$B:$AA,12,FALSE) -> 1118.2 | L28: =VLOOKUP($W28,'Transporte RR-2C'!$B:$AA,13,FALSE) -> 4195.866749 | M28: =VLOOKUP($W28,'Transporte RR-2C'!$B:$AA,14,FALSE) -> 2039 | N28: =VLOOKUP($W28,'Transporte RR-2C'!$B:$AA,15,FALSE) -> 0 | O28: =VLOOKUP($W28,'Transporte RR-2C'!$B:$AA,18,FALSE) -> 164.27 | P28: =VLOOKUP($W28,'Transporte RR-2C'!$B:$AA,19,FALSE) -> 162.13 | Q28: =VLOOKUP($W28,'Transporte RR-2C'!$B:$AA,20,FALSE) -> 827.74 | R28: =VLOOKUP($W28,'Transporte RR-2C'!$B:$AA,21,FALSE) -> 1532.68 | S28: =VLOOKUP($W28,'Transporte RR-2C'!$B:$AA,22,FALSE) -> 140 | T28: =VLOOKUP($W28,'Transporte RR-2C'!$B:$AA,23,FALSE) -> 16 | U28: =VLOOKUP($W28,'Transporte RR-2C'!$B:$AA,24,FALSE) -> 1548.68 | V28: =VLOOKUP($W28,'Transporte RR-2C'!$B:$AA,25,FALSE) -> 4195.866749 | W28: =SMALL('Transporte RR-2C'!$AA$13:$AA$32,5) -> 5744.546749
B29: 6 | D29: Complexo Petroquímico do Rio de Janeiro (Comperj) | E29: Rodovia Estadual RJ-116 - Km 5,2 - Acesso A-1, s/n, Complemento Sambaetiba - Zona Urbana do 4º Distrito de Itaboraí - RJ CEP:24841-203 | F29: =VLOOKUP($W29,'Transporte RR-2C'!$B:$AA,7,FALSE) -> UBERLANDIA - MG | G29: =VLOOKUP($W29,'Transporte RR-2C'!$B:$AA,8,FALSE) -> São Luís - MA | H29: =VLOOKUP($W29,'Transporte RR-2C'!$B:$AA,9,FALSE) -> 3.171659162 | I29: =VLOOKUP($W29,'Transporte RR-2C'!$B:$AA,10,FALSE) -> 3.044994528 | J29: =VLOOKUP($W29,'Transporte RR-2C'!$B:$AA,11,FALSE) -> 3171.659162 | K29: =VLOOKUP($W29,'Transporte RR-2C'!$B:$AA,12,FALSE) -> 1152.35 | L29: =VLOOKUP($W29,'Transporte RR-2C'!$B:$AA,13,FALSE) -> 4324.009162 | M29: =VLOOKUP($W29,'Transporte RR-2C'!$B:$AA,14,FALSE) -> 2344 | N29: =VLOOKUP($W29,'Transporte RR-2C'!$B:$AA,15,FALSE) -> 0 | O29: =VLOOKUP($W29,'Transporte RR-2C'!$B:$AA,18,FALSE) -> 183.79 | P29: =VLOOKUP($W29,'Transporte RR-2C'!$B:$AA,19,FALSE) -> 185.18 | Q29: =VLOOKUP($W29,'Transporte RR-2C'!$B:$AA,20,FALSE) -> 945.41 | R29: =VLOOKUP($W29,'Transporte RR-2C'!$B:$AA,21,FALSE) -> 1750.56 | S29: =VLOOKUP($W29,'Transporte RR-2C'!$B:$AA,22,FALSE) -> 225.2 | T29: =VLOOKUP($W29,'Transporte RR-2C'!$B:$AA,23,FALSE) -> 21.44761905 | U29: =VLOOKUP($W29,'Transporte RR-2C'!$B:$AA,24,FALSE) -> 1772.007619 | V29: =VLOOKUP($W29,'Transporte RR-2C'!$B:$AA,25,FALSE) -> 4324.009162 | W29: =SMALL('Transporte RR-2C'!$AA$13:$AA$32,6) -> 6096.016781

Sheet MOMENTO DE TRANSPORTE - PRINC
B5: ='MODULO MINIMO'!B1 -> EXECUÇÃO DE SERVIÇOS DE PAVIMENTAÇÃO COM TRATAMENTO SUPERFICIAL DUPLO EM VIAS DE MUNICÍPIOS DIVERSOS INSERIDOS NA ÁREA DE ATUAÇÃO DA CODEVASF, NO ESTADO MARANHÃO
B6: DATA BASE: | C6: ='MODULO MINIMO'!$P$2 -> 2025-04-01
C8: RESUMO DO TRANSPORTE PRINCIPAL
B9: CODIGO | C9: DESCRIÇÃO | D9: TKM
B10: 5914359 | C10: =VLOOKUP(B10,'SINTÉTICO SICRO'!$A:$D,2,0) -> Transporte com caminhão basculante de 10 m³ - rodovia em leito natural | D10: =ROUND(SUMIF('MOMENTO DE TRANSPORTE - PRINC'!A:A,B10,'MOMENTO DE TRANSPORTE - PRINC'!K:K),2) -> 0
B11: 5914314 | C11: =VLOOKUP(B11,'SINTÉTICO SICRO'!$A:$D,2,0) -> Transporte com caminhão basculante de 6 m³ - rodovia em leito natural | D11: =ROUND(SUMIF('MOMENTO DE TRANSPORTE - PRINC'!A:A,B11,'MOMENTO DE TRANSPORTE - PRINC'!K:K),2) -> 0
B12: 5914329 | C12: =VLOOKUP(B12,'SINTÉTICO SICRO'!$A:$D,2,0) -> Transporte com caminhão basculante de 6 m³ - rodovia em revestimento primário | D12: =ROUND(SUMIF('MOMENTO DE TRANSPORTE - PRINC'!A:A,B12,'MOMENTO DE TRANSPORTE - PRINC'!K:K),2) -> 0
B13: 5914344 | C13: =VLOOKUP(B13,'SINTÉTICO SICRO'!$A:$D,2,0) -> Transporte com caminhão basculante de 6 m³ - rodovia pavimentada | D13: =ROUND(SUMIF('MOMENTO DE TRANSPORTE - PRINC'!A:A,B13,'MOMENTO DE TRANSPORTE - PRINC'!K:K),2) -> 0
B14: 5914374 | C14: =VLOOKUP(B14,'SINTÉTICO SICRO'!$A:$D,2,0) -> Transporte com caminhão basculante de 10 m³ - rodovia em revestimento primário | D14: =ROUND(SUMIF('MOMENTO DE TRANSPORTE - PRINC'!A:A,B14,'MOMENTO DE TRANSPORTE - PRINC'!K:K),2) -> 86646
B15: 5914389 | C15: =VLOOKUP(B15,'SINTÉTICO SICRO'!$A:$D,2,0) -> Transporte com caminhão basculante de 10 m³ - rodovia pavimentada | D15: =ROUND(SUMIF('MOMENTO DE TRANSPORTE - PRINC'!A:A,B15,'MOMENTO DE TRANSPORTE - PRINC'!K:K),2) -> 0
B17: TIPO (P, RP ou LN) | C17: DMT ESTIMADA (DISTRIBUIÇÃO DO ITEM NA PISTA | F17: TIPO (P, RP ou LN) | G17: DMT ATÉ 50 KM NÃO DEVE SER PAGA | H17: DMT ACIMA DE 50 KM
B18: P | C18: 1 | F18: - | G18: 50 | H18: 0
B20: COMPOSIÇÕES PRINCIPAIS
B21: SISTEMA DE CUSTOS REFERENCIAIS DE OBRAS - SICRO
B22: Custo Unitário de Referência | E22: =$C$6 -> 2025-04-01 | I22: Quantitativo | K22: m²
B23: ='MODULO MINIMO'!$D$22 -> 4915637 | C23: =VLOOKUP(B23,'SINTÉTICO SICRO'!$A$4:$D$1048576,2,0) -> Capa selante - areia comercial | I23: =(SUMIF('MODULO MINIMO'!D:D,B23,'MODULO MINIMO'!J:J)*0.1) -> 1400
B24: F - MOMENTO DE TRANSPORTE | D24: Quantidade | E24: Unidade | F24: CÓDIGO TRANSPORTE
F25: LN | G25: RP | H25: P | I25: TIPO (P, RP ou LN) | J25: DMT ESTIMADA (km) | K25: QUANTITATIVO TOTAL DE TRANSPORTE (tkm)
A26: =IF(I26="P",H26,IF(I26="RP",G26,IF(I26="LN",F26,""))) -> 5914344 | B26: M0028 | C26: Areia média - Caminhão Basculante com capacidade de 6m³ | D26: 0.00435 | E26: tkm | F26: 5914314 | G26: 5914329 | H26: 5914344 | I26: =$B$18 -> P | J26: 0 | K26: =IF(ISBLANK(J26),"",J26*D26)*I23 -> 0
A27: =IF(I27="P",H27,IF(I27="RP",G27,IF(I27="LN",F27,""))) -> 
B28: Obs.
B29: SISTEMA DE CUSTOS REFERENCIAIS DE OBRAS - SICRO
B30: Custo Unitário de Referência | E30: =$C$6 -> 2025-04-01 | I30: Quantitativo | K30: m²
B31: ='MODULO MINIMO'!$D$23 -> 4011370 | C31: =VLOOKUP(B31,'SINTÉTICO SICRO'!$A$4:$D$1048576,2,0) -> Tratamento superficial duplo com emulsão - brita comercial | I31: =(SUMIF('MODULO MINIMO'!D:D,B31,'MODULO MINIMO'!J:J)*0.1) -> 1400
B32: F - MOMENTO DE TRANSPORTE | D32: Quantidade | E32: Unidade | F32: CÓDIGO TRANSPORTE
F33: LN | G33: RP | H33: P | I33: TIPO (P, RP ou LN) | J33: DMT ESTIMADA (km) | K33: QUANTITATIVO TOTAL DE TRANSPORTE (tkm)
A34: =IF(I34="P",H34,IF(I34="RP",G34,IF(I34="LN",F34,""))) -> 5914389 | B34: M005 | C34: Brita 0 - Caminhão basculante com capacidade de 10 m³ - 188 Kw | D34: 0.011 | E34: tkm | F34: 5914359 | G34: 5914374 | H34: 5914389 | I34: =$B$18 -> P | J34: 0 | K34: =IF(ISBLANK(J34),"",J34*D34)*I31 -> 0
A35: =IF(I35="P",H35,IF(I35="RP",G35,IF(I35="LN",F35,""))) -> 5914389 | B35: M0191 | C35: Brita 1 - Caminhão basculante com capacidade de 10 m³ - 188 kW | D35: 0.0225 | E35: tkm | F35: 5914359 | G35: 5914374 | H35: 5914389 | I35: =$B$18 -> P | J35: 0 | K35: =IF(ISBLANK(J35),"",J35*D35)*I31 -> 0
A36: =IF(I36="P",H36,IF(I36="RP",G36,IF(I36="LN",F36,""))) -> 
B39: SISTEMA DE CUSTOS REFERENCIAIS DE OBRAS - SICRO
B40: Custo Unitário de Referência | E40: =$C$6 -> 2025-04-01 | I40: Quantitativo | K40: un
B41: ='MODULO MINIMO'!$D$25 -> 4011219 | C41: =VLOOKUP(B41,'SINTÉTICO SICRO'!$A$4:$D$1048576,2,0) -> Base de solo estabilizado granulometricamente sem mistura com material de jazida - 100% Proctor modificado | I41: =(SUMIF('MODULO MINIMO'!D:D,B41,'MODULO MINIMO'!J:J))*0 -> 0
B42: D - ATIVIDADES AUXILIARES | D42: Quantidade | E42: Unidade
B43: 4016096 | C43: Escavação e carga de material de jazida com escavadeira hidráulica de 1,56 m³ | D43: 1.10027 | E43: m³
B45: F - MOMENTO DE TRANSPORTE | D45: Quantidade | E45: Unidade | F45: CÓDIGO TRANSPORTE
F46: LN | G46: RP | H46: P | I46: TIPO (P, RP ou LN) | J46: DMT ESTIMADA (km) | K46: QUANTITATIVO TOTAL DE TRANSPORTE (tkm)
A47: 5914389 | B47: 4016096 | C47: Escavação e carga de material de jazida com escavadeira hidráulica de 1,56 m³ - Caminhão basculante 10 m³ | D47: 2.06301 | E47: tkm | F47: 5914359 | G47: 5914374 | H47: 5914389 | I47: =$B$18 -> P | J47: 10 | K47: =IF(ISBLANK(J47),"",J47*D47)*I41 -> 0
B49: Obs.
B51: SISTEMA DE CUSTOS REFERENCIAIS DE OBRAS - SICRO
B52: Custo Unitário de Referência | E52: =$C$6 -> 2025-04-01 | I52: Quantitativo | K52: un
B53: ='MODULO MINIMO'!$D$26 -> 4011227 | C53: =VLOOKUP(B53,'SINTÉTICO SICRO'!$A$4:$D$1048576,2,0) -> Sub-base de solo estabilizado granulometricamente sem mistura com material de jazida - 100% Proctor intermediário | I53: =(SUMIF('MODULO MINIMO'!D:D,B53,'MODULO MINIMO'!J:J))*0 -> 0
B54: D - ATIVIDADES AUXILIARES | D54: Quantidade | E54: Unidade
B55: 4016096 | C55: Escavação e carga de material de jazida com escavadeira hidráulica de 1,56 m³ | D55: 1.10027 | E55: m³
B57: F - MOMENTO DE TRANSPORTE | D57: Quantidade | E57: Unidade | F57: CÓDIGO TRANSPORTE
F58: LN | G58: RP | H58: P | I58: TIPO (P, RP ou LN) | J58: DMT ESTIMADA (km) | K58: QUANTITATIVO TOTAL DE TRANSPORTE (tkm)
A59: 5914389 | B59: 4016096 | C59: Escavação e carga de material de jazida com escavadeira hidráulica de 1,56 m³ - Caminhão basculante 10 m³ | D59: 2.06301 | E59: tkm | F59: 5914359 | G59: 5914374 | H59: 5914389 | I59: =$B$18 -> P | J59: 10 | K59: =IF(ISBLANK(J59),"",J59*D59)*I53 -> 0
B61: Obs.
B63: SISTEMA DE CUSTOS REFERENCIAIS DE OBRAS - SICRO
B64: Custo Unitário de Referência | E64: =$C$6 -> 2025-04-01 | I64: Quantitativo | K64: m
B65: ='MODULO MINIMO'!$D$39 -> 2003373 | C65: =VLOOKUP(B65,'SINTÉTICO SICRO'!$A$4:$D$1048576,2,0) -> Meio-fio de concreto - MFC 03 - areia e brita comerciais - fôrma de madeira | I65: =(SUMIF('MODULO MINIMO'!D:D,B65,'MODULO MINIMO'!J:J))*0.8 -> 3200
B66: D - ATIVIDADES AUXILIARES | D66: Quantidade | E66: Unidade
B67: 1107892 | C67: Concreto fck = 20 MPa - confecção em betoneira e lançamento manual - areia e brita comerciais | D67: 0.042 | E67: m³
B68: 2003842 | C68: Enchimento de junta de concreto com argamassa asfáltica de densidade 1.700 kg/m³ - espessura de 1 cm | D68: 0.0595 | E68: kg
B69: 4805750 | C69: Escavação manual em material de 1ª categoria na profundidade de até 1 m | D69: 0.03 | E69: m³
B70: 3103302 | C70: Fôrmas de tábuas de pinho para dispositivos de drenagem - utilização de 3 vezes - confecção, instalação e retirada | D70: 0.0867 | E70: m²
B72: F - MOMENTO DE TRANSPORTE | D72: Quantidade | E72: Unidade | F72: CÓDIGO TRANSPORTE
F73: LN | G73: RP | H73: P | I73: TIPO (P, RP ou LN) | J73: DMT ESTIMADA (km) | K73: QUANTITATIVO TOTAL DE TRANSPORTE (tkm)
B76: TIPO (P, RP ou LN) | C76: DMT ESTIMADA (DISTRIBUIÇÃO DO ITEM NA PISTA
B77: LN | C77: 1
B79: COMPOSIÇÕES PRINCIPAIS
B80: SISTEMA DE CUSTOS REFERENCIAIS DE OBRAS - SICRO
B81: Custo Unitário de Referência | E81: =$C$6 -> 2025-04-01 | I81: Quantitativo | K81: m²
B82: ='MODULO MINIMO'!$D$22 -> 4915637 | C82: =VLOOKUP(B82,'SINTÉTICO SICRO'!$A$4:$D$1048576,2,0) -> Capa selante - areia comercial | I82: =(SUMIF('MODULO MINIMO'!D:D,B82,'MODULO MINIMO'!J:J)*0.1) -> 1400
B83: F - MOMENTO DE TRANSPORTE | D83: Quantidade | E83: Unidade | F83: CÓDIGO TRANSPORTE
F84: LN | G84: RP | H84: P | I84: TIPO (P, RP ou LN) | J84: DMT ESTIMADA (km) | K84: QUANTITATIVO TOTAL DE TRANSPORTE (tkm)
A85: =IF(I85="P",H85,IF(I85="RP",G85,IF(I85="LN",F85,""))) -> 5914314 | B85: M0028 | C85: Areia média - Caminhão Basculante com capacidade de 6m³ | D85: 0.00435 | E85: tkm | F85: 5914314 | G85: 5914329 | H85: 5914344 | I85: =$B$77 -> LN | J85: 0 | K85: =IF(ISBLANK(J85),"",J85*D85)*I82 -> 0
A86: =IF(I86="P",H86,IF(I86="RP",G86,IF(I86="LN",F86,""))) -> 
B87: Obs.
B88: SISTEMA DE CUSTOS REFERENCIAIS DE OBRAS - SICRO
B89: Custo Unitário de Referência | E89: =$C$6 -> 2025-04-01 | I89: Quantitativo | K89: m²
B90: ='MODULO MINIMO'!$D$23 -> 4011370 | C90: =VLOOKUP(B90,'SINTÉTICO SICRO'!$A$4:$D$1048576,2,0) -> Tratamento superficial duplo com emulsão - brita comercial | I90: =(SUMIF('MODULO MINIMO'!D:D,B90,'MODULO MINIMO'!J:J))*0.1 -> 1400
B91: F - MOMENTO DE TRANSPORTE | D91: Quantidade | E91: Unidade | F91: CÓDIGO TRANSPORTE
F92: LN | G92: RP | H92: P | I92: TIPO (P, RP ou LN) | J92: DMT ESTIMADA (km) | K92: QUANTITATIVO TOTAL DE TRANSPORTE (tkm)
A93: =IF(I93="P",H93,IF(I93="RP",G93,IF(I93="LN",F93,""))) -> 5914359 | B93: M005 | C93: Brita 0 - Caminhão basculante com capacidade de 10 m³ - 188 Kw | D93: 0.011 | E93: tkm | F93: 5914359 | G93: 5914374 | H93: 5914389 | I93: LN | J93: 0 | K93: =IF(ISBLANK(J93),"",J93*D93)*I90 -> 0
A94: =IF(I94="P",H94,IF(I94="RP",G94,IF(I94="LN",F94,""))) -> 5914359 | B94: M0191 | C94: Brita 1 - Caminhão basculante com capacidade de 10 m³ - 188 kW | D94: 0.0225 | E94: tkm | F94: 5914359 | G94: 5914374 | H94: 5914389 | I94: =$B$77 -> LN | J94: 0 | K94: =IF(ISBLANK(J94),"",J94*D94)*I90 -> 0
A95: =IF(I95="P",H95,IF(I95="RP",G95,IF(I95="LN",F95,""))) -> 
B97: SISTEMA DE CUSTOS REFERENCIAIS DE OBRAS - SICRO
B98: Custo Unitário de Referência | E98: =$C$6 -> 2025-04-01 | I98: Quantitativo | K98: un
B99: ='MODULO MINIMO'!$D$25 -> 4011219 | C99: =VLOOKUP(B99,'SINTÉTICO SICRO'!$A$4:$D$1048576,2,0) -> Base de solo estabilizado granulometricamente sem mistura com material de jazida - 100% Proctor modificado | I99: =(SUMIF('MODULO MINIMO'!D:D,B99,'MODULO MINIMO'!J:J))*0 -> 0
B100: D - ATIVIDADES AUXILIARES | D100: Quantidade | E100: Unidade
B101: 4016096 | C101: Escavação e carga de material de jazida com escavadeira hidráulica de 1,56 m³ | D101: 1.10027 | E101: m³
B103: F - MOMENTO DE TRANSPORTE | D103: Quantidade | E103: Unidade | F103: CÓDIGO TRANSPORTE
F104: LN | G104: RP | H104: P | I104: TIPO (P, RP ou LN) | J104: DMT ESTIMADA (km) | K104: QUANTITATIVO TOTAL DE TRANSPORTE (tkm)
A105: =IF(I105="P",H105,IF(I105="RP",G105,IF(I105="LN",F105,""))) -> 5914359 | B105: 4016096 | C105: Escavação e carga de material de jazida com escavadeira hidráulica de 1,56 m³ - Caminhão basculante 10 m³ | D105: 2.06301 | E105: tkm | F105: 5914359 | G105: 5914374 | H105: 5914389 | I105: LN | J105: 10 | K105: =IF(ISBLANK(J105),"",J105*D105)*I99 -> 0
B109: SISTEMA DE CUSTOS REFERENCIAIS DE OBRAS - SICRO
B110: Custo Unitário de Referência | E110: =$C$6 -> 2025-04-01 | I110: Quantitativo | K110: un
B111: ='MODULO MINIMO'!$D$26 -> 4011227 | C111: =VLOOKUP(B111,'SINTÉTICO SICRO'!$A$4:$D$1048576,2,0) -> Sub-base de solo estabilizado granulometricamente sem mistura com material de jazida - 100% Proctor intermediário | I111: =(SUMIF('MODULO MINIMO'!D:D,B111,'MODULO MINIMO'!J:J))*0 -> 0
B112: D - ATIVIDADES AUXILIARES | D112: Quantidade | E112: Unidade
B113: 4016096 | C113: Escavação e carga de material de jazida com escavadeira hidráulica de 1,56 m³ | D113: 1.10027 | E113: m³
B115: F - MOMENTO DE TRANSPORTE | D115: Quantidade | E115: Unidade | F115: CÓDIGO TRANSPORTE
F116: LN | G116: RP | H116: P | I116: TIPO (P, RP ou LN) | J116: DMT ESTIMADA (km) | K116: QUANTITATIVO TOTAL DE TRANSPORTE (tkm)
A117: =IF(I117="P",H117,IF(I117="RP",G117,IF(I117="LN",F117,""))) -> 5914359 | B117: 4016096 | C117: Escavação e carga de material de jazida com escavadeira hidráulica de 1,56 m³ - Caminhão basculante 10 m³ | D117: 2.06301 | E117: tkm | F117: 5914359 | G117: 5914374 | H117: 5914389 | I117: LN | J117: 10 | K117: =IF(ISBLANK(J117),"",J117*D117)*I111 -> 0
A121: =IF(I121="P",H121,IF(I121="RP",G121,IF(I121="LN",F121,""))) ->  | B121: SISTEMA DE CUSTOS REFERENCIAIS DE OBRAS - SICRO
B122: Custo Unitário de Referência | E122: =$C$6 -> 2025-04-01 | I122: Quantitativo | K122: m
B123: ='MODULO MINIMO'!$D$39 -> 2003373 | C123: =VLOOKUP(B123,'SINTÉTICO SICRO'!$A$4:$D$1048576,2,0) -> Meio-fio de concreto - MFC 03 - areia e brita comerciais - fôrma de madeira | I123: =(SUMIF('MODULO MINIMO'!D:D,B123,'MODULO MINIMO'!J:J))*0.1 -> 400
B124: D - ATIVIDADES AUXILIARES | D124: Quantidade | E124: Unidade
B125: 1107892 | C125: Concreto fck = 20 MPa - confecção em betoneira e lançamento manual - areia e brita comerciais | D125: 0.042 | E125: m³
B126: 2003842 | C126: Enchimento de junta de concreto com argamassa asfáltica de densidade 1.700 kg/m³ - espessura de 1 cm | D126: 0.0595 | E126: kg
B127: 4805750 | C127: Escavação manual em material de 1ª categoria na profundidade de até 1 m | D127: 0.03 | E127: m³
B128: 3103302 | C128: Fôrmas de tábuas de pinho para dispositivos de drenagem - utilização de 3 vezes - confecção, instalação e retirada | D128: 0.0867 | E128: m²
B130: F - MOMENTO DE TRANSPORTE | D130: Quantidade | E130: Unidade | F130: CÓDIGO TRANSPORTE
F131: LN | G131: RP | H131: P | I131: TIPO (P, RP ou LN) | J131: DMT ESTIMADA (km) | K131: QUANTITATIVO TOTAL DE TRANSPORTE (tkm)
B133: TIPO (P, RP ou LN) | C133: DMT ESTIMADA (DISTRIBUIÇÃO DO ITEM NA PISTA
B134: RP | C134: 1
B136: COMPOSIÇÕES PRINCIPAIS
B137: SISTEMA DE CUSTOS REFERENCIAIS DE OBRAS - SICRO
B138: Custo Unitário de Referência | E138: =$C$6 -> 2025-04-01 | I138: Quantitativo | K138: m²
B139: ='MODULO MINIMO'!$D$22 -> 4915637 | C139: =VLOOKUP(B139,'SINTÉTICO SICRO'!$A$4:$D$1048576,2,0) -> Capa selante - areia comercial | I139: =(SUMIF('MODULO MINIMO'!D:D,B139,'MODULO MINIMO'!J:J))*0.8 -> 11200
B140: F - MOMENTO DE TRANSPORTE | D140: Quantidade | E140: Unidade | F140: CÓDIGO TRANSPORTE
F141: LN | G141: RP | H141: P | I141: TIPO (P, RP ou LN) | J141: DMT ESTIMADA (km) | K141: QUANTITATIVO TOTAL DE TRANSPORTE (tkm)
A142: =IF(I142="P",H142,IF(I142="RP",G142,IF(I142="LN",F142,""))) -> 5914329 | B142: M0028 | C142: Areia média - Caminhão Basculante com capacidade de 6m³ | D142: 0.00435 | E142: tkm | F142: 5914314 | G142: 5914329 | H142: 5914344 | I142: =$B$134 -> RP | J142: 0 | K142: =IF(ISBLANK(J142),"",J142*D142)*I139 -> 0
A143: =IF(I143="P",H143,IF(I143="RP",G143,IF(I143="LN",F143,""))) -> 
B144: Obs.
B145: SISTEMA DE CUSTOS REFERENCIAIS DE OBRAS - SICRO
B146: Custo Unitário de Referência | E146: =$C$6 -> 2025-04-01 | I146: Quantitativo | K146: m²
B147: ='MODULO MINIMO'!$D$23 -> 4011370 | C147: =VLOOKUP(B147,'SINTÉTICO SICRO'!$A$4:$D$1048576,2,0) -> Tratamento superficial duplo com emulsão - brita comercial | I147: =(SUMIF('MODULO MINIMO'!D:D,B147,'MODULO MINIMO'!J:J))*0.8 -> 11200
B148: F - MOMENTO DE TRANSPORTE | D148: Quantidade | E148: Unidade | F148: CÓDIGO TRANSPORTE
F149: LN | G149: RP | H149: P | I149: TIPO (P, RP ou LN) | J149: DMT ESTIMADA (km) | K149: QUANTITATIVO TOTAL DE TRANSPORTE (tkm)
A150: =IF(I150="P",H150,IF(I150="RP",G150,IF(I150="LN",F150,""))) -> 5914374 | B150: M005 | C150: Brita 0 - Caminhão basculante com capacidade de 10 m³ - 188 Kw | D150: 0.011 | E150: tkm | F150: 5914359 | G150: 5914374 | H150: 5914389 | I150: =$B$134 -> RP | J150: 0 | K150: =IF(ISBLANK(J150),"",J150*D150)*I147 -> 0
A151: =IF(I151="P",H151,IF(I151="RP",G151,IF(I151="LN",F151,""))) -> 5914374 | B151: M0191 | C151: Brita 1 - Caminhão basculante com capacidade de 10 m³ - 188 kW | D151: 0.0225 | E151: tkm | F151: 5914359 | G151: 5914374 | H151: 5914389 | I151: RP | J151: 0 | K151: =IF(ISBLANK(J151),"",J151*D151)*I147 -> 0
A152: =IF(I152="P",H152,IF(I152="RP",G152,IF(I152="LN",F152,""))) -> 
A154: =IF(I154="P",H154,IF(I154="RP",G154,IF(I154="LN",F154,""))) -> 
B155: SISTEMA DE CUSTOS REFERENCIAIS DE OBRAS - SICRO
B156: Custo Unitário de Referência | E156: =$C$6 -> 2025-04-01 | I156: Quantitativo | K156: un
B157: ='MODULO MINIMO'!$D$25 -> 4011219 | C157: =VLOOKUP(B157,'SINTÉTICO SICRO'!$A$4:$D$1048576,2,0) -> Base de solo estabilizado granulometricamente sem mistura com material de jazida - 100% Proctor modificado | I157: =(SUMIF('MODULO MINIMO'!D:D,B157,'MODULO MINIMO'!J:J)) -> 2100
B158: D - ATIVIDADES AUXILIARES | D158: Quantidade | E158: Unidade
B159: 4016096 | C159: Escavação e carga de material de jazida com escavadeira hidráulica de 1,56 m³ | D159: 1 | E159: m³
B161: F - MOMENTO DE TRANSPORTE | D161: Quantidade | E161: Unidade | F161: CÓDIGO TRANSPORTE
F162: LN | G162: RP | H162: P | I162: TIPO (P, RP ou LN) | J162: DMT ESTIMADA (km) | K162: QUANTITATIVO TOTAL DE TRANSPORTE (tkm)
A163: 5914374 | B163: 4016096 | C163: Escavação e carga de material de jazida com escavadeira hidráulica de 1,56 m³ - Caminhão basculante com capacidade de 10 m³ - 188 kW | D163: 2.063 | E163: tkm | F163: 5914359 | G163: 5914374 | H163: 5914389 | I163: =$B$134 -> RP | J163: 10 | K163: =IF(ISBLANK(J163),"",J163*D163)*I157 -> 43323
B165: Obs.
B167: SISTEMA DE CUSTOS REFERENCIAIS DE OBRAS - SICRO
B168: Custo Unitário de Referência | E168: =$C$6 -> 2025-04-01 | I168: Quantitativo | K168: un
B169: ='MODULO MINIMO'!$D$26 -> 4011227 | C169: =VLOOKUP(B169,'SINTÉTICO SICRO'!$A$4:$D$1048576,2,0) -> Sub-base de solo estabilizado granulometricamente sem mistura com material de jazida - 100% Proctor intermediário | I169: =(SUMIF('MODULO MINIMO'!D:D,B169,'MODULO MINIMO'!J:J)) -> 2100
B170: D - ATIVIDADES AUXILIARES | D170: Quantidade | E170: Unidade
B171: 4016096 | C171: Escavação e carga de material de jazida com escavadeira hidráulica de 1,56 m³ | D171: 1 | E171: m³
B173: F - MOMENTO DE TRANSPORTE | D173: Quantidade | E173: Unidade | F173: CÓDIGO TRANSPORTE
F174: LN | G174: RP | H174: P | I174: TIPO (P, RP ou LN) | J174: DMT ESTIMADA (km) | K174: QUANTITATIVO TOTAL DE TRANSPORTE (tkm)
A175: 5914374 | B175: 4016096 | C175: scavação e carga de material de jazida com escavadeira hidráulica de 1,56 m³ - Caminhão basculante com capacidade de 10 m³ - 188 kW | D175: 2.063 | E175: tkm | F175: 5914359 | G175: 5914374 | H175: 5914389 | I175: =$B$134 -> RP | J175: 10 | K175: =IF(ISBLANK(J175),"",J175*D175)*I169 -> 43323
B177: Obs.
B179: SISTEMA DE CUSTOS REFERENCIAIS DE OBRAS - SICRO
B180: Custo Unitário de Referência | E180: =$C$6 -> 2025-04-01 | I180: Quantitativo | K180: m
B181: ='MODULO MINIMO'!$D$39 -> 2003373 | C181: =VLOOKUP(B181,'SINTÉTICO SICRO'!$A$4:$D$1048576,2,0) -> Meio-fio de concreto - MFC 03 - areia e brita comerciais - fôrma de madeira | I181: =(SUMIF('MODULO MINIMO'!D:D,B181,'MODULO MINIMO'!J:J))*0.1 -> 400
B182: D - ATIVIDADES AUXILIARES | D182: Quantidade | E182: Unidade
B183: 1107892 | C183: Concreto fck = 20 MPa - confecção em betoneira e lançamento manual - areia e brita comerciais | D183: 0.042 | E183: m³
B184: 2003842 | C184: Enchimento de junta de concreto com argamassa asfáltica de densidade 1.700 kg/m³ - espessura de 1 cm | D184: 0.0595 | E184: kg
B185: 4805750 | C185: Escavação manual em material de 1ª categoria na profundidade de até 1 m | D185: 0.03 | E185: m³
B186: 3103302 | C186: Fôrmas de tábuas de pinho para dispositivos de drenagem - utilização de 3 vezes - confecção, instalação e retirada | D186: 0.0867 | E186: m²
B188: F - MOMENTO DE TRANSPORTE | D188: Quantidade | E188: Unidade | F188: CÓDIGO TRANSPORTE
F189: LN | G189: RP | H189: P | I189: TIPO (P, RP ou LN) | J189: DMT ESTIMADA (km) | K189: QUANTITATIVO TOTAL DE TRANSPORTE (tkm)

Sheet MOMENTO DE TRANSPORTE - AUX
B5: ='MODULO MINIMO'!B1 -> EXECUÇÃO DE SERVIÇOS DE PAVIMENTAÇÃO COM TRATAMENTO SUPERFICIAL DUPLO EM VIAS DE MUNICÍPIOS DIVERSOS INSERIDOS NA ÁREA DE ATUAÇÃO DA CODEVASF, NO ESTADO MARANHÃO
B6: DATA BASE: | C6: ='MODULO MINIMO'!$P$2 -> 2025-04-01
C8: RESUMO DO TRANSPORTE AUXILIAR
B9: CODIGO | C9: DESCRIÇÃO | D9: TKM
B10: 5914359 | C10: =VLOOKUP(B10,'SINTÉTICO SICRO'!$A:$D,2,0) -> Transporte com caminhão basculante de 10 m³ - rodovia em leito natural | D10: =ROUND(SUMIF($A:$A,B10,$K:$K),2) -> 0
B11: 5914374 | C11: =VLOOKUP(B11,'SINTÉTICO SICRO'!$A:$D,2,0) -> Transporte com caminhão basculante de 10 m³ - rodovia em revestimento primário | D11: 0
B12: 5914389 | C12: =VLOOKUP(B12,'SINTÉTICO SICRO'!$A:$D,2,0) -> Transporte com caminhão basculante de 10 m³ - rodovia pavimentada | D12: 0
B13: 5914449 | C13: =VLOOKUP(B13,'SINTÉTICO SICRO'!$A:$D,2,0) -> Transporte com caminhão carroceria de 15 t - rodovia em leito natural | D13: 0
B14: 5914464 | C14: =VLOOKUP(B14,'SINTÉTICO SICRO'!$A:$D,2,0) -> Transporte com caminhão carroceria de 15 t - rodovia em revestimento primário | D14: 0
B15: 5914479 | C15: =VLOOKUP(B15,'SINTÉTICO SICRO'!$A:$D,2,0) -> Transporte com caminhão carroceria de 15 t - rodovia pavimentada | D15: 0
B17: TIPO (P, RP ou LN) | C17: DMT ATÉ 50 KM NÃO DEVE SER PAGA | D17: DMT ACIMA DE 50 KM
B18: ='MOMENTO DE TRANSPORTE - PRINC'!B18 -> P | C18: 0 | D18: 0
B20: SISTEMA DE CUSTOS REFERENCIAIS DE OBRAS - SICRO | I20: Quantitivo
B21: Custo Unitário de Referência | E21: =$C$6 -> 2025-04-01 | I21: (Coeficiente na composição principal) x (quantidade da principal no orçamento) | K21: m³
B22: 1107892 | C22: Concreto fck = 20 MPa - confecção em betoneira e lançamento manual - areia e brita comerciais | I22: =('MOMENTO DE TRANSPORTE - PRINC'!D67*VLOOKUP(C31,'MODULO MINIMO'!D:S,7,FALSE))*0.8 -> 134.4
B23: F - MOMENTO DE TRANSPORTE | D23: Quantidade | E23: Unidade | F23: DMT
F24: LN | G24: RP | H24: P | I24: TIPO (P, RP ou LN) | J24: DMT ESTIMADA (km) | K24: QUANTITATIVO TOTAL DE TRANSPORTE DE MATERIAL (tkm)
A25: =IF(I25="P",H25,IF(I25="RP",G25,IF(I25="LN",F25,""))) -> 5914479 | B25: M0030 | C25: Aditivo plastificante e retardador de pega para concreto e argamassa - Caminhão carroceria 15 t | D25: 0.00085 | E25: tkm | F25: 5914449 | G25: 5914464 | H25: 5914479 | I25: =$B$18 -> P | J25: =$D$18 -> 0 | K25: =IF(ISBLANK(J25),"",J25*(D25*$I$22)) -> 0
A26: =IF(I26="P",H26,IF(I26="RP",G26,IF(I26="LN",F26,""))) -> 5914389 | B26: M0082 | C26: Areia média lavada - Caminhão basculante 10 m³ | D26: 0.95001 | E26: tkm | F26: 5914359 | G26: 5914374 | H26: 5914389 | I26: =$B$18 -> P | J26: =$D$18 -> 0 | K26: =IF(ISBLANK(J26),"",J26*(D26*$I$22)) -> 0
A27: 5914389 | B27: M0191 | C27: Brita 1 - Caminhão basculante 10 m³ | D27: 0.55131 | E27: tkm | F27: 5914359 | G27: 5914374 | H27: 5914389 | I27: P | J27: 0 | K27: 0
A28: 5914389 | B28: M0192 | C28: Brita 2 - Caminhão basculante 10 m³ | D28: 0.55131 | E28: tkm | F28: 5914359 | G28: 5914374 | H28: 5914389 | I28: P | J28: 0 | K28: 0
A29: 5914479 | B29: M0424 | C29: Cimento Portland CP II - 32 - saco - Caminhão carroceria 15 t | D29: 0.28215 | E29: tkm | F29: 5914449 | G29: 5914464 | H29: 5914479 | I29: P | J29: 0 | K29: 0
B31: PRINCIPAL: | C31: 2003373
B33: SISTEMA DE CUSTOS REFERENCIAIS DE OBRAS - SICRO | I33: Quantitivo
B34: Custo Unitário de Referência | E34: =$C$6 -> 2025-04-01 | I34: (Coeficiente na composição principal) x (quantidade da principal no orçamento) | K34: kg
B35: 2003842 | C35: Enchimento de junta de concreto com argamassa asfáltica de densidade 1.700 kg/m³ - espessura de 1 cm | I35: =('MOMENTO DE TRANSPORTE - PRINC'!D68*VLOOKUP(C40,'MODULO MINIMO'!D:S,7,FALSE))*0.8 -> 190.4
B36: F - MOMENTO DE TRANSPORTE | D36: Quantidade | E36: Unidade | F36: DMT
F37: LN | G37: RP | H37: P | I37: TIPO (P, RP ou LN) | J37: DMT ESTIMADA (km) | K37: QUANTITATIVO TOTAL DE TRANSPORTE DE MATERIAL (tkm)
A38: 5914479 | B38: M2158 | C38: Argamassa asfáltica - Caminhão carroceria com capacidade de 15 t - 188 Kw | D38: 0.001 | E38: tkm | F38: 5914449 | G38: 5914464 | H38: 5914479 | I38: =$B$18 -> P | J38: =$D$18 -> 0 | K38: =IF(ISBLANK(J38),"",J38*(D38*$I$35)) -> 0
B40: PRINCIPAL: | C40: 2003373
B42: SISTEMA DE CUSTOS REFERENCIAIS DE OBRAS - SICRO | I42: Quantitivo
B43: Custo Unitário de Referência | E43: =$C$6 -> 2025-04-01 | I43: (Coeficiente na composição principal) x (quantidade da principal no orçamento) | K43: m²
B44: 3103302 | C44: Fôrmas de tábuas de pinho para dispositivos de drenagem - utilização de 3 vezes - confecção, instalação e retirada | I44: =('MOMENTO DE TRANSPORTE - PRINC'!D70*VLOOKUP(C52,'MODULO MINIMO'!D:S,7,FALSE))*0.8 -> 277.44
B45: F - MOMENTO DE TRANSPORTE | D45: Quantidade | E45: Unidade | F45: DMT
F46: LN | G46: RP | H46: P | I46: TIPO (P, RP ou LN) | J46: DMT ESTIMADA (km) | K46: QUANTITATIVO TOTAL DE TRANSPORTE DE MATERIAL (tkm)
A47: 5914479 | B47: M0560 | C47: Desmoldante para fôrmas de madeira - Caminhão carroceria com capacidade de 15 t - 188 Kw | D47: 2e-05 | E47: tkm | F47: 5914449 | G47: 5914464 | H47: 5914479 | I47: =$B$18 -> P | J47: =$D$18 -> 0 | K47: =IF(ISBLANK(J47),"",J47*(D47*$I$44)) -> 0
A48: 5914479 | B48: M1205 | C48: Prego de ferro - Caminhão carroceria com capacidade de 15 t - 188 kW | D48: 3e-05 | E48: tkm | F48: 5914449 | G48: 5914464 | H48: 5914479 | I48: P | J48: 0 | K48: =IF(ISBLANK(J48),"",J48*(D48*$I$44)) -> 0
A49: 5914479 | B49: M0290 | C49: Tábua - E = 2,5 cm e L = 10 cm - Caminhão carroceria com capacidade de 15 t - 188 kW | D49: 0.00304 | E49: tkm | F49: 5914449 | G49: 5914464 | H49: 5914479 | I49: P | J49: 0 | K49: 0
A50: 5914479 | B50: M1429 | C50: Tábua de pinho de terceira - E = 2,5 cm - Caminhão carroceria com capacidade de 15 t - 188 kW | D50: 0.01011 | E50: tkm | F50: 5914449 | G50: 5914464 | H50: 5914479 | I50: P | J50: 0 | K50: 0
B52: PRINCIPAL: | C52: 2003373
B55: TIPO (P, RP ou LN) | C55: DMT ATÉ 50 KM NÃO DEVE SER PAGA | D55: DMT ACIMA DE 50 KM
B56: LN | C56: 0 | D56: 0
B58: SISTEMA DE CUSTOS REFERENCIAIS DE OBRAS - SICRO | I58: Quantitivo
B59: Custo Unitário de Referência | E59: =$C$6 -> 2025-04-01 | I59: (Coeficiente na composição principal) x (quantidade da principal no orçamento) | K59: m³
B60: 1107892 | C60: Concreto fck = 20 MPa - confecção em betoneira e lançamento manual - areia e brita comerciais | I60: =('MOMENTO DE TRANSPORTE - PRINC'!D67*VLOOKUP(C69,'MODULO MINIMO'!D:S,7,FALSE))*0.1 -> 16.8
B61: F - MOMENTO DE TRANSPORTE | D61: Quantidade | E61: Unidade | F61: DMT
F62: LN | G62: RP | H62: P | I62: TIPO (P, RP ou LN) | J62: DMT ESTIMADA (km) | K62: QUANTITATIVO TOTAL DE TRANSPORTE DE MATERIAL (tkm)
A63: =IF(I63="P",H63,IF(I63="RP",G63,IF(I63="LN",F63,""))) -> 5914449 | B63: M0030 | C63: Aditivo plastificante e retardador de pega para concreto e argamassa - Caminhão carroceria 15 t | D63: 0.00085 | E63: tkm | F63: 5914449 | G63: 5914464 | H63: 5914479 | I63: =$B$56 -> LN | J63: =$D$56 -> 0 | K63: =IF(ISBLANK(J63),"",J63*(D63*$I$60)) -> 0
A64: =IF(I64="P",H64,IF(I64="RP",G64,IF(I64="LN",F64,""))) -> 5914359 | B64: M0082 | C64: Areia média lavada - Caminhão basculante 10 m³ | D64: 0.95001 | E64: tkm | F64: 5914359 | G64: 5914374 | H64: 5914389 | I64: =$B$56 -> LN | J64: =$D$56 -> 0 | K64: =IF(ISBLANK(J64),"",J64*(D64*$I$60)) -> 0
A65: 5914359 | B65: M0191 | C65: Brita 1 - Caminhão basculante 10 m³ | D65: 0.55131 | E65: tkm | F65: 5914359 | G65: 5914374 | H65: 5914389 | I65: LN | J65: 0 | K65: 0
A66: 5914359 | B66: M0192 | C66: Brita 2 - Caminhão basculante 10 m³ | D66: 0.55131 | E66: tkm | F66: 5914359 | G66: 5914374 | H66: 5914389 | I66: LN | J66: 0 | K66: 0
A67: 5914449 | B67: M0424 | C67: Cimento Portland CP II - 32 - saco - Caminhão carroceria 15 t | D67: 0.28215 | E67: tkm | F67: 5914449 | G67: 5914464 | H67: 5914479 | I67: LN | J67: 0 | K67: 0
B69: PRINCIPAL: | C69: 2003373
B71: SISTEMA DE CUSTOS REFERENCIAIS DE OBRAS - SICRO | I71: Quantitivo
B72: Custo Unitário de Referência | E72: =$C$6 -> 2025-04-01 | I72: (Coeficiente na composição principal) x (quantidade da principal no orçamento) | K72: kg
B73: 2003842 | C73: Enchimento de junta de concreto com argamassa asfáltica de densidade 1.700 kg/m³ - espessura de 1 cm | I73: =('MOMENTO DE TRANSPORTE - PRINC'!D68*VLOOKUP(C78,'MODULO MINIMO'!D:S,7,FALSE))*0.1 -> 23.8
B74: F - MOMENTO DE TRANSPORTE | D74: Quantidade | E74: Unidade | F74: DMT
F75: LN | G75: RP | H75: P | I75: TIPO (P, RP ou LN) | J75: DMT ESTIMADA (km) | K75: QUANTITATIVO TOTAL DE TRANSPORTE DE MATERIAL (tkm)
A76: 5914449 | B76: M2158 | C76: Argamassa asfáltica - Caminhão carroceria com capacidade de 15 t - 188 Kw | D76: 0.001 | E76: tkm | F76: 5914449 | G76: 5914464 | H76: 5914479 | I76: =$B$56 -> LN | J76: =$D$56 -> 0 | K76: =IF(ISBLANK(J76),"",J76*(D76*$I$73)) -> 0
B78: PRINCIPAL: | C78: 2003373
B80: SISTEMA DE CUSTOS REFERENCIAIS DE OBRAS - SICRO | I80: Quantitivo
B81: Custo Unitário de Referência | E81: =$C$6 -> 2025-04-01 | I81: (Coeficiente na composição principal) x (quantidade da principal no orçamento) | K81: m²
B82: 3103302 | C82: Fôrmas de tábuas de pinho para dispositivos de drenagem - utilização de 3 vezes - confecção, instalação e retirada | I82: =('MOMENTO DE TRANSPORTE - PRINC'!D70*VLOOKUP(C90,'MODULO MINIMO'!D:S,7,FALSE))*0.1 -> 34.68
B83: F - MOMENTO DE TRANSPORTE | D83: Quantidade | E83: Unidade | F83: DMT
F84: LN | G84: RP | H84: P | I84: TIPO (P, RP ou LN) | J84: DMT ESTIMADA (km) | K84: QUANTITATIVO TOTAL DE TRANSPORTE DE MATERIAL (tkm)
A85: 5914449 | B85: M0560 | C85: Desmoldante para fôrmas de madeira - Caminhão carroceria com capacidade de 15 t - 188 Kw | D85: 2e-05 | E85: tkm | F85: 5914449 | G85: 5914464 | H85: 5914479 | I85: =$B$56 -> LN | J85: =$D$56 -> 0 | K85: =IF(ISBLANK(J85),"",J85*(D85*$I$82)) -> 0
A86: 5914449 | B86: M1205 | C86: Prego de ferro - Caminhão carroceria com capacidade de 15 t - 188 kW | D86: 3e-05 | E86: tkm | F86: 5914449 | G86: 5914464 | H86: 5914479 | I86: LN | J86: 0 | K86: =IF(ISBLANK(J86),"",J86*(D86*$I$82)) -> 0
A87: 5914449 | B87: M0290 | C87: Tábua - E = 2,5 cm e L = 10 cm - Caminhão carroceria com capacidade de 15 t - 188 kW | D87: 0.00304 | E87: tkm | F87: 5914449 | G87: 5914464 | H87: 5914479 | I87: LN | J87: 0 | K87: 0
A88: 5914449 | B88: M1429 | C88: Tábua de pinho de terceira - E = 2,5 cm - Caminhão carroceria com capacidade de 15 t - 188 kW | D88: 0.01011 | E88: tkm | F88: 5914449 | G88: 5914464 | H88: 5914479 | I88: LN | J88: 0 | K88: 0
B90: PRINCIPAL: | C90: 2003373
B92: TIPO (P, RP ou LN) | C92: DMT ATÉ 50 KM NÃO DEVE SER PAGA | D92: DMT ACIMA DE 50 KM
B93: RP | C93: 0 | D93: 0
B95: SISTEMA DE CUSTOS REFERENCIAIS DE OBRAS - SICRO | I95: Quantitivo
B96: Custo Unitário de Referência | E96: =$C$6 -> 2025-04-01 | I96: (Coeficiente na composição principal) x (quantidade da principal no orçamento) | K96: m³
B97: 1107892 | C97: Concreto fck = 20 MPa - confecção em betoneira e lançamento manual - areia e brita comerciais | I97: =('MOMENTO DE TRANSPORTE - PRINC'!D67*VLOOKUP(C106,'MODULO MINIMO'!D:S,7,FALSE))*0.1 -> 16.8
B98: F - MOMENTO DE TRANSPORTE | D98: Quantidade | E98: Unidade | F98: DMT
F99: LN | G99: RP | H99: P | I99: TIPO (P, RP ou LN) | J99: DMT ESTIMADA (km) | K99: QUANTITATIVO TOTAL DE TRANSPORTE DE MATERIAL (tkm)
A100: =IF(I100="P",H100,IF(I100="RP",G100,IF(I100="LN",F100,""))) -> 5914464 | B100: M0030 | C100: Aditivo plastificante e retardador de pega para concreto e argamassa - Caminhão carroceria 15 t | D100: 0.00085 | E100: tkm | F100: 5914449 | G100: 5914464 | H100: 5914479 | I100: =$B$93 -> RP | J100: =$D$93 -> 0 | K100: =IF(ISBLANK(J100),"",J100*(D100*$I$97)) -> 0
A101: =IF(I101="P",H101,IF(I101="RP",G101,IF(I101="LN",F101,""))) -> 5914374 | B101: M0082 | C101: Areia média lavada - Caminhão basculante 10 m³ | D101: 0.95001 | E101: tkm | F101: 5914359 | G101: 5914374 | H101: 5914389 | I101: =$B$93 -> RP | J101: =$D$93 -> 0 | K101: =IF(ISBLANK(J101),"",J101*(D101*$I$97)) -> 0
A102: 5914374 | B102: M0191 | C102: Brita 1 - Caminhão basculante 10 m³ | D102: 0.55131 | E102: tkm | F102: 5914359 | G102: 5914374 | H102: 5914389 | I102: RP | J102: 0 | K102: 0
A103: 5914374 | B103: M0192 | C103: Brita 2 - Caminhão basculante 10 m³ | D103: 0.55131 | E103: tkm | F103: 5914359 | G103: 5914374 | H103: 5914389 | I103: RP | J103: 0 | K103: 0
A104: 5914464 | B104: M0424 | C104: Cimento Portland CP II - 32 - saco - Caminhão carroceria 15 t | D104: 0.28215 | E104: tkm | F104: 5914449 | G104: 5914464 | H104: 5914479 | I104: RP | J104: 0 | K104: 0
B106: PRINCIPAL: | C106: 2003373
B108: SISTEMA DE CUSTOS REFERENCIAIS DE OBRAS - SICRO | I108: Quantitivo
B109: Custo Unitário de Referência | E109: =$C$6 -> 2025-04-01 | I109: (Coeficiente na composição principal) x (quantidade da principal no orçamento) | K109: kg
B110: 2003842 | C110: Enchimento de junta de concreto com argamassa asfáltica de densidade 1.700 kg/m³ - espessura de 1 cm | I110: =('MOMENTO DE TRANSPORTE - PRINC'!D68*VLOOKUP(C115,'MODULO MINIMO'!D:S,7,FALSE))*0.1 -> 23.8
B111: F - MOMENTO DE TRANSPORTE | D111: Quantidade | E111: Unidade | F111: DMT
F112: LN | G112: RP | H112: P | I112: TIPO (P, RP ou LN) | J112: DMT ESTIMADA (km) | K112: QUANTITATIVO TOTAL DE TRANSPORTE DE MATERIAL (tkm)
A113: 5914464 | B113: M2158 | C113: Argamassa asfáltica - Caminhão carroceria com capacidade de 15 t - 188 Kw | D113: 0.001 | E113: tkm | F113: 5914449 | G113: 5914464 | H113: 5914479 | I113: =$B$93 -> RP | J113: =$D$93 -> 0 | K113: =IF(ISBLANK(J113),"",J113*(D113*$I$110)) -> 0
B115: PRINCIPAL: | C115: 2003373
B117: SISTEMA DE CUSTOS REFERENCIAIS DE OBRAS - SICRO | I117: Quantitivo
B118: Custo Unitário de Referência | E118: =$C$6 -> 2025-04-01 | I118: (Coeficiente na composição principal) x (quantidade da principal no orçamento) | K118: m²
B119: 3103302 | C119: Fôrmas de tábuas de pinho para dispositivos de drenagem - utilização de 3 vezes - confecção, instalação e retirada | I119: =('MOMENTO DE TRANSPORTE - PRINC'!D70*VLOOKUP(C127,'MODULO MINIMO'!D:S,7,FALSE))*0.1 -> 34.68
B120: F - MOMENTO DE TRANSPORTE | D120: Quantidade | E120: Unidade | F120: DMT
F121: LN | G121: RP | H121: P | I121: TIPO (P, RP ou LN) | J121: DMT ESTIMADA (km) | K121: QUANTITATIVO TOTAL DE TRANSPORTE DE MATERIAL (tkm)
A122: 5914464 | B122: M0560 | C122: Desmoldante para fôrmas de madeira - Caminhão carroceria com capacidade de 15 t - 188 Kw | D122: 2e-05 | E122: tkm | F122: 5914449 | G122: 5914464 | H122: 5914479 | I122: =$B$93 -> RP | J122: =$D$93 -> 0 | K122: =IF(ISBLANK(J122),"",J122*(D122*$I$119)) -> 0
A123: 5914464 | B123: M1205 | C123: Prego de ferro - Caminhão carroceria com capacidade de 15 t - 188 kW | D123: 3e-05 | E123: tkm | F123: 5914449 | G123: 5914464 | H123: 5914479 | I123: RP | J123: 0 | K123: =IF(ISBLANK(J123),"",J123*(D123*$I$119)) -> 0
A124: 5914464 | B124: M0290 | C124: Tábua - E = 2,5 cm e L = 10 cm - Caminhão carroceria com capacidade de 15 t - 188 kW | D124: 0.00304 | E124: tkm | F124: 5914449 | G124: 5914464 | H124: 5914479 | I124: RP | J124: 0 | K124: 0
A125: 5914464 | B125: M1429 | C125: Tábua de pinho de terceira - E = 2,5 cm - Caminhão carroceria com capacidade de 15 t - 188 kW | D125: 0.01011 | E125: tkm | F125: 5914449 | G125: 5914464 | H125: 5914479 | I125: RP | J125: 0 | K125: 0
B127: PRINCIPAL: | C127: 2003373

Sheet Memória de Cálculo
A1: Extensão | B1: = | C1: 2000 | D1: m | F1: QUANTIDADE DE MODULOS | G1: 1
A2: Largura | B2: = | C2: 7 | D2: m
A4: Extensão | B4: = | C4: 2 | D4: km
B6: MOBUILIZAÇÃO
A7: 1 | B7: Implantação da obra
B9: Módulos(un) | D9: Módulos(un)
B10: =G1 -> 1 | C10: = | D10: =B10 -> 1
A12: 2 | B12: Administração da obra
B14: Módulos(un) | D14: Meses (mês)
B15: =G1 -> 1 | C15: = | D15: =B15 -> 1
A17: 3 | B17: Canteiro de Obras e Almoxarifado
B19: Módulos(un) | D19: Meses (mês)
B20: =G1 -> 1 | C20: = | D20: =B20 -> 1
A22: 4 | B22: Placa de Obra em Chapa de Aço Galvanizado
B24: Módulos(un) | C24: Comprimento(m) | D24: Largura (m) | H24: Total de Area de placa (m²)
B25: =G1 -> 1 | C25: 2 | D25: 4 | H25: =C25*D25*B25 -> 8
B27: TERRAPLENAGEM
A29: 5 | B29: serviços topográficos para pavimentação, inclusive notas de serviços, acompanhamento e greide
B31: Extensão (m) | D31: Largura (m) | H31: area (m2)
B32: =C1*$G$1 -> 2000 | C32: x | D32: =$C$2 -> 7 | G32: = | H32: =B32*D32 -> 14000
A34: 6 | B34: Escavação, carga e transporte de material de 1ª categoria - DMT de 1.000 a 1.200 m - caminho de serviço em leito natural - com escavadeira e caminhão basculante de 14 m³
B36: Extensão (m) | D36: Largura (m) | F36: Espessura (m) | H36: Volume (m3)
B37: =C1*$G$1 -> 2000 | C37: x | D37: =$C$2 -> 7 | E37: x | F37: 0.325 | G37: = | H37: =B37*D37*F37 -> 4550
A41: 7 | B41: Espalhamento de material em bota-fora
B43: Extensão (m) | D43: Largura (m) | F43: Espessura (m) | H43: Volume (m3)
B44: =C1*$G$1 -> 2000 | C44: x | D44: =$C$2 -> 7 | E44: x | F44: 0.325 | G44: = | H44: =B44*D44*F44 -> 4550
B46: PAVIMENTAÇÃO
A48: 8 | B48: Capa Selante
B50: Extensão (m) | C50: Largura (m) | H50: area (m2)
B51: =$C$1*G1 -> 2000 | C51: =$C$2 -> 7 | G51: = | H51: =B51*C51 -> 14000
A54: 9 | B54: Tratamento Superficial Duplo com Emulsão - Brita Comercial
B56: Extensão (m) | D56: Largura (m) | H56: area (m2)
B57: =$C$1*G1 -> 2000 | C57: x | D57: =$C$2 -> 7 | G57: = | H57: =B57*D57 -> 14000
A60: 10 | B60: Imprimação com asfalto diluído
B62: Extensão (m) | D62: Largura (m) | H62: area (m2)
B63: =$C$1*G1 -> 2000 | C63: x | D63: =$C$2 -> 7 | G63: = | H63: =B63*D63 -> 14000
A65: 11 | B65: Base estabilizada granulometricamente com mistura de solos na pista com material de jazida
B67: Extensão (m) | D67: Largura (m) | F67: Espessura (m) | H67: Volume (m3)
B68: =C1*$G$1 -> 2000 | C68: x | D68: =$C$2 -> 7 | E68: x | F68: 0.15 | G68: = | H68: =B68*D68*F68 -> 2100
A71: 12 | B71: Sub-base de solo estabilizado granulometricamente sem mistura com material de jazida
B73: Extensão (m) | D73: Largura (m) | F73: Espessura (m) | H73: Volume (m3)
B74: =C1*$G$1 -> 2000 | C74: x | D74: =$C$2 -> 7 | E74: x | F74: 0.15 | G74: = | H74: =B74*D74*F74 -> 2100
A77: 13 | B77: Regularização do subleito
B79: Extensão (m) | D79: Largura (m) | H79: area (m2)
B80: =C1*$G$1 -> 2000 | C80: x | D80: =$C$2 -> 7 | G80: = | H80: =B80*D80 -> 14000
B82: SINALIZAÇÃO
A84: 20 | B84: Fornecimento e implantação de placa de regulamentação em aço D = 0,60 m - película retrorrefletiva tipo I + SI
B86: Extensão (km) | D86: Quant. (un) | H86: Quant. (un)
B87: =$C$4*$G$1 -> 2 | C87: x | D87: 3 | G87: = | H87: =B87*D87 -> 6
A89: 20 | B89: Fornecimento e implantação de placa de advertencia
B91: Extensão (km) | D91: Quant. (un) | H91: Quant. (un)
B92: =$C$4*$G$1 -> 2 | C92: x | D92: 3 | G92: = | H92: =B92*D92 -> 6
A95: 21 | B95: Fornecimento e implantação de suporte metálico galvanizado para placa de regulamentação - D = 0,60 m
B97: Extensão (km) | D97: Quant. (un) | H97: Quant. (un)
B98: =$C$4*$G$1 -> 2 | C98: x | D98: 0.5 | G98: = | H98: =H87+H92 -> 12
A100: 22 | B100: Pintura de faixa com tinta acrílica - espessura de 0,4 mm (bordos)
B102: Extensão (m) | D102: Espessura (m) | H102: Quant. (m²)
B103: =C1*G1 -> 2000 | C103: x | D103: 0.1 | G103: = | H103: =B103*D103*2 -> 400
B105: Pintura de faixa com tinta acrílica - espessura de 0,4 mm (faixa central)
H107: Quant. (m²)
H108: =B103*D103*1 -> 200
B110: SINALIZAÇÃO DE OBRAS
A112: 20 | B112: Placa para sinalização de obras montada em cavalete metálico - 1,00 x 1,00 m - utilização de 600 ciclos - fornecimento, 01 implantação e 01 retirada diária
B114: Extensão (m) | C114: Extensão (Km) | D114: Placa | E114: Dias | H114: Quant. (Un.DIA)
B115: =C1*G1 -> 2000 | C115: =B115/1000 -> 2 | D115: 1 | E115: 360 | G115: = | H115: =D115*C115*E115 -> 720
A118: 21 | B118: Placa de advertência para sinalização de obras montada em suporte metálico móvel, lado 1,00 m - utilização de 600 ciclos - fornecimento, 01 implantação e 01 retirada diária
B120: Extensão (m) | C120: Extensão (Km) | D120: Placa | E120: Dias | H120: Quant. (Un.DIA)
B121: =C1*G1 -> 2000 | C121: =B121/1000 -> 2 | D121: 1 | E121: 360 | G121: = | H121: =D121*C121*E121 -> 720
A123: 22 | B123: Cone plástico para canalização de trânsito - utilização de 150 ciclos - fornecimento, 01 implantação e 01 retirada diária
B124: 4 cones a cada 2km x 360 dias
B125: Extensão (m) | C125: Extensão (Km) | D125: Cone | E125: Dias | H125: Quant. (Un.DIA)
B126: =C1*D10 -> 2000 | C126: =B126/1000 -> 2 | D126: 4 | E126: 360 | G126: = | H126: =((C126*D126)/2)*E126 -> 1440
B128: DRENAGEM
A129: 23 | B129: Meio-fio de concreto - MFC 03 - areia e brita comerciais - fôrma de madeira
B131: Extensão (m) | D131: Quant. (un) | H131: Extensão(m)
B132: =$C$1*$G$1 -> 2000 | C132: x | D132: 2 | G132: = | H132: =B132*D132 -> 4000
A134: 19 | B134: Caiação mecanizada com fixador de cal
B136: Extensão (m) | D136: Perimetro (m) | H136: Area (m²)
B137: =$C$1*$G$1 -> 2000 | C137: x | D137: =0.24 -> 0.24 | G137: = | H137: =B137*D137 -> 480
B140: SERVIÇOS COMPLEMENTARES
A141: 24
B143: Extensão (m) | D143: Largura (m) | G143: 0.1 | H143: extensão (m)
B144: =$C$1*G1 -> 2000 | C144: x | D144: 1 | E144: x | G144: = | H144: =G143*B144 -> 200
B147: PROJETO EXECUTIVO
A148: 25 | B148: Projeto Executivo
B150: Extensão (m) | D150: Largura (m) | F150: Quant. (un) | H150: Área (m²)
B151: =$C$1*G1 -> 2000 | C151: x | D151: =C2 -> 7 | E151: x | F151: 1 | G151: = | H151: =B151*D151 -> 14000
B153: CONTROLE TECNOLOGICO - OBRA
A154: 26 | B154: Projeto Executivo
B156: Extensão (m) | D156: Largura (m) | F156: Quant. (un) | H156: meses
G157: = | H157: 10 | I157: Conforme Cronograma da obra
F160: Perímetro caiação = 0,09 + 0,15

Sheet ANP ESTADO (hidden)
A1: Agência Nacional do Petróleo, Gás Natural e Biocombustíveis
A2: Superintendência de Defesa da Concorrência
A5: PREÇO MÉDIO MENSAL PONDERADO PRATICADO PELOS DISTRIBUIDORES DE PRODUTOS ASFÁLTICOS (R$/KG)
A7: Importante: | B7: Quando não houver declaração de venda do produto selecionado, ou quando a declaração de venda do produto ocorrer por menos de 03 (três) distribuidoras, a tabela indicará campo vazio.
A8: Mês | B8: Produto | C8: Estado | D8: Preço
A9: 2013-01-01 | B9: ASFALTOS DILUÍDOS CM-30 | C9: Acre | D9: -
A10: 2013-01-01 | B10: ASFALTOS DILUÍDOS CM-30 | C10: Alagoas | D10: -
A11: 2013-01-01 | B11: ASFALTOS DILUÍDOS CM-30 | C11: Amapá | D11: -
A12: 2013-01-01 | B12: ASFALTOS DILUÍDOS CM-30 | C12: Amazonas | D12: 1.453527021
A13: 2013-01-01 | B13: ASFALTOS DILUÍDOS CM-30 | C13: Bahia | D13: 1.464044142
A14: 2013-01-01 | B14: ASFALTOS DILUÍDOS CM-30 | C14: Ceará | D14: 1.447997934
A15: 2013-01-01 | B15: ASFALTOS DILUÍDOS CM-30 | C15: Distrito Federal | D15: -
A16: 2013-01-01 | B16: ASFALTOS DILUÍDOS CM-30 | C16: Espírito Santo | D16: -
A17: 2013-01-01 | B17: ASFALTOS DILUÍDOS CM-30 | C17: Goiás | D17: 1.686383065
A18: 2013-01-01 | B18: ASFALTOS DILUÍDOS CM-30 | C18: Maranhão | D18: -
A19: 2013-01-01 | B19: ASFALTOS DILUÍDOS CM-30 | C19: Mato Grosso | D19: -
A20: 2013-01-01 | B20: ASFALTOS DILUÍDOS CM-30 | C20: Mato Grosso do Sul | D20: -
A21: 2013-01-01 | B21: ASFALTOS DILUÍDOS CM-30 | C21: Minas Gerais | D21: 1.451106114
A22: 2013-01-01 | B22: ASFALTOS DILUÍDOS CM-30 | C22: Pará | D22: -
A23: 2013-01-01 | B23: ASFALTOS DILUÍDOS CM-30 | C23: Paraíba | D23: -
A24: 2013-01-01 | B24: ASFALTOS DILUÍDOS CM-30 | C24: Paraná | D24: 1.520125031
A25: 2013-01-01 | B25: ASFALTOS DILUÍDOS CM-30 | C25: Pernambuco | D25: -
A26: 2013-01-01 | B26: ASFALTOS DILUÍDOS CM-30 | C26: Piauí | D26: -
A27: 2013-01-01 | B27: ASFALTOS DILUÍDOS CM-30 | C27: Rio de Janeiro | D27: 1.330475106
A28: 2013-01-01 | B28: ASFALTOS DILUÍDOS CM-30 | C28: Rio Grande do Norte | D28: -
A29: 2013-01-01 | B29: ASFALTOS DILUÍDOS CM-30 | C29: Rio Grande do Sul | D29: 1.598611074
A30: 2013-01-01 | B30: ASFALTOS DILUÍDOS CM-30 | C30: Rondônia | D30: -
A31: 2013-01-01 | B31: ASFALTOS DILUÍDOS CM-30 | C31: Roraima | D31: -
A32: 2013-01-01 | B32: ASFALTOS DILUÍDOS CM-30 | C32: Santa Catarina | D32: -
A33: 2013-01-01 | B33: ASFALTOS DILUÍDOS CM-30 | C33: São Paulo | D33: 1.471008423
A34: 2013-01-01 | B34: ASFALTOS DILUÍDOS CM-30 | C34: Sergipe | D34: -
A35: 2013-01-01 | B35: ASFALTOS DILUÍDOS CM-30 | C35: Tocantins | D35: -
A36: 2013-02-01 | B36: ASFALTOS DILUÍDOS CM-30 | C36: Acre | D36: -
A37: 2013-02-01 | B37: ASFALTOS DILUÍDOS CM-30 | C37: Alagoas | D37: -
A38: 2013-02-01 | B38: ASFALTOS DILUÍDOS CM-30 | C38: Amapá | D38: -
A39: 2013-02-01 | B39: ASFALTOS DILUÍDOS CM-30 | C39: Amazonas | D39: 1.485578179
A40: 2013-02-01 | B40: ASFALTOS DILUÍDOS CM-30 | C40: Bahia | D40: 1.457014101
A41: 2013-02-01 | B41: ASFALTOS DILUÍDOS CM-30 | C41: Ceará | D41: 1.413192336
A42: 2013-02-01 | B42: ASFALTOS DILUÍDOS CM-30 | C42: Distrito Federal | D42: -
A43: 2013-02-01 | B43: ASFALTOS DILUÍDOS CM-30 | C43: Espírito Santo | D43: -
A44: 2013-02-01 | B44: ASFALTOS DILUÍDOS CM-30 | C44: Goiás | D44: 1.667459711
A45: 2013-02-01 | B45: ASFALTOS DILUÍDOS CM-30 | C45: Maranhão | D45: -
A46: 2013-02-01 | B46: ASFALTOS DILUÍDOS CM-30 | C46: Mato Grosso | D46: -
A47: 2013-02-01 | B47: ASFALTOS DILUÍDOS CM-30 | C47: Mato Grosso do Sul | D47: -
A48: 2013-02-01 | B48: ASFALTOS DILUÍDOS CM-30 | C48: Minas Gerais | D48: 1.452121117
A49: 2013-02-01 | B49: ASFALTOS DILUÍDOS CM-30 | C49: Pará | D49: -
A50: 2013-02-01 | B50: ASFALTOS DILUÍDOS CM-30 | C50: Paraíba | D50: -
A51: 2013-02-01 | B51: ASFALTOS DILUÍDOS CM-30 | C51: Paraná | D51: 1.493783173
A52: 2013-02-01 | B52: ASFALTOS DILUÍDOS CM-30 | C52: Pernambuco | D52: -
A53: 2013-02-01 | B53: ASFALTOS DILUÍDOS CM-30 | C53: Piauí | D53: -
A54: 2013-02-01 | B54: ASFALTOS DILUÍDOS CM-30 | C54: Rio de Janeiro | D54: 1.418234901
A55: 2013-02-01 | B55: ASFALTOS DILUÍDOS CM-30 | C55: Rio Grande do Norte | D55: -
A56: 2013-02-01 | B56: ASFALTOS DILUÍDOS CM-30 | C56: Rio Grande do Sul | D56: 1.435861782
A57: 2013-02-01 | B57: ASFALTOS DILUÍDOS CM-30 | C57: Rondônia | D57: -
A58: 2013-02-01 | B58: ASFALTOS DILUÍDOS CM-30 | C58: Roraima | D58: -
A59: 2013-02-01 | B59: ASFALTOS DILUÍDOS CM-30 | C59: Santa Catarina | D59: -
A60: 2013-02-01 | B60: ASFALTOS DILUÍDOS CM-30 | C60: São Paulo | D60: 1.434190204
A61: 2013-02-01 | B61: ASFALTOS DILUÍDOS CM-30 | C61: Sergipe | D61: -
A62: 2013-02-01 | B62: ASFALTOS DILUÍDOS CM-30 | C62: Tocantins | D62: -
A63: 2013-03-01 | B63: ASFALTOS DILUÍDOS CM-30 | C63: Acre | D63: -
A64: 2013-03-01 | B64: ASFALTOS DILUÍDOS CM-30 | C64: Alagoas | D64: -
A65: 2013-03-01 | B65: ASFALTOS DILUÍDOS CM-30 | C65: Amapá | D65: -
A66: 2013-03-01 | B66: ASFALTOS DILUÍDOS CM-30 | C66: Amazonas | D66: 1.507923921
A67: 2013-03-01 | B67: ASFALTOS DILUÍDOS CM-30 | C67: Bahia | D67: 1.449440325
A68: 2013-03-01 | B68: ASFALTOS DILUÍDOS CM-30 | C68: Ceará | D68: 1.401607485
A69: 2013-03-01 | B69: ASFALTOS DILUÍDOS CM-30 | C69: Distrito Federal | D69: -
A70: 2013-03-01 | B70: ASFALTOS DILUÍDOS CM-30 | C70: Espírito Santo | D70: -
A71: 2013-03-01 | B71: ASFALTOS DILUÍDOS CM-30 | C71: Goiás | D71: 1.661758701
A72: 2013-03-01 | B72: ASFALTOS DILUÍDOS CM-30 | C72: Maranhão | D72: -
A73: 2013-03-01 | B73: ASFALTOS DILUÍDOS CM-30 | C73: Mato Grosso | D73: -
A74: 2013-03-01 | B74: ASFALTOS DILUÍDOS CM-30 | C74: Mato Grosso do Sul | D74: -
A75: 2013-03-01 | B75: ASFALTOS DILUÍDOS CM-30 | C75: Minas Gerais | D75: 1.44324333
A76: 2013-03-01 | B76: ASFALTOS DILUÍDOS CM-30 | C76: Pará | D76: -
A77: 2013-03-01 | B77: ASFALTOS DILUÍDOS CM-30 | C77: Paraíba | D77: -
A78: 2013-03-01 | B78: ASFALTOS DILUÍDOS CM-30 | C78: Paraná | D78: 1.468995996
A79: 2013-03-01 | B79: ASFALTOS DILUÍDOS CM-30 | C79: Pernambuco | D79: -
A80: 2013-03-01 | B80: ASFALTOS DILUÍDOS CM-30 | C80: Piauí | D80: -
A81: 2013-03-01 | B81: ASFALTOS DILUÍDOS CM-30 | C81: Rio de Janeiro | D81: 1.438055574
A82: 2013-03-01 | B82: ASFALTOS DILUÍDOS CM-30 | C82: Rio Grande do Norte | D82: -
A83: 2013-03-01 | B83: ASFALTOS DILUÍDOS CM-30 | C83: Rio Grande do Sul | D83: 1.581425878
A84: 2013-03-01 | B84: ASFALTOS DILUÍDOS CM-30 | C84: Rondônia | D84: -
A85: 2013-03-01 | B85: ASFALTOS DILUÍDOS CM-30 | C85: Roraima | D85: -
A86: 2013-03-01 | B86: ASFALTOS DILUÍDOS CM-30 | C86: Santa Catarina | D86: -
A87: 2013-03-01 | B87: ASFALTOS DILUÍDOS CM-30 | C87: São Paulo | D87: 1.466061702
A88: 2013-03-01 | B88: ASFALTOS DILUÍDOS CM-30 | C88: Sergipe | D88: -
A89: 2013-03-01 | B89: ASFALTOS DILUÍDOS CM-30 | C89: Tocantins | D89: -
A90: 2013-04-01 | B90: ASFALTOS DILUÍDOS CM-30 | C90: Acre | D90: -
A91: 2013-04-01 | B91: ASFALTOS DILUÍDOS CM-30 | C91: Alagoas | D91: -
A92: 2013-04-01 | B92: ASFALTOS DILUÍDOS CM-30 | C92: Amapá | D92: -
A93: 2013-04-01 | B93: ASFALTOS DILUÍDOS CM-30 | C93: Amazonas | D93: 1.484796656
A94: 2013-04-01 | B94: ASFALTOS DILUÍDOS CM-30 | C94: Bahia | D94: 1.454836546
A95: 2013-04-01 | B95: ASFALTOS DILUÍDOS CM-30 | C95: Ceará | D95: 1.387073962
A96: 2013-04-01 | B96: ASFALTOS DILUÍDOS CM-30 | C96: Distrito Federal | D96: -
A97: 2013-04-01 | B97: ASFALTOS DILUÍDOS CM-30 | C97: Espírito Santo | D97: -
A98: 2013-04-01 | B98: ASFALTOS DILUÍDOS CM-30 | C98: Goiás | D98: 1.673481836
A99: 2013-04-01 | B99: ASFALTOS DILUÍDOS CM-30 | C99: Maranhão | D99: -
A100: 2013-04-01 | B100: ASFALTOS DILUÍDOS CM-30 | C100: Mato Grosso | D100: 1.921938422
A101: 2013-04-01 | B101: ASFALTOS DILUÍDOS CM-30 | C101: Mato Grosso do Sul | D101: -
A102: 2013-04-01 | B102: ASFALTOS DILUÍDOS CM-30 | C102: Minas Gerais | D102: 1.456556683
A103: 2013-04-01 | B103: ASFALTOS DILUÍDOS CM-30 | C103: Pará | D103: -
A104: 2013-04-01 | B104: ASFALTOS DILUÍDOS CM-30 | C104: Paraíba | D104: -
A105: 2013-04-01 | B105: ASFALTOS DILUÍDOS CM-30 | C105: Paraná | D105: 1.534419498
A106: 2013-04-01 | B106: ASFALTOS DILUÍDOS CM-30 | C106: Pernambuco | D106: -
A107: 2013-04-01 | B107: ASFALTOS DILUÍDOS CM-30 | C107: Piauí | D107: -
A108: 2013-04-01 | B108: ASFALTOS DILUÍDOS CM-30 | C108: Rio de Janeiro | D108: 1.418419516
A109: 2013-04-01 | B109: ASFALTOS DILUÍDOS CM-30 | C109: Rio Grande do Norte | D109: -
A110: 2013-04-01 | B110: ASFALTOS DILUÍDOS CM-30 | C110: Rio Grande do Sul | D110: 1.572582456
A111: 2013-04-01 | B111: ASFALTOS DILUÍDOS CM-30 | C111: Rondônia | D111: -
A112: 2013-04-01 | B112: ASFALTOS DILUÍDOS CM-30 | C112: Roraima | D112: -
A113: 2013-04-01 | B113: ASFALTOS DILUÍDOS CM-30 | C113: Santa Catarina | D113: -
A114: 2013-04-01 | B114: ASFALTOS DILUÍDOS CM-30 | C114: São Paulo | D114: 1.475764348
A115: 2013-04-01 | B115: ASFALTOS DILUÍDOS CM-30 | C115: Sergipe | D115: -
A116: 2013-04-01 | B116: ASFALTOS DILUÍDOS CM-30 | C116: Tocantins | D116: -
A117: 2013-05-01 | B117: ASFALTOS DILUÍDOS CM-30 | C117: Acre | D117: -
A118: 2013-05-01 | B118: ASFALTOS DILUÍDOS CM-30 | C118: Alagoas | D118: -
A119: 2013-05-01 | B119: ASFALTOS DILUÍDOS CM-30 | C119: Amapá | D119: -
A120: 2013-05-01 | B120: ASFALTOS DILUÍDOS CM-30 | C120: Amazonas | D120: -
A121: 2013-05-01 | B121: ASFALTOS DILUÍDOS CM-30 | C121: Bahia | D121: 1.492587424
A122: 2013-05-01 | B122: ASFALTOS DILUÍDOS CM-30 | C122: Ceará | D122: 1.376263021
A123: 2013-05-01 | B123: ASFALTOS DILUÍDOS CM-30 | C123: Distrito Federal | D123: -
A124: 2013-05-01 | B124: ASFALTOS DILUÍDOS CM-30 | C124: Espírito Santo | D124: -
A125: 2013-05-01 | B125: ASFALTOS DILUÍDOS CM-30 | C125: Goiás | D125: 1.668214819
A126: 2013-05-01 | B126: ASFALTOS DILUÍDOS CM-30 | C126: Maranhão | D126: -
A127: 2013-05-01 | B127: ASFALTOS DILUÍDOS CM-30 | C127: Mato Grosso | D127: 1.903098159
A128: 2013-05-01 | B128: ASFALTOS DILUÍDOS CM-30 | C128: Mato Grosso do Sul | D128: -
A129: 2013-05-01 | B129: ASFALTOS DILUÍDOS CM-30 | C129: Minas Gerais | D129: 1.464709716
A130: 2013-05-01 | B130: ASFALTOS DILUÍDOS CM-30 | C130: Pará | D130: -
A131: 2013-05-01 | B131: ASFALTOS DILUÍDOS CM-30 | C131: Paraíba | D131: -
A132: 2013-05-01 | B132: ASFALTOS DILUÍDOS CM-30 | C132: Paraná | D132: 1.489027849
A133: 2013-05-01 | B133: ASFALTOS DILUÍDOS CM-30 | C133: Pernambuco | D133: -
A134: 2013-05-01 | B134: ASFALTOS DILUÍDOS CM-30 | C134: Piauí | D134: -
A135: 2013-05-01 | B135: ASFALTOS DILUÍDOS CM-30 | C135: Rio de Janeiro | D135: 1.399256048
A136: 2013-05-01 | B136: ASFALTOS DILUÍDOS CM-30 | C136: Rio Grande do Norte | D136: -
A137: 2013-05-01 | B137: ASFALTOS DILUÍDOS CM-30 | C137: Rio Grande do Sul | D137: 1.539636961
A138: 2013-05-01 | B138: ASFALTOS DILUÍDOS CM-30 | C138: Rondônia | D138: -
A139: 2013-05-01 | B139: ASFALTOS DILUÍDOS CM-30 | C139: Roraima | D139: -
A140: 2013-05-01 | B140: ASFALTOS DILUÍDOS CM-30 | C140: Santa Catarina | D140: -
A141: 2013-05-01 | B141: ASFALTOS DILUÍDOS CM-30 | C141: São Paulo | D141: 1.451215936
A142: 2013-05-01 | B142: ASFALTOS DILUÍDOS CM-30 | C142: Sergipe | D142: -
A143: 2013-05-01 | B143: ASFALTOS DILUÍDOS CM-30 | C143: Tocantins | D143: -
A144: 2013-06-01 | B144: ASFALTOS DILUÍDOS CM-30 | C144: Acre | D144: -
A145: 2013-06-01 | B145: ASFALTOS DILUÍDOS CM-30 | C145: Alagoas | D145: -
A146: 2013-06-01 | B146: ASFALTOS DILUÍDOS CM-30 | C146: Amapá | D146: -
A147: 2013-06-01 | B147: ASFALTOS DILUÍDOS CM-30 | C147: Amazonas | D147: 1.586325818
A148: 2013-06-01 | B148: ASFALTOS DILUÍDOS CM-30 | C148: Bahia | D148: 1.44812907
A149: 2013-06-01 | B149: ASFALTOS DILUÍDOS CM-30 | C149: Ceará | D149: 1.382700989
A150: 2013-06-01 | B150: ASFALTOS DILUÍDOS CM-30 | C150: Distrito Federal | D150: -
A151: 2013-06-01 | B151: ASFALTOS DILUÍDOS CM-30 | C151: Espírito Santo | D151: -
A152: 2013-06-01 | B152: ASFALTOS DILUÍDOS CM-30 | C152: Goiás | D152: 1.699613867
A153: 2013-06-01 | B153: ASFALTOS DILUÍDOS CM-30 | C153: Maranhão | D153: -
A154: 2013-06-01 | B154: ASFALTOS DILUÍDOS CM-30 | C154: Mato Grosso | D154: 1.915975658
A155: 2013-06-01 | B155: ASFALTOS DILUÍDOS CM-30 | C155: Mato Grosso do Sul | D155: -
A156: 2013-06-01 | B156: ASFALTOS DILUÍDOS CM-30 | C156: Minas Gerais | D156: 1.475366896
A157: 2013-06-01 | B157: ASFALTOS DILUÍDOS CM-30 | C157: Pará | D157: -
A158: 2013-06-01 | B158: ASFALTOS DILUÍDOS CM-30 | C158: Paraíba | D158: -
A159: 2013-06-01 | B159: ASFALTOS DILUÍDOS CM-30 | C159: Paraná | D159: 1.432166974
A160: 2013-06-01 | B160: ASFALTOS DILUÍDOS CM-30 | C160: Pernambuco | D160: -
A161: 2013-06-01 | B161: ASFALTOS DILUÍDOS CM-30 | C161: Piauí | D161: -
A162: 2013-06-01 | B162: ASFALTOS DILUÍDOS CM-30 | C162: Rio de Janeiro | D162: 1.527420226
A163: 2013-06-01 | B163: ASFALTOS DILUÍDOS CM-30 | C163: Rio Grande do Norte | D163: -
A164: 2013-06-01 | B164: ASFALTOS DILUÍDOS CM-30 | C164: Rio Grande do Sul | D164: 1.59868349
A165: 2013-06-01 | B165: ASFALTOS DILUÍDOS CM-30 | C165: Rondônia | D165: -
A166: 2013-06-01 | B166: ASFALTOS DILUÍDOS CM-30 | C166: Roraima | D166: -
A167: 2013-06-01 | B167: ASFALTOS DILUÍDOS CM-30 | C167: Santa Catarina | D167: -
A168: 2013-06-01 | B168: ASFALTOS DILUÍDOS CM-30 | C168: São Paulo | D168: 1.432748187
A169: 2013-06-01 | B169: ASFALTOS DILUÍDOS CM-30 | C169: Sergipe | D169: -
A170: 2013-06-01 | B170: ASFALTOS DILUÍDOS CM-30 | C170: Tocantins | D170: -
A171: 2013-07-01 | B171: ASFALTOS DILUÍDOS CM-30 | C171: Acre | D171: -
A172: 2013-07-01 | B172: ASFALTOS DILUÍDOS CM-30 | C172: Alagoas | D172: -
A173: 2013-07-01 | B173: ASFALTOS DILUÍDOS CM-30 | C173: Amapá | D173: -
A174: 2013-07-01 | B174: ASFALTOS DILUÍDOS CM-30 | C174: Amazonas | D174: 1.509890931
A175: 2013-07-01 | B175: ASFALTOS DILUÍDOS CM-30 | C175: Bahia | D175: 1.436150016
A176: 2013-07-01 | B176: ASFALTOS DILUÍDOS CM-30 | C176: Ceará | D176: 1.424835845
A177: 2013-07-01 | B177: ASFALTOS DILUÍDOS CM-30 | C177: Distrito Federal | D177: -
A178: 2013-07-01 | B178: ASFALTOS DILUÍDOS CM-30 | C178: Espírito Santo | D178: -
A179: 2013-07-01 | B179: ASFALTOS DILUÍDOS CM-30 | C179: Goiás | D179: 1.663778454
A180: 2013-07-01 | B180: ASFALTOS DILUÍDOS CM-30 | C180: Maranhão | D180: -
A181: 2013-07-01 | B181: ASFALTOS DILUÍDOS CM-30 | C181: Mato Grosso | D181: 1.930589551
A182: 2013-07-01 | B182: ASFALTOS DILUÍDOS CM-30 | C182: Mato Grosso do Sul | D182: -
A183: 2013-07-01 | B183: ASFALTOS DILUÍDOS CM-30 | C183: Minas Gerais | D183: 1.476572352
A184: 2013-07-01 | B184: ASFALTOS DILUÍDOS CM-30 | C184: Pará | D184: -
A185: 2013-07-01 | B185: ASFALTOS DILUÍDOS CM-30 | C185: Paraíba | D185: -
A186: 2013-07-01 | B186: ASFALTOS DILUÍDOS CM-30 | C186: Paraná | D186: 1.477167274
A187: 2013-07-01 | B187: ASFALTOS DILUÍDOS CM-30 | C187: Pernambuco | D187: -
A188: 2013-07-01 | B188: ASFALTOS DILUÍDOS CM-30 | C188: Piauí | D188: -
A189: 2013-07-01 | B189: ASFALTOS DILUÍDOS CM-30 | C189: Rio de Janeiro | D189: 1.584464713
A190: 2013-07-01 | B190: ASFALTOS DILUÍDOS CM-30 | C190: Rio Grande do Norte | D190: -
A191: 2013-07-01 | B191: ASFALTOS DILUÍDOS CM-30 | C191: Rio Grande do Sul | D191: 1.612487925
A192: 2013-07-01 | B192: ASFALTOS DILUÍDOS CM-30 | C192: Rondônia | D192: -
A193: 2013-07-01 | B193: ASFALTOS DILUÍDOS CM-30 | C193: Roraima | D193: -
A194: 2013-07-01 | B194: ASFALTOS DILUÍDOS CM-30 | C194: Santa Catarina | D194: -
A195: 2013-07-01 | B195: ASFALTOS DILUÍDOS CM-30 | C195: São Paulo | D195: 1.507844909
A196: 2013-07-01 | B196: ASFALTOS DILUÍDOS CM-30 | C196: Sergipe | D196: -
A197: 2013-07-01 | B197: ASFALTOS DILUÍDOS CM-30 | C197: Tocantins | D197: -
A198: 2013-08-01 | B198: ASFALTOS DILUÍDOS CM-30 | C198: Acre | D198: -
A199: 2013-08-01 | B199: ASFALTOS DILUÍDOS CM-30 | C199: Alagoas | D199: -
A200: 2013-08-01 | B200: ASFALTOS DILUÍDOS CM-30 | C200: Amapá | D200: -
A201: 2013-08-01 | B201: ASFALTOS DILUÍDOS CM-30 | C201: Amazonas | D201: 1.509275641
A202: 2013-08-01 | B202: ASFALTOS DILUÍDOS CM-30 | C202: Bahia | D202: 1.416699323
A203: 2013-08-01 | B203: ASFALTOS DILUÍDOS CM-30 | C203: Ceará | D203: 1.447403364
... 4297 more rows

Sheet ANP REGIÃO (hidden)
A1: Agência Nacional do Petróleo, Gás Natural e Biocombustíveis
A2: Superintendência de Defesa da Concorrência
A6: PREÇO MÉDIO MENSAL PONDERADO PRATICADO PELOS DISTRIBUIDORES DE PRODUTOS ASFÁLTICOS (R$/KG)
A8: Produto | B8: Mês | C8: Norte | D8: Nordeste | E8: Centro-Oeste | F8: Sudeste | G8: Sul | H8: Brasil
A9: ASFALTOS DILUÍDOS CM-30 | B9: 2008-11-01 | C9: 1.775468292 | D9: 1.55087853 | E9: 2.022143291 | F9: 1.55449367 | G9: 1.584532899 | H9: 1.64286837
A10: ASFALTOS DILUÍDOS CM-30 | B10: 2008-12-01 | C10: 1.806837667 | D10: 1.509118192 | E10: 2.013020124 | F10: 1.610902223 | G10: 1.607187591 | H10: 1.637581471
A11: ASFALTOS DILUÍDOS CM-30 | B11: 2009-01-01 | C11: 1.497052858 | D11: 1.504296346 | E11: 1.963097671 | F11: 1.524672247 | G11: 1.585137209 | H11: 1.564945876
A12: ASFALTOS DILUÍDOS CM-30 | B12: 2009-02-01 | C12: 1.42787112 | D12: 1.497693283 | E12: 1.981065098 | F12: 1.583490231 | G12: 1.595924062 | H12: 1.565451036
A13: ASFALTOS DILUÍDOS CM-30 | B13: 2009-03-01 | C13: 1.404941405 | D13: 1.497647987 | E13: 1.893430263 | F13: 1.52754782 | G13: 1.588720029 | H13: 1.532713147
A14: ASFALTOS DILUÍDOS CM-30 | B14: 2009-04-01 | C14: 1.410510748 | D14: 1.484826261 | E14: 1.909226429 | F14: 1.464149371 | G14: 1.553831928 | H14: 1.516717648
A15: ASFALTOS DILUÍDOS CM-30 | B15: 2009-05-01 | C15: 1.480355678 | D15: 1.466898928 | E15: 1.891590435 | F15: 1.435443718 | G15: 1.54161118 | H15: 1.537574371
A16: ASFALTOS DILUÍDOS CM-30 | B16: 2009-06-01 | C16: 1.580751039 | D16: 1.444888837 | E16: 1.842074119 | F16: 1.424264315 | G16: 1.501526696 | H16: 1.541315575
A17: ASFALTOS DILUÍDOS CM-30 | B17: 2009-07-01 | C17: 1.905432476 | D17: 1.482618211 | E17: 1.949046345 | F17: 1.584435299 | G17: 1.610310436 | H17: 1.651032523
A18: ASFALTOS DILUÍDOS CM-30 | B18: 2009-08-01 | C18: 1.716995184 | D18: 1.423854915 | E18: 1.712385478 | F18: 1.418000805 | G18: 1.520643497 | H18: 1.504911469
A19: ASFALTOS DILUÍDOS CM-30 | B19: 2009-09-01 | C19: 1.64329494 | D19: 1.445317761 | E19: 1.731518803 | F19: 1.419374251 | G19: 1.500735895 | H19: 1.50552312
A20: ASFALTOS DILUÍDOS CM-30 | B20: 2009-10-01 | C20: 1.588031924 | D20: 1.458932649 | E20: 1.762015056 | F20: 1.429024419 | G20: 1.513753831 | H20: 1.511681904
A21: ASFALTOS DILUÍDOS CM-30 | B21: 2009-11-01 | C21: 1.639348604 | D21: 1.449059777 | E21: 1.772650817 | F21: 1.434122677 | G21: 1.526043188 | H21: 1.499657392
A22: ASFALTOS DILUÍDOS CM-30 | B22: 2009-12-01 | C22: 1.664266853 | D22: 1.441966636 | E22: 1.890574802 | F22: 1.429077727 | G22: 1.520539334 | H22: 1.508864598
A23: ASFALTOS DILUÍDOS CM-30 | B23: 2010-01-01 | C23: 1.842506144 | D23: 1.454977129 | E23: 1.865022447 | F23: 1.414817608 | G23: 1.474450765 | H23: 1.497735227
A24: ASFALTOS DILUÍDOS CM-30 | B24: 2010-02-01 | C24: 1.709886915 | D24: 1.442956487 | E24: 1.919844741 | F24: 1.433146251 | G24: 1.500882448 | H24: 1.496542251
A25: ASFALTOS DILUÍDOS CM-30 | B25: 2010-03-01 | C25: 1.535743416 | D25: 1.448880499 | E25: 1.935062728 | F25: 1.435026116 | G25: 1.480618635 | H25: 1.486789802
A26: ASFALTOS DILUÍDOS CM-30 | B26: 2010-04-01 | C26: 1.710046479 | D26: 1.440300254 | E26: 1.911935961 | F26: 1.421102153 | G26: 1.481270937 | H26: 1.511086431
A27: ASFALTOS DILUÍDOS CM-30 | B27: 2010-05-01 | C27: 1.755610465 | D27: 1.435277221 | E27: 1.873293889 | F27: 1.406944432 | G27: 1.48177605 | H27: 1.537170565
A28: ASFALTOS DILUÍDOS CM-30 | B28: 2010-06-01 | C28: 1.602224314 | D28: 1.396004336 | E28: 1.731734721 | F28: 1.399996227 | G28: 1.49193962 | H28: 1.498073418
